Workbook

Sheet Accueil
A2: Outil de planning et de masse horraire | J2: Planning avec Lettres (planning a remplir)
A3: Service | C3: =IF(Données!L5="","Remplir dans configuration",Données!L5) -> RENFORT 2 | J3: Pour remplir heures supplementaires
A4: Année | C4: =IF(An="","Remplir dans configuration",An) -> 2018 | J4: Janvier
J8: Planning avec Horraires (pour RH et ou Equipes)
J9: Novembre
J16: Bilan Equipes
J17: Mars

Sheet Données
A1: Donnés horaire (penser a changer) | E1: Jour | F1: Apres 21h | G1: 1 | L1: Mot de passe : azerty
B2: Debut | C2: Fin | E2: Automatique | G2: 0.8743055556 | L2: Rappel : certainne modifs peuvent prendre quelque secondes
A3: M | B3: 0.2916666667 | C3: 0.6041666667 | D3: =IF(ISBLANK(C3),TEXT(B3,"hh:mm")&" ",TEXT(B3,"hh:mm")&" : "&TEXT(C3,"hh:mm")) -> 07:00 : 14:30 | E3: =IF(ISTEXT(B3),C3,IF(B3<$G$2,IF(C3-B3<0,$G$1+C3-B3,C3-B3),$G$1-(B3-C3))) -> 0.3125 | F3: =IF(C3="","00:00",IF(C3>$G$2,C3-$G$2-$G$3,IF(B3>$G$2,E3,"00:00"))) -> 00:00 | H3: Remplir ici les données (double cliquer pour masquer ou affichier sur la colonne "h" ( un "x" = masquer) | J3: Nombre d'heure annuel
A4: MR | B4: 0.2916666667 | C4: 0.7083333333 | D4: 07:00 : 17:00 | E4: 0.4166666667 | F4: =IF(C4="","00:00",IF(C4>$G$2,C4-$G$2-$G$3,IF(B4>$G$2,E4,"00:00"))) -> 00:00 | L4: Nom du service
A5: D | B5: 0.4166666667 | C5: 0.7291666667 | D5: 10:00 : 17:30 | E5: 0.3125 | F5: 00:00 | H5: Equipe de jour | L5: RENFORT 2 | S5: Mois | T5: Hmois | U5: Bmois | V5: Reference
A6: DR | B6: 0.4166666667 | C6: 0.7291666667 | D6: 10:00 : 17:30 | E6: 0.3125 | F6: 00:00 | H6: 1 | J6: 59.5 | L6: Année | M6: 2018 | S6: Janvier | T6: Janvier | U6: Janvier | V6: 1
A7: DM | B7: 0.3333333333 | C7: 0.6458333333 | D7: 08:00 : 15:30 | E7: 0.3125 | F7: 00:00 | H7: 2 | J7: 59.5 | S7: Février | T7: Février | U7: Février | V7: 2
A8: PFJ | B8: 0.375 | C8: 0.7083333333 | D8: 09:00 : 17:00 | E8: 0.3333333333 | F8: 00:00 | H8: 3 | J8: 59.5 | S8: Mars | T8: Mars | U8: Mars | V8: 3
A9: S | B9: 0.5833333333 | C9: 0.9166666667 | D9: 14:00 : 22:00 | E9: 0.3333333333 | F9: 0.04236111111 | H9: 4 | J9: 59.5 | N9: Cliquer ici après changement de l'année ou après changement de couleurs/bordure (cela peu prendre quelques minutes) | S9: Avril | T9: Avril | U9: Avril | V9: 4
A10: S+ | B10: 0.5833333333 | C10: 0.9583333333 | D10: 14:00 : 23:00 | E10: 0.375 | F10: 0.08402777778 | H10: 5 | J10: 59.5 | S10: Mai | T10: Mai | U10: Mai | V10: 5
A11: R | B11: 0.5833333333 | C11: 0.7083333333 | D11: 14:00 : 17:00 | E11: 0.125 | F11: 00:00 | H11: 6 | J11: 59.5 | S11: Juin | T11: Juin | U11: Juin | V11: 6
A12: W | B12: 0.3333333333 | C12: 0.8333333333 | D12: 08:00 : 20:00 | E12: 0.5 | F12: 00:00 | H12: 7 | J12: 59.5 | S12: Juillet | T12: Juillet | U12: Juillet | V12: 7
A13: W+ | B13: 0.4583333333 | C13: 0.9583333333 | D13: 11:00 : 23:00 | E13: 0.5 | F13: 0.08402777778 | H13: 8 | J13: 59.5 | N13: Pour effacer le contenue des plannings | S13: Août | T13: Août | U13: Août | V13: 8
A14: N | B14: 0.8333333333 | C14: 0.2916666667 | D14: 20:00 : 07:00 | E14: 0.4583333333 | F14: 00:00 | I14: X | J14: 59.5 | S14: Septembre | T14: Septembre | U14: Septembre | V14: 9
A15: NVS | B15: 0.8333333333 | C15: 0.3333333333 | D15: 20:00 : 08:00 | E15: =IF(ISTEXT(B15),C15,IF(B15<$G$2,IF(C15-B15<0,$G$1+C15-B15,C15-B15),$G$1-(B15-C15))) -> 0.5 | F15: 00:00 | I15: X | J15: 59.5 | S15: Octobre | T15: Octobre | U15: Octobre | V15: 10
A16: CA | B16: CA | C16: CA | D16: CA : CA | E16: 0 | I16: X | J16: 59.5 | L16: Pour changer couleurs et bordures des plannings | S16: Novembre | T16: Novembre | U16: Novembre | V16: 11 | W16: Jours feriés et dimanche | X16: Jours feriés et dimanche j-1
A17: F | B17: F | C17: 0 | D17: F : 00:00 | E17: 0.3125 | F17: 0.3125 | I17: X | J17: 59.5 | L17: jours | M17: Semaine | N17: W | S17: Décembre | T17: Décembre | U17: Décembre | V17: 12
A18: sta | B18: sta | C18: ge | D18: sta : ge | E18: 0.2916666667 | I18: X | J18: 59.5
A19: AT | B19: AT | C19: AT | D19: AT : AT | E19: 0.3166666667 | I19: X | J19: 59.5 | L19: Equipe de jour | S19: Jours feriés
A20: AM | B20: AM | C20: AM | D20: AM : AM | E20: 0.3166666667 | I20: X | J20: 59.5 | S20: Jour de l'an | U20: =DATE(An,Janvier,1) -> 2018-01-01 | W20: =U20 -> 2018-01-01 | X20: =W20-1 -> 2017-12-31
A21: CM | B21: CM | C21: CM | D21: CM : CM | E21: 0.3166666667 | I21: X | J21: 59.5 | L21: agents | S21: Pâques | U21: =IF(MOD(19*MOD(An,19)+24,30)+MOD(2*MOD(An,4)+4*MOD(An,7)+6* MOD(19*MOD(An,19)+24,30)+5,7)-9<=0,DATE(An,3,22+MOD(19*MOD(An, 19)+24,30)+MOD(2*MOD(An,4)+4*MOD(An,7)+6*MOD(19*MOD(An,19)+24, 30)+5,7)),DATE(An,4,MOD(19*MOD(An,19)+24,30)+MOD(2*MOD(An,4)+4* MOD(An,7)+6*MOD(19*MOD(An,19)+24,30)+5,7)-9)) -> 2018-04-01 | W21: =U21 -> 2018-04-01 | X21: =W21-1 -> 2018-03-31
A22: CE | B22: CE | C22: CE | D22: CE : CE | E22: 0.3166666667 | H22: Equipe de nuit | S22: Lundi de Pâques | U22: =U21+1 -> 2018-04-02 | W22: 2018-04-02 | X22: 2018-04-01
A23: T | B23: trans | C23: fert | D23: trans : fert | E23: 0.3166666667 | H23: 9 | J23: 57.95833333 | S23: Fête du travail | U23: =DATE(An,Mai,1) -> 2018-05-01 | W23: 2018-05-01 | X23: 2018-04-30
A24: REC | B24: REC | C24: REC | D24: REC : REC | E24: 0 | H24: 10 | J24: 57.95833333 | S24: Armistice 1945 | U24: =DATE(An,Mai,8) -> 2018-05-08 | W24: 2018-05-08 | X24: 2018-05-07
A25: TP | B25: TP | C25: TP | D25: TP : TP | E25: 0 | H25: 11 | J25: 57.95833333 | L25: Entrer ici les separateur pour la mise en forme | S25: Ascension | U25: =U21+39 -> 2018-05-10 | W25: 2018-05-10 | X25: 2018-05-09
A26: EM | B26: EM | D26: EM | E26: 0.3166666667 | F26: 00:00 | I26: X | J26: 59.5 | L26: Equipe de jour | S26: Pentecôte | U26: =U21+49 -> 2018-05-20 | W26: 2018-05-20 | X26: 2018-05-19
A27: J | B27: 0.375 | C27: 0.7083333333 | D27: 09:00 : 17:00 | E27: 0.3125 | F27: 00:00 | I27: X | J27: 59.5 | L27: Stagiaire | S27: Lundi de Pentecote | U27: =U21+50 -> 2018-05-21 | W27: 2018-05-21 | X27: 2018-05-20
A28: J+ | B28: 0.375 | C28: 0.75 | D28: 09:00 : 18:00 | E28: 0.3541666667 | F28: 00:00 | I28: X | J28: 59.5 | L28: Equipe de nuit | S28: Fête nationale | U28: =DATE(An,Juillet,14) -> 2018-07-14 | W28: 2018-07-14 | X28: 2018-07-13
A29: RS | B29: 0.3958333333 | C29: 0.8958333333 | D29: =IF(ISBLANK(C29),TEXT(B29,"hh:mm")&" ",TEXT(B29,"hh:mm")&" : "&TEXT(C29,"hh:mm")) -> 09:30 : 21:30 | E29: 0.5 | F29: 0.02152777778 | I29: X | J29: 59.5 | L29: Maitresse de maison | S29: Assomption | U29: =DATE(An,Aout,15) -> 2018-08-15 | W29: 2018-08-15 | X29: 2018-08-14
A30: X | B30: X | C30: - | D30: X : - | I30: X | J30: 59.5 | L30: Psychologue | S30: Toussaint | U30: =DATE(An,Novembre,1) -> 2018-11-01 | W30: 2018-11-01 | X30: 2018-10-31
D31: 00:00 | E31: =IF(ISTEXT(B31),C31,IF(B31<$G$2,IF(C31-B31<0,$G$1+C31-B31,C31-B31),$G$1-(B31-C31))) -> 0 | F31: 00:00 | I31: X | J31: 59.5 | L31: Coordinatrice | S31: Armistice 1918 | U31: =DATE(An,Novembre,11) -> 2018-11-11 | W31: 2018-11-11 | X31: 2018-11-10
D32: 00:00 | E32: 0 | F32: 00:00 | H32: Maitresse de maison | S32: NOEL | U32: =DATE(An,Decembre,25) -> 2018-12-25 | W32: 2018-12-25 | X32: 2018-12-24
D33: 00:00 | E33: 0 | F33: 00:00 | H33: 12 | J33: 63 | W33: =IF(WEEKDAY(DATE(An,1,1),2)=1,DATE(An,1,1)+6,IF(WEEKDAY(DATE(An,1,1),2)=2,DATE(An,1,1)+5,IF(WEEKDAY(DATE(An,1,1),2)=3,DATE(An,1,1)+4,IF(WEEKDAY(DATE(An,1,1),2)=4,DATE(An,1,1)+3,IF(WEEKDAY(DATE(An,1,1),2)=5,DATE(An,1,1)+2,IF(WEEKDAY(DATE(An,1,1),2)=6,DATE(An,1,1)+1,DATE(An,1,1))))))) -> 2018-01-07 | X33: 2018-01-06
D34: 00:00 | E34: 0 | F34: 00:00 | I34: X | J34: 59.5 | L34: Chef de service | W34: =IF(WEEKDAY(W33,2)=6,W33+1,IF(WEEKDAY(W33,2)=7,W33+7,10)) -> 2018-01-14 | X34: 2018-01-13
D35: =IF(ISBLANK(C35),TEXT(B35,"hh:mm")&" ",TEXT(B35,"hh:mm")&" : "&TEXT(C35,"hh:mm")) -> 00:00 | E35: 0 | F35: 00:00 | I35: X | J35: 59.5 | W35: =IF(WEEKDAY(W34,2)=6,W34+1,IF(WEEKDAY(W34,2)=7,W34+7,10)) -> 2018-01-21 | X35: 2018-01-20
D36: =IF(ISBLANK(C36),TEXT(B36,"hh:mm")&" ",TEXT(B36,"hh:mm")&" : "&TEXT(C36,"hh:mm")) -> 00:00 | E36: 0 | I36: X | J36: 59.5 | W36: 2018-01-28 | X36: 2018-01-27
D37: =IF(ISBLANK(C37),TEXT(B37,"hh:mm")&" ",TEXT(B37,"hh:mm")&" : "&TEXT(C37,"hh:mm")) -> 00:00 | E37: 0 | I37: X | J37: 59.5 | W37: 2018-02-04 | X37: 2018-02-03
D38: =IF(ISBLANK(C38),TEXT(B38,"hh:mm")&" ",TEXT(B38,"hh:mm")&" : "&TEXT(C38,"hh:mm")) -> 00:00 | E38: 0 | I38: X | J38: 59.5 | W38: 2018-02-11 | X38: 2018-02-10
D39: =IF(ISBLANK(C39),TEXT(B39,"hh:mm")&" ",TEXT(B39,"hh:mm")&" : "&TEXT(C39,"hh:mm")) -> 00:00 | E39: 0 | I39: X | J39: 59.5 | W39: 2018-02-18 | X39: 2018-02-17
D40: 00:00 | E40: 0 | I40: X | J40: 59.5 | W40: 2018-02-25 | X40: 2018-02-24
D41: 00:00 | E41: 0 | I41: X | J41: 59.5 | W41: 2018-03-04 | X41: 2018-03-03
D42: 00:00 | E42: 0 | H42: Psychologue | W42: 2018-03-11 | X42: 2018-03-10
D43: 00:00 | E43: 0 | H43: 13 | J43: 63 | W43: 2018-03-18 | X43: 2018-03-17
D44: 00:00 | E44: 0 | I44: X | J44: 59.5 | W44: 2018-03-25 | X44: 2018-03-24
D45: =IF(ISBLANK(C45),TEXT(B45,"hh:mm")&" ",TEXT(B45,"hh:mm")&" : "&TEXT(C45,"hh:mm")) -> 00:00 | E45: =IF(ISTEXT(B45),C45,IF(B45<$G$2,IF(C45-B45<0,$G$1+C45-B45,C45-B45),$G$1-(B45-C45))) -> 0 | I45: X | J45: 59.5 | W45: 2018-04-01 | X45: 2018-03-31
H46: Coordinatrice | W46: 2018-04-08 | X46: 2018-04-07
H47: 14 | J47: 63 | W47: 2018-04-15 | X47: 2018-04-14
I48: X | J48: 59.5 | W48: 2018-04-22 | X48: 2018-04-21
I49: X | J49: 59.5 | W49: 2018-04-29 | X49: 2018-04-28
I50: X | J50: 59.5 | W50: 2018-05-06 | X50: 2018-05-05
I51: X | J51: 59.5 | W51: 2018-05-13 | X51: 2018-05-12
H52: Chef de service | W52: 2018-05-20 | X52: 2018-05-19
H53: 15 | J53: 63 | W53: 2018-05-27 | X53: 2018-05-26
W54: 2018-06-03 | X54: 2018-06-02
W55: 2018-06-10 | X55: 2018-06-09
W56: 2018-06-17 | X56: 2018-06-16
W57: 2018-06-24 | X57: 2018-06-23
W58: 2018-07-01 | X58: 2018-06-30
W59: 2018-07-08 | X59: 2018-07-07
W60: 2018-07-15 | X60: 2018-07-14
W61: 2018-07-22 | X61: 2018-07-21
W62: 2018-07-29 | X62: 2018-07-28
W63: 2018-08-05 | X63: 2018-08-04
W64: 2018-08-12 | X64: 2018-08-11
W65: 2018-08-19 | X65: 2018-08-18
W66: 2018-08-26 | X66: 2018-08-25
W67: 2018-09-02 | X67: 2018-09-01
W68: 2018-09-09 | X68: 2018-09-08
W69: 2018-09-16 | X69: 2018-09-15
W70: 2018-09-23 | X70: 2018-09-22
W71: 2018-09-30 | X71: 2018-09-29
W72: 2018-10-07 | X72: 2018-10-06
W73: 2018-10-14 | X73: 2018-10-13
W74: 2018-10-21 | X74: 2018-10-20
W75: 2018-10-28 | X75: 2018-10-27
W76: 2018-11-04 | X76: 2018-11-03
W77: 2018-11-11 | X77: 2018-11-10
W78: 2018-11-18 | X78: 2018-11-17
W79: 2018-11-25 | X79: 2018-11-24
W80: 2018-12-02 | X80: 2018-12-01
W81: 2018-12-09 | X81: 2018-12-08
W82: 2018-12-16 | X82: 2018-12-15
W83: 2018-12-23 | X83: 2018-12-22
W84: 2018-12-30 | X84: 2018-12-29
W85: 2019-01-06 | X85: =W85-1 -> 2019-01-05

Sheet Janvier
A1: Janvier
B2: =DATE(An,Janvier,B7) -> 2018-01-01 | C2: =DATE(An,Janvier,C7) -> 2018-01-02 | D2: 2018-01-03 | E2: 2018-01-04 | F2: 2018-01-05 | G2: 2018-01-06 | H2: 2018-01-07 | I2: 2018-01-08 | J2: 2018-01-09 | K2: 2018-01-10 | L2: 2018-01-11 | M2: 2018-01-12 | N2: 2018-01-13 | O2: 2018-01-14 | P2: 2018-01-15 | Q2: 2018-01-16 | R2: 2018-01-17 | S2: 2018-01-18 | T2: 2018-01-19 | U2: 2018-01-20 | V2: 2018-01-21 | W2: 2018-01-22 | X2: 2018-01-23 | Y2: 2018-01-24 | Z2: 2018-01-25 | AA2: 2018-01-26 | AB2: 2018-01-27 | AC2: 2018-01-28 | AD2: 2018-01-29 | AE2: 2018-01-30 | AF2: 2018-01-31 | AI2: Pour remplir | AJ2: penser | AO2: =IF(ISNUMBER(AO7),DATE(An,Janvier,AO7),"") ->  | AP2: =IF(ISNUMBER(AP7),DATE(An,Janvier,AP7),"") -> 
A3: =IF(Données!$L$5="","Service",Données!$L$5) -> RENFORT 2 | K3: Mois de Janvier | O3: =An -> 2018 | AI3: à mettre dans le format:
AI4: "heures":"Minutes" | AS4: Heures sup Année precedente | AT4: Masse horraire previsionnel
AI5: Heures sup | AJ5: Heures sup | AL5: Indications | AM5: Indications | AN5: Indications | AP5: Total
A6: Jours | B6: =PROPER(LEFT(TEXT(DATE(An,Janvier,B7),"jjj"),1)) -> L | C6: =PROPER(LEFT(TEXT(DATE(An,Janvier,C7),"jjj"),1)) -> M | D6: M | E6: J | F6: V | G6: S | H6: D | I6: L | J6: M | K6: M | L6: J | M6: V | N6: S | O6: D | P6: L | Q6: M | R6: M | S6: J | T6: V | U6: S | V6: D | W6: L | X6: M | Y6: M | Z6: J | AA6: V | AB6: S | AC6: D | AD6: L | AE6: M | AF6: M | AI6: avant 21h | AJ6: après 21h | AL6: Heures | AM6: Heures nuit | AN6: Heures | AP6: Heures | AQ6: Heures
B7: =A7+1 -> 1 | C7: 2 | D7: 3 | E7: 4 | F7: 5 | G7: 6 | H7: 7 | I7: 8 | J7: 9 | K7: 10 | L7: 11 | M7: 12 | N7: 13 | O7: 14 | P7: 15 | Q7: 16 | R7: 17 | S7: 18 | T7: 19 | U7: 20 | V7: 21 | W7: 22 | X7: 23 | Y7: 24 | Z7: 25 | AA7: 26 | AB7: 27 | AC7: 28 | AD7: 29 | AE7: 30 | AF7: 31 | AI7: A remplir | AJ7: A remplir | AL7: Dimanche | AM7: Dimanche | AN7: après 21h | AP7: au mois | AQ7: a l'année | AS7: A remplir | AT7: i
A8: Equipe de jour
A9: =Données!$H6 -> 1 | AL9: =VLOOKUP(A9,INDIRECT("B"&$A$1&"!A6:BM56"),49,FALSE) -> 0 | AM9: =VLOOKUP(A9,INDIRECT("B"&$A$1&"!A6:BM56"),50,FALSE) -> 0 | AN9: =VLOOKUP(A9,INDIRECT("B"&$A$1&"!A6:BM56"),51,FALSE) -> 0 | AP9: =IFERROR(VLOOKUP(A9,INDIRECT("B"&$A$1&"!A6:BM56"),53,FALSE),"") -> 0 | AQ9: =IFERROR(VLOOKUP(A9,Bilan!A6:BM56,54,FALSE),"") -> 18.35416667 | AT9: =IFERROR(SUM((VLOOKUP(Janvier!A9,Données!$H$6:$J$53,3,FALSE)/12)*1),"") -> 4.958333333
A10: =Données!$H7 -> 2 | AE10: CA | AF10: CA | AL10: 0 | AM10: 0 | AN10: 0 | AP10: 0 | AQ10: =IFERROR(VLOOKUP(A10,Bilan!A7:BM57,54,FALSE),"") -> 22.8625 | AT10: =IFERROR(SUM((VLOOKUP(Janvier!A10,Données!$H$6:$J$53,3,FALSE)/12)*1),"") -> 4.958333333
A11: =Données!$H8 -> 3 | AL11: 0 | AM11: 0 | AN11: 0 | AP11: 0 | AQ11: =IFERROR(VLOOKUP(A11,Bilan!A8:BM58,54,FALSE),"") -> 17 | AT11: =IFERROR(SUM((VLOOKUP(Janvier!A11,Données!$H$6:$J$53,3,FALSE)/12)*1),"") -> 4.958333333
A12: =Données!$H9 -> 4 | AL12: 0 | AM12: 0 | AN12: 0 | AP12: 0 | AQ12: =IFERROR(VLOOKUP(A12,Bilan!A9:BM59,54,FALSE),"") -> 39.58333333 | AT12: =IFERROR(SUM((VLOOKUP(Janvier!A12,Données!$H$6:$J$53,3,FALSE)/12)*1),"") -> 4.958333333
A13: =Données!$H10 -> 5 | P13: CA | Q13: CA | R13: CA | S13: CA | T13: CA | AL13: 0 | AM13: 0 | AN13: 0 | AP13: 0 | AQ13: =IFERROR(VLOOKUP(A13,Bilan!A10:BM60,54,FALSE),"") -> 17.4375 | AT13: =IFERROR(SUM((VLOOKUP(Janvier!A13,Données!$H$6:$J$53,3,FALSE)/12)*1),"") -> 4.958333333
A14: =Données!$H11 -> 6 | AL14: 0 | AM14: 0 | AN14: 0 | AP14: 0 | AQ14: =IFERROR(VLOOKUP(A14,Bilan!A11:BM61,54,FALSE),"") -> 20.39583333 | AT14: =IFERROR(SUM((VLOOKUP(Janvier!A14,Données!$H$6:$J$53,3,FALSE)/12)*1),"") -> 4.958333333
A15: =Données!$H12 -> 7 | AL15: 0 | AM15: 0 | AN15: 0 | AP15: 0 | AQ15: =IFERROR(VLOOKUP(A15,Bilan!A12:BM62,54,FALSE),"") -> 6.4375 | AT15: =IFERROR(SUM((VLOOKUP(Janvier!A15,Données!$H$6:$J$53,3,FALSE)/12)*1),"") -> 4.958333333
A16: =Données!$H13 -> 8 | AL16: 0 | AM16: 0 | AN16: 0 | AP16: 0 | AQ16: =IFERROR(VLOOKUP(A16,Bilan!A13:BM63,54,FALSE),"") -> 6.3125 | AT16: =IFERROR(SUM((VLOOKUP(Janvier!A16,Données!$H$6:$J$53,3,FALSE)/12)*1),"") -> 4.958333333
A17: =Données!$H14 -> 0 | AL17: 0 | AM17: 0 | AN17: 0 | AP17: 0 | AQ17: =IFERROR(VLOOKUP(A17,Bilan!A14:BM64,54,FALSE),"") -> 62.4375 | AT17: =IFERROR(SUM((VLOOKUP(Janvier!A17,Données!$H$6:$J$53,3,FALSE)/12)*1),"") -> 
A18: =Données!$H15 -> 0 | AL18: 0 | AM18: 0 | AN18: 0 | AP18: 0 | AQ18: =IFERROR(VLOOKUP(A18,Bilan!A15:BM65,54,FALSE),"") -> 62.4375 | AT18: =IFERROR(SUM((VLOOKUP(Janvier!A18,Données!$H$6:$J$53,3,FALSE)/12)*1),"") -> 
A19: =Données!$H16 -> 0 | AL19: 0 | AM19: 0 | AN19: 0 | AP19: 0 | AQ19: =IFERROR(VLOOKUP(A19,Bilan!A16:BM66,54,FALSE),"") -> 62.4375 | AT19: =IFERROR(SUM((VLOOKUP(Janvier!A19,Données!$H$6:$J$53,3,FALSE)/12)*1),"") -> 
A20: =Données!$H17 -> 0 | AL20: =VLOOKUP(A20,INDIRECT("B"&$A$1&"!A6:BM56"),49,FALSE) -> 0 | AM20: =VLOOKUP(A20,INDIRECT("B"&$A$1&"!A6:BM56"),50,FALSE) -> 0 | AN20: =VLOOKUP(A20,INDIRECT("B"&$A$1&"!A6:BM56"),51,FALSE) -> 0 | AP20: =IFERROR(VLOOKUP(A20,INDIRECT("B"&$A$1&"!A6:BM56"),53,FALSE),"") -> 0 | AQ20: =IFERROR(VLOOKUP(A20,Bilan!A17:BM67,54,FALSE),"") -> 62.4375 | AT20: =IFERROR(SUM((VLOOKUP(Janvier!A20,Données!$H$6:$J$53,3,FALSE)/12)*1),"") -> 
A21: =Données!$H18 -> 0 | AL21: =VLOOKUP(A21,INDIRECT("B"&$A$1&"!A6:BM56"),49,FALSE) -> 0 | AM21: =VLOOKUP(A21,INDIRECT("B"&$A$1&"!A6:BM56"),50,FALSE) -> 0 | AN21: =VLOOKUP(A21,INDIRECT("B"&$A$1&"!A6:BM56"),51,FALSE) -> 0 | AP21: =IFERROR(VLOOKUP(A21,INDIRECT("B"&$A$1&"!A6:BM56"),53,FALSE),"") -> 0 | AQ21: =IFERROR(VLOOKUP(A21,Bilan!A18:BM68,54,FALSE),"") -> 62.4375 | AT21: =IFERROR(SUM((VLOOKUP(Janvier!A21,Données!$H$6:$J$53,3,FALSE)/12)*1),"") -> 
A22: =Données!$H19 -> 0 | AL22: =VLOOKUP(A22,INDIRECT("B"&$A$1&"!A6:BM56"),49,FALSE) -> 0 | AM22: =VLOOKUP(A22,INDIRECT("B"&$A$1&"!A6:BM56"),50,FALSE) -> 0 | AN22: =VLOOKUP(A22,INDIRECT("B"&$A$1&"!A6:BM56"),51,FALSE) -> 0 | AP22: =IFERROR(VLOOKUP(A22,INDIRECT("B"&$A$1&"!A6:BM56"),53,FALSE),"") -> 0 | AQ22: =IFERROR(VLOOKUP(A22,Bilan!A19:BM69,54,FALSE),"") -> 62.4375 | AT22: =IFERROR(SUM((VLOOKUP(Janvier!A22,Données!$H$6:$J$53,3,FALSE)/12)*1),"") -> 
A23: =Données!$H20 -> 0 | AL23: =VLOOKUP(A23,INDIRECT("B"&$A$1&"!A6:BM56"),49,FALSE) -> 0 | AM23: =VLOOKUP(A23,INDIRECT("B"&$A$1&"!A6:BM56"),50,FALSE) -> 0 | AN23: =VLOOKUP(A23,INDIRECT("B"&$A$1&"!A6:BM56"),51,FALSE) -> 0 | AP23: =IFERROR(VLOOKUP(A23,INDIRECT("B"&$A$1&"!A6:BM56"),53,FALSE),"") -> 0 | AQ23: =IFERROR(VLOOKUP(A23,Bilan!A20:BM70,54,FALSE),"") ->  | AT23: =IFERROR(SUM((VLOOKUP(Janvier!A23,Données!$H$6:$J$53,3,FALSE)/12)*1),"") -> 
A24: =Données!$H21 -> 0 | AL24: =VLOOKUP(A24,INDIRECT("B"&$A$1&"!A6:BM56"),49,FALSE) -> 0 | AM24: =VLOOKUP(A24,INDIRECT("B"&$A$1&"!A6:BM56"),50,FALSE) -> 0 | AN24: =VLOOKUP(A24,INDIRECT("B"&$A$1&"!A6:BM56"),51,FALSE) -> 0 | AP24: =IFERROR(VLOOKUP(A24,INDIRECT("B"&$A$1&"!A6:BM56"),53,FALSE),"") -> 0 | AQ24: =IFERROR(VLOOKUP(A24,Bilan!A21:BM71,54,FALSE),"") -> 0 | AT24: =IFERROR(SUM((VLOOKUP(Janvier!A24,Données!$H$6:$J$53,3,FALSE)/12)*1),"") -> 
A25: =Données!$H22 -> Equipe de nuit
A26: =Données!$H23 -> 9 | E26: CA | F26: CA | I26: CA | J26: CA | K26: CA | L26: CA | M26: CA | AL26: =VLOOKUP(A26,INDIRECT("B"&$A$1&"!A6:BM56"),49,FALSE) -> 0 | AM26: =VLOOKUP(A26,INDIRECT("B"&$A$1&"!A6:BM56"),50,FALSE) -> 0 | AN26: =VLOOKUP(A26,INDIRECT("B"&$A$1&"!A6:BM56"),51,FALSE) -> 0 | AP26: =IFERROR(VLOOKUP(A26,INDIRECT("B"&$A$1&"!A6:BM56"),53,FALSE),"") -> 0 | AQ26: =IFERROR(VLOOKUP(A26,Bilan!A23:BM73,54,FALSE),"") -> 15.98333333 | AT26: =IFERROR(SUM((VLOOKUP(Janvier!A26,Données!$H$6:$J$53,3,FALSE)/12)*1),"") -> 4.829861111
A27: =Données!$H24 -> 10 | AL27: =VLOOKUP(A27,INDIRECT("B"&$A$1&"!A6:BM56"),49,FALSE) -> 0 | AM27: =VLOOKUP(A27,INDIRECT("B"&$A$1&"!A6:BM56"),50,FALSE) -> 0 | AN27: =VLOOKUP(A27,INDIRECT("B"&$A$1&"!A6:BM56"),51,FALSE) -> 0 | AP27: =IFERROR(VLOOKUP(A27,INDIRECT("B"&$A$1&"!A6:BM56"),53,FALSE),"") -> 0 | AQ27: =IFERROR(VLOOKUP(A27,Bilan!A24:BM74,54,FALSE),"") -> 12.04166667 | AT27: =IFERROR(SUM((VLOOKUP(Janvier!A27,Données!$H$6:$J$53,3,FALSE)/12)*1),"") -> 4.829861111
A28: =Données!$H25 -> 11 | AL28: =VLOOKUP(A28,INDIRECT("B"&$A$1&"!A6:BM56"),49,FALSE) -> 0 | AM28: =VLOOKUP(A28,INDIRECT("B"&$A$1&"!A6:BM56"),50,FALSE) -> 0 | AN28: =VLOOKUP(A28,INDIRECT("B"&$A$1&"!A6:BM56"),51,FALSE) -> 0 | AP28: =IFERROR(VLOOKUP(A28,INDIRECT("B"&$A$1&"!A6:BM56"),53,FALSE),"") -> 0 | AQ28: =IFERROR(VLOOKUP(A28,Bilan!A25:BM75,54,FALSE),"") -> 16.20833333 | AT28: =IFERROR(SUM((VLOOKUP(Janvier!A28,Données!$H$6:$J$53,3,FALSE)/12)*1),"") -> 4.829861111
A29: =Données!$H26 -> 0 | AL29: =VLOOKUP(A29,INDIRECT("B"&$A$1&"!A6:BM56"),49,FALSE) -> 0 | AM29: =VLOOKUP(A29,INDIRECT("B"&$A$1&"!A6:BM56"),50,FALSE) -> 0 | AN29: =VLOOKUP(A29,INDIRECT("B"&$A$1&"!A6:BM56"),51,FALSE) -> 0 | AP29: =IFERROR(VLOOKUP(A29,INDIRECT("B"&$A$1&"!A6:BM56"),53,FALSE),"") -> 0 | AQ29: =IFERROR(VLOOKUP(A29,Bilan!A26:BM76,54,FALSE),"") -> 62.4375 | AT29: =IFERROR(SUM((VLOOKUP(Janvier!A29,Données!$H$6:$J$53,3,FALSE)/12)*1),"") -> 
A30: =Données!$H27 -> 0 | AL30: 0 | AM30: 0 | AN30: 0 | AP30: 0 | AQ30: =IFERROR(VLOOKUP(A30,Bilan!A27:BM77,54,FALSE),"") -> 62.4375 | AT30: =IFERROR(SUM((VLOOKUP(Janvier!A30,Données!$H$6:$J$53,3,FALSE)/12)*1),"") -> 
A31: =Données!$H28 -> 0 | AL31: 0 | AM31: 0 | AN31: 0 | AP31: 0 | AQ31: =IFERROR(VLOOKUP(A31,Bilan!A28:BM78,54,FALSE),"") -> 62.4375 | AT31: =IFERROR(SUM((VLOOKUP(Janvier!A31,Données!$H$6:$J$53,3,FALSE)/12)*1),"") -> 
A32: =Données!$H29 -> 0 | AL32: 0 | AM32: 0 | AN32: 0 | AP32: 0 | AQ32: =IFERROR(VLOOKUP(A32,Bilan!A29:BM79,54,FALSE),"") -> 62.4375 | AT32: =IFERROR(SUM((VLOOKUP(Janvier!A32,Données!$H$6:$J$53,3,FALSE)/12)*1),"") -> 
A33: =Données!$H30 -> 0 | AL33: 0 | AM33: 0 | AN33: 0 | AP33: 0 | AQ33: =IFERROR(VLOOKUP(A33,Bilan!A30:BM80,54,FALSE),"") ->  | AT33: =IFERROR(SUM((VLOOKUP(Janvier!A33,Données!$H$6:$J$53,3,FALSE)/12)*1),"") -> 
A34: =Données!$H31 -> 0 | AL34: 0 | AM34: 0 | AN34: 0 | AP34: 0 | AQ34: =IFERROR(VLOOKUP(A34,Bilan!A31:BM81,54,FALSE),"") ->  | AT34: =IFERROR(SUM((VLOOKUP(Janvier!A34,Données!$H$6:$J$53,3,FALSE)/12)*1),"") -> 
A35: =Données!$H32 -> Maitresse de maison
A36: =Données!$H33 -> 12 | AL36: =VLOOKUP(A36,INDIRECT("B"&$A$1&"!A6:BM56"),49,FALSE) -> 0 | AM36: =VLOOKUP(A36,INDIRECT("B"&$A$1&"!A6:BM56"),50,FALSE) -> 0 | AN36: =VLOOKUP(A36,INDIRECT("B"&$A$1&"!A6:BM56"),51,FALSE) -> 0 | AP36: =IFERROR(VLOOKUP(A36,INDIRECT("B"&$A$1&"!A6:BM56"),53,FALSE),"") -> 0 | AQ36: =IFERROR(VLOOKUP(A36,Bilan!A33:BM83,54,FALSE),"") -> 0.4166666667 | AT36: =IFERROR(SUM((VLOOKUP(Janvier!A36,Données!$H$6:$J$53,3,FALSE)/12)*1),"") -> 5.25
A37: =Données!$H34 -> 0 | AL37: =VLOOKUP(A37,INDIRECT("B"&$A$1&"!A6:BM56"),49,FALSE) -> 0 | AM37: =VLOOKUP(A37,INDIRECT("B"&$A$1&"!A6:BM56"),50,FALSE) -> 0 | AN37: =VLOOKUP(A37,INDIRECT("B"&$A$1&"!A6:BM56"),51,FALSE) -> 0 | AP37: =IFERROR(VLOOKUP(A37,INDIRECT("B"&$A$1&"!A6:BM56"),53,FALSE),"") -> 0 | AQ37: =IFERROR(VLOOKUP(A37,Bilan!A34:BM84,54,FALSE),"") ->  | AT37: =IFERROR(SUM((VLOOKUP(Janvier!A37,Données!$H$6:$J$53,3,FALSE)/12)*1),"") -> 
A38: =Données!$H35 -> 0 | AL38: 0 | AM38: 0 | AN38: 0 | AP38: 0 | AQ38: =IFERROR(VLOOKUP(A38,Bilan!A35:BM85,54,FALSE),"") -> 62.4375 | AT38: =IFERROR(SUM((VLOOKUP(Janvier!A38,Données!$H$6:$J$53,3,FALSE)/12)*1),"") -> 
A39: =Données!$H36 -> 0 | AL39: 0 | AM39: 0 | AN39: 0 | AP39: 0 | AQ39: =IFERROR(VLOOKUP(A39,Bilan!A36:BM86,54,FALSE),"") -> 62.4375 | AT39: =IFERROR(SUM((VLOOKUP(Janvier!A39,Données!$H$6:$J$53,3,FALSE)/12)*1),"") -> 
A40: =Données!$H37 -> 0 | AL40: 0 | AM40: 0 | AN40: 0 | AP40: 0 | AQ40: =IFERROR(VLOOKUP(A40,Bilan!A37:BM87,54,FALSE),"") -> 62.4375 | AT40: =IFERROR(SUM((VLOOKUP(Janvier!A40,Données!$H$6:$J$53,3,FALSE)/12)*1),"") -> 
A41: =Données!$H38 -> 0 | AL41: 0 | AM41: 0 | AN41: 0 | AP41: 0 | AQ41: =IFERROR(VLOOKUP(A41,Bilan!A38:BM88,54,FALSE),"") ->  | AT41: =IFERROR(SUM((VLOOKUP(Janvier!A41,Données!$H$6:$J$53,3,FALSE)/12)*1),"") -> 
A42: =Données!$H39 -> 0 | AL42: 0 | AM42: 0 | AN42: 0 | AP42: 0 | AQ42: =IFERROR(VLOOKUP(A42,Bilan!A39:BM89,54,FALSE),"") ->  | AT42: =IFERROR(SUM((VLOOKUP(Janvier!A42,Données!$H$6:$J$53,3,FALSE)/12)*1),"") -> 
A43: =Données!$H40 -> 0 | AL43: 0 | AM43: 0 | AN43: 0 | AP43: 0 | AQ43: =IFERROR(VLOOKUP(A43,Bilan!A40:BM90,54,FALSE),"") ->  | AT43: =IFERROR(SUM((VLOOKUP(Janvier!A43,Données!$H$6:$J$53,3,FALSE)/12)*1),"") -> 
A44: =Données!$H41 -> 0 | AL44: 0 | AM44: 0 | AN44: 0 | AP44: 0 | AQ44: =IFERROR(VLOOKUP(A44,Bilan!A41:BM91,54,FALSE),"") ->  | AT44: =IFERROR(SUM((VLOOKUP(Janvier!A44,Données!$H$6:$J$53,3,FALSE)/12)*1),"") -> 
A45: =Données!$H42 -> Psychologue
A46: =Données!$H43 -> 13 | AL46: =VLOOKUP(A46,INDIRECT("B"&$A$1&"!A6:BM56"),49,FALSE) -> 0 | AM46: =VLOOKUP(A46,INDIRECT("B"&$A$1&"!A6:BM56"),50,FALSE) -> 0 | AN46: =VLOOKUP(A46,INDIRECT("B"&$A$1&"!A6:BM56"),51,FALSE) -> 0 | AP46: =IFERROR(VLOOKUP(A46,INDIRECT("B"&$A$1&"!A6:BM56"),53,FALSE),"") -> 0 | AQ46: =IFERROR(VLOOKUP(A46,Bilan!A43:BM93,54,FALSE),"") -> 0.625 | AT46: =IFERROR(SUM((VLOOKUP(Janvier!A46,Données!$H$6:$J$53,3,FALSE)/12)*1),"") -> 5.25
A47: =Données!$H44 -> 0 | AL47: =VLOOKUP(A47,INDIRECT("B"&$A$1&"!A6:BM56"),49,FALSE) -> 0 | AM47: =VLOOKUP(A47,INDIRECT("B"&$A$1&"!A6:BM56"),50,FALSE) -> 0 | AN47: =VLOOKUP(A47,INDIRECT("B"&$A$1&"!A6:BM56"),51,FALSE) -> 0 | AP47: =IFERROR(VLOOKUP(A47,INDIRECT("B"&$A$1&"!A6:BM56"),53,FALSE),"") -> 0 | AQ47: =IFERROR(VLOOKUP(A47,Bilan!A44:BM94,54,FALSE),"") ->  | AT47: =IFERROR(SUM((VLOOKUP(Janvier!A47,Données!$H$6:$J$53,3,FALSE)/12)*1),"") -> 
A48: =Données!$H45 -> 0 | AL48: =VLOOKUP(A48,INDIRECT("B"&$A$1&"!A6:BM56"),49,FALSE) -> 0 | AM48: =VLOOKUP(A48,INDIRECT("B"&$A$1&"!A6:BM56"),50,FALSE) -> 0 | AN48: =VLOOKUP(A48,INDIRECT("B"&$A$1&"!A6:BM56"),51,FALSE) -> 0 | AP48: =IFERROR(VLOOKUP(A48,INDIRECT("B"&$A$1&"!A6:BM56"),53,FALSE),"") -> 0 | AQ48: =IFERROR(VLOOKUP(A48,Bilan!A45:BM95,54,FALSE),"") ->  | AT48: =IFERROR(SUM((VLOOKUP(Janvier!A48,Données!$H$6:$J$53,3,FALSE)/12)*1),"") -> 
A49: =Données!$H46 -> Coordinatrice
A50: =Données!$H47 -> 14 | AL50: =VLOOKUP(A50,INDIRECT("B"&$A$1&"!A6:BM56"),49,FALSE) -> 0 | AM50: =VLOOKUP(A50,INDIRECT("B"&$A$1&"!A6:BM56"),50,FALSE) -> 0 | AN50: =VLOOKUP(A50,INDIRECT("B"&$A$1&"!A6:BM56"),51,FALSE) -> 0 | AP50: =IFERROR(VLOOKUP(A50,INDIRECT("B"&$A$1&"!A6:BM56"),53,FALSE),"") -> 0 | AQ50: =IFERROR(VLOOKUP(A50,Bilan!A47:BM97,54,FALSE),"") -> 4.375 | AT50: =IFERROR(SUM((VLOOKUP(Janvier!A50,Données!$H$6:$J$53,3,FALSE)/12)*1),"") -> 5.25
A51: =Données!$H48 -> 0 | AL51: =VLOOKUP(A51,INDIRECT("B"&$A$1&"!A6:BM56"),49,FALSE) -> 0 | AM51: =VLOOKUP(A51,INDIRECT("B"&$A$1&"!A6:BM56"),50,FALSE) -> 0 | AN51: =VLOOKUP(A51,INDIRECT("B"&$A$1&"!A6:BM56"),51,FALSE) -> 0 | AP51: =IFERROR(VLOOKUP(A51,INDIRECT("B"&$A$1&"!A6:BM56"),53,FALSE),"") -> 0 | AQ51: =IFERROR(VLOOKUP(A51,Bilan!A48:BM98,54,FALSE),"") ->  | AT51: =IFERROR(SUM((VLOOKUP(Janvier!A51,Données!$H$6:$J$53,3,FALSE)/12)*1),"") -> 
A52: =Données!$H49 -> 0 | AL52: =VLOOKUP(A52,INDIRECT("B"&$A$1&"!A6:BM56"),49,FALSE) -> 0 | AM52: =VLOOKUP(A52,INDIRECT("B"&$A$1&"!A6:BM56"),50,FALSE) -> 0 | AN52: =VLOOKUP(A52,INDIRECT("B"&$A$1&"!A6:BM56"),51,FALSE) -> 0 | AP52: =IFERROR(VLOOKUP(A52,INDIRECT("B"&$A$1&"!A6:BM56"),53,FALSE),"") -> 0 | AQ52: =IFERROR(VLOOKUP(A52,Bilan!A49:BM99,54,FALSE),"") ->  | AT52: =IFERROR(SUM((VLOOKUP(Janvier!A52,Données!$H$6:$J$53,3,FALSE)/12)*1),"") -> 
A53: =Données!$H50 -> 0 | AL53: =VLOOKUP(A53,INDIRECT("B"&$A$1&"!A6:BM56"),49,FALSE) -> 0 | AM53: =VLOOKUP(A53,INDIRECT("B"&$A$1&"!A6:BM56"),50,FALSE) -> 0 | AN53: =VLOOKUP(A53,INDIRECT("B"&$A$1&"!A6:BM56"),51,FALSE) -> 0 | AP53: =IFERROR(VLOOKUP(A53,INDIRECT("B"&$A$1&"!A6:BM56"),53,FALSE),"") -> 0 | AQ53: =IFERROR(VLOOKUP(A53,Bilan!A50:BM100,54,FALSE),"") ->  | AT53: =IFERROR(SUM((VLOOKUP(Janvier!A53,Données!$H$6:$J$53,3,FALSE)/12)*1),"") -> 
A54: =Données!$H51 -> 0 | AL54: =VLOOKUP(A54,INDIRECT("B"&$A$1&"!A6:BM56"),49,FALSE) -> 0 | AM54: =VLOOKUP(A54,INDIRECT("B"&$A$1&"!A6:BM56"),50,FALSE) -> 0 | AN54: =VLOOKUP(A54,INDIRECT("B"&$A$1&"!A6:BM56"),51,FALSE) -> 0 | AP54: =IFERROR(VLOOKUP(A54,INDIRECT("B"&$A$1&"!A6:BM56"),53,FALSE),"") -> 0 | AQ54: =IFERROR(VLOOKUP(A54,Bilan!A51:BM101,54,FALSE),"") ->  | AT54: =IFERROR(SUM((VLOOKUP(Janvier!A54,Données!$H$6:$J$53,3,FALSE)/12)*1),"") -> 
A55: =Données!$H52 -> Chef de service
A56: =Données!$H53 -> 15 | I56: J+ | J56: J+ | K56: J+ | L56: J+ | M56: J+ | P56: J+ | Q56: J+ | R56: J+ | S56: J+ | T56: CA | W56: J+ | X56: CA | Y56: J+ | Z56: J+ | AA56: J+ | AD56: J+ | AE56: J+ | AF56: J+ | AL56: =VLOOKUP(A56,INDIRECT("B"&$A$1&"!A6:BM56"),49,FALSE) -> 0 | AM56: =VLOOKUP(A56,INDIRECT("B"&$A$1&"!A6:BM56"),50,FALSE) -> 0 | AN56: =VLOOKUP(A56,INDIRECT("B"&$A$1&"!A6:BM56"),51,FALSE) -> 0.4583333333 | AP56: =IFERROR(VLOOKUP(A56,INDIRECT("B"&$A$1&"!A6:BM56"),53,FALSE),"") -> 6.125 | AQ56: =IFERROR(VLOOKUP(A56,Bilan!A53:BM103,54,FALSE),"") -> 24.79166667 | AT56: =IFERROR(SUM((VLOOKUP(Janvier!A56,Données!$H$6:$J$53,3,FALSE)/12)*1),"") -> 5.25
B58: =Données!$A3 -> M | C58: = | D58: =IF(ISBLANK(Données!$C3),TEXT(Données!$B3,"hh:mm"),TEXT(Données!$B3,"hh:mm")&" : "&TEXT(Données!$C3,"hh:mm")) -> 07:00 : 14:30 | H58: =Données!$A7 -> DM | I58: = | J58: =IF(ISBLANK(Données!$C7),TEXT(Données!$B7,"hh:mm"),TEXT(Données!$B7,"hh:mm")&" : "&TEXT(Données!$C7,"hh:mm")) -> 08:00 : 15:30 | N58: =Données!$A10 -> S+ | O58: = | P58: =IF(ISBLANK(Données!$C10),TEXT(Données!$B10,"hh:mm"),TEXT(Données!$B10,"hh:mm")&" : "&TEXT(Données!$C10,"hh:mm")) -> 14:00 : 23:00 | T58: =Données!$A14 -> N | U58: = | V58: =IF(ISBLANK(Données!$C14),TEXT(Données!$B14,"hh:mm"),TEXT(Données!$B14,"hh:mm")&" : "&TEXT(Données!$C14,"hh:mm")) -> 20:00 : 07:00 | Z58: =Données!$A18 -> sta | AA58: = | AB58: =IF(ISBLANK(Données!$C18),TEXT(Données!$B18,"hh:mm"),TEXT(Données!$B18,"hh:mm")&" : "&TEXT(Données!$C18,"hh:mm")) -> sta : ge
B59: =Données!$A4 -> MR | C59: = | D59: =IF(ISBLANK(Données!$C4),TEXT(Données!$B4,"hh:mm"),TEXT(Données!$B4,"hh:mm")&" : "&TEXT(Données!$C4,"hh:mm")) -> 07:00 : 17:00 | H59: =Données!$A8 -> PFJ | I59: = | J59: =IF(ISBLANK(Données!$C8),TEXT(Données!$B8,"hh:mm"),TEXT(Données!$B8,"hh:mm")&" : "&TEXT(Données!$C8,"hh:mm")) -> 09:00 : 17:00 | N59: =Données!$A11 -> R | O59: = | P59: =IF(ISBLANK(Données!$C11),TEXT(Données!$B11,"hh:mm"),TEXT(Données!$B11,"hh:mm")&" : "&TEXT(Données!$C11,"hh:mm")) -> 14:00 : 17:00 | T59: =Données!$A15 -> NVS | U59: = | V59: =IF(ISBLANK(Données!$C15),TEXT(Données!$B15,"hh:mm"),TEXT(Données!$B15,"hh:mm")&" : "&TEXT(Données!$C15,"hh:mm")) -> 20:00 : 08:00 | Z59: =Données!$A19 -> AT | AA59: = | AB59: =IF(ISBLANK(Données!$C19),TEXT(Données!$B19,"hh:mm"),TEXT(Données!$B19,"hh:mm")&" : "&TEXT(Données!$C19,"hh:mm")) -> AT : AT
B60: =Données!$A5 -> D | C60: = | D60: =IF(ISBLANK(Données!$C5),TEXT(Données!$B5,"hh:mm"),TEXT(Données!$B5,"hh:mm")&" : "&TEXT(Données!$C5,"hh:mm")) -> 10:00 : 17:30 | H60: =Données!$A9 -> S | I60: = | J60: =IF(ISBLANK(Données!$C9),TEXT(Données!$B9,"hh:mm"),TEXT(Données!$B9,"hh:mm")&" : "&TEXT(Données!$C9,"hh:mm")) -> 14:00 : 22:00 | N60: =Données!$A12 -> W | O60: = | P60: =IF(ISBLANK(Données!$C12),TEXT(Données!$B12,"hh:mm"),TEXT(Données!$B12,"hh:mm")&" : "&TEXT(Données!$C12,"hh:mm")) -> 08:00 : 20:00 | T60: =Données!$A16 -> CA | U60: = | V60: =IF(ISBLANK(Données!$C16),TEXT(Données!$B16,"hh:mm"),TEXT(Données!$B16,"hh:mm")&" : "&TEXT(Données!$C16,"hh:mm")) -> CA : CA | Z60: =Données!$A20 -> AM | AA60: = | AB60: =IF(ISBLANK(Données!$C20),TEXT(Données!$B20,"hh:mm"),TEXT(Données!$B20,"hh:mm")&" : "&TEXT(Données!$C20,"hh:mm")) -> AM : AM
B61: =Données!$A6 -> DR | C61: = | D61: =IF(ISBLANK(Données!$C6),TEXT(Données!$B6,"hh:mm"),TEXT(Données!$B6,"hh:mm")&" : "&TEXT(Données!$C6,"hh:mm")) -> 10:00 : 17:30 | H61: =Données!$A10 -> S+ | I61: = | J61: =IF(ISBLANK(Données!$C10),TEXT(Données!$B10,"hh:mm"),TEXT(Données!$B10,"hh:mm")&" : "&TEXT(Données!$C10,"hh:mm")) -> 14:00 : 23:00 | N61: =Données!$A13 -> W+ | O61: = | P61: =IF(ISBLANK(Données!$C13),TEXT(Données!$B13,"hh:mm"),TEXT(Données!$B13,"hh:mm")&" : "&TEXT(Données!$C13,"hh:mm")) -> 11:00 : 23:00 | T61: =Données!$A17 -> F | U61: = | V61: =IF(ISBLANK(Données!$C17),TEXT(Données!$B17,"hh:mm"),TEXT(Données!$B17,"hh:mm")&" : "&TEXT(Données!$C17,"hh:mm")) -> F : 00:00 | Z61: =Données!$A21 -> CM | AA61: = | AB61: =IF(ISBLANK(Données!$C21),TEXT(Données!$B21,"hh:mm"),TEXT(Données!$B21,"hh:mm")&" : "&TEXT(Données!$C21,"hh:mm")) -> CM : CM

Sheet Fevrier
A1: fevrier
B2: =DATE(An,Fevrier,B7) -> 2018-02-01 | C2: 2018-02-02 | D2: 2018-02-03 | E2: 2018-02-04 | F2: 2018-02-05 | G2: 2018-02-06 | H2: 2018-02-07 | I2: 2018-02-08 | J2: 2018-02-09 | K2: 2018-02-10 | L2: 2018-02-11 | M2: 2018-02-12 | N2: 2018-02-13 | O2: 2018-02-14 | P2: 2018-02-15 | Q2: 2018-02-16 | R2: 2018-02-17 | S2: 2018-02-18 | T2: 2018-02-19 | U2: 2018-02-20 | V2: 2018-02-21 | W2: 2018-02-22 | X2: 2018-02-23 | Y2: 2018-02-24 | Z2: 2018-02-25 | AA2: 2018-02-26 | AB2: 2018-02-27 | AC2: 2018-02-28 | AD2: =IFERROR(DATE(An,Fevrier,AD7),"") ->  | AE2: 2018-01-31 | AF2: 2018-01-31 | AI2: Pour remplir | AJ2: penser | AO2: =IF(ISNUMBER(AO7),DATE(An,Fevrier,AO7),"") ->  | AP2: =IF(ISNUMBER(AP7),DATE(An,Fevrier,AP7),"") -> 
A3: =IF(Données!$L$5="","Service",Données!$L$5) -> RENFORT 2 | K3: Mois de fevrier | O3: =An -> 2018 | AI3: à mettre dans le format:
AI4: "heures":"Minutes" | AT4: Masse horraire previsionnel
AI5: Heures sup | AJ5: Heures sup | AL5: Indications | AM5: Indications | AN5: Indications | AP5: Total
A6: Jours | B6: =PROPER(LEFT(TEXT(DATE(An,Fevrier,B7),"jjj"),1)) -> J | C6: V | D6: S | E6: D | F6: L | G6: M | H6: M | I6: J | J6: V | K6: S | L6: D | M6: L | N6: M | O6: M | P6: J | Q6: V | R6: S | S6: D | T6: L | U6: M | V6: M | W6: J | X6: V | Y6: S | Z6: D | AA6: L | AB6: M | AC6: M | AD6: =IFERROR(PROPER(LEFT(TEXT(DATE(An,Fevrier,AD7),"jjj"),1)),"-") -> - | AI6: avant 21h | AJ6: après 21h | AL6: Heures | AM6: Heures nuit | AN6: Heures | AP6: Heures | AQ6: Heures
B7: =A7+1 -> 1 | C7: 2 | D7: 3 | E7: 4 | F7: 5 | G7: 6 | H7: 7 | I7: 8 | J7: 9 | K7: 10 | L7: 11 | M7: 12 | N7: 13 | O7: 14 | P7: 15 | Q7: 16 | R7: 17 | S7: 18 | T7: 19 | U7: 20 | V7: 21 | W7: 22 | X7: 23 | Y7: 24 | Z7: 25 | AA7: 26 | AB7: 27 | AC7: 28 | AD7: =IFERROR(IF(MOD(YEAR(An),4)=0,"29","-"),"-") -> - | AI7: A remplir | AJ7: A remplir | AL7: Dimanche | AM7: Dimanche | AN7: après 21h | AP7: au mois | AQ7: a l'année | AT7: i
A8: Equipe de jour
A9: =Données!$H6 -> 1 | AA9: CA | AB9: CA | AC9: CA | AL9: =VLOOKUP(A9,INDIRECT("B"&$A$1&"!A6:BM56"),49,FALSE) -> 0 | AM9: =VLOOKUP(A9,INDIRECT("B"&$A$1&"!A6:BM56"),50,FALSE) -> 0 | AN9: =VLOOKUP(A9,INDIRECT("B"&$A$1&"!A6:BM56"),51,FALSE) -> 0 | AP9: =IFERROR(VLOOKUP(A9,INDIRECT("B"&$A$1&"!A6:BM56"),53,FALSE),"") -> 0 | AQ9: =IFERROR(VLOOKUP(A9,Bilan!A6:BM56,54,FALSE),"") -> 18.35416667 | AT9: =IFERROR(SUM((VLOOKUP(Fevrier!A9,Données!$H$6:$J$53,3,FALSE)/12)*1),"") -> 4.958333333
A10: =Données!$H7 -> 2 | M10: CA | N10: CA | O10: CA | P10: CA | Q10: CA | AL10: 0 | AM10: 0 | AN10: 0 | AP10: 0 | AQ10: =IFERROR(VLOOKUP(A10,Bilan!A7:BM57,54,FALSE),"") -> 22.8625 | AT10: =IFERROR(SUM((VLOOKUP(Fevrier!A10,Données!$H$6:$J$53,3,FALSE)/12)*1),"") -> 4.958333333
A11: =Données!$H8 -> 3 | P11: CA | Q11: CA | T11: CA | AL11: 0 | AM11: 0 | AN11: 0 | AP11: 0 | AQ11: =IFERROR(VLOOKUP(A11,Bilan!A8:BM58,54,FALSE),"") -> 17 | AT11: =IFERROR(SUM((VLOOKUP(Fevrier!A11,Données!$H$6:$J$53,3,FALSE)/12)*1),"") -> 4.958333333
A12: =Données!$H9 -> 4 | Q12: CM | T12: CM | U12: CM | V12: CM | W12: CM | X12: CM | AA12: CM | AB12: CM | AC12: CM | AD12: CM | AL12: 0 | AM12: 0 | AN12: 0 | AP12: 3.166666667 | AQ12: =IFERROR(VLOOKUP(A12,Bilan!A9:BM59,54,FALSE),"") -> 39.58333333 | AT12: =IFERROR(SUM((VLOOKUP(Fevrier!A12,Données!$H$6:$J$53,3,FALSE)/12)*1),"") -> 4.958333333
A13: =Données!$H10 -> 5 | AA13: CA | AB13: CA | AC13: CA | AL13: 0 | AM13: 0 | AN13: 0 | AP13: 0 | AQ13: =IFERROR(VLOOKUP(A13,Bilan!A10:BM60,54,FALSE),"") -> 17.4375 | AT13: =IFERROR(SUM((VLOOKUP(Fevrier!A13,Données!$H$6:$J$53,3,FALSE)/12)*1),"") -> 4.958333333
A14: =Données!$H11 -> 6 | W14: CA | X14: CA | AL14: 0 | AM14: 0 | AN14: 0 | AP14: 0 | AQ14: =IFERROR(VLOOKUP(A14,Bilan!A11:BM61,54,FALSE),"") -> 20.39583333 | AT14: =IFERROR(SUM((VLOOKUP(Fevrier!A14,Données!$H$6:$J$53,3,FALSE)/12)*1),"") -> 4.958333333
A15: =Données!$H12 -> 7 | AL15: 0 | AM15: 0 | AN15: 0 | AP15: 0 | AQ15: =IFERROR(VLOOKUP(A15,Bilan!A12:BM62,54,FALSE),"") -> 6.4375 | AT15: =IFERROR(SUM((VLOOKUP(Fevrier!A9,Données!$H$6:$J$53,3,FALSE)/12)*1),"") -> 4.958333333
A16: =Données!$H13 -> 8 | AL16: 0 | AM16: 0 | AN16: 0 | AP16: 0 | AQ16: =IFERROR(VLOOKUP(A16,Bilan!A13:BM63,54,FALSE),"") -> 6.3125 | AT16: =IFERROR(SUM((VLOOKUP(Fevrier!A16,Données!$H$6:$J$53,3,FALSE)/12)*1),"") -> 4.958333333
A17: =Données!$H14 -> 0 | AL17: 0 | AM17: 0 | AN17: 0 | AP17: 0 | AQ17: =IFERROR(VLOOKUP(A17,Bilan!A14:BM64,54,FALSE),"") -> 62.4375 | AT17: =IFERROR(SUM((VLOOKUP(Fevrier!A17,Données!$H$6:$J$53,3,FALSE)/12)*1),"") -> 
A18: =Données!$H15 -> 0 | AL18: 0 | AM18: 0 | AN18: 0 | AP18: 0 | AQ18: =IFERROR(VLOOKUP(A18,Bilan!A15:BM65,54,FALSE),"") -> 62.4375 | AT18: =IFERROR(SUM((VLOOKUP(Fevrier!A18,Données!$H$6:$J$53,3,FALSE)/12)*1),"") -> 
A19: =Données!$H16 -> 0 | AL19: 0 | AM19: 0 | AN19: 0 | AP19: 0 | AQ19: =IFERROR(VLOOKUP(A19,Bilan!A16:BM66,54,FALSE),"") -> 62.4375 | AT19: =IFERROR(SUM((VLOOKUP(Fevrier!A19,Données!$H$6:$J$53,3,FALSE)/12)*1),"") -> 
A20: =Données!$H17 -> 0 | AL20: =VLOOKUP(A20,INDIRECT("B"&$A$1&"!A6:BM56"),49,FALSE) -> 0 | AM20: =VLOOKUP(A20,INDIRECT("B"&$A$1&"!A6:BM56"),50,FALSE) -> 0 | AN20: =VLOOKUP(A20,INDIRECT("B"&$A$1&"!A6:BM56"),51,FALSE) -> 0 | AP20: =IFERROR(VLOOKUP(A20,INDIRECT("B"&$A$1&"!A6:BM56"),53,FALSE),"") -> 0 | AQ20: =IFERROR(VLOOKUP(A20,Bilan!A17:BM67,54,FALSE),"") -> 62.4375 | AT20: =IFERROR(SUM((VLOOKUP(Fevrier!A20,Données!$H$6:$J$53,3,FALSE)/12)*1),"") -> 
A21: =Données!$H18 -> 0 | AL21: =VLOOKUP(A21,INDIRECT("B"&$A$1&"!A6:BM56"),49,FALSE) -> 0 | AM21: =VLOOKUP(A21,INDIRECT("B"&$A$1&"!A6:BM56"),50,FALSE) -> 0 | AN21: =VLOOKUP(A21,INDIRECT("B"&$A$1&"!A6:BM56"),51,FALSE) -> 0 | AP21: =IFERROR(VLOOKUP(A21,INDIRECT("B"&$A$1&"!A6:BM56"),53,FALSE),"") -> 0 | AQ21: =IFERROR(VLOOKUP(A21,Bilan!A18:BM68,54,FALSE),"") -> 62.4375 | AT21: =IFERROR(SUM((VLOOKUP(Fevrier!A21,Données!$H$6:$J$53,3,FALSE)/12)*1),"") -> 
A22: =Données!$H19 -> 0 | AL22: =VLOOKUP(A22,INDIRECT("B"&$A$1&"!A6:BM56"),49,FALSE) -> 0 | AM22: =VLOOKUP(A22,INDIRECT("B"&$A$1&"!A6:BM56"),50,FALSE) -> 0 | AN22: =VLOOKUP(A22,INDIRECT("B"&$A$1&"!A6:BM56"),51,FALSE) -> 0 | AP22: =IFERROR(VLOOKUP(A22,INDIRECT("B"&$A$1&"!A6:BM56"),53,FALSE),"") -> 0 | AQ22: =IFERROR(VLOOKUP(A22,Bilan!A19:BM69,54,FALSE),"") -> 62.4375 | AT22: =IFERROR(SUM((VLOOKUP(Fevrier!A22,Données!$H$6:$J$53,3,FALSE)/12)*1),"") -> 
A23: =Données!$H20 -> 0 | AL23: =VLOOKUP(A23,INDIRECT("B"&$A$1&"!A6:BM56"),49,FALSE) -> 0 | AM23: =VLOOKUP(A23,INDIRECT("B"&$A$1&"!A6:BM56"),50,FALSE) -> 0 | AN23: =VLOOKUP(A23,INDIRECT("B"&$A$1&"!A6:BM56"),51,FALSE) -> 0 | AP23: =IFERROR(VLOOKUP(A23,INDIRECT("B"&$A$1&"!A6:BM56"),53,FALSE),"") -> 0 | AQ23: =IFERROR(VLOOKUP(A23,Bilan!A20:BM70,54,FALSE),"") ->  | AT23: =IFERROR(SUM((VLOOKUP(Fevrier!A23,Données!$H$6:$J$53,3,FALSE)/12)*1),"") -> 
A24: =Données!$H21 -> 0 | AL24: =VLOOKUP(A24,INDIRECT("B"&$A$1&"!A6:BM56"),49,FALSE) -> 0 | AM24: =VLOOKUP(A24,INDIRECT("B"&$A$1&"!A6:BM56"),50,FALSE) -> 0 | AN24: =VLOOKUP(A24,INDIRECT("B"&$A$1&"!A6:BM56"),51,FALSE) -> 0 | AP24: =IFERROR(VLOOKUP(A24,INDIRECT("B"&$A$1&"!A6:BM56"),53,FALSE),"") -> 0 | AQ24: =IFERROR(VLOOKUP(A24,Bilan!A21:BM71,54,FALSE),"") -> 0 | AT24: =IFERROR(SUM((VLOOKUP(Fevrier!A24,Données!$H$6:$J$53,3,FALSE)/12)*1),"") -> 
A25: =Données!$H22 -> Equipe de nuit
A26: =Données!$H23 -> 9 | AL26: =VLOOKUP(A26,INDIRECT("B"&$A$1&"!A6:BM56"),49,FALSE) -> 0 | AM26: =VLOOKUP(A26,INDIRECT("B"&$A$1&"!A6:BM56"),50,FALSE) -> 0 | AN26: =VLOOKUP(A26,INDIRECT("B"&$A$1&"!A6:BM56"),51,FALSE) -> 0 | AP26: =IFERROR(VLOOKUP(A26,INDIRECT("B"&$A$1&"!A6:BM56"),53,FALSE),"") -> 0 | AQ26: =IFERROR(VLOOKUP(A26,Bilan!A23:BM73,54,FALSE),"") -> 15.98333333 | AT26: =IFERROR(SUM((VLOOKUP(Fevrier!A26,Données!$H$6:$J$53,3,FALSE)/12)*1),"") -> 4.829861111
A27: =Données!$H24 -> 10 | AL27: =VLOOKUP(A27,INDIRECT("B"&$A$1&"!A6:BM56"),49,FALSE) -> 0 | AM27: =VLOOKUP(A27,INDIRECT("B"&$A$1&"!A6:BM56"),50,FALSE) -> 0 | AN27: =VLOOKUP(A27,INDIRECT("B"&$A$1&"!A6:BM56"),51,FALSE) -> 0 | AP27: =IFERROR(VLOOKUP(A27,INDIRECT("B"&$A$1&"!A6:BM56"),53,FALSE),"") -> 0 | AQ27: =IFERROR(VLOOKUP(A27,Bilan!A24:BM74,54,FALSE),"") -> 12.04166667 | AT27: =IFERROR(SUM((VLOOKUP(Fevrier!A27,Données!$H$6:$J$53,3,FALSE)/12)*1),"") -> 4.829861111
A28: =Données!$H25 -> 11 | AL28: =VLOOKUP(A28,INDIRECT("B"&$A$1&"!A6:BM56"),49,FALSE) -> 0 | AM28: =VLOOKUP(A28,INDIRECT("B"&$A$1&"!A6:BM56"),50,FALSE) -> 0 | AN28: =VLOOKUP(A28,INDIRECT("B"&$A$1&"!A6:BM56"),51,FALSE) -> 0 | AP28: =IFERROR(VLOOKUP(A28,INDIRECT("B"&$A$1&"!A6:BM56"),53,FALSE),"") -> 0 | AQ28: =IFERROR(VLOOKUP(A28,Bilan!A25:BM75,54,FALSE),"") -> 16.20833333 | AT28: =IFERROR(SUM((VLOOKUP(Fevrier!A28,Données!$H$6:$J$53,3,FALSE)/12)*1),"") -> 4.829861111
A29: =Données!$H26 -> 0 | AL29: =VLOOKUP(A29,INDIRECT("B"&$A$1&"!A6:BM56"),49,FALSE) -> 0 | AM29: =VLOOKUP(A29,INDIRECT("B"&$A$1&"!A6:BM56"),50,FALSE) -> 0 | AN29: =VLOOKUP(A29,INDIRECT("B"&$A$1&"!A6:BM56"),51,FALSE) -> 0 | AP29: =IFERROR(VLOOKUP(A29,INDIRECT("B"&$A$1&"!A6:BM56"),53,FALSE),"") -> 0 | AQ29: =IFERROR(VLOOKUP(A29,Bilan!A26:BM76,54,FALSE),"") -> 62.4375 | AT29: =IFERROR(SUM((VLOOKUP(Fevrier!A29,Données!$H$6:$J$53,3,FALSE)/12)*1),"") -> 
A30: =Données!$H27 -> 0 | AL30: 0 | AM30: 0 | AN30: 0 | AP30: 0 | AQ30: =IFERROR(VLOOKUP(A30,Bilan!A27:BM77,54,FALSE),"") -> 62.4375 | AT30: =IFERROR(SUM((VLOOKUP(Fevrier!A30,Données!$H$6:$J$53,3,FALSE)/12)*1),"") -> 
A31: =Données!$H28 -> 0 | AL31: 0 | AM31: 0 | AN31: 0 | AP31: 0 | AQ31: =IFERROR(VLOOKUP(A31,Bilan!A28:BM78,54,FALSE),"") -> 62.4375 | AT31: =IFERROR(SUM((VLOOKUP(Fevrier!A31,Données!$H$6:$J$53,3,FALSE)/12)*1),"") -> 
A32: =Données!$H29 -> 0 | AL32: 0 | AM32: 0 | AN32: 0 | AP32: 0 | AQ32: =IFERROR(VLOOKUP(A32,Bilan!A29:BM79,54,FALSE),"") -> 62.4375 | AT32: =IFERROR(SUM((VLOOKUP(Fevrier!A32,Données!$H$6:$J$53,3,FALSE)/12)*1),"") -> 
A33: =Données!$H30 -> 0 | AL33: 0 | AM33: 0 | AN33: 0 | AP33: 0 | AQ33: =IFERROR(VLOOKUP(A33,Bilan!A30:BM80,54,FALSE),"") ->  | AT33: =IFERROR(SUM((VLOOKUP(Fevrier!A33,Données!$H$6:$J$53,3,FALSE)/12)*1),"") -> 
A34: =Données!$H31 -> 0 | AL34: 0 | AM34: 0 | AN34: 0 | AP34: 0 | AQ34: =IFERROR(VLOOKUP(A34,Bilan!A31:BM81,54,FALSE),"") ->  | AT34: =IFERROR(SUM((VLOOKUP(Fevrier!A34,Données!$H$6:$J$53,3,FALSE)/12)*1),"") -> 
A35: =Données!$H32 -> Maitresse de maison
A36: =Données!$H33 -> 12 | AL36: =VLOOKUP(A36,INDIRECT("B"&$A$1&"!A6:BM56"),49,FALSE) -> 0 | AM36: =VLOOKUP(A36,INDIRECT("B"&$A$1&"!A6:BM56"),50,FALSE) -> 0 | AN36: =VLOOKUP(A36,INDIRECT("B"&$A$1&"!A6:BM56"),51,FALSE) -> 0 | AP36: =IFERROR(VLOOKUP(A36,INDIRECT("B"&$A$1&"!A6:BM56"),53,FALSE),"") -> 0 | AQ36: =IFERROR(VLOOKUP(A36,Bilan!A33:BM83,54,FALSE),"") -> 0.4166666667 | AT36: =IFERROR(SUM((VLOOKUP(Fevrier!A36,Données!$H$6:$J$53,3,FALSE)/12)*1),"") -> 5.25
A37: =Données!$H34 -> 0 | AL37: =VLOOKUP(A37,INDIRECT("B"&$A$1&"!A6:BM56"),49,FALSE) -> 0 | AM37: =VLOOKUP(A37,INDIRECT("B"&$A$1&"!A6:BM56"),50,FALSE) -> 0 | AN37: =VLOOKUP(A37,INDIRECT("B"&$A$1&"!A6:BM56"),51,FALSE) -> 0 | AP37: =IFERROR(VLOOKUP(A37,INDIRECT("B"&$A$1&"!A6:BM56"),53,FALSE),"") -> 0 | AQ37: =IFERROR(VLOOKUP(A37,Bilan!A34:BM84,54,FALSE),"") ->  | AT37: =IFERROR(SUM((VLOOKUP(Fevrier!A37,Données!$H$6:$J$53,3,FALSE)/12)*1),"") -> 
A38: =Données!$H35 -> 0 | AL38: 0 | AM38: 0 | AN38: 0 | AP38: 0 | AQ38: =IFERROR(VLOOKUP(A38,Bilan!A35:BM85,54,FALSE),"") -> 62.4375 | AT38: =IFERROR(SUM((VLOOKUP(Fevrier!A38,Données!$H$6:$J$53,3,FALSE)/12)*1),"") -> 
A39: =Données!$H36 -> 0 | AL39: 0 | AM39: 0 | AN39: 0 | AP39: 0 | AQ39: =IFERROR(VLOOKUP(A39,Bilan!A36:BM86,54,FALSE),"") -> 62.4375 | AT39: =IFERROR(SUM((VLOOKUP(Fevrier!A39,Données!$H$6:$J$53,3,FALSE)/12)*1),"") -> 
A40: =Données!$H37 -> 0 | AL40: 0 | AM40: 0 | AN40: 0 | AP40: 0 | AQ40: =IFERROR(VLOOKUP(A40,Bilan!A37:BM87,54,FALSE),"") -> 62.4375 | AT40: =IFERROR(SUM((VLOOKUP(Fevrier!A40,Données!$H$6:$J$53,3,FALSE)/12)*1),"") -> 
A41: =Données!$H38 -> 0 | AL41: 0 | AM41: 0 | AN41: 0 | AP41: 0 | AQ41: =IFERROR(VLOOKUP(A41,Bilan!A38:BM88,54,FALSE),"") ->  | AT41: =IFERROR(SUM((VLOOKUP(Fevrier!A41,Données!$H$6:$J$53,3,FALSE)/12)*1),"") -> 
A42: =Données!$H39 -> 0 | AL42: 0 | AM42: 0 | AN42: 0 | AP42: 0 | AQ42: =IFERROR(VLOOKUP(A42,Bilan!A39:BM89,54,FALSE),"") ->  | AT42: =IFERROR(SUM((VLOOKUP(Fevrier!A42,Données!$H$6:$J$53,3,FALSE)/12)*1),"") -> 
A43: =Données!$H40 -> 0 | AL43: 0 | AM43: 0 | AN43: 0 | AP43: 0 | AQ43: =IFERROR(VLOOKUP(A43,Bilan!A40:BM90,54,FALSE),"") ->  | AT43: =IFERROR(SUM((VLOOKUP(Fevrier!A43,Données!$H$6:$J$53,3,FALSE)/12)*1),"") -> 
A44: =Données!$H41 -> 0 | AL44: 0 | AM44: 0 | AN44: 0 | AP44: 0 | AQ44: =IFERROR(VLOOKUP(A44,Bilan!A41:BM91,54,FALSE),"") ->  | AT44: =IFERROR(SUM((VLOOKUP(Fevrier!A44,Données!$H$6:$J$53,3,FALSE)/12)*1),"") -> 
A45: =Données!$H42 -> Psychologue
A46: =Données!$H43 -> 13 | AL46: =VLOOKUP(A46,INDIRECT("B"&$A$1&"!A6:BM56"),49,FALSE) -> 0 | AM46: =VLOOKUP(A46,INDIRECT("B"&$A$1&"!A6:BM56"),50,FALSE) -> 0 | AN46: =VLOOKUP(A46,INDIRECT("B"&$A$1&"!A6:BM56"),51,FALSE) -> 0 | AP46: =IFERROR(VLOOKUP(A46,INDIRECT("B"&$A$1&"!A6:BM56"),53,FALSE),"") -> 0 | AQ46: =IFERROR(VLOOKUP(A46,Bilan!A43:BM93,54,FALSE),"") -> 0.625 | AT46: =IFERROR(SUM((VLOOKUP(Fevrier!A46,Données!$H$6:$J$53,3,FALSE)/12)*1),"") -> 5.25
A47: =Données!$H44 -> 0 | AL47: =VLOOKUP(A47,INDIRECT("B"&$A$1&"!A6:BM56"),49,FALSE) -> 0 | AM47: =VLOOKUP(A47,INDIRECT("B"&$A$1&"!A6:BM56"),50,FALSE) -> 0 | AN47: =VLOOKUP(A47,INDIRECT("B"&$A$1&"!A6:BM56"),51,FALSE) -> 0 | AP47: =IFERROR(VLOOKUP(A47,INDIRECT("B"&$A$1&"!A6:BM56"),53,FALSE),"") -> 0 | AQ47: =IFERROR(VLOOKUP(A47,Bilan!A44:BM94,54,FALSE),"") ->  | AT47: =IFERROR(SUM((VLOOKUP(Fevrier!A47,Données!$H$6:$J$53,3,FALSE)/12)*1),"") -> 
A48: =Données!$H45 -> 0 | AL48: =VLOOKUP(A48,INDIRECT("B"&$A$1&"!A6:BM56"),49,FALSE) -> 0 | AM48: =VLOOKUP(A48,INDIRECT("B"&$A$1&"!A6:BM56"),50,FALSE) -> 0 | AN48: =VLOOKUP(A48,INDIRECT("B"&$A$1&"!A6:BM56"),51,FALSE) -> 0 | AP48: =IFERROR(VLOOKUP(A48,INDIRECT("B"&$A$1&"!A6:BM56"),53,FALSE),"") -> 0 | AQ48: =IFERROR(VLOOKUP(A48,Bilan!A45:BM95,54,FALSE),"") ->  | AT48: =IFERROR(SUM((VLOOKUP(Fevrier!A48,Données!$H$6:$J$53,3,FALSE)/12)*1),"") -> 
A49: =Données!$H46 -> Coordinatrice
A50: =Données!$H47 -> 14 | F50: F | G50: F | H50: F | I50: F | J50: F | AL50: =VLOOKUP(A50,INDIRECT("B"&$A$1&"!A6:BM56"),49,FALSE) -> 0 | AM50: =VLOOKUP(A50,INDIRECT("B"&$A$1&"!A6:BM56"),50,FALSE) -> 0 | AN50: =VLOOKUP(A50,INDIRECT("B"&$A$1&"!A6:BM56"),51,FALSE) -> 0 | AP50: =IFERROR(VLOOKUP(A50,INDIRECT("B"&$A$1&"!A6:BM56"),53,FALSE),"") -> 1.5625 | AQ50: =IFERROR(VLOOKUP(A50,Bilan!A47:BM97,54,FALSE),"") -> 4.375 | AT50: =IFERROR(SUM((VLOOKUP(Fevrier!A50,Données!$H$6:$J$53,3,FALSE)/12)*1),"") -> 5.25
A51: =Données!$H48 -> 0 | AL51: =VLOOKUP(A51,INDIRECT("B"&$A$1&"!A6:BM56"),49,FALSE) -> 0 | AM51: =VLOOKUP(A51,INDIRECT("B"&$A$1&"!A6:BM56"),50,FALSE) -> 0 | AN51: =VLOOKUP(A51,INDIRECT("B"&$A$1&"!A6:BM56"),51,FALSE) -> 0 | AP51: =IFERROR(VLOOKUP(A51,INDIRECT("B"&$A$1&"!A6:BM56"),53,FALSE),"") -> 0 | AQ51: =IFERROR(VLOOKUP(A51,Bilan!A48:BM98,54,FALSE),"") ->  | AT51: =IFERROR(SUM((VLOOKUP(Fevrier!A51,Données!$H$6:$J$53,3,FALSE)/12)*1),"") -> 
A52: =Données!$H49 -> 0 | AL52: =VLOOKUP(A52,INDIRECT("B"&$A$1&"!A6:BM56"),49,FALSE) -> 0 | AM52: =VLOOKUP(A52,INDIRECT("B"&$A$1&"!A6:BM56"),50,FALSE) -> 0 | AN52: =VLOOKUP(A52,INDIRECT("B"&$A$1&"!A6:BM56"),51,FALSE) -> 0 | AP52: =IFERROR(VLOOKUP(A52,INDIRECT("B"&$A$1&"!A6:BM56"),53,FALSE),"") -> 0 | AQ52: =IFERROR(VLOOKUP(A52,Bilan!A49:BM99,54,FALSE),"") ->  | AT52: =IFERROR(SUM((VLOOKUP(Fevrier!A52,Données!$H$6:$J$53,3,FALSE)/12)*1),"") -> 
A53: =Données!$H50 -> 0 | AL53: =VLOOKUP(A53,INDIRECT("B"&$A$1&"!A6:BM56"),49,FALSE) -> 0 | AM53: =VLOOKUP(A53,INDIRECT("B"&$A$1&"!A6:BM56"),50,FALSE) -> 0 | AN53: =VLOOKUP(A53,INDIRECT("B"&$A$1&"!A6:BM56"),51,FALSE) -> 0 | AP53: =IFERROR(VLOOKUP(A53,INDIRECT("B"&$A$1&"!A6:BM56"),53,FALSE),"") -> 0 | AQ53: =IFERROR(VLOOKUP(A53,Bilan!A50:BM100,54,FALSE),"") ->  | AT53: =IFERROR(SUM((VLOOKUP(Fevrier!A53,Données!$H$6:$J$53,3,FALSE)/12)*1),"") -> 
A54: =Données!$H51 -> 0 | AL54: =VLOOKUP(A54,INDIRECT("B"&$A$1&"!A6:BM56"),49,FALSE) -> 0 | AM54: =VLOOKUP(A54,INDIRECT("B"&$A$1&"!A6:BM56"),50,FALSE) -> 0 | AN54: =VLOOKUP(A54,INDIRECT("B"&$A$1&"!A6:BM56"),51,FALSE) -> 0 | AP54: =IFERROR(VLOOKUP(A54,INDIRECT("B"&$A$1&"!A6:BM56"),53,FALSE),"") -> 0 | AQ54: =IFERROR(VLOOKUP(A54,Bilan!A51:BM101,54,FALSE),"") ->  | AT54: =IFERROR(SUM((VLOOKUP(Fevrier!A54,Données!$H$6:$J$53,3,FALSE)/12)*1),"") -> 
A55: =Données!$H52 -> Chef de service
A56: =Données!$H53 -> 15 | B56: J+ | C56: J+ | F56: J+ | G56: J+ | H56: CA | I56: J+ | J56: J+ | M56: J+ | N56: J+ | O56: J+ | P56: J+ | Q56: J+ | T56: J+ | U56: J+ | V56: J+ | W56: J+ | X56: CA | AA56: CA | AB56: CA | AC56: CA | AD56: CA | AL56: =VLOOKUP(A56,INDIRECT("B"&$A$1&"!A6:BM56"),49,FALSE) -> 0 | AM56: =VLOOKUP(A56,INDIRECT("B"&$A$1&"!A6:BM56"),50,FALSE) -> 0 | AN56: =VLOOKUP(A56,INDIRECT("B"&$A$1&"!A6:BM56"),51,FALSE) -> 0 | AP56: =IFERROR(VLOOKUP(A56,INDIRECT("B"&$A$1&"!A6:BM56"),53,FALSE),"") -> 5.3125 | AQ56: =IFERROR(VLOOKUP(A56,Bilan!A53:BM103,54,FALSE),"") -> 24.79166667 | AT56: =IFERROR(SUM((VLOOKUP(Fevrier!A56,Données!$H$6:$J$53,3,FALSE)/12)*1),"") -> 5.25
B58: =Données!$A3 -> M | C58: = | D58: =IF(ISBLANK(Données!$C3),TEXT(Données!$B3,"hh:mm"),TEXT(Données!$B3,"hh:mm")&" : "&TEXT(Données!$C3,"hh:mm")) -> 07:00 : 14:30 | H58: =Données!$A7 -> DM | I58: = | J58: =IF(ISBLANK(Données!$C7),TEXT(Données!$B7,"hh:mm"),TEXT(Données!$B7,"hh:mm")&" : "&TEXT(Données!$C7,"hh:mm")) -> 08:00 : 15:30 | N58: =Données!$A10 -> S+ | O58: = | P58: =IF(ISBLANK(Données!$C10),TEXT(Données!$B10,"hh:mm"),TEXT(Données!$B10,"hh:mm")&" : "&TEXT(Données!$C10,"hh:mm")) -> 14:00 : 23:00 | T58: =Données!$A14 -> N | U58: = | V58: =IF(ISBLANK(Données!$C14),TEXT(Données!$B14,"hh:mm"),TEXT(Données!$B14,"hh:mm")&" : "&TEXT(Données!$C14,"hh:mm")) -> 20:00 : 07:00 | Z58: =Données!$A18 -> sta | AA58: = | AB58: =IF(ISBLANK(Données!$C18),TEXT(Données!$B18,"hh:mm"),TEXT(Données!$B18,"hh:mm")&" : "&TEXT(Données!$C18,"hh:mm")) -> sta : ge
B59: =Données!$A4 -> MR | C59: = | D59: =IF(ISBLANK(Données!$C4),TEXT(Données!$B4,"hh:mm"),TEXT(Données!$B4,"hh:mm")&" : "&TEXT(Données!$C4,"hh:mm")) -> 07:00 : 17:00 | H59: =Données!$A8 -> PFJ | I59: = | J59: =IF(ISBLANK(Données!$C8),TEXT(Données!$B8,"hh:mm"),TEXT(Données!$B8,"hh:mm")&" : "&TEXT(Données!$C8,"hh:mm")) -> 09:00 : 17:00 | N59: =Données!$A11 -> R | O59: = | P59: =IF(ISBLANK(Données!$C11),TEXT(Données!$B11,"hh:mm"),TEXT(Données!$B11,"hh:mm")&" : "&TEXT(Données!$C11,"hh:mm")) -> 14:00 : 17:00 | T59: =Données!$A15 -> NVS | U59: = | V59: =IF(ISBLANK(Données!$C15),TEXT(Données!$B15,"hh:mm"),TEXT(Données!$B15,"hh:mm")&" : "&TEXT(Données!$C15,"hh:mm")) -> 20:00 : 08:00 | Z59: =Données!$A19 -> AT | AA59: = | AB59: =IF(ISBLANK(Données!$C19),TEXT(Données!$B19,"hh:mm"),TEXT(Données!$B19,"hh:mm")&" : "&TEXT(Données!$C19,"hh:mm")) -> AT : AT
B60: =Données!$A5 -> D | C60: = | D60: =IF(ISBLANK(Données!$C5),TEXT(Données!$B5,"hh:mm"),TEXT(Données!$B5,"hh:mm")&" : "&TEXT(Données!$C5,"hh:mm")) -> 10:00 : 17:30 | H60: =Données!$A9 -> S | I60: = | J60: =IF(ISBLANK(Données!$C9),TEXT(Données!$B9,"hh:mm"),TEXT(Données!$B9,"hh:mm")&" : "&TEXT(Données!$C9,"hh:mm")) -> 14:00 : 22:00 | N60: =Données!$A12 -> W | O60: = | P60: =IF(ISBLANK(Données!$C12),TEXT(Données!$B12,"hh:mm"),TEXT(Données!$B12,"hh:mm")&" : "&TEXT(Données!$C12,"hh:mm")) -> 08:00 : 20:00 | T60: =Données!$A16 -> CA | U60: = | V60: =IF(ISBLANK(Données!$C16),TEXT(Données!$B16,"hh:mm"),TEXT(Données!$B16,"hh:mm")&" : "&TEXT(Données!$C16,"hh:mm")) -> CA : CA | Z60: =Données!$A20 -> AM | AA60: = | AB60: =IF(ISBLANK(Données!$C20),TEXT(Données!$B20,"hh:mm"),TEXT(Données!$B20,"hh:mm")&" : "&TEXT(Données!$C20,"hh:mm")) -> AM : AM
B61: =Données!$A6 -> DR | C61: = | D61: =IF(ISBLANK(Données!$C6),TEXT(Données!$B6,"hh:mm"),TEXT(Données!$B6,"hh:mm")&" : "&TEXT(Données!$C6,"hh:mm")) -> 10:00 : 17:30 | H61: =Données!$A10 -> S+ | I61: = | J61: =IF(ISBLANK(Données!$C10),TEXT(Données!$B10,"hh:mm"),TEXT(Données!$B10,"hh:mm")&" : "&TEXT(Données!$C10,"hh:mm")) -> 14:00 : 23:00 | N61: =Données!$A13 -> W+ | O61: = | P61: =IF(ISBLANK(Données!$C13),TEXT(Données!$B13,"hh:mm"),TEXT(Données!$B13,"hh:mm")&" : "&TEXT(Données!$C13,"hh:mm")) -> 11:00 : 23:00 | T61: =Données!$A17 -> F | U61: = | V61: =IF(ISBLANK(Données!$C17),TEXT(Données!$B17,"hh:mm"),TEXT(Données!$B17,"hh:mm")&" : "&TEXT(Données!$C17,"hh:mm")) -> F : 00:00 | Z61: =Données!$A21 -> CM | AA61: = | AB61: =IF(ISBLANK(Données!$C21),TEXT(Données!$B21,"hh:mm"),TEXT(Données!$B21,"hh:mm")&" : "&TEXT(Données!$C21,"hh:mm")) -> CM : CM

Sheet Mars
A1: mars
B2: =DATE(An,Mars,B7) -> 2018-03-01 | C2: 2018-03-02 | D2: 2018-03-03 | E2: 2018-03-04 | F2: 2018-03-05 | G2: 2018-03-06 | H2: 2018-03-07 | I2: 2018-03-08 | J2: 2018-03-09 | K2: 2018-03-10 | L2: 2018-03-11 | M2: 2018-03-12 | N2: 2018-03-13 | O2: 2018-03-14 | P2: 2018-03-15 | Q2: 2018-03-16 | R2: 2018-03-17 | S2: 2018-03-18 | T2: 2018-03-19 | U2: 2018-03-20 | V2: 2018-03-21 | W2: 2018-03-22 | X2: 2018-03-23 | Y2: 2018-03-24 | Z2: 2018-03-25 | AA2: 2018-03-26 | AB2: 2018-03-27 | AC2: 2018-03-28 | AD2: 2018-03-29 | AE2: 2018-03-30 | AF2: 2018-03-31 | AI2: Pour remplir | AJ2: penser | AO2: =IF(ISNUMBER(AO7),DATE(An,Mars,AO7),"") ->  | AP2: =IF(ISNUMBER(AP7),DATE(An,Mars,AP7),"") -> 
A3: =IF(Données!$L$5="","Service",Données!$L$5) -> RENFORT 2 | K3: Mois de Mars | O3: =An -> 2018 | AI3: à mettre dans le format:
AI4: "heures":"Minutes" | AT4: Masse horraire previsionnel
AI5: Heures sup | AJ5: Heures sup | AL5: Indications | AM5: Indications | AN5: Indications | AP5: Total
A6: Jours | B6: =PROPER(LEFT(TEXT(DATE(An,Mars,B7),"jjj"),1)) -> J | C6: V | D6: S | E6: D | F6: L | G6: M | H6: M | I6: J | J6: V | K6: S | L6: D | M6: L | N6: M | O6: M | P6: J | Q6: V | R6: S | S6: D | T6: L | U6: M | V6: M | W6: J | X6: V | Y6: S | Z6: D | AA6: L | AB6: M | AC6: M | AD6: J | AE6: V | AF6: S | AI6: avant 21h | AJ6: après 21h | AL6: Heures | AM6: Heures nuit | AN6: Heures | AP6: Heures | AQ6: Heures
B7: =A7+1 -> 1 | C7: 2 | D7: 3 | E7: 4 | F7: 5 | G7: 6 | H7: 7 | I7: 8 | J7: 9 | K7: 10 | L7: 11 | M7: 12 | N7: 13 | O7: 14 | P7: 15 | Q7: 16 | R7: 17 | S7: 18 | T7: 19 | U7: 20 | V7: 21 | W7: 22 | X7: 23 | Y7: 24 | Z7: 25 | AA7: 26 | AB7: 27 | AC7: 28 | AD7: 29 | AE7: 30 | AF7: =AE7+1 -> 31 | AI7: A remplir | AJ7: A remplir | AL7: Dimanche | AM7: Dimanche | AN7: après 21h | AP7: au mois | AQ7: a l'année | AT7: i
A8: Equipe de jour
A9: =Données!$H6 -> 1 | B9: CA | C9: CA | AL9: =VLOOKUP(A9,INDIRECT("B"&$A$1&"!A6:BM56"),49,FALSE) -> 0 | AM9: =VLOOKUP(A9,INDIRECT("B"&$A$1&"!A6:BM56"),50,FALSE) -> 0 | AN9: =VLOOKUP(A9,INDIRECT("B"&$A$1&"!A6:BM56"),51,FALSE) -> 0 | AP9: =IFERROR(VLOOKUP(A9,INDIRECT("B"&$A$1&"!A6:BM56"),53,FALSE),"") -> 0 | AQ9: =IFERROR(VLOOKUP(A9,Bilan!A6:BM56,54,FALSE),"") -> 18.35416667 | AT9: =IFERROR(SUM((VLOOKUP(Mars!A9,Données!$H$6:$J$53,3,FALSE)/12)*3),"") -> 14.875
A10: =Données!$H7 -> 2 | B10: AM | C10: AM | F10: AM | G10: AM | H10: AM | I10: AM | J10: AM | M10: AM | N10: AM | O10: AM | P10: AM | Q10: AM | AL10: 0 | AM10: 0 | AN10: 0 | AP10: 3.8 | AQ10: =IFERROR(VLOOKUP(A10,Bilan!A7:BM57,54,FALSE),"") -> 22.8625 | AT10: =IFERROR(SUM((VLOOKUP(Mars!A10,Données!$H$6:$J$53,3,FALSE)/12)*3),"") -> 14.875
A11: =Données!$H8 -> 3 | T11: CA | U11: CA | V11: CA | W11: CA | X11: CA | AL11: 0 | AM11: 0 | AN11: 0 | AP11: 0 | AQ11: =IFERROR(VLOOKUP(A11,Bilan!A8:BM58,54,FALSE),"") -> 17 | AT11: =IFERROR(SUM((VLOOKUP(Mars!A11,Données!$H$6:$J$53,3,FALSE)/12)*3),"") -> 14.875
A12: =Données!$H9 -> 4 | B12: CM | C12: CM | F12: CM | G12: CM | H12: CM | I12: CM | J12: CM | M12: CM | N12: CM | O12: CM | P12: CM | Q12: CM | T12: CM | U12: CM | V12: CM | W12: CM | X12: CM | AA12: CM | AB12: CM | AC12: CM | AD12: CM | AE12: CM | AL12: 0 | AM12: 0 | AN12: 0 | AP12: 6.966666667 | AQ12: =IFERROR(VLOOKUP(A12,Bilan!A9:BM59,54,FALSE),"") -> 39.58333333 | AT12: =IFERROR(SUM((VLOOKUP(Mars!A12,Données!$H$6:$J$53,3,FALSE)/12)*3),"") -> 14.875
A13: =Données!$H10 -> 5 | B13: CA | C13: CA | AL13: 0 | AM13: 0 | AN13: 0 | AP13: 0 | AQ13: =IFERROR(VLOOKUP(A13,Bilan!A10:BM60,54,FALSE),"") -> 17.4375 | AT13: =IFERROR(SUM((VLOOKUP(Mars!A13,Données!$H$6:$J$53,3,FALSE)/12)*3),"") -> 14.875
A14: =Données!$H11 -> 6 | Q14: CA | W14: CA | X14: CA | AD14: CA | AL14: 0 | AM14: 0 | AN14: 0 | AP14: 0 | AQ14: =IFERROR(VLOOKUP(A14,Bilan!A11:BM61,54,FALSE),"") -> 20.39583333 | AT14: =IFERROR(SUM((VLOOKUP(Mars!A14,Données!$H$6:$J$53,3,FALSE)/12)*3),"") -> 14.875
A15: =Données!$H12 -> 7 | AL15: 0 | AM15: 0 | AN15: 0 | AP15: 0 | AQ15: =IFERROR(VLOOKUP(A15,Bilan!A12:BM62,54,FALSE),"") -> 6.4375 | AT15: =IFERROR(SUM((VLOOKUP(Mars!A15,Données!$H$6:$J$53,3,FALSE)/12)*3),"") -> 14.875
A16: =Données!$H13 -> 8 | AL16: 0 | AM16: 0 | AN16: 0 | AP16: 0 | AQ16: =IFERROR(VLOOKUP(A16,Bilan!A13:BM63,54,FALSE),"") -> 6.3125 | AT16: =IFERROR(SUM((VLOOKUP(Mars!A16,Données!$H$6:$J$53,3,FALSE)/12)*3),"") -> 14.875
A17: =Données!$H14 -> 0 | AL17: 0 | AM17: 0 | AN17: 0 | AP17: 0 | AQ17: =IFERROR(VLOOKUP(A17,Bilan!A14:BM64,54,FALSE),"") -> 62.4375 | AT17: =IFERROR(SUM((VLOOKUP(Mars!A17,Données!$H$6:$J$53,3,FALSE)/12)*3),"") -> 
A18: =Données!$H15 -> 0 | AL18: 0 | AM18: 0 | AN18: 0 | AP18: 0 | AQ18: =IFERROR(VLOOKUP(A18,Bilan!A15:BM65,54,FALSE),"") -> 62.4375 | AT18: =IFERROR(SUM((VLOOKUP(Mars!A18,Données!$H$6:$J$53,3,FALSE)/12)*3),"") -> 
A19: =Données!$H16 -> 0 | AL19: 0 | AM19: 0 | AN19: 0 | AP19: 0 | AQ19: =IFERROR(VLOOKUP(A19,Bilan!A16:BM66,54,FALSE),"") -> 62.4375 | AT19: =IFERROR(SUM((VLOOKUP(Mars!A19,Données!$H$6:$J$53,3,FALSE)/12)*3),"") -> 
A20: =Données!$H17 -> 0 | AL20: =VLOOKUP(A20,INDIRECT("B"&$A$1&"!A6:BM56"),49,FALSE) -> 0 | AM20: =VLOOKUP(A20,INDIRECT("B"&$A$1&"!A6:BM56"),50,FALSE) -> 0 | AN20: =VLOOKUP(A20,INDIRECT("B"&$A$1&"!A6:BM56"),51,FALSE) -> 0 | AP20: =IFERROR(VLOOKUP(A20,INDIRECT("B"&$A$1&"!A6:BM56"),53,FALSE),"") -> 0 | AQ20: =IFERROR(VLOOKUP(A20,Bilan!A17:BM67,54,FALSE),"") -> 62.4375 | AT20: =IFERROR(SUM((VLOOKUP(Mars!A20,Données!$H$6:$J$53,3,FALSE)/12)*3),"") -> 
A21: =Données!$H18 -> 0 | AL21: =VLOOKUP(A21,INDIRECT("B"&$A$1&"!A6:BM56"),49,FALSE) -> 0 | AM21: =VLOOKUP(A21,INDIRECT("B"&$A$1&"!A6:BM56"),50,FALSE) -> 0 | AN21: =VLOOKUP(A21,INDIRECT("B"&$A$1&"!A6:BM56"),51,FALSE) -> 0 | AP21: =IFERROR(VLOOKUP(A21,INDIRECT("B"&$A$1&"!A6:BM56"),53,FALSE),"") -> 0 | AQ21: =IFERROR(VLOOKUP(A21,Bilan!A18:BM68,54,FALSE),"") -> 62.4375 | AT21: =IFERROR(SUM((VLOOKUP(Mars!A21,Données!$H$6:$J$53,3,FALSE)/12)*3),"") -> 
A22: =Données!$H19 -> 0 | AL22: =VLOOKUP(A22,INDIRECT("B"&$A$1&"!A6:BM56"),49,FALSE) -> 0 | AM22: =VLOOKUP(A22,INDIRECT("B"&$A$1&"!A6:BM56"),50,FALSE) -> 0 | AN22: =VLOOKUP(A22,INDIRECT("B"&$A$1&"!A6:BM56"),51,FALSE) -> 0 | AP22: =IFERROR(VLOOKUP(A22,INDIRECT("B"&$A$1&"!A6:BM56"),53,FALSE),"") -> 0 | AQ22: =IFERROR(VLOOKUP(A22,Bilan!A19:BM69,54,FALSE),"") -> 62.4375 | AT22: =IFERROR(SUM((VLOOKUP(Mars!A22,Données!$H$6:$J$53,3,FALSE)/12)*3),"") -> 
A23: =Données!$H20 -> 0 | AL23: =VLOOKUP(A23,INDIRECT("B"&$A$1&"!A6:BM56"),49,FALSE) -> 0 | AM23: =VLOOKUP(A23,INDIRECT("B"&$A$1&"!A6:BM56"),50,FALSE) -> 0 | AN23: =VLOOKUP(A23,INDIRECT("B"&$A$1&"!A6:BM56"),51,FALSE) -> 0 | AP23: =IFERROR(VLOOKUP(A23,INDIRECT("B"&$A$1&"!A6:BM56"),53,FALSE),"") -> 0 | AQ23: =IFERROR(VLOOKUP(A23,Bilan!A20:BM70,54,FALSE),"") ->  | AT23: =IFERROR(SUM((VLOOKUP(Mars!A23,Données!$H$6:$J$53,3,FALSE)/12)*3),"") -> 
A24: =Données!$H21 -> 0 | AL24: =VLOOKUP(A24,INDIRECT("B"&$A$1&"!A6:BM56"),49,FALSE) -> 0 | AM24: =VLOOKUP(A24,INDIRECT("B"&$A$1&"!A6:BM56"),50,FALSE) -> 0 | AN24: =VLOOKUP(A24,INDIRECT("B"&$A$1&"!A6:BM56"),51,FALSE) -> 0 | AP24: =IFERROR(VLOOKUP(A24,INDIRECT("B"&$A$1&"!A6:BM56"),53,FALSE),"") -> 0 | AQ24: =IFERROR(VLOOKUP(A24,Bilan!A21:BM71,54,FALSE),"") -> 0 | AT24: =IFERROR(SUM((VLOOKUP(Mars!A24,Données!$H$6:$J$53,3,FALSE)/12)*3),"") -> 
A25: =Données!$H22 -> Equipe de nuit
A26: =Données!$H23 -> 9 | F26: CA | G26: CA | H26: CA | I26: CA | J26: CA | AL26: =VLOOKUP(A26,INDIRECT("B"&$A$1&"!A6:BM56"),49,FALSE) -> 0 | AM26: =VLOOKUP(A26,INDIRECT("B"&$A$1&"!A6:BM56"),50,FALSE) -> 0 | AN26: =VLOOKUP(A26,INDIRECT("B"&$A$1&"!A6:BM56"),51,FALSE) -> 0 | AP26: =IFERROR(VLOOKUP(A26,INDIRECT("B"&$A$1&"!A6:BM56"),53,FALSE),"") -> 0 | AQ26: =IFERROR(VLOOKUP(A26,Bilan!A23:BM73,54,FALSE),"") -> 15.98333333 | AT26: =IFERROR(SUM((VLOOKUP(Mars!A26,Données!$H$6:$J$53,3,FALSE)/12)*3),"") -> 14.48958333
A27: =Données!$H24 -> 10 | X27: CA | AA27: CA | AB27: CA | AC27: CA | AD27: CA | AE27: CA | AL27: =VLOOKUP(A27,INDIRECT("B"&$A$1&"!A6:BM56"),49,FALSE) -> 0 | AM27: =VLOOKUP(A27,INDIRECT("B"&$A$1&"!A6:BM56"),50,FALSE) -> 0 | AN27: =VLOOKUP(A27,INDIRECT("B"&$A$1&"!A6:BM56"),51,FALSE) -> 0 | AP27: =IFERROR(VLOOKUP(A27,INDIRECT("B"&$A$1&"!A6:BM56"),53,FALSE),"") -> 0 | AQ27: =IFERROR(VLOOKUP(A27,Bilan!A24:BM74,54,FALSE),"") -> 12.04166667 | AT27: =IFERROR(SUM((VLOOKUP(Mars!A27,Données!$H$6:$J$53,3,FALSE)/12)*3),"") -> 14.48958333
A28: =Données!$H25 -> 11 | AL28: =VLOOKUP(A28,INDIRECT("B"&$A$1&"!A6:BM56"),49,FALSE) -> 0 | AM28: =VLOOKUP(A28,INDIRECT("B"&$A$1&"!A6:BM56"),50,FALSE) -> 0 | AN28: =VLOOKUP(A28,INDIRECT("B"&$A$1&"!A6:BM56"),51,FALSE) -> 0 | AP28: =IFERROR(VLOOKUP(A28,INDIRECT("B"&$A$1&"!A6:BM56"),53,FALSE),"") -> 0 | AQ28: =IFERROR(VLOOKUP(A28,Bilan!A25:BM75,54,FALSE),"") -> 16.20833333 | AT28: =IFERROR(SUM((VLOOKUP(Mars!A28,Données!$H$6:$J$53,3,FALSE)/12)*3),"") -> 14.48958333
A29: =Données!$H26 -> 0 | AL29: =VLOOKUP(A29,INDIRECT("B"&$A$1&"!A6:BM56"),49,FALSE) -> 0 | AM29: =VLOOKUP(A29,INDIRECT("B"&$A$1&"!A6:BM56"),50,FALSE) -> 0 | AN29: =VLOOKUP(A29,INDIRECT("B"&$A$1&"!A6:BM56"),51,FALSE) -> 0 | AP29: =IFERROR(VLOOKUP(A29,INDIRECT("B"&$A$1&"!A6:BM56"),53,FALSE),"") -> 0 | AQ29: =IFERROR(VLOOKUP(A29,Bilan!A26:BM76,54,FALSE),"") -> 62.4375 | AT29: =IFERROR(SUM((VLOOKUP(Mars!A29,Données!$H$6:$J$53,3,FALSE)/12)*3),"") -> 
A30: =Données!$H27 -> 0 | AL30: 0 | AM30: 0 | AN30: 0 | AP30: 0 | AQ30: =IFERROR(VLOOKUP(A30,Bilan!A27:BM77,54,FALSE),"") -> 62.4375 | AT30: =IFERROR(SUM((VLOOKUP(Mars!A30,Données!$H$6:$J$53,3,FALSE)/12)*3),"") -> 
A31: =Données!$H28 -> 0 | AL31: 0 | AM31: 0 | AN31: 0 | AP31: 0 | AQ31: =IFERROR(VLOOKUP(A31,Bilan!A28:BM78,54,FALSE),"") -> 62.4375 | AT31: =IFERROR(SUM((VLOOKUP(Mars!A31,Données!$H$6:$J$53,3,FALSE)/12)*3),"") -> 
A32: =Données!$H29 -> 0 | AL32: 0 | AM32: 0 | AN32: 0 | AP32: 0 | AQ32: =IFERROR(VLOOKUP(A32,Bilan!A29:BM79,54,FALSE),"") -> 62.4375 | AT32: =IFERROR(SUM((VLOOKUP(Mars!A32,Données!$H$6:$J$53,3,FALSE)/12)*3),"") -> 
A33: =Données!$H30 -> 0 | AL33: 0 | AM33: 0 | AN33: 0 | AP33: 0 | AQ33: =IFERROR(VLOOKUP(A33,Bilan!A30:BM80,54,FALSE),"") ->  | AT33: =IFERROR(SUM((VLOOKUP(Mars!A33,Données!$H$6:$J$53,3,FALSE)/12)*3),"") -> 
A34: =Données!$H31 -> 0 | AL34: 0 | AM34: 0 | AN34: 0 | AP34: 0 | AQ34: =IFERROR(VLOOKUP(A34,Bilan!A31:BM81,54,FALSE),"") ->  | AT34: =IFERROR(SUM((VLOOKUP(Mars!A34,Données!$H$6:$J$53,3,FALSE)/12)*3),"") -> 
A35: =Données!$H32 -> Maitresse de maison
A36: =Données!$H33 -> 12 | AL36: =VLOOKUP(A36,INDIRECT("B"&$A$1&"!A6:BM56"),49,FALSE) -> 0 | AM36: =VLOOKUP(A36,INDIRECT("B"&$A$1&"!A6:BM56"),50,FALSE) -> 0 | AN36: =VLOOKUP(A36,INDIRECT("B"&$A$1&"!A6:BM56"),51,FALSE) -> 0 | AP36: =IFERROR(VLOOKUP(A36,INDIRECT("B"&$A$1&"!A6:BM56"),53,FALSE),"") -> 0 | AQ36: =IFERROR(VLOOKUP(A36,Bilan!A33:BM83,54,FALSE),"") -> 0.4166666667 | AT36: =IFERROR(SUM((VLOOKUP(Mars!A36,Données!$H$6:$J$53,3,FALSE)/12)*3),"") -> 15.75
A37: =Données!$H34 -> 0 | AL37: =VLOOKUP(A37,INDIRECT("B"&$A$1&"!A6:BM56"),49,FALSE) -> 0 | AM37: =VLOOKUP(A37,INDIRECT("B"&$A$1&"!A6:BM56"),50,FALSE) -> 0 | AN37: =VLOOKUP(A37,INDIRECT("B"&$A$1&"!A6:BM56"),51,FALSE) -> 0 | AP37: =IFERROR(VLOOKUP(A37,INDIRECT("B"&$A$1&"!A6:BM56"),53,FALSE),"") -> 0 | AQ37: =IFERROR(VLOOKUP(A37,Bilan!A34:BM84,54,FALSE),"") ->  | AT37: =IFERROR(SUM((VLOOKUP(Mars!A37,Données!$H$6:$J$53,3,FALSE)/12)*3),"") -> 
A38: =Données!$H35 -> 0 | AL38: 0 | AM38: 0 | AN38: 0 | AP38: 0 | AQ38: =IFERROR(VLOOKUP(A38,Bilan!A35:BM85,54,FALSE),"") -> 62.4375 | AT38: =IFERROR(SUM((VLOOKUP(Mars!A38,Données!$H$6:$J$53,3,FALSE)/12)*3),"") -> 
A39: =Données!$H36 -> 0 | AL39: 0 | AM39: 0 | AN39: 0 | AP39: 0 | AQ39: =IFERROR(VLOOKUP(A39,Bilan!A36:BM86,54,FALSE),"") -> 62.4375 | AT39: =IFERROR(SUM((VLOOKUP(Mars!A39,Données!$H$6:$J$53,3,FALSE)/12)*3),"") -> 
A40: =Données!$H37 -> 0 | AL40: 0 | AM40: 0 | AN40: 0 | AP40: 0 | AQ40: =IFERROR(VLOOKUP(A40,Bilan!A37:BM87,54,FALSE),"") -> 62.4375 | AT40: =IFERROR(SUM((VLOOKUP(Mars!A40,Données!$H$6:$J$53,3,FALSE)/12)*3),"") -> 
A41: =Données!$H38 -> 0 | AL41: 0 | AM41: 0 | AN41: 0 | AP41: 0 | AQ41: =IFERROR(VLOOKUP(A41,Bilan!A38:BM88,54,FALSE),"") ->  | AT41: =IFERROR(SUM((VLOOKUP(Mars!A41,Données!$H$6:$J$53,3,FALSE)/12)*3),"") -> 
A42: =Données!$H39 -> 0 | AL42: 0 | AM42: 0 | AN42: 0 | AP42: 0 | AQ42: =IFERROR(VLOOKUP(A42,Bilan!A39:BM89,54,FALSE),"") ->  | AT42: =IFERROR(SUM((VLOOKUP(Mars!A42,Données!$H$6:$J$53,3,FALSE)/12)*3),"") -> 
A43: =Données!$H40 -> 0 | AL43: 0 | AM43: 0 | AN43: 0 | AP43: 0 | AQ43: =IFERROR(VLOOKUP(A43,Bilan!A40:BM90,54,FALSE),"") ->  | AT43: =IFERROR(SUM((VLOOKUP(Mars!A43,Données!$H$6:$J$53,3,FALSE)/12)*3),"") -> 
A44: =Données!$H41 -> 0 | AL44: 0 | AM44: 0 | AN44: 0 | AP44: 0 | AQ44: =IFERROR(VLOOKUP(A44,Bilan!A41:BM91,54,FALSE),"") ->  | AT44: =IFERROR(SUM((VLOOKUP(Mars!A44,Données!$H$6:$J$53,3,FALSE)/12)*3),"") -> 
A45: =Données!$H42 -> Psychologue
A46: =Données!$H43 -> 13 | AL46: =VLOOKUP(A46,INDIRECT("B"&$A$1&"!A6:BM56"),49,FALSE) -> 0 | AM46: =VLOOKUP(A46,INDIRECT("B"&$A$1&"!A6:BM56"),50,FALSE) -> 0 | AN46: =VLOOKUP(A46,INDIRECT("B"&$A$1&"!A6:BM56"),51,FALSE) -> 0 | AP46: =IFERROR(VLOOKUP(A46,INDIRECT("B"&$A$1&"!A6:BM56"),53,FALSE),"") -> 0 | AQ46: =IFERROR(VLOOKUP(A46,Bilan!A43:BM93,54,FALSE),"") -> 0.625 | AT46: =IFERROR(SUM((VLOOKUP(Mars!A46,Données!$H$6:$J$53,3,FALSE)/12)*3),"") -> 15.75
A47: =Données!$H44 -> 0 | AL47: =VLOOKUP(A47,INDIRECT("B"&$A$1&"!A6:BM56"),49,FALSE) -> 0 | AM47: =VLOOKUP(A47,INDIRECT("B"&$A$1&"!A6:BM56"),50,FALSE) -> 0 | AN47: =VLOOKUP(A47,INDIRECT("B"&$A$1&"!A6:BM56"),51,FALSE) -> 0 | AP47: =IFERROR(VLOOKUP(A47,INDIRECT("B"&$A$1&"!A6:BM56"),53,FALSE),"") -> 0 | AQ47: =IFERROR(VLOOKUP(A47,Bilan!A44:BM94,54,FALSE),"") ->  | AT47: =IFERROR(SUM((VLOOKUP(Mars!A47,Données!$H$6:$J$53,3,FALSE)/12)*3),"") -> 
A48: =Données!$H45 -> 0 | AL48: =VLOOKUP(A48,INDIRECT("B"&$A$1&"!A6:BM56"),49,FALSE) -> 0 | AM48: =VLOOKUP(A48,INDIRECT("B"&$A$1&"!A6:BM56"),50,FALSE) -> 0 | AN48: =VLOOKUP(A48,INDIRECT("B"&$A$1&"!A6:BM56"),51,FALSE) -> 0 | AP48: =IFERROR(VLOOKUP(A48,INDIRECT("B"&$A$1&"!A6:BM56"),53,FALSE),"") -> 0 | AQ48: =IFERROR(VLOOKUP(A48,Bilan!A45:BM95,54,FALSE),"") ->  | AT48: =IFERROR(SUM((VLOOKUP(Mars!A48,Données!$H$6:$J$53,3,FALSE)/12)*3),"") -> 
A49: =Données!$H46 -> Coordinatrice
A50: =Données!$H47 -> 14 | F50: F | G50: F | H50: F | I50: F | J50: F | AL50: =VLOOKUP(A50,INDIRECT("B"&$A$1&"!A6:BM56"),49,FALSE) -> 0 | AM50: =VLOOKUP(A50,INDIRECT("B"&$A$1&"!A6:BM56"),50,FALSE) -> 0 | AN50: =VLOOKUP(A50,INDIRECT("B"&$A$1&"!A6:BM56"),51,FALSE) -> 0 | AP50: =IFERROR(VLOOKUP(A50,INDIRECT("B"&$A$1&"!A6:BM56"),53,FALSE),"") -> 1.5625 | AQ50: =IFERROR(VLOOKUP(A50,Bilan!A47:BM97,54,FALSE),"") -> 4.375 | AT50: =IFERROR(SUM((VLOOKUP(Mars!A50,Données!$H$6:$J$53,3,FALSE)/12)*3),"") -> 15.75
A51: =Données!$H48 -> 0 | AL51: =VLOOKUP(A51,INDIRECT("B"&$A$1&"!A6:BM56"),49,FALSE) -> 0 | AM51: =VLOOKUP(A51,INDIRECT("B"&$A$1&"!A6:BM56"),50,FALSE) -> 0 | AN51: =VLOOKUP(A51,INDIRECT("B"&$A$1&"!A6:BM56"),51,FALSE) -> 0 | AP51: =IFERROR(VLOOKUP(A51,INDIRECT("B"&$A$1&"!A6:BM56"),53,FALSE),"") -> 0 | AQ51: =IFERROR(VLOOKUP(A51,Bilan!A48:BM98,54,FALSE),"") ->  | AT51: =IFERROR(SUM((VLOOKUP(Mars!A51,Données!$H$6:$J$53,3,FALSE)/12)*3),"") -> 
A52: =Données!$H49 -> 0 | AL52: =VLOOKUP(A52,INDIRECT("B"&$A$1&"!A6:BM56"),49,FALSE) -> 0 | AM52: =VLOOKUP(A52,INDIRECT("B"&$A$1&"!A6:BM56"),50,FALSE) -> 0 | AN52: =VLOOKUP(A52,INDIRECT("B"&$A$1&"!A6:BM56"),51,FALSE) -> 0 | AP52: =IFERROR(VLOOKUP(A52,INDIRECT("B"&$A$1&"!A6:BM56"),53,FALSE),"") -> 0 | AQ52: =IFERROR(VLOOKUP(A52,Bilan!A49:BM99,54,FALSE),"") ->  | AT52: =IFERROR(SUM((VLOOKUP(Mars!A52,Données!$H$6:$J$53,3,FALSE)/12)*3),"") -> 
A53: =Données!$H50 -> 0 | AL53: =VLOOKUP(A53,INDIRECT("B"&$A$1&"!A6:BM56"),49,FALSE) -> 0 | AM53: =VLOOKUP(A53,INDIRECT("B"&$A$1&"!A6:BM56"),50,FALSE) -> 0 | AN53: =VLOOKUP(A53,INDIRECT("B"&$A$1&"!A6:BM56"),51,FALSE) -> 0 | AP53: =IFERROR(VLOOKUP(A53,INDIRECT("B"&$A$1&"!A6:BM56"),53,FALSE),"") -> 0 | AQ53: =IFERROR(VLOOKUP(A53,Bilan!A50:BM100,54,FALSE),"") ->  | AT53: =IFERROR(SUM((VLOOKUP(Mars!A53,Données!$H$6:$J$53,3,FALSE)/12)*3),"") -> 
A54: =Données!$H51 -> 0 | AL54: =VLOOKUP(A54,INDIRECT("B"&$A$1&"!A6:BM56"),49,FALSE) -> 0 | AM54: =VLOOKUP(A54,INDIRECT("B"&$A$1&"!A6:BM56"),50,FALSE) -> 0 | AN54: =VLOOKUP(A54,INDIRECT("B"&$A$1&"!A6:BM56"),51,FALSE) -> 0 | AP54: =IFERROR(VLOOKUP(A54,INDIRECT("B"&$A$1&"!A6:BM56"),53,FALSE),"") -> 0 | AQ54: =IFERROR(VLOOKUP(A54,Bilan!A51:BM101,54,FALSE),"") ->  | AT54: =IFERROR(SUM((VLOOKUP(Mars!A54,Données!$H$6:$J$53,3,FALSE)/12)*3),"") -> 
A55: =Données!$H52 -> Chef de service
A56: =Données!$H53 -> 15 | B56: CA | C56: CA | F56: J+ | G56: J+ | H56: J+ | I56: J+ | J56: J+ | M56: J+ | N56: J+ | O56: J+ | P56: J+ | Q56: J+ | T56: J+ | U56: J+ | V56: J+ | W56: J+ | X56: J+ | AA56: J+ | AB56: J+ | AC56: J+ | AD56: J+ | AE56: J+ | AL56: =VLOOKUP(A56,INDIRECT("B"&$A$1&"!A6:BM56"),49,FALSE) -> 0 | AM56: =VLOOKUP(A56,INDIRECT("B"&$A$1&"!A6:BM56"),50,FALSE) -> 0 | AN56: =VLOOKUP(A56,INDIRECT("B"&$A$1&"!A6:BM56"),51,FALSE) -> 0 | AP56: =IFERROR(VLOOKUP(A56,INDIRECT("B"&$A$1&"!A6:BM56"),53,FALSE),"") -> 7.083333333 | AQ56: =IFERROR(VLOOKUP(A56,Bilan!A53:BM103,54,FALSE),"") -> 24.79166667 | AT56: =IFERROR(SUM((VLOOKUP(Mars!A56,Données!$H$6:$J$53,3,FALSE)/12)*3),"") -> 15.75
B58: =Données!$A3 -> M | C58: = | D58: =IF(ISBLANK(Données!$C3),TEXT(Données!$B3,"hh:mm"),TEXT(Données!$B3,"hh:mm")&" : "&TEXT(Données!$C3,"hh:mm")) -> 07:00 : 14:30 | H58: =Données!$A7 -> DM | I58: = | J58: =IF(ISBLANK(Données!$C7),TEXT(Données!$B7,"hh:mm"),TEXT(Données!$B7,"hh:mm")&" : "&TEXT(Données!$C7,"hh:mm")) -> 08:00 : 15:30 | N58: =Données!$A10 -> S+ | O58: = | P58: =IF(ISBLANK(Données!$C10),TEXT(Données!$B10,"hh:mm"),TEXT(Données!$B10,"hh:mm")&" : "&TEXT(Données!$C10,"hh:mm")) -> 14:00 : 23:00 | T58: =Données!$A14 -> N | U58: = | V58: =IF(ISBLANK(Données!$C14),TEXT(Données!$B14,"hh:mm"),TEXT(Données!$B14,"hh:mm")&" : "&TEXT(Données!$C14,"hh:mm")) -> 20:00 : 07:00 | Z58: =Données!$A18 -> sta | AA58: = | AB58: =IF(ISBLANK(Données!$C18),TEXT(Données!$B18,"hh:mm"),TEXT(Données!$B18,"hh:mm")&" : "&TEXT(Données!$C18,"hh:mm")) -> sta : ge
B59: =Données!$A4 -> MR | C59: = | D59: =IF(ISBLANK(Données!$C4),TEXT(Données!$B4,"hh:mm"),TEXT(Données!$B4,"hh:mm")&" : "&TEXT(Données!$C4,"hh:mm")) -> 07:00 : 17:00 | H59: =Données!$A8 -> PFJ | I59: = | J59: =IF(ISBLANK(Données!$C8),TEXT(Données!$B8,"hh:mm"),TEXT(Données!$B8,"hh:mm")&" : "&TEXT(Données!$C8,"hh:mm")) -> 09:00 : 17:00 | N59: =Données!$A11 -> R | O59: = | P59: =IF(ISBLANK(Données!$C11),TEXT(Données!$B11,"hh:mm"),TEXT(Données!$B11,"hh:mm")&" : "&TEXT(Données!$C11,"hh:mm")) -> 14:00 : 17:00 | T59: =Données!$A15 -> NVS | U59: = | V59: =IF(ISBLANK(Données!$C15),TEXT(Données!$B15,"hh:mm"),TEXT(Données!$B15,"hh:mm")&" : "&TEXT(Données!$C15,"hh:mm")) -> 20:00 : 08:00 | Z59: =Données!$A19 -> AT | AA59: = | AB59: =IF(ISBLANK(Données!$C19),TEXT(Données!$B19,"hh:mm"),TEXT(Données!$B19,"hh:mm")&" : "&TEXT(Données!$C19,"hh:mm")) -> AT : AT
B60: =Données!$A5 -> D | C60: = | D60: =IF(ISBLANK(Données!$C5),TEXT(Données!$B5,"hh:mm"),TEXT(Données!$B5,"hh:mm")&" : "&TEXT(Données!$C5,"hh:mm")) -> 10:00 : 17:30 | H60: =Données!$A9 -> S | I60: = | J60: =IF(ISBLANK(Données!$C9),TEXT(Données!$B9,"hh:mm"),TEXT(Données!$B9,"hh:mm")&" : "&TEXT(Données!$C9,"hh:mm")) -> 14:00 : 22:00 | N60: =Données!$A12 -> W | O60: = | P60: =IF(ISBLANK(Données!$C12),TEXT(Données!$B12,"hh:mm"),TEXT(Données!$B12,"hh:mm")&" : "&TEXT(Données!$C12,"hh:mm")) -> 08:00 : 20:00 | T60: =Données!$A16 -> CA | U60: = | V60: =IF(ISBLANK(Données!$C16),TEXT(Données!$B16,"hh:mm"),TEXT(Données!$B16,"hh:mm")&" : "&TEXT(Données!$C16,"hh:mm")) -> CA : CA | Z60: =Données!$A20 -> AM | AA60: = | AB60: =IF(ISBLANK(Données!$C20),TEXT(Données!$B20,"hh:mm"),TEXT(Données!$B20,"hh:mm")&" : "&TEXT(Données!$C20,"hh:mm")) -> AM : AM
B61: =Données!$A6 -> DR | C61: = | D61: =IF(ISBLANK(Données!$C6),TEXT(Données!$B6,"hh:mm"),TEXT(Données!$B6,"hh:mm")&" : "&TEXT(Données!$C6,"hh:mm")) -> 10:00 : 17:30 | H61: =Données!$A10 -> S+ | I61: = | J61: =IF(ISBLANK(Données!$C10),TEXT(Données!$B10,"hh:mm"),TEXT(Données!$B10,"hh:mm")&" : "&TEXT(Données!$C10,"hh:mm")) -> 14:00 : 23:00 | N61: =Données!$A13 -> W+ | O61: = | P61: =IF(ISBLANK(Données!$C13),TEXT(Données!$B13,"hh:mm"),TEXT(Données!$B13,"hh:mm")&" : "&TEXT(Données!$C13,"hh:mm")) -> 11:00 : 23:00 | T61: =Données!$A17 -> F | U61: = | V61: =IF(ISBLANK(Données!$C17),TEXT(Données!$B17,"hh:mm"),TEXT(Données!$B17,"hh:mm")&" : "&TEXT(Données!$C17,"hh:mm")) -> F : 00:00 | Z61: =Données!$A21 -> CM | AA61: = | AB61: =IF(ISBLANK(Données!$C21),TEXT(Données!$B21,"hh:mm"),TEXT(Données!$B21,"hh:mm")&" : "&TEXT(Données!$C21,"hh:mm")) -> CM : CM

Sheet Avril
A1: avril
B2: =DATE(An,Avril,B7) -> 2018-04-01 | C2: 2018-04-02 | D2: 2018-04-03 | E2: 2018-04-04 | F2: 2018-04-05 | G2: 2018-04-06 | H2: 2018-04-07 | I2: 2018-04-08 | J2: 2018-04-09 | K2: 2018-04-10 | L2: 2018-04-11 | M2: 2018-04-12 | N2: 2018-04-13 | O2: 2018-04-14 | P2: 2018-04-15 | Q2: 2018-04-16 | R2: 2018-04-17 | S2: 2018-04-18 | T2: 2018-04-19 | U2: 2018-04-20 | V2: 2018-04-21 | W2: 2018-04-22 | X2: 2018-04-23 | Y2: 2018-04-24 | Z2: 2018-04-25 | AA2: 2018-04-26 | AB2: 2018-04-27 | AC2: 2018-04-28 | AD2: 2018-04-29 | AE2: 2018-04-30 | AI2: Pour remplir | AJ2: penser | AO2: =IF(ISNUMBER(AO7),DATE(An,Avril,AO7),"") ->  | AP2: =IF(ISNUMBER(AP7),DATE(An,Avril,AP7),"") -> 
A3: =IF(Données!$L$5="","Service",Données!$L$5) -> RENFORT 2 | K3: Mois d'Avril | O3: =An -> 2018 | AI3: à mettre dans le format:
AI4: "heures":"Minutes" | AT4: Masse horraire previsionnel
AI5: Heures sup | AJ5: Heures sup | AL5: Indications | AM5: Indications | AN5: Indications | AP5: Total
A6: Jours | B6: =PROPER(LEFT(TEXT(DATE(An,Avril,B7),"jjj"),1)) -> D | C6: L | D6: M | E6: M | F6: J | G6: V | H6: S | I6: D | J6: L | K6: M | L6: M | M6: J | N6: V | O6: S | P6: D | Q6: L | R6: M | S6: M | T6: J | U6: V | V6: S | W6: D | X6: L | Y6: M | Z6: M | AA6: J | AB6: V | AC6: S | AD6: D | AE6: L | AI6: avant 21h | AJ6: après 21h | AL6: Heures | AM6: Heures nuit | AN6: Heures | AP6: Heures | AQ6: Heures
B7: =A7+1 -> 1 | C7: 2 | D7: 3 | E7: 4 | F7: 5 | G7: 6 | H7: 7 | I7: 8 | J7: 9 | K7: 10 | L7: 11 | M7: 12 | N7: 13 | O7: 14 | P7: 15 | Q7: 16 | R7: 17 | S7: 18 | T7: 19 | U7: 20 | V7: 21 | W7: 22 | X7: 23 | Y7: 24 | Z7: 25 | AA7: 26 | AB7: 27 | AC7: 28 | AD7: 29 | AE7: 30 | AI7: A remplir | AJ7: A remplir | AL7: Dimanche | AM7: Dimanche | AN7: après 21h | AP7: au mois | AQ7: a l'année | AT7: i
A8: Equipe de jour
A9: =Données!$H6 -> 1 | D9: D | E9: D | F9: D | G9: D | J9: S+ | K9: S+ | L9: D | M9: M | N9: M | Q9: M | R9: S+ | T9: S+ | U9: D | X9: S | Y9: R | Z9: S+ | AC9: W | AD9: W | AE9: DM | AL9: =VLOOKUP(A9,INDIRECT("B"&$A$1&"!A6:BM56"),49,FALSE) -> 0.5 | AM9: =VLOOKUP(A9,INDIRECT("B"&$A$1&"!A6:BM56"),50,FALSE) -> 0 | AN9: =VLOOKUP(A9,INDIRECT("B"&$A$1&"!A6:BM56"),51,FALSE) -> 0.4583333333 | AP9: =IFERROR(VLOOKUP(A9,INDIRECT("B"&$A$1&"!A6:BM56"),53,FALSE),"") -> 6.458333333 | AQ9: =IFERROR(VLOOKUP(A9,Bilan!A6:BM56,54,FALSE),"") -> 18.35416667 | AT9: =IFERROR(SUM((VLOOKUP(Avril!A9,Données!$H$6:$J$53,3,FALSE)/12)*4),"") -> 19.83333333
A10: =Données!$H7 -> 2 | D10: D | E10: D | F10: D | G10: D | K10: MR | N10: S | O10: W+ | P10: W+ | R10: MR | S10: M | T10: M | U10: S+ | X10: CA | Y10: CA | Z10: CA | AA10: CA | AB10: CA | AE10: CA | AL10: 0.4166666667 | AM10: 0.08333333333 | AN10: 0.2083333333 | AP10: 4.416666667 | AQ10: =IFERROR(VLOOKUP(A10,Bilan!A7:BM57,54,FALSE),"") -> 22.8625 | AT10: =IFERROR(SUM((VLOOKUP(Avril!A10,Données!$H$6:$J$53,3,FALSE)/12)*4),"") -> 19.83333333
A11: =Données!$H8 -> 3 | D11: D | E11: D | F11: D | G11: D | J11: M | K11: MR | L11: M | M11: S | N11: S+ | Q11: S+ | R11: S | S11: D | T11: M | U11: M | Y11: MR | AB11: S | AC11: W+ | AD11: W+ | AL11: 0.4166666667 | AM11: 0.08333333333 | AN11: 0.375 | AP11: 6.395833333 | AQ11: =IFERROR(VLOOKUP(A11,Bilan!A8:BM58,54,FALSE),"") -> 17 | AT11: =IFERROR(SUM((VLOOKUP(Avril!A11,Données!$H$6:$J$53,3,FALSE)/12)*4),"") -> 19.83333333
A12: =Données!$H9 -> 4 | D12: CM | E12: CM | F12: CM | G12: CM | J12: CM | K12: CM | L12: CM | M12: CM | N12: CM | Q12: CM | R12: CM | S12: CM | T12: CM | U12: CM | X12: CM | Y12: CM | Z12: CM | AA12: CM | AB12: CM | AE12: CM | AL12: 0 | AM12: 0 | AN12: 0 | AP12: 6.333333333 | AQ12: =IFERROR(VLOOKUP(A12,Bilan!A9:BM59,54,FALSE),"") -> 39.58333333 | AT12: =IFERROR(SUM((VLOOKUP(Avril!A12,Données!$H$6:$J$53,3,FALSE)/12)*4),"") -> 19.83333333
A13: =Données!$H10 -> 5 | B13: W | D13: D | E13: D | F13: D | G13: D | J13: CA | K13: CA | L13: CA | M13: CA | N13: CA | R13: MR | U13: S | V13: W+ | W13: W+ | Y13: S+ | Z13: S | AA13: S+ | AB13: D | AE13: M | AL13: 0.9166666667 | AM13: 0.08333333333 | AN13: 0.3333333333 | AP13: 5.208333333 | AQ13: =IFERROR(VLOOKUP(A13,Bilan!A10:BM60,54,FALSE),"") -> 17.4375 | AT13: =IFERROR(SUM((VLOOKUP(Avril!A13,Données!$H$6:$J$53,3,FALSE)/12)*4),"") -> 19.83333333
A14: =Données!$H11 -> 6 | D14: D | E14: D | F14: D | G14: D | J14: S | K14: R | L14: S+ | O14: W | P14: W | Q14: DM | S14: S | T14: S | U14: D | X14: S+ | Y14: S | Z14: D | AA14: M | AB14: M | AE14: S+ | AL14: 0.5 | AM14: 0 | AN14: 0.4166666667 | AP14: 6.395833333 | AQ14: =IFERROR(VLOOKUP(A14,Bilan!A11:BM61,54,FALSE),"") -> 20.39583333 | AT14: =IFERROR(SUM((VLOOKUP(Avril!A14,Données!$H$6:$J$53,3,FALSE)/12)*4),"") -> 19.83333333
A15: =Données!$H12 -> 7 | AL15: 0 | AM15: 0 | AN15: 0 | AP15: 0 | AQ15: =IFERROR(VLOOKUP(A15,Bilan!A12:BM62,54,FALSE),"") -> 6.4375 | AT15: =IFERROR(SUM((VLOOKUP(Avril!A15,Données!$H$6:$J$53,3,FALSE)/12)*4),"") -> 19.83333333
A16: =Données!$H13 -> 8 | AL16: 0 | AM16: 0 | AN16: 0 | AP16: 0 | AQ16: =IFERROR(VLOOKUP(A16,Bilan!A13:BM63,54,FALSE),"") -> 6.3125 | AT16: =IFERROR(SUM((VLOOKUP(Avril!A16,Données!$H$6:$J$53,3,FALSE)/12)*4),"") -> 19.83333333
A17: =Données!$H14 -> 0 | D17: D | E17: D | F17: D | G17: D | J17: M | K17: S | L17: S | M17: S+ | N17: D | Q17: S | R17: R | S17: S+ | V17: W | W17: W | X17: DM | Z17: M | AA17: S | AB17: S+ | AE17: S | AL17: 0.5 | AM17: 0 | AN17: 0.4583333333 | AP17: 26.02083333 | AQ17: =IFERROR(VLOOKUP(A17,Bilan!A14:BM64,54,FALSE),"") -> 62.4375 | AT17: =IFERROR(SUM((VLOOKUP(Avril!A17,Données!$H$6:$J$53,3,FALSE)/12)*4),"") -> 
A18: =Données!$H15 -> 0 | AL18: 0.5 | AM18: 0 | AN18: 0.4583333333 | AP18: 26.02083333 | AQ18: =IFERROR(VLOOKUP(A18,Bilan!A15:BM65,54,FALSE),"") -> 62.4375 | AT18: =IFERROR(SUM((VLOOKUP(Avril!A18,Données!$H$6:$J$53,3,FALSE)/12)*4),"") -> 
A19: =Données!$H16 -> 0 | AL19: 0.5 | AM19: 0 | AN19: 0.4583333333 | AP19: 26.02083333 | AQ19: =IFERROR(VLOOKUP(A19,Bilan!A16:BM66,54,FALSE),"") -> 62.4375 | AT19: =IFERROR(SUM((VLOOKUP(Avril!A19,Données!$H$6:$J$53,3,FALSE)/12)*4),"") -> 
A20: =Données!$H17 -> 0 | AL20: =VLOOKUP(A20,INDIRECT("B"&$A$1&"!A6:BM56"),49,FALSE) -> 0.5 | AM20: =VLOOKUP(A20,INDIRECT("B"&$A$1&"!A6:BM56"),50,FALSE) -> 0 | AN20: =VLOOKUP(A20,INDIRECT("B"&$A$1&"!A6:BM56"),51,FALSE) -> 0.4583333333 | AP20: =IFERROR(VLOOKUP(A20,INDIRECT("B"&$A$1&"!A6:BM56"),53,FALSE),"") -> 26.02083333 | AQ20: =IFERROR(VLOOKUP(A20,Bilan!A17:BM67,54,FALSE),"") -> 62.4375 | AT20: =IFERROR(SUM((VLOOKUP(Avril!A20,Données!$H$6:$J$53,3,FALSE)/12)*4),"") -> 
A21: =Données!$H18 -> 0 | AL21: =VLOOKUP(A21,INDIRECT("B"&$A$1&"!A6:BM56"),49,FALSE) -> 0.5 | AM21: =VLOOKUP(A21,INDIRECT("B"&$A$1&"!A6:BM56"),50,FALSE) -> 0 | AN21: =VLOOKUP(A21,INDIRECT("B"&$A$1&"!A6:BM56"),51,FALSE) -> 0.4583333333 | AP21: =IFERROR(VLOOKUP(A21,INDIRECT("B"&$A$1&"!A6:BM56"),53,FALSE),"") -> 26.02083333 | AQ21: =IFERROR(VLOOKUP(A21,Bilan!A18:BM68,54,FALSE),"") -> 62.4375 | AT21: =IFERROR(SUM((VLOOKUP(Avril!A21,Données!$H$6:$J$53,3,FALSE)/12)*4),"") -> 
A22: =Données!$H19 -> 0 | AL22: =VLOOKUP(A22,INDIRECT("B"&$A$1&"!A6:BM56"),49,FALSE) -> 0.5 | AM22: =VLOOKUP(A22,INDIRECT("B"&$A$1&"!A6:BM56"),50,FALSE) -> 0 | AN22: =VLOOKUP(A22,INDIRECT("B"&$A$1&"!A6:BM56"),51,FALSE) -> 0.4583333333 | AP22: =IFERROR(VLOOKUP(A22,INDIRECT("B"&$A$1&"!A6:BM56"),53,FALSE),"") -> 26.02083333 | AQ22: =IFERROR(VLOOKUP(A22,Bilan!A19:BM69,54,FALSE),"") -> 62.4375 | AT22: =IFERROR(SUM((VLOOKUP(Avril!A22,Données!$H$6:$J$53,3,FALSE)/12)*4),"") -> 
A23: =Données!$H20 -> 0 | AL23: =VLOOKUP(A23,INDIRECT("B"&$A$1&"!A6:BM56"),49,FALSE) -> 0.5 | AM23: =VLOOKUP(A23,INDIRECT("B"&$A$1&"!A6:BM56"),50,FALSE) -> 0 | AN23: =VLOOKUP(A23,INDIRECT("B"&$A$1&"!A6:BM56"),51,FALSE) -> 0.4583333333 | AP23: =IFERROR(VLOOKUP(A23,INDIRECT("B"&$A$1&"!A6:BM56"),53,FALSE),"") -> 26.02083333 | AQ23: =IFERROR(VLOOKUP(A23,Bilan!A20:BM70,54,FALSE),"") ->  | AT23: =IFERROR(SUM((VLOOKUP(Avril!A23,Données!$H$6:$J$53,3,FALSE)/12)*4),"") -> 
A24: =Données!$H21 -> 0 | AL24: =VLOOKUP(A24,INDIRECT("B"&$A$1&"!A6:BM56"),49,FALSE) -> 0.5 | AM24: =VLOOKUP(A24,INDIRECT("B"&$A$1&"!A6:BM56"),50,FALSE) -> 0 | AN24: =VLOOKUP(A24,INDIRECT("B"&$A$1&"!A6:BM56"),51,FALSE) -> 0.4583333333 | AP24: =IFERROR(VLOOKUP(A24,INDIRECT("B"&$A$1&"!A6:BM56"),53,FALSE),"") -> 26.02083333 | AQ24: =IFERROR(VLOOKUP(A24,Bilan!A21:BM71,54,FALSE),"") -> 0 | AT24: =IFERROR(SUM((VLOOKUP(Avril!A24,Données!$H$6:$J$53,3,FALSE)/12)*4),"") -> 
A25: =Données!$H22 -> Equipe de nuit
A26: =Données!$H23 -> 9 | D26: EM | E26: D | F26: D | G26: D | J26: N | K26: N | N26: NVS | O26: NVS | R26: N | S26: N | W26: N | X26: N | Y26: N | AE26: CA | AL26: =VLOOKUP(A26,INDIRECT("B"&$A$1&"!A6:BM56"),49,FALSE) -> 0.04166666667 | AM26: =VLOOKUP(A26,INDIRECT("B"&$A$1&"!A6:BM56"),50,FALSE) -> 0.4166666667 | AN26: =VLOOKUP(A26,INDIRECT("B"&$A$1&"!A6:BM56"),51,FALSE) -> 3.333333333 | AP26: =IFERROR(VLOOKUP(A26,INDIRECT("B"&$A$1&"!A6:BM56"),53,FALSE),"") -> 5.4625 | AQ26: =IFERROR(VLOOKUP(A26,Bilan!A23:BM73,54,FALSE),"") -> 15.98333333 | AT26: =IFERROR(SUM((VLOOKUP(Avril!A26,Données!$H$6:$J$53,3,FALSE)/12)*4),"") -> 19.31944444
A27: =Données!$H24 -> 10 | D27: D | E27: D | F27: D | G27: D | K27: R | L27: N | M27: N | P27: N | Q27: N | S27: CA | T27: CA | U27: CA | X27: CA | Y27: CA | Z27: CA | AA27: CA | AB27: CA | AE27: N | AL27: =VLOOKUP(A27,INDIRECT("B"&$A$1&"!A6:BM56"),49,FALSE) -> 0 | AM27: =VLOOKUP(A27,INDIRECT("B"&$A$1&"!A6:BM56"),50,FALSE) -> 0.4166666667 | AN27: =VLOOKUP(A27,INDIRECT("B"&$A$1&"!A6:BM56"),51,FALSE) -> 1.666666667 | AP27: =IFERROR(VLOOKUP(A27,INDIRECT("B"&$A$1&"!A6:BM56"),53,FALSE),"") -> 3.666666667 | AQ27: =IFERROR(VLOOKUP(A27,Bilan!A24:BM74,54,FALSE),"") -> 12.04166667 | AT27: =IFERROR(SUM((VLOOKUP(Avril!A27,Données!$H$6:$J$53,3,FALSE)/12)*4),"") -> 19.31944444
A28: =Données!$H25 -> 11 | D28: D | E28: D | F28: D | G28: D | J28: CA | K28: CA | L28: CA | M28: CA | N28: NVS | Q28: N | T28: N | U28: NVS | V28: NVS | Z28: N | AA28: N | AB28: NVS | AD28: N | AL28: =VLOOKUP(A28,INDIRECT("B"&$A$1&"!A6:BM56"),49,FALSE) -> 0.04166666667 | AM28: =VLOOKUP(A28,INDIRECT("B"&$A$1&"!A6:BM56"),50,FALSE) -> 0.4166666667 | AN28: =VLOOKUP(A28,INDIRECT("B"&$A$1&"!A6:BM56"),51,FALSE) -> 3.333333333 | AP28: =IFERROR(VLOOKUP(A28,INDIRECT("B"&$A$1&"!A6:BM56"),53,FALSE),"") -> 5.541666667 | AQ28: =IFERROR(VLOOKUP(A28,Bilan!A25:BM75,54,FALSE),"") -> 16.20833333 | AT28: =IFERROR(SUM((VLOOKUP(Avril!A28,Données!$H$6:$J$53,3,FALSE)/12)*4),"") -> 19.31944444
A29: =Données!$H26 -> 0 | D29: D | E29: D | F29: D | G29: D | J29: CA | K29: CA | L29: CA | M29: CA | N29: NVS | Q29: N | R29: N | U29: NVS | V29: NVS | W29: N | Z29: N | AA29: N | AB29: NVS | AL29: =VLOOKUP(A29,INDIRECT("B"&$A$1&"!A6:BM56"),49,FALSE) -> 0.5 | AM29: =VLOOKUP(A29,INDIRECT("B"&$A$1&"!A6:BM56"),50,FALSE) -> 0 | AN29: =VLOOKUP(A29,INDIRECT("B"&$A$1&"!A6:BM56"),51,FALSE) -> 0.4583333333 | AP29: =IFERROR(VLOOKUP(A29,INDIRECT("B"&$A$1&"!A6:BM56"),53,FALSE),"") -> 26.02083333 | AQ29: =IFERROR(VLOOKUP(A29,Bilan!A26:BM76,54,FALSE),"") -> 62.4375 | AT29: =IFERROR(SUM((VLOOKUP(Avril!A29,Données!$H$6:$J$53,3,FALSE)/12)*4),"") -> 
A30: =Données!$H27 -> 0 | AL30: 0.5 | AM30: 0 | AN30: 0.4583333333 | AP30: 26.02083333 | AQ30: =IFERROR(VLOOKUP(A30,Bilan!A27:BM77,54,FALSE),"") -> 62.4375 | AT30: =IFERROR(SUM((VLOOKUP(Avril!A30,Données!$H$6:$J$53,3,FALSE)/12)*4),"") -> 
A31: =Données!$H28 -> 0 | AL31: 0.5 | AM31: 0 | AN31: 0.4583333333 | AP31: 26.02083333 | AQ31: =IFERROR(VLOOKUP(A31,Bilan!A28:BM78,54,FALSE),"") -> 62.4375 | AT31: =IFERROR(SUM((VLOOKUP(Avril!A31,Données!$H$6:$J$53,3,FALSE)/12)*4),"") -> 
A32: =Données!$H29 -> 0 | AL32: 0.5 | AM32: 0 | AN32: 0.4583333333 | AP32: 26.02083333 | AQ32: =IFERROR(VLOOKUP(A32,Bilan!A29:BM79,54,FALSE),"") -> 62.4375 | AT32: =IFERROR(SUM((VLOOKUP(Avril!A32,Données!$H$6:$J$53,3,FALSE)/12)*4),"") -> 
A33: =Données!$H30 -> 0 | AL33: 0.5 | AM33: 0 | AN33: 0.4583333333 | AP33: 26.02083333 | AQ33: =IFERROR(VLOOKUP(A33,Bilan!A30:BM80,54,FALSE),"") ->  | AT33: =IFERROR(SUM((VLOOKUP(Avril!A33,Données!$H$6:$J$53,3,FALSE)/12)*4),"") -> 
A34: =Données!$H31 -> 0 | AL34: 0.5 | AM34: 0 | AN34: 0.4583333333 | AP34: 26.02083333 | AQ34: =IFERROR(VLOOKUP(A34,Bilan!A31:BM81,54,FALSE),"") ->  | AT34: =IFERROR(SUM((VLOOKUP(Avril!A34,Données!$H$6:$J$53,3,FALSE)/12)*4),"") -> 
A35: =Données!$H32 -> Maitresse de maison
A36: =Données!$H33 -> 12 | AL36: =VLOOKUP(A36,INDIRECT("B"&$A$1&"!A6:BM56"),49,FALSE) -> 0 | AM36: =VLOOKUP(A36,INDIRECT("B"&$A$1&"!A6:BM56"),50,FALSE) -> 0 | AN36: =VLOOKUP(A36,INDIRECT("B"&$A$1&"!A6:BM56"),51,FALSE) -> 0 | AP36: =IFERROR(VLOOKUP(A36,INDIRECT("B"&$A$1&"!A6:BM56"),53,FALSE),"") -> 0 | AQ36: =IFERROR(VLOOKUP(A36,Bilan!A33:BM83,54,FALSE),"") -> 0.4166666667 | AT36: =IFERROR(SUM((VLOOKUP(Avril!A36,Données!$H$6:$J$53,3,FALSE)/12)*4),"") -> 21
A37: =Données!$H34 -> 0 | D37: D | E37: D | F37: D | G37: D | J37: M | K37: M | L37: M | M37: M | N37: M | Q37: M | R37: M | S37: M | T37: M | U37: M | X37: M | Y37: M | Z37: M | AA37: M | AB37: M | AE37: CA | AL37: =VLOOKUP(A37,INDIRECT("B"&$A$1&"!A6:BM56"),49,FALSE) -> 0.5 | AM37: =VLOOKUP(A37,INDIRECT("B"&$A$1&"!A6:BM56"),50,FALSE) -> 0 | AN37: =VLOOKUP(A37,INDIRECT("B"&$A$1&"!A6:BM56"),51,FALSE) -> 0.4583333333 | AP37: =IFERROR(VLOOKUP(A37,INDIRECT("B"&$A$1&"!A6:BM56"),53,FALSE),"") -> 26.02083333 | AQ37: =IFERROR(VLOOKUP(A37,Bilan!A34:BM84,54,FALSE),"") ->  | AT37: =IFERROR(SUM((VLOOKUP(Avril!A37,Données!$H$6:$J$53,3,FALSE)/12)*4),"") -> 
A38: =Données!$H35 -> 0 | AL38: 0.5 | AM38: 0 | AN38: 0.4583333333 | AP38: 26.02083333 | AQ38: =IFERROR(VLOOKUP(A38,Bilan!A35:BM85,54,FALSE),"") -> 62.4375 | AT38: =IFERROR(SUM((VLOOKUP(Avril!A38,Données!$H$6:$J$53,3,FALSE)/12)*4),"") -> 
A39: =Données!$H36 -> 0 | AL39: 0.5 | AM39: 0 | AN39: 0.4583333333 | AP39: 26.02083333 | AQ39: =IFERROR(VLOOKUP(A39,Bilan!A36:BM86,54,FALSE),"") -> 62.4375 | AT39: =IFERROR(SUM((VLOOKUP(Avril!A39,Données!$H$6:$J$53,3,FALSE)/12)*4),"") -> 
A40: =Données!$H37 -> 0 | AL40: 0.5 | AM40: 0 | AN40: 0.4583333333 | AP40: 26.02083333 | AQ40: =IFERROR(VLOOKUP(A40,Bilan!A37:BM87,54,FALSE),"") -> 62.4375 | AT40: =IFERROR(SUM((VLOOKUP(Avril!A40,Données!$H$6:$J$53,3,FALSE)/12)*4),"") -> 
A41: =Données!$H38 -> 0 | AL41: 0.5 | AM41: 0 | AN41: 0.4583333333 | AP41: 26.02083333 | AQ41: =IFERROR(VLOOKUP(A41,Bilan!A38:BM88,54,FALSE),"") ->  | AT41: =IFERROR(SUM((VLOOKUP(Avril!A41,Données!$H$6:$J$53,3,FALSE)/12)*4),"") -> 
A42: =Données!$H39 -> 0 | AL42: 0.5 | AM42: 0 | AN42: 0.4583333333 | AP42: 26.02083333 | AQ42: =IFERROR(VLOOKUP(A42,Bilan!A39:BM89,54,FALSE),"") ->  | AT42: =IFERROR(SUM((VLOOKUP(Avril!A42,Données!$H$6:$J$53,3,FALSE)/12)*4),"") -> 
A43: =Données!$H40 -> 0 | AL43: 0.5 | AM43: 0 | AN43: 0.4583333333 | AP43: 26.02083333 | AQ43: =IFERROR(VLOOKUP(A43,Bilan!A40:BM90,54,FALSE),"") ->  | AT43: =IFERROR(SUM((VLOOKUP(Avril!A43,Données!$H$6:$J$53,3,FALSE)/12)*4),"") -> 
A44: =Données!$H41 -> 0 | AL44: 0.5 | AM44: 0 | AN44: 0.4583333333 | AP44: 26.02083333 | AQ44: =IFERROR(VLOOKUP(A44,Bilan!A41:BM91,54,FALSE),"") ->  | AT44: =IFERROR(SUM((VLOOKUP(Avril!A44,Données!$H$6:$J$53,3,FALSE)/12)*4),"") -> 
A45: =Données!$H42 -> Psychologue
A46: =Données!$H43 -> 13 | AL46: =VLOOKUP(A46,INDIRECT("B"&$A$1&"!A6:BM56"),49,FALSE) -> 0 | AM46: =VLOOKUP(A46,INDIRECT("B"&$A$1&"!A6:BM56"),50,FALSE) -> 0 | AN46: =VLOOKUP(A46,INDIRECT("B"&$A$1&"!A6:BM56"),51,FALSE) -> 0 | AP46: =IFERROR(VLOOKUP(A46,INDIRECT("B"&$A$1&"!A6:BM56"),53,FALSE),"") -> 0 | AQ46: =IFERROR(VLOOKUP(A46,Bilan!A43:BM93,54,FALSE),"") -> 0.625 | AT46: =IFERROR(SUM((VLOOKUP(Avril!A46,Données!$H$6:$J$53,3,FALSE)/12)*4),"") -> 21
A47: =Données!$H44 -> 0 | D47: D | E47: D | F47: D | G47: D | J47: D | K47: D | L47: D | M47: D | Q47: D | R47: D | S47: D | T47: D | X47: D | Y47: D | Z47: D | AA47: D | AE47: D | AL47: =VLOOKUP(A47,INDIRECT("B"&$A$1&"!A6:BM56"),49,FALSE) -> 0.5 | AM47: =VLOOKUP(A47,INDIRECT("B"&$A$1&"!A6:BM56"),50,FALSE) -> 0 | AN47: =VLOOKUP(A47,INDIRECT("B"&$A$1&"!A6:BM56"),51,FALSE) -> 0.4583333333 | AP47: =IFERROR(VLOOKUP(A47,INDIRECT("B"&$A$1&"!A6:BM56"),53,FALSE),"") -> 26.02083333 | AQ47: =IFERROR(VLOOKUP(A47,Bilan!A44:BM94,54,FALSE),"") ->  | AT47: =IFERROR(SUM((VLOOKUP(Avril!A47,Données!$H$6:$J$53,3,FALSE)/12)*4),"") -> 
A48: =Données!$H45 -> 0 | AL48: =VLOOKUP(A48,INDIRECT("B"&$A$1&"!A6:BM56"),49,FALSE) -> 0.5 | AM48: =VLOOKUP(A48,INDIRECT("B"&$A$1&"!A6:BM56"),50,FALSE) -> 0 | AN48: =VLOOKUP(A48,INDIRECT("B"&$A$1&"!A6:BM56"),51,FALSE) -> 0.4583333333 | AP48: =IFERROR(VLOOKUP(A48,INDIRECT("B"&$A$1&"!A6:BM56"),53,FALSE),"") -> 26.02083333 | AQ48: =IFERROR(VLOOKUP(A48,Bilan!A45:BM95,54,FALSE),"") ->  | AT48: =IFERROR(SUM((VLOOKUP(Avril!A48,Données!$H$6:$J$53,3,FALSE)/12)*4),"") -> 
A49: =Données!$H46 -> Coordinatrice
A50: =Données!$H47 -> 14 | AL50: =VLOOKUP(A50,INDIRECT("B"&$A$1&"!A6:BM56"),49,FALSE) -> 0 | AM50: =VLOOKUP(A50,INDIRECT("B"&$A$1&"!A6:BM56"),50,FALSE) -> 0 | AN50: =VLOOKUP(A50,INDIRECT("B"&$A$1&"!A6:BM56"),51,FALSE) -> 0 | AP50: =IFERROR(VLOOKUP(A50,INDIRECT("B"&$A$1&"!A6:BM56"),53,FALSE),"") -> 0 | AQ50: =IFERROR(VLOOKUP(A50,Bilan!A47:BM97,54,FALSE),"") -> 4.375 | AT50: =IFERROR(SUM((VLOOKUP(Avril!A50,Données!$H$6:$J$53,3,FALSE)/12)*4),"") -> 21
A51: =Données!$H48 -> 0 | D51: F | E51: F | F51: F | G51: F | J51: J | K51: J | L51: J | M51: J | N51: J | AL51: =VLOOKUP(A51,INDIRECT("B"&$A$1&"!A6:BM56"),49,FALSE) -> 0.5 | AM51: =VLOOKUP(A51,INDIRECT("B"&$A$1&"!A6:BM56"),50,FALSE) -> 0 | AN51: =VLOOKUP(A51,INDIRECT("B"&$A$1&"!A6:BM56"),51,FALSE) -> 0.4583333333 | AP51: =IFERROR(VLOOKUP(A51,INDIRECT("B"&$A$1&"!A6:BM56"),53,FALSE),"") -> 26.02083333 | AQ51: =IFERROR(VLOOKUP(A51,Bilan!A48:BM98,54,FALSE),"") ->  | AT51: =IFERROR(SUM((VLOOKUP(Avril!A51,Données!$H$6:$J$53,3,FALSE)/12)*4),"") -> 
A52: =Données!$H49 -> 0 | AL52: =VLOOKUP(A52,INDIRECT("B"&$A$1&"!A6:BM56"),49,FALSE) -> 0.5 | AM52: =VLOOKUP(A52,INDIRECT("B"&$A$1&"!A6:BM56"),50,FALSE) -> 0 | AN52: =VLOOKUP(A52,INDIRECT("B"&$A$1&"!A6:BM56"),51,FALSE) -> 0.4583333333 | AP52: =IFERROR(VLOOKUP(A52,INDIRECT("B"&$A$1&"!A6:BM56"),53,FALSE),"") -> 26.02083333 | AQ52: =IFERROR(VLOOKUP(A52,Bilan!A49:BM99,54,FALSE),"") ->  | AT52: =IFERROR(SUM((VLOOKUP(Avril!A52,Données!$H$6:$J$53,3,FALSE)/12)*4),"") -> 
A53: =Données!$H50 -> 0 | AL53: =VLOOKUP(A53,INDIRECT("B"&$A$1&"!A6:BM56"),49,FALSE) -> 0.5 | AM53: =VLOOKUP(A53,INDIRECT("B"&$A$1&"!A6:BM56"),50,FALSE) -> 0 | AN53: =VLOOKUP(A53,INDIRECT("B"&$A$1&"!A6:BM56"),51,FALSE) -> 0.4583333333 | AP53: =IFERROR(VLOOKUP(A53,INDIRECT("B"&$A$1&"!A6:BM56"),53,FALSE),"") -> 26.02083333 | AQ53: =IFERROR(VLOOKUP(A53,Bilan!A50:BM100,54,FALSE),"") ->  | AT53: =IFERROR(SUM((VLOOKUP(Avril!A53,Données!$H$6:$J$53,3,FALSE)/12)*4),"") -> 
A54: =Données!$H51 -> 0 | AL54: =VLOOKUP(A54,INDIRECT("B"&$A$1&"!A6:BM56"),49,FALSE) -> 0.5 | AM54: =VLOOKUP(A54,INDIRECT("B"&$A$1&"!A6:BM56"),50,FALSE) -> 0 | AN54: =VLOOKUP(A54,INDIRECT("B"&$A$1&"!A6:BM56"),51,FALSE) -> 0.4583333333 | AP54: =IFERROR(VLOOKUP(A54,INDIRECT("B"&$A$1&"!A6:BM56"),53,FALSE),"") -> 26.02083333 | AQ54: =IFERROR(VLOOKUP(A54,Bilan!A51:BM101,54,FALSE),"") ->  | AT54: =IFERROR(SUM((VLOOKUP(Avril!A54,Données!$H$6:$J$53,3,FALSE)/12)*4),"") -> 
A55: =Données!$H52 -> Chef de service
A56: =Données!$H53 -> 15 | AL56: =VLOOKUP(A56,INDIRECT("B"&$A$1&"!A6:BM56"),49,FALSE) -> 0 | AM56: =VLOOKUP(A56,INDIRECT("B"&$A$1&"!A6:BM56"),50,FALSE) -> 0 | AN56: =VLOOKUP(A56,INDIRECT("B"&$A$1&"!A6:BM56"),51,FALSE) -> 0 | AP56: =IFERROR(VLOOKUP(A56,INDIRECT("B"&$A$1&"!A6:BM56"),53,FALSE),"") -> 0 | AQ56: =IFERROR(VLOOKUP(A56,Bilan!A53:BM103,54,FALSE),"") -> 24.79166667 | AT56: =IFERROR(SUM((VLOOKUP(Avril!A56,Données!$H$6:$J$53,3,FALSE)/12)*4),"") -> 21
B58: =Données!$A3 -> M | C58: = | D58: =IF(ISBLANK(Données!$C3),TEXT(Données!$B3,"hh:mm"),TEXT(Données!$B3,"hh:mm")&" : "&TEXT(Données!$C3,"hh:mm")) -> 07:00 : 14:30 | H58: =Données!$A7 -> DM | I58: = | J58: =IF(ISBLANK(Données!$C7),TEXT(Données!$B7,"hh:mm"),TEXT(Données!$B7,"hh:mm")&" : "&TEXT(Données!$C7,"hh:mm")) -> 08:00 : 15:30 | N58: =Données!$A10 -> S+ | O58: = | P58: =IF(ISBLANK(Données!$C10),TEXT(Données!$B10,"hh:mm"),TEXT(Données!$B10,"hh:mm")&" : "&TEXT(Données!$C10,"hh:mm")) -> 14:00 : 23:00 | T58: =Données!$A14 -> N | U58: = | V58: =IF(ISBLANK(Données!$C14),TEXT(Données!$B14,"hh:mm"),TEXT(Données!$B14,"hh:mm")&" : "&TEXT(Données!$C14,"hh:mm")) -> 20:00 : 07:00 | Z58: =Données!$A18 -> sta | AA58: = | AB58: =IF(ISBLANK(Données!$C18),TEXT(Données!$B18,"hh:mm"),TEXT(Données!$B18,"hh:mm")&" : "&TEXT(Données!$C18,"hh:mm")) -> sta : ge
B59: =Données!$A4 -> MR | C59: = | D59: =IF(ISBLANK(Données!$C4),TEXT(Données!$B4,"hh:mm"),TEXT(Données!$B4,"hh:mm")&" : "&TEXT(Données!$C4,"hh:mm")) -> 07:00 : 17:00 | H59: =Données!$A8 -> PFJ | I59: = | J59: =IF(ISBLANK(Données!$C8),TEXT(Données!$B8,"hh:mm"),TEXT(Données!$B8,"hh:mm")&" : "&TEXT(Données!$C8,"hh:mm")) -> 09:00 : 17:00 | N59: =Données!$A11 -> R | O59: = | P59: =IF(ISBLANK(Données!$C11),TEXT(Données!$B11,"hh:mm"),TEXT(Données!$B11,"hh:mm")&" : "&TEXT(Données!$C11,"hh:mm")) -> 14:00 : 17:00 | T59: =Données!$A15 -> NVS | U59: = | V59: =IF(ISBLANK(Données!$C15),TEXT(Données!$B15,"hh:mm"),TEXT(Données!$B15,"hh:mm")&" : "&TEXT(Données!$C15,"hh:mm")) -> 20:00 : 08:00 | Z59: =Données!$A19 -> AT | AA59: = | AB59: =IF(ISBLANK(Données!$C19),TEXT(Données!$B19,"hh:mm"),TEXT(Données!$B19,"hh:mm")&" : "&TEXT(Données!$C19,"hh:mm")) -> AT : AT
B60: =Données!$A5 -> D | C60: = | D60: =IF(ISBLANK(Données!$C5),TEXT(Données!$B5,"hh:mm"),TEXT(Données!$B5,"hh:mm")&" : "&TEXT(Données!$C5,"hh:mm")) -> 10:00 : 17:30 | H60: =Données!$A9 -> S | I60: = | J60: =IF(ISBLANK(Données!$C9),TEXT(Données!$B9,"hh:mm"),TEXT(Données!$B9,"hh:mm")&" : "&TEXT(Données!$C9,"hh:mm")) -> 14:00 : 22:00 | N60: =Données!$A12 -> W | O60: = | P60: =IF(ISBLANK(Données!$C12),TEXT(Données!$B12,"hh:mm"),TEXT(Données!$B12,"hh:mm")&" : "&TEXT(Données!$C12,"hh:mm")) -> 08:00 : 20:00 | T60: =Données!$A16 -> CA | U60: = | V60: =IF(ISBLANK(Données!$C16),TEXT(Données!$B16,"hh:mm"),TEXT(Données!$B16,"hh:mm")&" : "&TEXT(Données!$C16,"hh:mm")) -> CA : CA | Z60: =Données!$A20 -> AM | AA60: = | AB60: =IF(ISBLANK(Données!$C20),TEXT(Données!$B20,"hh:mm"),TEXT(Données!$B20,"hh:mm")&" : "&TEXT(Données!$C20,"hh:mm")) -> AM : AM
B61: =Données!$A6 -> DR | C61: = | D61: =IF(ISBLANK(Données!$C6),TEXT(Données!$B6,"hh:mm"),TEXT(Données!$B6,"hh:mm")&" : "&TEXT(Données!$C6,"hh:mm")) -> 10:00 : 17:30 | H61: =Données!$A10 -> S+ | I61: = | J61: =IF(ISBLANK(Données!$C10),TEXT(Données!$B10,"hh:mm"),TEXT(Données!$B10,"hh:mm")&" : "&TEXT(Données!$C10,"hh:mm")) -> 14:00 : 23:00 | N61: =Données!$A13 -> W+ | O61: = | P61: =IF(ISBLANK(Données!$C13),TEXT(Données!$B13,"hh:mm"),TEXT(Données!$B13,"hh:mm")&" : "&TEXT(Données!$C13,"hh:mm")) -> 11:00 : 23:00 | T61: =Données!$A17 -> F | U61: = | V61: =IF(ISBLANK(Données!$C17),TEXT(Données!$B17,"hh:mm"),TEXT(Données!$B17,"hh:mm")&" : "&TEXT(Données!$C17,"hh:mm")) -> F : 00:00 | Z61: =Données!$A21 -> CM | AA61: = | AB61: =IF(ISBLANK(Données!$C21),TEXT(Données!$B21,"hh:mm"),TEXT(Données!$B21,"hh:mm")&" : "&TEXT(Données!$C21,"hh:mm")) -> CM : CM

Sheet Mai
A1: mai
B2: =DATE(An,Mai,B7) -> 2018-05-01 | C2: 2018-05-02 | D2: 2018-05-03 | E2: 2018-05-04 | F2: 2018-05-05 | G2: 2018-05-06 | H2: 2018-05-07 | I2: 2018-05-08 | J2: 2018-05-09 | K2: 2018-05-10 | L2: 2018-05-11 | M2: 2018-05-12 | N2: 2018-05-13 | O2: 2018-05-14 | P2: 2018-05-15 | Q2: 2018-05-16 | R2: 2018-05-17 | S2: 2018-05-18 | T2: 2018-05-19 | U2: 2018-05-20 | V2: 2018-05-21 | W2: 2018-05-22 | X2: 2018-05-23 | Y2: 2018-05-24 | Z2: 2018-05-25 | AA2: 2018-05-26 | AB2: 2018-05-27 | AC2: 2018-05-28 | AD2: 2018-05-29 | AE2: 2018-05-30 | AF2: 2018-05-31 | AI2: Pour remplir | AJ2: penser | AO2: =IF(ISNUMBER(AO7),DATE(An,Mai,AO7),"") ->  | AP2: =IF(ISNUMBER(AP7),DATE(An,Mai,AP7),"") -> 
A3: =IF(Données!$L$5="","Service",Données!$L$5) -> RENFORT 2 | K3: Mois de Mai | O3: =An -> 2018 | AI3: à mettre dans le format:
AI4: "heures":"Minutes" | AT4: Masse horraire previsionnel
AI5: Heures sup | AJ5: Heures sup | AL5: Indications | AM5: Indications | AN5: Indications | AP5: Total
A6: Jours | B6: =PROPER(LEFT(TEXT(DATE(An,Mai,B7),"jjj"),1)) -> M | C6: M | D6: J | E6: V | F6: S | G6: D | H6: L | I6: M | J6: M | K6: J | L6: V | M6: S | N6: D | O6: L | P6: M | Q6: M | R6: J | S6: V | T6: S | U6: D | V6: L | W6: M | X6: M | Y6: J | Z6: V | AA6: S | AB6: D | AC6: L | AD6: M | AE6: M | AF6: J | AI6: avant 21h | AJ6: après 21h | AL6: Heures | AM6: Heures nuit | AN6: Heures | AP6: Heures | AQ6: Heures
B7: =A7+1 -> 1 | C7: 2 | D7: 3 | E7: 4 | F7: 5 | G7: 6 | H7: 7 | I7: 8 | J7: 9 | K7: 10 | L7: 11 | M7: 12 | N7: 13 | O7: 14 | P7: 15 | Q7: 16 | R7: 17 | S7: 18 | T7: 19 | U7: 20 | V7: 21 | W7: 22 | X7: 23 | Y7: 24 | Z7: 25 | AA7: 26 | AB7: 27 | AC7: 28 | AD7: 29 | AE7: 30 | AF7: =AE7+1 -> 31 | AI7: A remplir | AJ7: A remplir | AL7: Dimanche | AM7: Dimanche | AN7: après 21h | AP7: au mois | AQ7: a l'année | AT7: i
A8: Equipe de jour
A9: =Données!$H6 -> 1 | C9: CA | D9: CA | E9: CA | H9: M | J9: M | L9: S | P9: MR | T9: W | U9: W+ | W9: MR | Z9: S | AA9: W+ | AB9: W+ | AD9: S+ | AE9: S | AF9: S+ | AL9: =VLOOKUP(A9,INDIRECT("B"&$A$1&"!A6:BM56"),49,FALSE) -> 0.8333333333 | AM9: =VLOOKUP(A9,INDIRECT("B"&$A$1&"!A6:BM56"),50,FALSE) -> 0.1666666667 | AN9: =VLOOKUP(A9,INDIRECT("B"&$A$1&"!A6:BM56"),51,FALSE) -> 0.375 | AP9: =IFERROR(VLOOKUP(A9,INDIRECT("B"&$A$1&"!A6:BM56"),53,FALSE),"") -> 5.208333333 | AQ9: =IFERROR(VLOOKUP(A9,Bilan!A6:BM56,54,FALSE),"") -> 18.35416667 | AT9: =IFERROR(SUM((VLOOKUP(Mai!A9,Données!$H$6:$J$53,3,FALSE)/12)*5),"") -> 24.79166667
A10: =Données!$H7 -> 2 | C10: CA | D10: CA | E10: CA | H10: S+ | J10: M | K10: W+ | M10: W | N10: W | P10: DR | Q10: M | S10: S | T10: W+ | V10: W+ | X10: MR | Y10: S | Z10: DM | AC10: M | AD10: MR | AE10: M | AF10: D | AL10: 1.333333333 | AM10: 0.1666666667 | AN10: 0.25 | AP10: 6.5625 | AQ10: =IFERROR(VLOOKUP(A10,Bilan!A7:BM57,54,FALSE),"") -> 22.8625 | AT10: =IFERROR(SUM((VLOOKUP(Mai!A10,Données!$H$6:$J$53,3,FALSE)/12)*5),"") -> 24.79166667
A11: =Données!$H8 -> 3 | B11: W | C11: M | D11: M | E11: S+ | H11: CA | J11: CA | L11: CA | O11: S | P11: DR | Q11: S+ | U11: W | V11: W | X11: MR | Y11: S | Z11: S+ | AC11: S | AD11: R | AE11: S+ | AL11: 1.5 | AM11: 0 | AN11: 0.4583333333 | AP11: 5.479166667 | AQ11: =IFERROR(VLOOKUP(A11,Bilan!A8:BM58,54,FALSE),"") -> 17 | AT11: =IFERROR(SUM((VLOOKUP(Mai!A11,Données!$H$6:$J$53,3,FALSE)/12)*5),"") -> 24.79166667
A12: =Données!$H9 -> 4 | C12: CM | D12: CM | E12: CM | H12: CM | J12: CM | L12: CM | O12: CM | P12: CM | Q12: CM | R12: CM | S12: CM | W12: CM | X12: CM | Y12: CM | Z12: CM | AC12: CM | AD12: CM | AE12: CM | AF12: CM | AL12: 0 | AM12: 0 | AN12: 0 | AP12: 6.016666667 | AQ12: =IFERROR(VLOOKUP(A12,Bilan!A9:BM59,54,FALSE),"") -> 39.58333333 | AT12: =IFERROR(SUM((VLOOKUP(Mai!A12,Données!$H$6:$J$53,3,FALSE)/12)*5),"") -> 24.79166667
A13: =Données!$H10 -> 5 | B13: W | D13: S | E13: DM | H13: S | I13: W | J13: S+ | M13: W+ | N13: W+ | P13: RS | R13: S+ | S13: D | W13: R | X13: S | AA13: W | AB13: W | AC13: DM | AE13: M | AF13: S | AL13: 1.916666667 | AM13: 0.08333333333 | AN13: 0.4375 | AP13: 6.958333333 | AQ13: =IFERROR(VLOOKUP(A13,Bilan!A10:BM60,54,FALSE),"") -> 17.4375 | AT13: =IFERROR(SUM((VLOOKUP(Mai!A13,Données!$H$6:$J$53,3,FALSE)/12)*5),"") -> 24.79166667
A14: =Données!$H11 -> 6 | C14: S | D14: S+ | F14: W | G14: W | H14: DM | K14: W | L14: S | O14: M | P14: MR | Q14: S | R14: S | S14: S | W14: S | X14: S | Y14: DM | Z14: M | AD14: MR | AL14: 1 | AM14: 0 | AN14: 0.375 | AP14: 6.291666667 | AQ14: =IFERROR(VLOOKUP(A14,Bilan!A11:BM61,54,FALSE),"") -> 20.39583333 | AT14: =IFERROR(SUM((VLOOKUP(Mai!A14,Données!$H$6:$J$53,3,FALSE)/12)*5),"") -> 24.79166667
A15: =Données!$H12 -> 7 | AL15: 0 | AM15: 0 | AN15: 0 | AP15: 0 | AQ15: =IFERROR(VLOOKUP(A15,Bilan!A12:BM62,54,FALSE),"") -> 6.4375 | AT15: =IFERROR(SUM((VLOOKUP(Mai!A15,Données!$H$6:$J$53,3,FALSE)/12)*5),"") -> 24.79166667
A16: =Données!$H13 -> 8 | AL16: 0 | AM16: 0 | AN16: 0 | AP16: 0 | AQ16: =IFERROR(VLOOKUP(A16,Bilan!A13:BM63,54,FALSE),"") -> 6.3125 | AT16: =IFERROR(SUM((VLOOKUP(Mai!A16,Données!$H$6:$J$53,3,FALSE)/12)*5),"") -> 24.79166667
A17: =Données!$H14 -> 0 | C17: S+ | E17: S | F17: W+ | G17: W+ | I17: W | J17: S | L17: M | O17: M | P17: RS+ | Q17: D | R17: M | S17: M | W17: S | X17: D | Y17: M | AC17: S | AD17: S | AE17: D | AF17: M | AL17: 0.9166666667 | AM17: 0.08333333333 | AN17: 0.375 | AP17: 16.77083333 | AQ17: =IFERROR(VLOOKUP(A17,Bilan!A14:BM64,54,FALSE),"") -> 62.4375 | AT17: =IFERROR(SUM((VLOOKUP(Mai!A17,Données!$H$6:$J$53,3,FALSE)/12)*5),"") -> 
A18: =Données!$H15 -> 0 | C18: D | D18: D | E18: M | H18: D | J18: D | L18: D | O18: S+ | P18: DR | Q18: M | R18: M | S18: M | W18: MR | X18: D | Y18: S | Z18: S | AC18: M | AD18: S | AE18: D | AF18: M | AL18: 0.9166666667 | AM18: 0.08333333333 | AN18: 0.375 | AP18: 16.77083333 | AQ18: =IFERROR(VLOOKUP(A18,Bilan!A15:BM65,54,FALSE),"") -> 62.4375 | AT18: =IFERROR(SUM((VLOOKUP(Mai!A18,Données!$H$6:$J$53,3,FALSE)/12)*5),"") -> 
A19: =Données!$H16 -> 0 | AL19: 0.9166666667 | AM19: 0.08333333333 | AN19: 0.375 | AP19: 16.77083333 | AQ19: =IFERROR(VLOOKUP(A19,Bilan!A16:BM66,54,FALSE),"") -> 62.4375 | AT19: =IFERROR(SUM((VLOOKUP(Mai!A19,Données!$H$6:$J$53,3,FALSE)/12)*5),"") -> 
A20: =Données!$H17 -> 0 | AL20: =VLOOKUP(A20,INDIRECT("B"&$A$1&"!A6:BM56"),49,FALSE) -> 0.9166666667 | AM20: =VLOOKUP(A20,INDIRECT("B"&$A$1&"!A6:BM56"),50,FALSE) -> 0.08333333333 | AN20: =VLOOKUP(A20,INDIRECT("B"&$A$1&"!A6:BM56"),51,FALSE) -> 0.375 | AP20: =IFERROR(VLOOKUP(A20,INDIRECT("B"&$A$1&"!A6:BM56"),53,FALSE),"") -> 16.77083333 | AQ20: =IFERROR(VLOOKUP(A20,Bilan!A17:BM67,54,FALSE),"") -> 62.4375 | AT20: =IFERROR(SUM((VLOOKUP(Mai!A20,Données!$H$6:$J$53,3,FALSE)/12)*5),"") -> 
A21: =Données!$H18 -> 0 | AL21: =VLOOKUP(A21,INDIRECT("B"&$A$1&"!A6:BM56"),49,FALSE) -> 0.9166666667 | AM21: =VLOOKUP(A21,INDIRECT("B"&$A$1&"!A6:BM56"),50,FALSE) -> 0.08333333333 | AN21: =VLOOKUP(A21,INDIRECT("B"&$A$1&"!A6:BM56"),51,FALSE) -> 0.375 | AP21: =IFERROR(VLOOKUP(A21,INDIRECT("B"&$A$1&"!A6:BM56"),53,FALSE),"") -> 16.77083333 | AQ21: =IFERROR(VLOOKUP(A21,Bilan!A18:BM68,54,FALSE),"") -> 62.4375 | AT21: =IFERROR(SUM((VLOOKUP(Mai!A21,Données!$H$6:$J$53,3,FALSE)/12)*5),"") -> 
A22: =Données!$H19 -> 0 | AL22: =VLOOKUP(A22,INDIRECT("B"&$A$1&"!A6:BM56"),49,FALSE) -> 0.9166666667 | AM22: =VLOOKUP(A22,INDIRECT("B"&$A$1&"!A6:BM56"),50,FALSE) -> 0.08333333333 | AN22: =VLOOKUP(A22,INDIRECT("B"&$A$1&"!A6:BM56"),51,FALSE) -> 0.375 | AP22: =IFERROR(VLOOKUP(A22,INDIRECT("B"&$A$1&"!A6:BM56"),53,FALSE),"") -> 16.77083333 | AQ22: =IFERROR(VLOOKUP(A22,Bilan!A19:BM69,54,FALSE),"") -> 62.4375 | AT22: =IFERROR(SUM((VLOOKUP(Mai!A22,Données!$H$6:$J$53,3,FALSE)/12)*5),"") -> 
A23: =Données!$H20 -> 0 | AL23: =VLOOKUP(A23,INDIRECT("B"&$A$1&"!A6:BM56"),49,FALSE) -> 0.9166666667 | AM23: =VLOOKUP(A23,INDIRECT("B"&$A$1&"!A6:BM56"),50,FALSE) -> 0.08333333333 | AN23: =VLOOKUP(A23,INDIRECT("B"&$A$1&"!A6:BM56"),51,FALSE) -> 0.375 | AP23: =IFERROR(VLOOKUP(A23,INDIRECT("B"&$A$1&"!A6:BM56"),53,FALSE),"") -> 16.77083333 | AQ23: =IFERROR(VLOOKUP(A23,Bilan!A20:BM70,54,FALSE),"") ->  | AT23: =IFERROR(SUM((VLOOKUP(Mai!A23,Données!$H$6:$J$53,3,FALSE)/12)*5),"") -> 
A24: =Données!$H21 -> 0 | AL24: =VLOOKUP(A24,INDIRECT("B"&$A$1&"!A6:BM56"),49,FALSE) -> 0.9166666667 | AM24: =VLOOKUP(A24,INDIRECT("B"&$A$1&"!A6:BM56"),50,FALSE) -> 0.08333333333 | AN24: =VLOOKUP(A24,INDIRECT("B"&$A$1&"!A6:BM56"),51,FALSE) -> 0.375 | AP24: =IFERROR(VLOOKUP(A24,INDIRECT("B"&$A$1&"!A6:BM56"),53,FALSE),"") -> 16.77083333 | AQ24: =IFERROR(VLOOKUP(A24,Bilan!A21:BM71,54,FALSE),"") -> 0 | AT24: =IFERROR(SUM((VLOOKUP(Mai!A24,Données!$H$6:$J$53,3,FALSE)/12)*5),"") -> 
A25: =Données!$H22 -> Equipe de nuit
A26: =Données!$H23 -> 9 | C26: CA | D26: CA | E26: CA | G26: X | H26: N | I26: N | L26: N | M26: X | O26: N | P26: N | T26: N | U26: N | V26: N | X26: R | Y26: N | Z26: N | AC26: N | AD26: N | AF26: CA | AL26: =VLOOKUP(A26,INDIRECT("B"&$A$1&"!A6:BM56"),49,FALSE) -> 0 | AM26: =VLOOKUP(A26,INDIRECT("B"&$A$1&"!A6:BM56"),50,FALSE) -> 1.25 | AN26: =VLOOKUP(A26,INDIRECT("B"&$A$1&"!A6:BM56"),51,FALSE) -> 3.75 | AP26: =IFERROR(VLOOKUP(A26,INDIRECT("B"&$A$1&"!A6:BM56"),53,FALSE),"") -> 5.625 | AQ26: =IFERROR(VLOOKUP(A26,Bilan!A23:BM73,54,FALSE),"") -> 15.98333333 | AT26: =IFERROR(SUM((VLOOKUP(Mai!A26,Données!$H$6:$J$53,3,FALSE)/12)*5),"") -> 24.14930556
A27: =Données!$H24 -> 10 | B27: N | F27: N | G27: N | J27: N | K27: N | O27: CA | P27: CA | Q27: CA | R27: CA | S27: CA | W27: N | X27: N | AA27: N | AB27: N | AD27: R | AF27: N | AL27: =VLOOKUP(A27,INDIRECT("B"&$A$1&"!A6:BM56"),49,FALSE) -> 0 | AM27: =VLOOKUP(A27,INDIRECT("B"&$A$1&"!A6:BM56"),50,FALSE) -> 1.375 | AN27: =VLOOKUP(A27,INDIRECT("B"&$A$1&"!A6:BM56"),51,FALSE) -> 2.5 | AP27: =IFERROR(VLOOKUP(A27,INDIRECT("B"&$A$1&"!A6:BM56"),53,FALSE),"") -> 4.708333333 | AQ27: =IFERROR(VLOOKUP(A27,Bilan!A24:BM74,54,FALSE),"") -> 12.04166667 | AT27: =IFERROR(SUM((VLOOKUP(Mai!A27,Données!$H$6:$J$53,3,FALSE)/12)*5),"") -> 24.14930556
A28: =Données!$H25 -> 11 | AL28: =VLOOKUP(A28,INDIRECT("B"&$A$1&"!A6:BM56"),49,FALSE) -> 0 | AM28: =VLOOKUP(A28,INDIRECT("B"&$A$1&"!A6:BM56"),50,FALSE) -> 0 | AN28: =VLOOKUP(A28,INDIRECT("B"&$A$1&"!A6:BM56"),51,FALSE) -> 0 | AP28: =IFERROR(VLOOKUP(A28,INDIRECT("B"&$A$1&"!A6:BM56"),53,FALSE),"") -> 0 | AQ28: =IFERROR(VLOOKUP(A28,Bilan!A25:BM75,54,FALSE),"") -> 16.20833333 | AT28: =IFERROR(SUM((VLOOKUP(Mai!A28,Données!$H$6:$J$53,3,FALSE)/12)*5),"") -> 24.14930556
A29: =Données!$H26 -> 0 | C29: N | D29: N | E29: N | M29: N | N29: N | Q29: N | R29: N | S29: N | W29: CA | X29: CA | Y29: CA | Z29: CA | AC29: CA | AD29: R | AE29: N | AL29: =VLOOKUP(A29,INDIRECT("B"&$A$1&"!A6:BM56"),49,FALSE) -> 0.9166666667 | AM29: =VLOOKUP(A29,INDIRECT("B"&$A$1&"!A6:BM56"),50,FALSE) -> 0.08333333333 | AN29: =VLOOKUP(A29,INDIRECT("B"&$A$1&"!A6:BM56"),51,FALSE) -> 0.375 | AP29: =IFERROR(VLOOKUP(A29,INDIRECT("B"&$A$1&"!A6:BM56"),53,FALSE),"") -> 16.77083333 | AQ29: =IFERROR(VLOOKUP(A29,Bilan!A26:BM76,54,FALSE),"") -> 62.4375 | AT29: =IFERROR(SUM((VLOOKUP(Mai!A29,Données!$H$6:$J$53,3,FALSE)/12)*5),"") -> 
A30: =Données!$H27 -> 0 | AL30: 0.9166666667 | AM30: 0.08333333333 | AN30: 0.375 | AP30: 16.77083333 | AQ30: =IFERROR(VLOOKUP(A30,Bilan!A27:BM77,54,FALSE),"") -> 62.4375 | AT30: =IFERROR(SUM((VLOOKUP(Mai!A30,Données!$H$6:$J$53,3,FALSE)/12)*5),"") -> 
A31: =Données!$H28 -> 0 | AL31: 0.9166666667 | AM31: 0.08333333333 | AN31: 0.375 | AP31: 16.77083333 | AQ31: =IFERROR(VLOOKUP(A31,Bilan!A28:BM78,54,FALSE),"") -> 62.4375 | AT31: =IFERROR(SUM((VLOOKUP(Mai!A31,Données!$H$6:$J$53,3,FALSE)/12)*5),"") -> 
A32: =Données!$H29 -> 0 | AL32: 0.9166666667 | AM32: 0.08333333333 | AN32: 0.375 | AP32: 16.77083333 | AQ32: =IFERROR(VLOOKUP(A32,Bilan!A29:BM79,54,FALSE),"") -> 62.4375 | AT32: =IFERROR(SUM((VLOOKUP(Mai!A32,Données!$H$6:$J$53,3,FALSE)/12)*5),"") -> 
A33: =Données!$H30 -> 0 | AL33: 0.9166666667 | AM33: 0.08333333333 | AN33: 0.375 | AP33: 16.77083333 | AQ33: =IFERROR(VLOOKUP(A33,Bilan!A30:BM80,54,FALSE),"") ->  | AT33: =IFERROR(SUM((VLOOKUP(Mai!A33,Données!$H$6:$J$53,3,FALSE)/12)*5),"") -> 
A34: =Données!$H31 -> 0 | AL34: 0.9166666667 | AM34: 0.08333333333 | AN34: 0.375 | AP34: 16.77083333 | AQ34: =IFERROR(VLOOKUP(A34,Bilan!A31:BM81,54,FALSE),"") ->  | AT34: =IFERROR(SUM((VLOOKUP(Mai!A34,Données!$H$6:$J$53,3,FALSE)/12)*5),"") -> 
A35: =Données!$H32 -> Maitresse de maison
A36: =Données!$H33 -> 12 | C36: CA | D36: CA | E36: CA | H36: CA | J36: CA | L36: CA | P36: MR | AL36: =VLOOKUP(A36,INDIRECT("B"&$A$1&"!A6:BM56"),49,FALSE) -> 0 | AM36: =VLOOKUP(A36,INDIRECT("B"&$A$1&"!A6:BM56"),50,FALSE) -> 0 | AN36: =VLOOKUP(A36,INDIRECT("B"&$A$1&"!A6:BM56"),51,FALSE) -> 0 | AP36: =IFERROR(VLOOKUP(A36,INDIRECT("B"&$A$1&"!A6:BM56"),53,FALSE),"") -> 0.4166666667 | AQ36: =IFERROR(VLOOKUP(A36,Bilan!A33:BM83,54,FALSE),"") -> 0.4166666667 | AT36: =IFERROR(SUM((VLOOKUP(Mai!A36,Données!$H$6:$J$53,3,FALSE)/12)*5),"") -> 26.25
A37: =Données!$H34 -> 0 | AL37: =VLOOKUP(A37,INDIRECT("B"&$A$1&"!A6:BM56"),49,FALSE) -> 0.9166666667 | AM37: =VLOOKUP(A37,INDIRECT("B"&$A$1&"!A6:BM56"),50,FALSE) -> 0.08333333333 | AN37: =VLOOKUP(A37,INDIRECT("B"&$A$1&"!A6:BM56"),51,FALSE) -> 0.375 | AP37: =IFERROR(VLOOKUP(A37,INDIRECT("B"&$A$1&"!A6:BM56"),53,FALSE),"") -> 16.77083333 | AQ37: =IFERROR(VLOOKUP(A37,Bilan!A34:BM84,54,FALSE),"") ->  | AT37: =IFERROR(SUM((VLOOKUP(Mai!A37,Données!$H$6:$J$53,3,FALSE)/12)*5),"") -> 
A38: =Données!$H35 -> 0 | AL38: 0.9166666667 | AM38: 0.08333333333 | AN38: 0.375 | AP38: 16.77083333 | AQ38: =IFERROR(VLOOKUP(A38,Bilan!A35:BM85,54,FALSE),"") -> 62.4375 | AT38: =IFERROR(SUM((VLOOKUP(Mai!A38,Données!$H$6:$J$53,3,FALSE)/12)*5),"") -> 
A39: =Données!$H36 -> 0 | AL39: 0.9166666667 | AM39: 0.08333333333 | AN39: 0.375 | AP39: 16.77083333 | AQ39: =IFERROR(VLOOKUP(A39,Bilan!A36:BM86,54,FALSE),"") -> 62.4375 | AT39: =IFERROR(SUM((VLOOKUP(Mai!A39,Données!$H$6:$J$53,3,FALSE)/12)*5),"") -> 
A40: =Données!$H37 -> 0 | AL40: 0.9166666667 | AM40: 0.08333333333 | AN40: 0.375 | AP40: 16.77083333 | AQ40: =IFERROR(VLOOKUP(A40,Bilan!A37:BM87,54,FALSE),"") -> 62.4375 | AT40: =IFERROR(SUM((VLOOKUP(Mai!A40,Données!$H$6:$J$53,3,FALSE)/12)*5),"") -> 
A41: =Données!$H38 -> 0 | AL41: 0.9166666667 | AM41: 0.08333333333 | AN41: 0.375 | AP41: 16.77083333 | AQ41: =IFERROR(VLOOKUP(A41,Bilan!A38:BM88,54,FALSE),"") ->  | AT41: =IFERROR(SUM((VLOOKUP(Mai!A41,Données!$H$6:$J$53,3,FALSE)/12)*5),"") -> 
A42: =Données!$H39 -> 0 | AL42: 0.9166666667 | AM42: 0.08333333333 | AN42: 0.375 | AP42: 16.77083333 | AQ42: =IFERROR(VLOOKUP(A42,Bilan!A39:BM89,54,FALSE),"") ->  | AT42: =IFERROR(SUM((VLOOKUP(Mai!A42,Données!$H$6:$J$53,3,FALSE)/12)*5),"") -> 
A43: =Données!$H40 -> 0 | AL43: 0.9166666667 | AM43: 0.08333333333 | AN43: 0.375 | AP43: 16.77083333 | AQ43: =IFERROR(VLOOKUP(A43,Bilan!A40:BM90,54,FALSE),"") ->  | AT43: =IFERROR(SUM((VLOOKUP(Mai!A43,Données!$H$6:$J$53,3,FALSE)/12)*5),"") -> 
A44: =Données!$H41 -> 0 | AL44: 0.9166666667 | AM44: 0.08333333333 | AN44: 0.375 | AP44: 16.77083333 | AQ44: =IFERROR(VLOOKUP(A44,Bilan!A41:BM91,54,FALSE),"") ->  | AT44: =IFERROR(SUM((VLOOKUP(Mai!A44,Données!$H$6:$J$53,3,FALSE)/12)*5),"") -> 
A45: =Données!$H42 -> Psychologue
A46: =Données!$H43 -> 13 | P46: DR | AD46: F | AL46: =VLOOKUP(A46,INDIRECT("B"&$A$1&"!A6:BM56"),49,FALSE) -> 0 | AM46: =VLOOKUP(A46,INDIRECT("B"&$A$1&"!A6:BM56"),50,FALSE) -> 0 | AN46: =VLOOKUP(A46,INDIRECT("B"&$A$1&"!A6:BM56"),51,FALSE) -> 0 | AP46: =IFERROR(VLOOKUP(A46,INDIRECT("B"&$A$1&"!A6:BM56"),53,FALSE),"") -> 0.625 | AQ46: =IFERROR(VLOOKUP(A46,Bilan!A43:BM93,54,FALSE),"") -> 0.625 | AT46: =IFERROR(SUM((VLOOKUP(Mai!A46,Données!$H$6:$J$53,3,FALSE)/12)*5),"") -> 26.25
A47: =Données!$H44 -> 0 | AL47: =VLOOKUP(A47,INDIRECT("B"&$A$1&"!A6:BM56"),49,FALSE) -> 0.9166666667 | AM47: =VLOOKUP(A47,INDIRECT("B"&$A$1&"!A6:BM56"),50,FALSE) -> 0.08333333333 | AN47: =VLOOKUP(A47,INDIRECT("B"&$A$1&"!A6:BM56"),51,FALSE) -> 0.375 | AP47: =IFERROR(VLOOKUP(A47,INDIRECT("B"&$A$1&"!A6:BM56"),53,FALSE),"") -> 16.77083333 | AQ47: =IFERROR(VLOOKUP(A47,Bilan!A44:BM94,54,FALSE),"") ->  | AT47: =IFERROR(SUM((VLOOKUP(Mai!A47,Données!$H$6:$J$53,3,FALSE)/12)*5),"") -> 
A48: =Données!$H45 -> 0 | AL48: =VLOOKUP(A48,INDIRECT("B"&$A$1&"!A6:BM56"),49,FALSE) -> 0.9166666667 | AM48: =VLOOKUP(A48,INDIRECT("B"&$A$1&"!A6:BM56"),50,FALSE) -> 0.08333333333 | AN48: =VLOOKUP(A48,INDIRECT("B"&$A$1&"!A6:BM56"),51,FALSE) -> 0.375 | AP48: =IFERROR(VLOOKUP(A48,INDIRECT("B"&$A$1&"!A6:BM56"),53,FALSE),"") -> 16.77083333 | AQ48: =IFERROR(VLOOKUP(A48,Bilan!A45:BM95,54,FALSE),"") ->  | AT48: =IFERROR(SUM((VLOOKUP(Mai!A48,Données!$H$6:$J$53,3,FALSE)/12)*5),"") -> 
A49: =Données!$H46 -> Coordinatrice
A50: =Données!$H47 -> 14 | C50: F | D50: F | E50: F | P50: DR | AL50: =VLOOKUP(A50,INDIRECT("B"&$A$1&"!A6:BM56"),49,FALSE) -> 0 | AM50: =VLOOKUP(A50,INDIRECT("B"&$A$1&"!A6:BM56"),50,FALSE) -> 0 | AN50: =VLOOKUP(A50,INDIRECT("B"&$A$1&"!A6:BM56"),51,FALSE) -> 0 | AP50: =IFERROR(VLOOKUP(A50,INDIRECT("B"&$A$1&"!A6:BM56"),53,FALSE),"") -> 1.25 | AQ50: =IFERROR(VLOOKUP(A50,Bilan!A47:BM97,54,FALSE),"") -> 4.375 | AT50: =IFERROR(SUM((VLOOKUP(Mai!A50,Données!$H$6:$J$53,3,FALSE)/12)*5),"") -> 26.25
A51: =Données!$H48 -> 0 | AL51: =VLOOKUP(A51,INDIRECT("B"&$A$1&"!A6:BM56"),49,FALSE) -> 0.9166666667 | AM51: =VLOOKUP(A51,INDIRECT("B"&$A$1&"!A6:BM56"),50,FALSE) -> 0.08333333333 | AN51: =VLOOKUP(A51,INDIRECT("B"&$A$1&"!A6:BM56"),51,FALSE) -> 0.375 | AP51: =IFERROR(VLOOKUP(A51,INDIRECT("B"&$A$1&"!A6:BM56"),53,FALSE),"") -> 16.77083333 | AQ51: =IFERROR(VLOOKUP(A51,Bilan!A48:BM98,54,FALSE),"") ->  | AT51: =IFERROR(SUM((VLOOKUP(Mai!A51,Données!$H$6:$J$53,3,FALSE)/12)*5),"") -> 
A52: =Données!$H49 -> 0 | AL52: =VLOOKUP(A52,INDIRECT("B"&$A$1&"!A6:BM56"),49,FALSE) -> 0.9166666667 | AM52: =VLOOKUP(A52,INDIRECT("B"&$A$1&"!A6:BM56"),50,FALSE) -> 0.08333333333 | AN52: =VLOOKUP(A52,INDIRECT("B"&$A$1&"!A6:BM56"),51,FALSE) -> 0.375 | AP52: =IFERROR(VLOOKUP(A52,INDIRECT("B"&$A$1&"!A6:BM56"),53,FALSE),"") -> 16.77083333 | AQ52: =IFERROR(VLOOKUP(A52,Bilan!A49:BM99,54,FALSE),"") ->  | AT52: =IFERROR(SUM((VLOOKUP(Mai!A52,Données!$H$6:$J$53,3,FALSE)/12)*5),"") -> 
A53: =Données!$H50 -> 0 | AL53: =VLOOKUP(A53,INDIRECT("B"&$A$1&"!A6:BM56"),49,FALSE) -> 0.9166666667 | AM53: =VLOOKUP(A53,INDIRECT("B"&$A$1&"!A6:BM56"),50,FALSE) -> 0.08333333333 | AN53: =VLOOKUP(A53,INDIRECT("B"&$A$1&"!A6:BM56"),51,FALSE) -> 0.375 | AP53: =IFERROR(VLOOKUP(A53,INDIRECT("B"&$A$1&"!A6:BM56"),53,FALSE),"") -> 16.77083333 | AQ53: =IFERROR(VLOOKUP(A53,Bilan!A50:BM100,54,FALSE),"") ->  | AT53: =IFERROR(SUM((VLOOKUP(Mai!A53,Données!$H$6:$J$53,3,FALSE)/12)*5),"") -> 
A54: =Données!$H51 -> 0 | AL54: =VLOOKUP(A54,INDIRECT("B"&$A$1&"!A6:BM56"),49,FALSE) -> 0.9166666667 | AM54: =VLOOKUP(A54,INDIRECT("B"&$A$1&"!A6:BM56"),50,FALSE) -> 0.08333333333 | AN54: =VLOOKUP(A54,INDIRECT("B"&$A$1&"!A6:BM56"),51,FALSE) -> 0.375 | AP54: =IFERROR(VLOOKUP(A54,INDIRECT("B"&$A$1&"!A6:BM56"),53,FALSE),"") -> 16.77083333 | AQ54: =IFERROR(VLOOKUP(A54,Bilan!A51:BM101,54,FALSE),"") ->  | AT54: =IFERROR(SUM((VLOOKUP(Mai!A54,Données!$H$6:$J$53,3,FALSE)/12)*5),"") -> 
A55: =Données!$H52 -> Chef de service
A56: =Données!$H53 -> 15 | C56: J+ | D56: J+ | E56: J+ | H56: J+ | J56: J+ | L56: J+ | O56: J+ | P56: J+ | Q56: J+ | R56: J+ | S56: J+ | W56: J+ | X56: J+ | Y56: J+ | Z56: J+ | AC56: J+ | AD56: J+ | AE56: J+ | AF56: J+ | AL56: =VLOOKUP(A56,INDIRECT("B"&$A$1&"!A6:BM56"),49,FALSE) -> 0 | AM56: =VLOOKUP(A56,INDIRECT("B"&$A$1&"!A6:BM56"),50,FALSE) -> 0 | AN56: =VLOOKUP(A56,INDIRECT("B"&$A$1&"!A6:BM56"),51,FALSE) -> 0 | AP56: =IFERROR(VLOOKUP(A56,INDIRECT("B"&$A$1&"!A6:BM56"),53,FALSE),"") -> 6.729166667 | AQ56: =IFERROR(VLOOKUP(A56,Bilan!A53:BM103,54,FALSE),"") -> 24.79166667 | AT56: =IFERROR(SUM((VLOOKUP(Mai!A56,Données!$H$6:$J$53,3,FALSE)/12)*5),"") -> 26.25
B58: =Données!$A3 -> M | C58: = | D58: =IF(ISBLANK(Données!$C3),TEXT(Données!$B3,"hh:mm"),TEXT(Données!$B3,"hh:mm")&" : "&TEXT(Données!$C3,"hh:mm")) -> 07:00 : 14:30 | H58: =Données!$A7 -> DM | I58: = | J58: =IF(ISBLANK(Données!$C7),TEXT(Données!$B7,"hh:mm"),TEXT(Données!$B7,"hh:mm")&" : "&TEXT(Données!$C7,"hh:mm")) -> 08:00 : 15:30 | N58: =Données!$A10 -> S+ | O58: = | P58: =IF(ISBLANK(Données!$C10),TEXT(Données!$B10,"hh:mm"),TEXT(Données!$B10,"hh:mm")&" : "&TEXT(Données!$C10,"hh:mm")) -> 14:00 : 23:00 | T58: =Données!$A14 -> N | U58: = | V58: =IF(ISBLANK(Données!$C14),TEXT(Données!$B14,"hh:mm"),TEXT(Données!$B14,"hh:mm")&" : "&TEXT(Données!$C14,"hh:mm")) -> 20:00 : 07:00 | Z58: =Données!$A18 -> sta | AA58: = | AB58: =IF(ISBLANK(Données!$C18),TEXT(Données!$B18,"hh:mm"),TEXT(Données!$B18,"hh:mm")&" : "&TEXT(Données!$C18,"hh:mm")) -> sta : ge
B59: =Données!$A4 -> MR | C59: = | D59: =IF(ISBLANK(Données!$C4),TEXT(Données!$B4,"hh:mm"),TEXT(Données!$B4,"hh:mm")&" : "&TEXT(Données!$C4,"hh:mm")) -> 07:00 : 17:00 | H59: =Données!$A8 -> PFJ | I59: = | J59: =IF(ISBLANK(Données!$C8),TEXT(Données!$B8,"hh:mm"),TEXT(Données!$B8,"hh:mm")&" : "&TEXT(Données!$C8,"hh:mm")) -> 09:00 : 17:00 | N59: =Données!$A11 -> R | O59: = | P59: =IF(ISBLANK(Données!$C11),TEXT(Données!$B11,"hh:mm"),TEXT(Données!$B11,"hh:mm")&" : "&TEXT(Données!$C11,"hh:mm")) -> 14:00 : 17:00 | T59: =Données!$A15 -> NVS | U59: = | V59: =IF(ISBLANK(Données!$C15),TEXT(Données!$B15,"hh:mm"),TEXT(Données!$B15,"hh:mm")&" : "&TEXT(Données!$C15,"hh:mm")) -> 20:00 : 08:00 | Z59: =Données!$A19 -> AT | AA59: = | AB59: =IF(ISBLANK(Données!$C19),TEXT(Données!$B19,"hh:mm"),TEXT(Données!$B19,"hh:mm")&" : "&TEXT(Données!$C19,"hh:mm")) -> AT : AT
B60: =Données!$A5 -> D | C60: = | D60: =IF(ISBLANK(Données!$C5),TEXT(Données!$B5,"hh:mm"),TEXT(Données!$B5,"hh:mm")&" : "&TEXT(Données!$C5,"hh:mm")) -> 10:00 : 17:30 | H60: =Données!$A9 -> S | I60: = | J60: =IF(ISBLANK(Données!$C9),TEXT(Données!$B9,"hh:mm"),TEXT(Données!$B9,"hh:mm")&" : "&TEXT(Données!$C9,"hh:mm")) -> 14:00 : 22:00 | N60: =Données!$A12 -> W | O60: = | P60: =IF(ISBLANK(Données!$C12),TEXT(Données!$B12,"hh:mm"),TEXT(Données!$B12,"hh:mm")&" : "&TEXT(Données!$C12,"hh:mm")) -> 08:00 : 20:00 | T60: =Données!$A16 -> CA | U60: = | V60: =IF(ISBLANK(Données!$C16),TEXT(Données!$B16,"hh:mm"),TEXT(Données!$B16,"hh:mm")&" : "&TEXT(Données!$C16,"hh:mm")) -> CA : CA | Z60: =Données!$A20 -> AM | AA60: = | AB60: =IF(ISBLANK(Données!$C20),TEXT(Données!$B20,"hh:mm"),TEXT(Données!$B20,"hh:mm")&" : "&TEXT(Données!$C20,"hh:mm")) -> AM : AM
B61: =Données!$A6 -> DR | C61: = | D61: =IF(ISBLANK(Données!$C6),TEXT(Données!$B6,"hh:mm"),TEXT(Données!$B6,"hh:mm")&" : "&TEXT(Données!$C6,"hh:mm")) -> 10:00 : 17:30 | H61: =Données!$A10 -> S+ | I61: = | J61: =IF(ISBLANK(Données!$C10),TEXT(Données!$B10,"hh:mm"),TEXT(Données!$B10,"hh:mm")&" : "&TEXT(Données!$C10,"hh:mm")) -> 14:00 : 23:00 | N61: =Données!$A13 -> W+ | O61: = | P61: =IF(ISBLANK(Données!$C13),TEXT(Données!$B13,"hh:mm"),TEXT(Données!$B13,"hh:mm")&" : "&TEXT(Données!$C13,"hh:mm")) -> 11:00 : 23:00 | T61: =Données!$A17 -> F | U61: = | V61: =IF(ISBLANK(Données!$C17),TEXT(Données!$B17,"hh:mm"),TEXT(Données!$B17,"hh:mm")&" : "&TEXT(Données!$C17,"hh:mm")) -> F : 00:00 | Z61: =Données!$A21 -> CM | AA61: = | AB61: =IF(ISBLANK(Données!$C21),TEXT(Données!$B21,"hh:mm"),TEXT(Données!$B21,"hh:mm")&" : "&TEXT(Données!$C21,"hh:mm")) -> CM : CM

Sheet Juin
A1: juin | AF1: =DATE(An,Mai,AF7) -> 2018-04-30
B2: =DATE(An,Juin,B7) -> 2018-06-01 | C2: 2018-06-02 | D2: 2018-06-03 | E2: 2018-06-04 | F2: 2018-06-05 | G2: 2018-06-06 | H2: 2018-06-07 | I2: 2018-06-08 | J2: 2018-06-09 | K2: 2018-06-10 | L2: 2018-06-11 | M2: 2018-06-12 | N2: 2018-06-13 | O2: 2018-06-14 | P2: 2018-06-15 | Q2: 2018-06-16 | R2: 2018-06-17 | S2: 2018-06-18 | T2: 2018-06-19 | U2: 2018-06-20 | V2: 2018-06-21 | W2: 2018-06-22 | X2: 2018-06-23 | Y2: 2018-06-24 | Z2: 2018-06-25 | AA2: 2018-06-26 | AB2: 2018-06-27 | AC2: 2018-06-28 | AD2: 2018-06-29 | AE2: 2018-06-30 | AI2: Pour remplir | AJ2: penser | AO2: =IF(ISNUMBER(AO7),DATE(An,Juin,AO7),"") ->  | AP2: =IF(ISNUMBER(AP7),DATE(An,Juin,AP7),"") -> 
A3: =IF(Données!$L$5="","Service",Données!$L$5) -> RENFORT 2 | K3: Mois de Juin | O3: =An -> 2018 | AI3: à mettre dans le format:
AI4: "heures":"Minutes" | AT4: Masse horraire previsionnel
AI5: Heures sup | AJ5: Heures sup | AL5: Indications | AM5: Indications | AN5: Indications | AP5: Total
A6: Jours | B6: =PROPER(LEFT(TEXT(DATE(An,Juin,B7),"jjj"),1)) -> V | C6: S | D6: D | E6: L | F6: M | G6: M | H6: J | I6: V | J6: S | K6: D | L6: L | M6: M | N6: M | O6: J | P6: V | Q6: S | R6: D | S6: L | T6: M | U6: M | V6: J | W6: V | X6: S | Y6: D | Z6: L | AA6: M | AB6: M | AC6: J | AD6: V | AE6: S | AI6: avant 21h | AJ6: après 21h | AL6: Heures | AM6: Heures nuit | AN6: Heures | AP6: Heures | AQ6: Heures
B7: =A7+1 -> 1 | C7: 2 | D7: 3 | E7: 4 | F7: 5 | G7: 6 | H7: 7 | I7: 8 | J7: 9 | K7: 10 | L7: 11 | M7: 12 | N7: 13 | O7: 14 | P7: 15 | Q7: 16 | R7: 17 | S7: 18 | T7: 19 | U7: 20 | V7: 21 | W7: 22 | X7: 23 | Y7: 24 | Z7: 25 | AA7: 26 | AB7: 27 | AC7: 28 | AD7: 29 | AE7: 30 | AI7: A remplir | AJ7: A remplir | AL7: Dimanche | AM7: Dimanche | AN7: après 21h | AP7: au mois | AQ7: a l'année | AT7: i
A8: Equipe de jour
A9: =Données!$H6 -> 1 | B9: D | E9: M | F9: MR | G9: M | H9: D | I9: M | M9: MR | P9: S | Q9: W+ | R9: W+ | T9: S+ | U9: S | V9: S+ | W9: D | Z9: M | AA9: DR | AB9: M | AC9: D | AD9: M | AL9: =VLOOKUP(A9,INDIRECT("B"&$A$1&"!A6:BM56"),49,FALSE) -> 0.4166666667 | AM9: =VLOOKUP(A9,INDIRECT("B"&$A$1&"!A6:BM56"),50,FALSE) -> 0.08333333333 | AN9: =VLOOKUP(A9,INDIRECT("B"&$A$1&"!A6:BM56"),51,FALSE) -> 0.3333333333 | AP9: =IFERROR(VLOOKUP(A9,INDIRECT("B"&$A$1&"!A6:BM56"),53,FALSE),"") -> 6.6875 | AQ9: =IFERROR(VLOOKUP(A9,Bilan!A6:BM56,54,FALSE),"") -> 18.35416667 | AT9: =IFERROR(SUM((VLOOKUP(Juin!A9,Données!$H$6:$J$53,3,FALSE)/12)*6),"") -> 29.75
A10: =Données!$H7 -> 2 | B10: M | F10: MR | I10: S | J10: W+ | K10: W+ | M10: RS+ | N10: S | O10: S+ | P10: D | S10: S+ | T10: S | U10: D | V10: M | W10: M | Z10: S | AA10: DR | AB10: S+ | AE10: W | AL10: 0.4166666667 | AM10: 0.08333333333 | AN10: 0.5 | AP10: 6.25 | AQ10: =IFERROR(VLOOKUP(A10,Bilan!A7:BM57,54,FALSE),"") -> 22.8625 | AT10: =IFERROR(SUM((VLOOKUP(Juin!A10,Données!$H$6:$J$53,3,FALSE)/12)*6),"") -> 29.75
A11: =Données!$H8 -> 3 | C11: W | D11: W | E11: DM | G11: M | H11: S | I11: S+ | L11: CA | M11: CA | N11: CA | O11: CA | P11: CA | S11: CA | T11: CA | U11: CA | V11: CA | W11: CA | AA11: MR | AD11: S+ | AE11: W+ | AL11: 0.5 | AM11: 0 | AN11: 0.2916666667 | AP11: 3.625 | AQ11: =IFERROR(VLOOKUP(A11,Bilan!A8:BM58,54,FALSE),"") -> 17 | AT11: =IFERROR(SUM((VLOOKUP(Juin!A11,Données!$H$6:$J$53,3,FALSE)/12)*6),"") -> 29.75
A12: =Données!$H9 -> 4 | B12: CM | E12: CM | F12: CM | G12: CM | H12: CM | I12: CM | L12: CM | M12: CM | N12: CM | O12: CM | P12: CM | S12: CM | T12: CM | U12: CM | V12: CM | W12: CM | Z12: CM | AA12: CM | AB12: CM | AC12: CM | AD12: CM | AL12: 0 | AM12: 0 | AN12: 0 | AP12: 6.65 | AQ12: =IFERROR(VLOOKUP(A12,Bilan!A9:BM59,54,FALSE),"") -> 39.58333333 | AT12: =IFERROR(SUM((VLOOKUP(Juin!A12,Données!$H$6:$J$53,3,FALSE)/12)*6),"") -> 29.75
A13: =Données!$H10 -> 5 | B13: S+ | E13: CA | F13: CA | G13: CA | H13: CA | I13: CA | L13: CA | M13: CA | N13: CA | O13: CA | P13: CA | S13: D | T13: R | U13: S+ | X13: W | Y13: W | Z13: DM | AB13: M | AC13: S | AD13: S+ | AL13: 0.5 | AM13: 0 | AN13: 0.2916666667 | AP13: 3.520833333 | AQ13: =IFERROR(VLOOKUP(A13,Bilan!A10:BM60,54,FALSE),"") -> 17.4375 | AT13: =IFERROR(SUM((VLOOKUP(Juin!A13,Données!$H$6:$J$53,3,FALSE)/12)*6),"") -> 29.75
A14: =Données!$H11 -> 6 | B14: S | C14: W+ | D14: W+ | F14: S+ | G14: S | H14: S+ | I14: D | L14: S | M14: DR | N14: S+ | Q14: W | R14: W | S14: DM | U14: M | V14: S | W14: S+ | Z14: S+ | AA14: DR | AB14: D | AC14: M | AD14: D | AL14: 0.9166666667 | AM14: 0.08333333333 | AN14: 0.6666666667 | AP14: 7.708333333 | AQ14: =IFERROR(VLOOKUP(A14,Bilan!A11:BM61,54,FALSE),"") -> 20.39583333 | AT14: =IFERROR(SUM((VLOOKUP(Juin!A14,Données!$H$6:$J$53,3,FALSE)/12)*6),"") -> 29.75
A15: =Données!$H12 -> 7 | B15: M | E15: S | F15: R | G15: S+ | J15: W | K15: W | L15: DM | N15: M | O15: S | P15: S+ | T15: MR | W15: S | X15: W+ | Y15: W+ | AA15: RS | AB15: S | AC15: S+ | AL15: 0.9166666667 | AM15: 0.08333333333 | AN15: 0.5208333333 | AP15: 6.4375 | AQ15: =IFERROR(VLOOKUP(A15,Bilan!A12:BM62,54,FALSE),"") -> 6.4375 | AT15: =IFERROR(SUM((VLOOKUP(Juin!A15,Données!$H$6:$J$53,3,FALSE)/12)*6),"") -> 29.75
A16: =Données!$H13 -> 8 | E16: S+ | F16: S | G16: D | H16: M | I16: M | L16: S+ | M16: RS | N16: D | O16: M | P16: M | S16: S | T16: DR | U16: M | V16: D | W16: M | Z16: S | AA16: RS+ | AB16: D | AC16: M | AD16: M | AL16: 0 | AM16: 0 | AN16: 0.3125 | AP16: 6.3125 | AQ16: =IFERROR(VLOOKUP(A16,Bilan!A13:BM63,54,FALSE),"") -> 6.3125 | AT16: =IFERROR(SUM((VLOOKUP(Juin!A16,Données!$H$6:$J$53,3,FALSE)/12)*6),"") -> 29.75
A17: =Données!$H14 -> 0 | AL17: 0 | AM17: 0 | AN17: 0 | AP17: 4.0625 | AQ17: =IFERROR(VLOOKUP(A17,Bilan!A14:BM64,54,FALSE),"") -> 62.4375 | AT17: =IFERROR(SUM((VLOOKUP(Juin!A17,Données!$H$6:$J$53,3,FALSE)/12)*6),"") -> 
A18: =Données!$H15 -> 0 | AL18: 0 | AM18: 0 | AN18: 0 | AP18: 4.0625 | AQ18: =IFERROR(VLOOKUP(A18,Bilan!A15:BM65,54,FALSE),"") -> 62.4375 | AT18: =IFERROR(SUM((VLOOKUP(Juin!A18,Données!$H$6:$J$53,3,FALSE)/12)*6),"") -> 
A19: =Données!$H16 -> 0 | AL19: 0 | AM19: 0 | AN19: 0 | AP19: 4.0625 | AQ19: =IFERROR(VLOOKUP(A19,Bilan!A16:BM66,54,FALSE),"") -> 62.4375 | AT19: =IFERROR(SUM((VLOOKUP(Juin!A19,Données!$H$6:$J$53,3,FALSE)/12)*6),"") -> 
A20: =Données!$H17 -> 0 | AL20: =VLOOKUP(A20,INDIRECT("B"&$A$1&"!A6:BM56"),49,FALSE) -> 0 | AM20: =VLOOKUP(A20,INDIRECT("B"&$A$1&"!A6:BM56"),50,FALSE) -> 0 | AN20: =VLOOKUP(A20,INDIRECT("B"&$A$1&"!A6:BM56"),51,FALSE) -> 0 | AP20: =IFERROR(VLOOKUP(A20,INDIRECT("B"&$A$1&"!A6:BM56"),53,FALSE),"") -> 4.0625 | AQ20: =IFERROR(VLOOKUP(A20,Bilan!A17:BM67,54,FALSE),"") -> 62.4375 | AT20: =IFERROR(SUM((VLOOKUP(Juin!A20,Données!$H$6:$J$53,3,FALSE)/12)*6),"") -> 
A21: =Données!$H18 -> 0 | AL21: =VLOOKUP(A21,INDIRECT("B"&$A$1&"!A6:BM56"),49,FALSE) -> 0 | AM21: =VLOOKUP(A21,INDIRECT("B"&$A$1&"!A6:BM56"),50,FALSE) -> 0 | AN21: =VLOOKUP(A21,INDIRECT("B"&$A$1&"!A6:BM56"),51,FALSE) -> 0 | AP21: =IFERROR(VLOOKUP(A21,INDIRECT("B"&$A$1&"!A6:BM56"),53,FALSE),"") -> 4.0625 | AQ21: =IFERROR(VLOOKUP(A21,Bilan!A18:BM68,54,FALSE),"") -> 62.4375 | AT21: =IFERROR(SUM((VLOOKUP(Juin!A21,Données!$H$6:$J$53,3,FALSE)/12)*6),"") -> 
A22: =Données!$H19 -> 0 | AL22: =VLOOKUP(A22,INDIRECT("B"&$A$1&"!A6:BM56"),49,FALSE) -> 0 | AM22: =VLOOKUP(A22,INDIRECT("B"&$A$1&"!A6:BM56"),50,FALSE) -> 0 | AN22: =VLOOKUP(A22,INDIRECT("B"&$A$1&"!A6:BM56"),51,FALSE) -> 0 | AP22: =IFERROR(VLOOKUP(A22,INDIRECT("B"&$A$1&"!A6:BM56"),53,FALSE),"") -> 4.0625 | AQ22: =IFERROR(VLOOKUP(A22,Bilan!A19:BM69,54,FALSE),"") -> 62.4375 | AT22: =IFERROR(SUM((VLOOKUP(Juin!A22,Données!$H$6:$J$53,3,FALSE)/12)*6),"") -> 
A23: =Données!$H20 -> 0 | AL23: =VLOOKUP(A23,INDIRECT("B"&$A$1&"!A6:BM56"),49,FALSE) -> 0 | AM23: =VLOOKUP(A23,INDIRECT("B"&$A$1&"!A6:BM56"),50,FALSE) -> 0 | AN23: =VLOOKUP(A23,INDIRECT("B"&$A$1&"!A6:BM56"),51,FALSE) -> 0 | AP23: =IFERROR(VLOOKUP(A23,INDIRECT("B"&$A$1&"!A6:BM56"),53,FALSE),"") -> 4.0625 | AQ23: =IFERROR(VLOOKUP(A23,Bilan!A20:BM70,54,FALSE),"") ->  | AT23: =IFERROR(SUM((VLOOKUP(Juin!A23,Données!$H$6:$J$53,3,FALSE)/12)*6),"") -> 
A24: =Données!$H21 -> 0 | AL24: =VLOOKUP(A24,INDIRECT("B"&$A$1&"!A6:BM56"),49,FALSE) -> 0 | AM24: =VLOOKUP(A24,INDIRECT("B"&$A$1&"!A6:BM56"),50,FALSE) -> 0 | AN24: =VLOOKUP(A24,INDIRECT("B"&$A$1&"!A6:BM56"),51,FALSE) -> 0 | AP24: =IFERROR(VLOOKUP(A24,INDIRECT("B"&$A$1&"!A6:BM56"),53,FALSE),"") -> 4.0625 | AQ24: =IFERROR(VLOOKUP(A24,Bilan!A21:BM71,54,FALSE),"") -> 0 | AT24: =IFERROR(SUM((VLOOKUP(Juin!A24,Données!$H$6:$J$53,3,FALSE)/12)*6),"") -> 
A25: =Données!$H22 -> Equipe de nuit
A26: =Données!$H23 -> 9 | B26: CA | E26: CA | F26: CA | G26: CA | H26: CA | I26: CA | L26: N | M26: N | Q26: N | R26: N | V26: N | W26: N | X26: N | AA26: DR | AB26: N | AC26: N | AD26: N | AL26: =VLOOKUP(A26,INDIRECT("B"&$A$1&"!A6:BM56"),49,FALSE) -> 0 | AM26: =VLOOKUP(A26,INDIRECT("B"&$A$1&"!A6:BM56"),50,FALSE) -> 0.7083333333 | AN26: =VLOOKUP(A26,INDIRECT("B"&$A$1&"!A6:BM56"),51,FALSE) -> 3.458333333 | AP26: =IFERROR(VLOOKUP(A26,INDIRECT("B"&$A$1&"!A6:BM56"),53,FALSE),"") -> 4.895833333 | AQ26: =IFERROR(VLOOKUP(A26,Bilan!A23:BM73,54,FALSE),"") -> 15.98333333 | AT26: =IFERROR(SUM((VLOOKUP(Juin!A26,Données!$H$6:$J$53,3,FALSE)/12)*6),"") -> 28.97916667
A27: =Données!$H24 -> 10 | B27: N | E27: N | F27: N | J27: N | K27: N | M27: RR | N27: N | O27: N | P27: N | S27: CA | T27: CA | U27: CA | V27: CA | W27: CA | Z27: CA | AA27: CA | AB27: CA | AC27: CA | AD27: CA | AL27: =VLOOKUP(A27,INDIRECT("B"&$A$1&"!A6:BM56"),49,FALSE) -> 0 | AM27: =VLOOKUP(A27,INDIRECT("B"&$A$1&"!A6:BM56"),50,FALSE) -> 0.4166666667 | AN27: =VLOOKUP(A27,INDIRECT("B"&$A$1&"!A6:BM56"),51,FALSE) -> 3.208333333 | AP27: =IFERROR(VLOOKUP(A27,INDIRECT("B"&$A$1&"!A6:BM56"),53,FALSE),"") -> 3.666666667 | AQ27: =IFERROR(VLOOKUP(A27,Bilan!A24:BM74,54,FALSE),"") -> 12.04166667 | AT27: =IFERROR(SUM((VLOOKUP(Juin!A27,Données!$H$6:$J$53,3,FALSE)/12)*6),"") -> 28.97916667
A28: =Données!$H25 -> 11 | C28: N | D28: N | G28: N | H28: N | I28: N | L28: CA | M28: RR | N28: CA | O28: CA | P28: CA | S28: N | T28: N | U28: N | Y28: N | Z28: N | AA28: N | AE28: N | AL28: =VLOOKUP(A28,INDIRECT("B"&$A$1&"!A6:BM56"),49,FALSE) -> 0 | AM28: =VLOOKUP(A28,INDIRECT("B"&$A$1&"!A6:BM56"),50,FALSE) -> 0.8333333333 | AN28: =VLOOKUP(A28,INDIRECT("B"&$A$1&"!A6:BM56"),51,FALSE) -> 4.166666667 | AP28: =IFERROR(VLOOKUP(A28,INDIRECT("B"&$A$1&"!A6:BM56"),53,FALSE),"") -> 5.5 | AQ28: =IFERROR(VLOOKUP(A28,Bilan!A25:BM75,54,FALSE),"") -> 16.20833333 | AT28: =IFERROR(SUM((VLOOKUP(Juin!A28,Données!$H$6:$J$53,3,FALSE)/12)*6),"") -> 28.97916667
A29: =Données!$H26 -> 0 | AL29: =VLOOKUP(A29,INDIRECT("B"&$A$1&"!A6:BM56"),49,FALSE) -> 0 | AM29: =VLOOKUP(A29,INDIRECT("B"&$A$1&"!A6:BM56"),50,FALSE) -> 0 | AN29: =VLOOKUP(A29,INDIRECT("B"&$A$1&"!A6:BM56"),51,FALSE) -> 0 | AP29: =IFERROR(VLOOKUP(A29,INDIRECT("B"&$A$1&"!A6:BM56"),53,FALSE),"") -> 4.0625 | AQ29: =IFERROR(VLOOKUP(A29,Bilan!A26:BM76,54,FALSE),"") -> 62.4375 | AT29: =IFERROR(SUM((VLOOKUP(Juin!A29,Données!$H$6:$J$53,3,FALSE)/12)*6),"") -> 
A30: =Données!$H27 -> 0 | AL30: 0 | AM30: 0 | AN30: 0 | AP30: 4.0625 | AQ30: =IFERROR(VLOOKUP(A30,Bilan!A27:BM77,54,FALSE),"") -> 62.4375 | AT30: =IFERROR(SUM((VLOOKUP(Juin!A30,Données!$H$6:$J$53,3,FALSE)/12)*6),"") -> 
A31: =Données!$H28 -> 0 | AL31: 0 | AM31: 0 | AN31: 0 | AP31: 4.0625 | AQ31: =IFERROR(VLOOKUP(A31,Bilan!A28:BM78,54,FALSE),"") -> 62.4375 | AT31: =IFERROR(SUM((VLOOKUP(Juin!A31,Données!$H$6:$J$53,3,FALSE)/12)*6),"") -> 
A32: =Données!$H29 -> 0 | AL32: 0 | AM32: 0 | AN32: 0 | AP32: 4.0625 | AQ32: =IFERROR(VLOOKUP(A32,Bilan!A29:BM79,54,FALSE),"") -> 62.4375 | AT32: =IFERROR(SUM((VLOOKUP(Juin!A32,Données!$H$6:$J$53,3,FALSE)/12)*6),"") -> 
A33: =Données!$H30 -> 0 | AL33: 0 | AM33: 0 | AN33: 0 | AP33: 4.0625 | AQ33: =IFERROR(VLOOKUP(A33,Bilan!A30:BM80,54,FALSE),"") ->  | AT33: =IFERROR(SUM((VLOOKUP(Juin!A33,Données!$H$6:$J$53,3,FALSE)/12)*6),"") -> 
A34: =Données!$H31 -> 0 | AL34: 0 | AM34: 0 | AN34: 0 | AP34: 4.0625 | AQ34: =IFERROR(VLOOKUP(A34,Bilan!A31:BM81,54,FALSE),"") ->  | AT34: =IFERROR(SUM((VLOOKUP(Juin!A34,Données!$H$6:$J$53,3,FALSE)/12)*6),"") -> 
A35: =Données!$H32 -> Maitresse de maison
A36: =Données!$H33 -> 12 | AL36: =VLOOKUP(A36,INDIRECT("B"&$A$1&"!A6:BM56"),49,FALSE) -> 0 | AM36: =VLOOKUP(A36,INDIRECT("B"&$A$1&"!A6:BM56"),50,FALSE) -> 0 | AN36: =VLOOKUP(A36,INDIRECT("B"&$A$1&"!A6:BM56"),51,FALSE) -> 0 | AP36: =IFERROR(VLOOKUP(A36,INDIRECT("B"&$A$1&"!A6:BM56"),53,FALSE),"") -> 0 | AQ36: =IFERROR(VLOOKUP(A36,Bilan!A33:BM83,54,FALSE),"") -> 0.4166666667 | AT36: =IFERROR(SUM((VLOOKUP(Juin!A36,Données!$H$6:$J$53,3,FALSE)/12)*6),"") -> 31.5
A37: =Données!$H34 -> 0 | M37: DR | AA37: DR | AL37: =VLOOKUP(A37,INDIRECT("B"&$A$1&"!A6:BM56"),49,FALSE) -> 0 | AM37: =VLOOKUP(A37,INDIRECT("B"&$A$1&"!A6:BM56"),50,FALSE) -> 0 | AN37: =VLOOKUP(A37,INDIRECT("B"&$A$1&"!A6:BM56"),51,FALSE) -> 0 | AP37: =IFERROR(VLOOKUP(A37,INDIRECT("B"&$A$1&"!A6:BM56"),53,FALSE),"") -> 4.0625 | AQ37: =IFERROR(VLOOKUP(A37,Bilan!A34:BM84,54,FALSE),"") ->  | AT37: =IFERROR(SUM((VLOOKUP(Juin!A37,Données!$H$6:$J$53,3,FALSE)/12)*6),"") -> 
A38: =Données!$H35 -> 0 | AL38: 0 | AM38: 0 | AN38: 0 | AP38: 4.0625 | AQ38: =IFERROR(VLOOKUP(A38,Bilan!A35:BM85,54,FALSE),"") -> 62.4375 | AT38: =IFERROR(SUM((VLOOKUP(Juin!A38,Données!$H$6:$J$53,3,FALSE)/12)*6),"") -> 
A39: =Données!$H36 -> 0 | AL39: 0 | AM39: 0 | AN39: 0 | AP39: 4.0625 | AQ39: =IFERROR(VLOOKUP(A39,Bilan!A36:BM86,54,FALSE),"") -> 62.4375 | AT39: =IFERROR(SUM((VLOOKUP(Juin!A39,Données!$H$6:$J$53,3,FALSE)/12)*6),"") -> 
A40: =Données!$H37 -> 0 | AL40: 0 | AM40: 0 | AN40: 0 | AP40: 4.0625 | AQ40: =IFERROR(VLOOKUP(A40,Bilan!A37:BM87,54,FALSE),"") -> 62.4375 | AT40: =IFERROR(SUM((VLOOKUP(Juin!A40,Données!$H$6:$J$53,3,FALSE)/12)*6),"") -> 
A41: =Données!$H38 -> 0 | AL41: 0 | AM41: 0 | AN41: 0 | AP41: 4.0625 | AQ41: =IFERROR(VLOOKUP(A41,Bilan!A38:BM88,54,FALSE),"") ->  | AT41: =IFERROR(SUM((VLOOKUP(Juin!A41,Données!$H$6:$J$53,3,FALSE)/12)*6),"") -> 
A42: =Données!$H39 -> 0 | AL42: 0 | AM42: 0 | AN42: 0 | AP42: 4.0625 | AQ42: =IFERROR(VLOOKUP(A42,Bilan!A39:BM89,54,FALSE),"") ->  | AT42: =IFERROR(SUM((VLOOKUP(Juin!A42,Données!$H$6:$J$53,3,FALSE)/12)*6),"") -> 
A43: =Données!$H40 -> 0 | AL43: 0 | AM43: 0 | AN43: 0 | AP43: 4.0625 | AQ43: =IFERROR(VLOOKUP(A43,Bilan!A40:BM90,54,FALSE),"") ->  | AT43: =IFERROR(SUM((VLOOKUP(Juin!A43,Données!$H$6:$J$53,3,FALSE)/12)*6),"") -> 
A44: =Données!$H41 -> 0 | AL44: 0 | AM44: 0 | AN44: 0 | AP44: 4.0625 | AQ44: =IFERROR(VLOOKUP(A44,Bilan!A41:BM91,54,FALSE),"") ->  | AT44: =IFERROR(SUM((VLOOKUP(Juin!A44,Données!$H$6:$J$53,3,FALSE)/12)*6),"") -> 
A45: =Données!$H42 -> Psychologue
A46: =Données!$H43 -> 13 | AL46: =VLOOKUP(A46,INDIRECT("B"&$A$1&"!A6:BM56"),49,FALSE) -> 0 | AM46: =VLOOKUP(A46,INDIRECT("B"&$A$1&"!A6:BM56"),50,FALSE) -> 0 | AN46: =VLOOKUP(A46,INDIRECT("B"&$A$1&"!A6:BM56"),51,FALSE) -> 0 | AP46: =IFERROR(VLOOKUP(A46,INDIRECT("B"&$A$1&"!A6:BM56"),53,FALSE),"") -> 0 | AQ46: =IFERROR(VLOOKUP(A46,Bilan!A43:BM93,54,FALSE),"") -> 0.625 | AT46: =IFERROR(SUM((VLOOKUP(Juin!A46,Données!$H$6:$J$53,3,FALSE)/12)*6),"") -> 31.5
A47: =Données!$H44 -> 0 | M47: DR | O47: F | P47: F | AA47: DR | AL47: =VLOOKUP(A47,INDIRECT("B"&$A$1&"!A6:BM56"),49,FALSE) -> 0 | AM47: =VLOOKUP(A47,INDIRECT("B"&$A$1&"!A6:BM56"),50,FALSE) -> 0 | AN47: =VLOOKUP(A47,INDIRECT("B"&$A$1&"!A6:BM56"),51,FALSE) -> 0 | AP47: =IFERROR(VLOOKUP(A47,INDIRECT("B"&$A$1&"!A6:BM56"),53,FALSE),"") -> 4.0625 | AQ47: =IFERROR(VLOOKUP(A47,Bilan!A44:BM94,54,FALSE),"") ->  | AT47: =IFERROR(SUM((VLOOKUP(Juin!A47,Données!$H$6:$J$53,3,FALSE)/12)*6),"") -> 
A48: =Données!$H45 -> 0 | AL48: =VLOOKUP(A48,INDIRECT("B"&$A$1&"!A6:BM56"),49,FALSE) -> 0 | AM48: =VLOOKUP(A48,INDIRECT("B"&$A$1&"!A6:BM56"),50,FALSE) -> 0 | AN48: =VLOOKUP(A48,INDIRECT("B"&$A$1&"!A6:BM56"),51,FALSE) -> 0 | AP48: =IFERROR(VLOOKUP(A48,INDIRECT("B"&$A$1&"!A6:BM56"),53,FALSE),"") -> 4.0625 | AQ48: =IFERROR(VLOOKUP(A48,Bilan!A45:BM95,54,FALSE),"") ->  | AT48: =IFERROR(SUM((VLOOKUP(Juin!A48,Données!$H$6:$J$53,3,FALSE)/12)*6),"") -> 
A49: =Données!$H46 -> Coordinatrice
A50: =Données!$H47 -> 14 | AL50: =VLOOKUP(A50,INDIRECT("B"&$A$1&"!A6:BM56"),49,FALSE) -> 0 | AM50: =VLOOKUP(A50,INDIRECT("B"&$A$1&"!A6:BM56"),50,FALSE) -> 0 | AN50: =VLOOKUP(A50,INDIRECT("B"&$A$1&"!A6:BM56"),51,FALSE) -> 0 | AP50: =IFERROR(VLOOKUP(A50,INDIRECT("B"&$A$1&"!A6:BM56"),53,FALSE),"") -> 0 | AQ50: =IFERROR(VLOOKUP(A50,Bilan!A47:BM97,54,FALSE),"") -> 4.375 | AT50: =IFERROR(SUM((VLOOKUP(Juin!A50,Données!$H$6:$J$53,3,FALSE)/12)*6),"") -> 31.5
A51: =Données!$H48 -> 0 | E51: F | F51: F | G51: F | H51: F | I51: F | M51: DR | AA51: DR | AL51: =VLOOKUP(A51,INDIRECT("B"&$A$1&"!A6:BM56"),49,FALSE) -> 0 | AM51: =VLOOKUP(A51,INDIRECT("B"&$A$1&"!A6:BM56"),50,FALSE) -> 0 | AN51: =VLOOKUP(A51,INDIRECT("B"&$A$1&"!A6:BM56"),51,FALSE) -> 0 | AP51: =IFERROR(VLOOKUP(A51,INDIRECT("B"&$A$1&"!A6:BM56"),53,FALSE),"") -> 4.0625 | AQ51: =IFERROR(VLOOKUP(A51,Bilan!A48:BM98,54,FALSE),"") ->  | AT51: =IFERROR(SUM((VLOOKUP(Juin!A51,Données!$H$6:$J$53,3,FALSE)/12)*6),"") -> 
A52: =Données!$H49 -> 0 | AL52: =VLOOKUP(A52,INDIRECT("B"&$A$1&"!A6:BM56"),49,FALSE) -> 0 | AM52: =VLOOKUP(A52,INDIRECT("B"&$A$1&"!A6:BM56"),50,FALSE) -> 0 | AN52: =VLOOKUP(A52,INDIRECT("B"&$A$1&"!A6:BM56"),51,FALSE) -> 0 | AP52: =IFERROR(VLOOKUP(A52,INDIRECT("B"&$A$1&"!A6:BM56"),53,FALSE),"") -> 4.0625 | AQ52: =IFERROR(VLOOKUP(A52,Bilan!A49:BM99,54,FALSE),"") ->  | AT52: =IFERROR(SUM((VLOOKUP(Juin!A52,Données!$H$6:$J$53,3,FALSE)/12)*6),"") -> 
A53: =Données!$H50 -> 0 | AL53: =VLOOKUP(A53,INDIRECT("B"&$A$1&"!A6:BM56"),49,FALSE) -> 0 | AM53: =VLOOKUP(A53,INDIRECT("B"&$A$1&"!A6:BM56"),50,FALSE) -> 0 | AN53: =VLOOKUP(A53,INDIRECT("B"&$A$1&"!A6:BM56"),51,FALSE) -> 0 | AP53: =IFERROR(VLOOKUP(A53,INDIRECT("B"&$A$1&"!A6:BM56"),53,FALSE),"") -> 4.0625 | AQ53: =IFERROR(VLOOKUP(A53,Bilan!A50:BM100,54,FALSE),"") ->  | AT53: =IFERROR(SUM((VLOOKUP(Juin!A53,Données!$H$6:$J$53,3,FALSE)/12)*6),"") -> 
A54: =Données!$H51 -> 0 | AL54: =VLOOKUP(A54,INDIRECT("B"&$A$1&"!A6:BM56"),49,FALSE) -> 0 | AM54: =VLOOKUP(A54,INDIRECT("B"&$A$1&"!A6:BM56"),50,FALSE) -> 0 | AN54: =VLOOKUP(A54,INDIRECT("B"&$A$1&"!A6:BM56"),51,FALSE) -> 0 | AP54: =IFERROR(VLOOKUP(A54,INDIRECT("B"&$A$1&"!A6:BM56"),53,FALSE),"") -> 4.0625 | AQ54: =IFERROR(VLOOKUP(A54,Bilan!A51:BM101,54,FALSE),"") ->  | AT54: =IFERROR(SUM((VLOOKUP(Juin!A54,Données!$H$6:$J$53,3,FALSE)/12)*6),"") -> 
A55: =Données!$H52 -> Chef de service
A56: =Données!$H53 -> 15 | AL56: =VLOOKUP(A56,INDIRECT("B"&$A$1&"!A6:BM56"),49,FALSE) -> 0 | AM56: =VLOOKUP(A56,INDIRECT("B"&$A$1&"!A6:BM56"),50,FALSE) -> 0 | AN56: =VLOOKUP(A56,INDIRECT("B"&$A$1&"!A6:BM56"),51,FALSE) -> 0 | AP56: =IFERROR(VLOOKUP(A56,INDIRECT("B"&$A$1&"!A6:BM56"),53,FALSE),"") -> 0 | AQ56: =IFERROR(VLOOKUP(A56,Bilan!A53:BM103,54,FALSE),"") -> 24.79166667 | AT56: =IFERROR(SUM((VLOOKUP(Juin!A56,Données!$H$6:$J$53,3,FALSE)/12)*6),"") -> 31.5
B58: =Données!$A3 -> M | C58: = | D58: =IF(ISBLANK(Données!$C3),TEXT(Données!$B3,"hh:mm"),TEXT(Données!$B3,"hh:mm")&" : "&TEXT(Données!$C3,"hh:mm")) -> 07:00 : 14:30 | H58: =Données!$A7 -> DM | I58: = | J58: =IF(ISBLANK(Données!$C7),TEXT(Données!$B7,"hh:mm"),TEXT(Données!$B7,"hh:mm")&" : "&TEXT(Données!$C7,"hh:mm")) -> 08:00 : 15:30 | N58: =Données!$A10 -> S+ | O58: = | P58: =IF(ISBLANK(Données!$C10),TEXT(Données!$B10,"hh:mm"),TEXT(Données!$B10,"hh:mm")&" : "&TEXT(Données!$C10,"hh:mm")) -> 14:00 : 23:00 | T58: =Données!$A14 -> N | U58: = | V58: =IF(ISBLANK(Données!$C14),TEXT(Données!$B14,"hh:mm"),TEXT(Données!$B14,"hh:mm")&" : "&TEXT(Données!$C14,"hh:mm")) -> 20:00 : 07:00 | Z58: =Données!$A18 -> sta | AA58: = | AB58: =IF(ISBLANK(Données!$C18),TEXT(Données!$B18,"hh:mm"),TEXT(Données!$B18,"hh:mm")&" : "&TEXT(Données!$C18,"hh:mm")) -> sta : ge
B59: =Données!$A4 -> MR | C59: = | D59: =IF(ISBLANK(Données!$C4),TEXT(Données!$B4,"hh:mm"),TEXT(Données!$B4,"hh:mm")&" : "&TEXT(Données!$C4,"hh:mm")) -> 07:00 : 17:00 | H59: =Données!$A8 -> PFJ | I59: = | J59: =IF(ISBLANK(Données!$C8),TEXT(Données!$B8,"hh:mm"),TEXT(Données!$B8,"hh:mm")&" : "&TEXT(Données!$C8,"hh:mm")) -> 09:00 : 17:00 | N59: =Données!$A11 -> R | O59: = | P59: =IF(ISBLANK(Données!$C11),TEXT(Données!$B11,"hh:mm"),TEXT(Données!$B11,"hh:mm")&" : "&TEXT(Données!$C11,"hh:mm")) -> 14:00 : 17:00 | T59: =Données!$A15 -> NVS | U59: = | V59: =IF(ISBLANK(Données!$C15),TEXT(Données!$B15,"hh:mm"),TEXT(Données!$B15,"hh:mm")&" : "&TEXT(Données!$C15,"hh:mm")) -> 20:00 : 08:00 | Z59: =Données!$A19 -> AT | AA59: = | AB59: =IF(ISBLANK(Données!$C19),TEXT(Données!$B19,"hh:mm"),TEXT(Données!$B19,"hh:mm")&" : "&TEXT(Données!$C19,"hh:mm")) -> AT : AT
B60: =Données!$A5 -> D | C60: = | D60: =IF(ISBLANK(Données!$C5),TEXT(Données!$B5,"hh:mm"),TEXT(Données!$B5,"hh:mm")&" : "&TEXT(Données!$C5,"hh:mm")) -> 10:00 : 17:30 | H60: =Données!$A9 -> S | I60: = | J60: =IF(ISBLANK(Données!$C9),TEXT(Données!$B9,"hh:mm"),TEXT(Données!$B9,"hh:mm")&" : "&TEXT(Données!$C9,"hh:mm")) -> 14:00 : 22:00 | N60: =Données!$A12 -> W | O60: = | P60: =IF(ISBLANK(Données!$C12),TEXT(Données!$B12,"hh:mm"),TEXT(Données!$B12,"hh:mm")&" : "&TEXT(Données!$C12,"hh:mm")) -> 08:00 : 20:00 | T60: =Données!$A16 -> CA | U60: = | V60: =IF(ISBLANK(Données!$C16),TEXT(Données!$B16,"hh:mm"),TEXT(Données!$B16,"hh:mm")&" : "&TEXT(Données!$C16,"hh:mm")) -> CA : CA | Z60: =Données!$A20 -> AM | AA60: = | AB60: =IF(ISBLANK(Données!$C20),TEXT(Données!$B20,"hh:mm"),TEXT(Données!$B20,"hh:mm")&" : "&TEXT(Données!$C20,"hh:mm")) -> AM : AM
B61: =Données!$A6 -> DR | C61: = | D61: =IF(ISBLANK(Données!$C6),TEXT(Données!$B6,"hh:mm"),TEXT(Données!$B6,"hh:mm")&" : "&TEXT(Données!$C6,"hh:mm")) -> 10:00 : 17:30 | H61: =Données!$A10 -> S+ | I61: = | J61: =IF(ISBLANK(Données!$C10),TEXT(Données!$B10,"hh:mm"),TEXT(Données!$B10,"hh:mm")&" : "&TEXT(Données!$C10,"hh:mm")) -> 14:00 : 23:00 | N61: =Données!$A13 -> W+ | O61: = | P61: =IF(ISBLANK(Données!$C13),TEXT(Données!$B13,"hh:mm"),TEXT(Données!$B13,"hh:mm")&" : "&TEXT(Données!$C13,"hh:mm")) -> 11:00 : 23:00 | T61: =Données!$A17 -> F | U61: = | V61: =IF(ISBLANK(Données!$C17),TEXT(Données!$B17,"hh:mm"),TEXT(Données!$B17,"hh:mm")&" : "&TEXT(Données!$C17,"hh:mm")) -> F : 00:00 | Z61: =Données!$A21 -> CM | AA61: = | AB61: =IF(ISBLANK(Données!$C21),TEXT(Données!$B21,"hh:mm"),TEXT(Données!$B21,"hh:mm")&" : "&TEXT(Données!$C21,"hh:mm")) -> CM : CM

Sheet juillet
A1: juillet | AF1: =DATE(An,Mai,AF7) -> 2018-05-31
B2: =DATE(An,Juillet,B7) -> 2018-07-01 | C2: 2018-07-02 | D2: 2018-07-03 | E2: 2018-07-04 | F2: 2018-07-05 | G2: 2018-07-06 | H2: 2018-07-07 | I2: 2018-07-08 | J2: 2018-07-09 | K2: 2018-07-10 | L2: 2018-07-11 | M2: 2018-07-12 | N2: 2018-07-13 | O2: 2018-07-14 | P2: 2018-07-15 | Q2: 2018-07-16 | R2: 2018-07-17 | S2: 2018-07-18 | T2: 2018-07-19 | U2: 2018-07-20 | V2: 2018-07-21 | W2: 2018-07-22 | X2: 2018-07-23 | Y2: 2018-07-24 | Z2: 2018-07-25 | AA2: 2018-07-26 | AB2: 2018-07-27 | AC2: 2018-07-28 | AD2: 2018-07-29 | AE2: 2018-07-30 | AI2: Pour remplir | AJ2: penser | AO2: =IF(ISNUMBER(AO7),DATE(An,Juillet,AO7),"") ->  | AP2: =IF(ISNUMBER(AP7),DATE(An,Juillet,AP7),"") -> 
A3: =IF(Données!$L$5="","Service",Données!$L$5) -> RENFORT 2 | K3: Mois de Juillet | O3: =An -> 2018 | AI3: à mettre dans le format:
AI4: "heures":"Minutes" | AT4: Masse horraire previsionnel
AI5: Heures sup | AJ5: Heures sup | AL5: Indications | AM5: Indications | AN5: Indications | AP5: Total
A6: Jours | B6: =PROPER(LEFT(TEXT(DATE(An,Juillet,B7),"jjj"),1)) -> D | C6: L | D6: M | E6: M | F6: J | G6: V | H6: S | I6: D | J6: L | K6: M | L6: M | M6: J | N6: V | O6: S | P6: D | Q6: L | R6: M | S6: M | T6: J | U6: V | V6: S | W6: D | X6: L | Y6: M | Z6: M | AA6: J | AB6: V | AC6: S | AD6: D | AE6: L | AF6: M | AI6: avant 21h | AJ6: après 21h | AL6: Heures | AM6: Heures nuit | AN6: Heures | AP6: Heures | AQ6: Heures
B7: =A7+1 -> 1 | C7: 2 | D7: 3 | E7: 4 | F7: 5 | G7: 6 | H7: 7 | I7: 8 | J7: 9 | K7: 10 | L7: 11 | M7: 12 | N7: 13 | O7: 14 | P7: 15 | Q7: 16 | R7: 17 | S7: 18 | T7: 19 | U7: 20 | V7: 21 | W7: 22 | X7: 23 | Y7: 24 | Z7: 25 | AA7: 26 | AB7: 27 | AC7: 28 | AD7: 29 | AE7: =AD7+1 -> 30 | AF7: =AE7+1 -> 31 | AI7: A remplir | AJ7: A remplir | AL7: Dimanche | AM7: Dimanche | AN7: après 21h | AP7: au mois | AQ7: a l'année | AT7: i
A8: Equipe de jour
A9: =Données!$H6 -> 1 | J9: CA | K9: CA | L9: CA | M9: CA | N9: CA | Q9: CA | R9: CA | S9: CA | T9: CA | U9: CA | X9: CA | Y9: CA | Z9: CA | AA9: CA | AB9: CA | AL9: =VLOOKUP(A9,INDIRECT("B"&$A$1&"!A6:BM56"),49,FALSE) -> 0 | AM9: =VLOOKUP(A9,INDIRECT("B"&$A$1&"!A6:BM56"),50,FALSE) -> 0 | AN9: =VLOOKUP(A9,INDIRECT("B"&$A$1&"!A6:BM56"),51,FALSE) -> 0 | AP9: =IFERROR(VLOOKUP(A9,INDIRECT("B"&$A$1&"!A6:BM56"),53,FALSE),"") -> 0 | AQ9: =IFERROR(VLOOKUP(A9,Bilan!A6:BM56,54,FALSE),"") -> 18.35416667 | AT9: =IFERROR(SUM((VLOOKUP(juillet!A9,Données!$H$6:$J$53,3,FALSE)/12)*6),"") -> 29.75
A10: =Données!$H7 -> 2 | B10: W | C10: DM | E10: M | F10: S | G10: S+ | J10: CA | K10: CA | L10: CA | M10: CA | N10: CA | Q10: CA | R10: CA | S10: CA | T10: CA | U10: CA | X10: CA | Y10: CA | Z10: CA | AA10: CA | AB10: CA | AL10: 0.5 | AM10: 0 | AN10: 0.125 | AP10: 1.833333333 | AQ10: =IFERROR(VLOOKUP(A10,Bilan!A7:BM57,54,FALSE),"") -> 22.8625 | AT10: =IFERROR(SUM((VLOOKUP(juillet!A10,Données!$H$6:$J$53,3,FALSE)/12)*6),"") -> 29.75
A11: =Données!$H8 -> 3 | B11: W+ | H11: W | I11: W | X11: CA | Y11: CA | Z11: CA | AA11: CA | AB11: CA | AE11: CA | AF11: CA | AL11: 0.9166666667 | AM11: 0.08333333333 | AN11: 0 | AP11: 1.5 | AQ11: =IFERROR(VLOOKUP(A11,Bilan!A8:BM58,54,FALSE),"") -> 17 | AT11: =IFERROR(SUM((VLOOKUP(juillet!A11,Données!$H$6:$J$53,3,FALSE)/12)*6),"") -> 29.75
A12: =Données!$H9 -> 4 | C12: CM | D12: CM | E12: CM | F12: CM | G12: CM | J12: CM | K12: CM | L12: CM | M12: CM | N12: CM | Q12: CM | R12: CM | S12: CM | T12: CM | U12: CM | X12: CM | Y12: CM | Z12: CM | AA12: CM | AB12: CM | AE12: CM | AF12: CM | AL12: 0 | AM12: 0 | AN12: 0 | AP12: 6.966666667 | AQ12: =IFERROR(VLOOKUP(A12,Bilan!A9:BM59,54,FALSE),"") -> 39.58333333 | AT12: =IFERROR(SUM((VLOOKUP(juillet!A12,Données!$H$6:$J$53,3,FALSE)/12)*6),"") -> 29.75
A13: =Données!$H10 -> 5 | D13: MR | G13: S | H13: W+ | I13: W+ | X13: CA | Y13: CA | Z13: CA | AA13: CA | AB13: CA | AE13: CA | AF13: CA | AL13: 0.4166666667 | AM13: 0.08333333333 | AN13: 0.125 | AP13: 1.75 | AQ13: =IFERROR(VLOOKUP(A13,Bilan!A10:BM60,54,FALSE),"") -> 17.4375 | AT13: =IFERROR(SUM((VLOOKUP(juillet!A13,Données!$H$6:$J$53,3,FALSE)/12)*6),"") -> 29.75
A14: =Données!$H11 -> 6 | J14: CA | K14: CA | L14: CA | M14: CA | N14: CA | Q14: CA | R14: CA | S14: CA | T14: CA | U14: CA | X14: CA | Y14: CA | Z14: CA | AA14: CA | AB14: CA | AL14: 0 | AM14: 0 | AN14: 0 | AP14: 0 | AQ14: =IFERROR(VLOOKUP(A14,Bilan!A11:BM61,54,FALSE),"") -> 20.39583333 | AT14: =IFERROR(SUM((VLOOKUP(juillet!A14,Données!$H$6:$J$53,3,FALSE)/12)*6),"") -> 29.75
A15: =Données!$H12 -> 7 | J15: CA | K15: CA | L15: CA | M15: CA | N15: CA | Q15: CA | R15: CA | S15: CA | T15: CA | U15: CA | X15: CA | Y15: CA | Z15: CA | AA15: CA | AB15: CA | AL15: 0 | AM15: 0 | AN15: 0 | AP15: 0 | AQ15: =IFERROR(VLOOKUP(A15,Bilan!A12:BM62,54,FALSE),"") -> 6.4375 | AT15: =IFERROR(SUM((VLOOKUP(juillet!A15,Données!$H$6:$J$53,3,FALSE)/12)*6),"") -> 29.75
A16: =Données!$H13 -> 8 | J16: CA | K16: CA | L16: CA | M16: CA | N16: CA | Q16: CA | R16: CA | S16: CA | T16: CA | U16: CA | X16: CA | Y16: CA | Z16: CA | AA16: CA | AB16: CA | AL16: 0 | AM16: 0 | AN16: 0 | AP16: 0 | AQ16: =IFERROR(VLOOKUP(A16,Bilan!A13:BM63,54,FALSE),"") -> 6.3125 | AT16: =IFERROR(SUM((VLOOKUP(juillet!A16,Données!$H$6:$J$53,3,FALSE)/12)*6),"") -> 29.75
A17: =Données!$H14 -> 0 | AL17: 0 | AM17: 0 | AN17: 0 | AP17: 3.208333333 | AQ17: =IFERROR(VLOOKUP(A17,Bilan!A14:BM64,54,FALSE),"") -> 62.4375 | AT17: =IFERROR(SUM((VLOOKUP(juillet!A17,Données!$H$6:$J$53,3,FALSE)/12)*6),"") -> 
A18: =Données!$H15 -> 0 | AL18: 0 | AM18: 0 | AN18: 0 | AP18: 3.208333333 | AQ18: =IFERROR(VLOOKUP(A18,Bilan!A15:BM65,54,FALSE),"") -> 62.4375 | AT18: =IFERROR(SUM((VLOOKUP(juillet!A18,Données!$H$6:$J$53,3,FALSE)/12)*6),"") -> 
A19: =Données!$H16 -> 0 | AL19: 0 | AM19: 0 | AN19: 0 | AP19: 3.208333333 | AQ19: =IFERROR(VLOOKUP(A19,Bilan!A16:BM66,54,FALSE),"") -> 62.4375 | AT19: =IFERROR(SUM((VLOOKUP(juillet!A19,Données!$H$6:$J$53,3,FALSE)/12)*6),"") -> 
A20: =Données!$H17 -> 0 | AL20: =VLOOKUP(A20,INDIRECT("B"&$A$1&"!A6:BM56"),49,FALSE) -> 0 | AM20: =VLOOKUP(A20,INDIRECT("B"&$A$1&"!A6:BM56"),50,FALSE) -> 0 | AN20: =VLOOKUP(A20,INDIRECT("B"&$A$1&"!A6:BM56"),51,FALSE) -> 0 | AP20: =IFERROR(VLOOKUP(A20,INDIRECT("B"&$A$1&"!A6:BM56"),53,FALSE),"") -> 3.208333333 | AQ20: =IFERROR(VLOOKUP(A20,Bilan!A17:BM67,54,FALSE),"") -> 62.4375 | AT20: =IFERROR(SUM((VLOOKUP(juillet!A20,Données!$H$6:$J$53,3,FALSE)/12)*6),"") -> 
A21: =Données!$H18 -> 0 | AL21: =VLOOKUP(A21,INDIRECT("B"&$A$1&"!A6:BM56"),49,FALSE) -> 0 | AM21: =VLOOKUP(A21,INDIRECT("B"&$A$1&"!A6:BM56"),50,FALSE) -> 0 | AN21: =VLOOKUP(A21,INDIRECT("B"&$A$1&"!A6:BM56"),51,FALSE) -> 0 | AP21: =IFERROR(VLOOKUP(A21,INDIRECT("B"&$A$1&"!A6:BM56"),53,FALSE),"") -> 3.208333333 | AQ21: =IFERROR(VLOOKUP(A21,Bilan!A18:BM68,54,FALSE),"") -> 62.4375 | AT21: =IFERROR(SUM((VLOOKUP(juillet!A21,Données!$H$6:$J$53,3,FALSE)/12)*6),"") -> 
A22: =Données!$H19 -> 0 | AL22: =VLOOKUP(A22,INDIRECT("B"&$A$1&"!A6:BM56"),49,FALSE) -> 0 | AM22: =VLOOKUP(A22,INDIRECT("B"&$A$1&"!A6:BM56"),50,FALSE) -> 0 | AN22: =VLOOKUP(A22,INDIRECT("B"&$A$1&"!A6:BM56"),51,FALSE) -> 0 | AP22: =IFERROR(VLOOKUP(A22,INDIRECT("B"&$A$1&"!A6:BM56"),53,FALSE),"") -> 3.208333333 | AQ22: =IFERROR(VLOOKUP(A22,Bilan!A19:BM69,54,FALSE),"") -> 62.4375 | AT22: =IFERROR(SUM((VLOOKUP(juillet!A22,Données!$H$6:$J$53,3,FALSE)/12)*6),"") -> 
A23: =Données!$H20 -> 0 | AL23: =VLOOKUP(A23,INDIRECT("B"&$A$1&"!A6:BM56"),49,FALSE) -> 0 | AM23: =VLOOKUP(A23,INDIRECT("B"&$A$1&"!A6:BM56"),50,FALSE) -> 0 | AN23: =VLOOKUP(A23,INDIRECT("B"&$A$1&"!A6:BM56"),51,FALSE) -> 0 | AP23: =IFERROR(VLOOKUP(A23,INDIRECT("B"&$A$1&"!A6:BM56"),53,FALSE),"") -> 3.208333333 | AQ23: =IFERROR(VLOOKUP(A23,Bilan!A20:BM70,54,FALSE),"") ->  | AT23: =IFERROR(SUM((VLOOKUP(juillet!A23,Données!$H$6:$J$53,3,FALSE)/12)*6),"") -> 
A24: =Données!$H21 -> 0 | AL24: =VLOOKUP(A24,INDIRECT("B"&$A$1&"!A6:BM56"),49,FALSE) -> 0 | AM24: =VLOOKUP(A24,INDIRECT("B"&$A$1&"!A6:BM56"),50,FALSE) -> 0 | AN24: =VLOOKUP(A24,INDIRECT("B"&$A$1&"!A6:BM56"),51,FALSE) -> 0 | AP24: =IFERROR(VLOOKUP(A24,INDIRECT("B"&$A$1&"!A6:BM56"),53,FALSE),"") -> 3.208333333 | AQ24: =IFERROR(VLOOKUP(A24,Bilan!A21:BM71,54,FALSE),"") -> 0 | AT24: =IFERROR(SUM((VLOOKUP(juillet!A24,Données!$H$6:$J$53,3,FALSE)/12)*6),"") -> 
A25: =Données!$H22 -> Equipe de nuit
A26: =Données!$H23 -> 9 | AL26: =VLOOKUP(A26,INDIRECT("B"&$A$1&"!A6:BM56"),49,FALSE) -> 0 | AM26: =VLOOKUP(A26,INDIRECT("B"&$A$1&"!A6:BM56"),50,FALSE) -> 0 | AN26: =VLOOKUP(A26,INDIRECT("B"&$A$1&"!A6:BM56"),51,FALSE) -> 0 | AP26: =IFERROR(VLOOKUP(A26,INDIRECT("B"&$A$1&"!A6:BM56"),53,FALSE),"") -> 0 | AQ26: =IFERROR(VLOOKUP(A26,Bilan!A23:BM73,54,FALSE),"") -> 15.98333333 | AT26: =IFERROR(SUM((VLOOKUP(juillet!A26,Données!$H$6:$J$53,3,FALSE)/12)*6),"") -> 28.97916667
A27: =Données!$H24 -> 10 | AL27: =VLOOKUP(A27,INDIRECT("B"&$A$1&"!A6:BM56"),49,FALSE) -> 0 | AM27: =VLOOKUP(A27,INDIRECT("B"&$A$1&"!A6:BM56"),50,FALSE) -> 0 | AN27: =VLOOKUP(A27,INDIRECT("B"&$A$1&"!A6:BM56"),51,FALSE) -> 0 | AP27: =IFERROR(VLOOKUP(A27,INDIRECT("B"&$A$1&"!A6:BM56"),53,FALSE),"") -> 0 | AQ27: =IFERROR(VLOOKUP(A27,Bilan!A24:BM74,54,FALSE),"") -> 12.04166667 | AT27: =IFERROR(SUM((VLOOKUP(juillet!A27,Données!$H$6:$J$53,3,FALSE)/12)*6),"") -> 28.97916667
A28: =Données!$H25 -> 11 | D28: R | E28: N | H28: N | I28: N | AC28: N | AD28: N | AL28: =VLOOKUP(A28,INDIRECT("B"&$A$1&"!A6:BM56"),49,FALSE) -> 0 | AM28: =VLOOKUP(A28,INDIRECT("B"&$A$1&"!A6:BM56"),50,FALSE) -> 0.8333333333 | AN28: =VLOOKUP(A28,INDIRECT("B"&$A$1&"!A6:BM56"),51,FALSE) -> 1.25 | AP28: =IFERROR(VLOOKUP(A28,INDIRECT("B"&$A$1&"!A6:BM56"),53,FALSE),"") -> 2.416666667 | AQ28: =IFERROR(VLOOKUP(A28,Bilan!A25:BM75,54,FALSE),"") -> 16.20833333 | AT28: =IFERROR(SUM((VLOOKUP(juillet!A28,Données!$H$6:$J$53,3,FALSE)/12)*6),"") -> 28.97916667
A29: =Données!$H26 -> 0 | C29: N | D29: N | F29: N | G29: N | J29: CA | K29: CA | L29: CA | M29: CA | N29: CA | Q29: CA | R29: CA | S29: CA | T29: CA | U29: CA | X29: CA | Y29: CA | Z29: CA | AA29: CA | AB29: CA | AL29: =VLOOKUP(A29,INDIRECT("B"&$A$1&"!A6:BM56"),49,FALSE) -> 0 | AM29: =VLOOKUP(A29,INDIRECT("B"&$A$1&"!A6:BM56"),50,FALSE) -> 0 | AN29: =VLOOKUP(A29,INDIRECT("B"&$A$1&"!A6:BM56"),51,FALSE) -> 0 | AP29: =IFERROR(VLOOKUP(A29,INDIRECT("B"&$A$1&"!A6:BM56"),53,FALSE),"") -> 3.208333333 | AQ29: =IFERROR(VLOOKUP(A29,Bilan!A26:BM76,54,FALSE),"") -> 62.4375 | AT29: =IFERROR(SUM((VLOOKUP(juillet!A29,Données!$H$6:$J$53,3,FALSE)/12)*6),"") -> 
A30: =Données!$H27 -> 0 | B30: N | J30: CA | K30: CA | L30: CA | M30: CA | N30: CA | Q30: CA | R30: CA | S30: CA | T30: CA | U30: CA | X30: CA | Y30: CA | Z30: CA | AA30: CA | AB30: CA | AE30: N | AF30: N | AL30: 0 | AM30: 0 | AN30: 0 | AP30: 3.208333333 | AQ30: =IFERROR(VLOOKUP(A30,Bilan!A27:BM77,54,FALSE),"") -> 62.4375 | AT30: =IFERROR(SUM((VLOOKUP(juillet!A30,Données!$H$6:$J$53,3,FALSE)/12)*6),"") -> 
A31: =Données!$H28 -> 0 | AL31: 0 | AM31: 0 | AN31: 0 | AP31: 3.208333333 | AQ31: =IFERROR(VLOOKUP(A31,Bilan!A28:BM78,54,FALSE),"") -> 62.4375 | AT31: =IFERROR(SUM((VLOOKUP(juillet!A31,Données!$H$6:$J$53,3,FALSE)/12)*6),"") -> 
A32: =Données!$H29 -> 0 | AL32: 0 | AM32: 0 | AN32: 0 | AP32: 3.208333333 | AQ32: =IFERROR(VLOOKUP(A32,Bilan!A29:BM79,54,FALSE),"") -> 62.4375 | AT32: =IFERROR(SUM((VLOOKUP(juillet!A32,Données!$H$6:$J$53,3,FALSE)/12)*6),"") -> 
A33: =Données!$H30 -> 0 | AL33: 0 | AM33: 0 | AN33: 0 | AP33: 3.208333333 | AQ33: =IFERROR(VLOOKUP(A33,Bilan!A30:BM80,54,FALSE),"") ->  | AT33: =IFERROR(SUM((VLOOKUP(juillet!A33,Données!$H$6:$J$53,3,FALSE)/12)*6),"") -> 
A34: =Données!$H31 -> 0 | AL34: 0 | AM34: 0 | AN34: 0 | AP34: 3.208333333 | AQ34: =IFERROR(VLOOKUP(A34,Bilan!A31:BM81,54,FALSE),"") ->  | AT34: =IFERROR(SUM((VLOOKUP(juillet!A34,Données!$H$6:$J$53,3,FALSE)/12)*6),"") -> 
A35: =Données!$H32 -> Maitresse de maison
A36: =Données!$H33 -> 12 | AL36: =VLOOKUP(A36,INDIRECT("B"&$A$1&"!A6:BM56"),49,FALSE) -> 0 | AM36: =VLOOKUP(A36,INDIRECT("B"&$A$1&"!A6:BM56"),50,FALSE) -> 0 | AN36: =VLOOKUP(A36,INDIRECT("B"&$A$1&"!A6:BM56"),51,FALSE) -> 0 | AP36: =IFERROR(VLOOKUP(A36,INDIRECT("B"&$A$1&"!A6:BM56"),53,FALSE),"") -> 0 | AQ36: =IFERROR(VLOOKUP(A36,Bilan!A33:BM83,54,FALSE),"") -> 0.4166666667 | AT36: =IFERROR(SUM((VLOOKUP(juillet!A36,Données!$H$6:$J$53,3,FALSE)/12)*6),"") -> 31.5
A37: =Données!$H34 -> 0 | AL37: =VLOOKUP(A37,INDIRECT("B"&$A$1&"!A6:BM56"),49,FALSE) -> 0 | AM37: =VLOOKUP(A37,INDIRECT("B"&$A$1&"!A6:BM56"),50,FALSE) -> 0 | AN37: =VLOOKUP(A37,INDIRECT("B"&$A$1&"!A6:BM56"),51,FALSE) -> 0 | AP37: =IFERROR(VLOOKUP(A37,INDIRECT("B"&$A$1&"!A6:BM56"),53,FALSE),"") -> 3.208333333 | AQ37: =IFERROR(VLOOKUP(A37,Bilan!A34:BM84,54,FALSE),"") ->  | AT37: =IFERROR(SUM((VLOOKUP(juillet!A37,Données!$H$6:$J$53,3,FALSE)/12)*6),"") -> 
A38: =Données!$H35 -> 0 | AL38: 0 | AM38: 0 | AN38: 0 | AP38: 3.208333333 | AQ38: =IFERROR(VLOOKUP(A38,Bilan!A35:BM85,54,FALSE),"") -> 62.4375 | AT38: =IFERROR(SUM((VLOOKUP(juillet!A38,Données!$H$6:$J$53,3,FALSE)/12)*6),"") -> 
A39: =Données!$H36 -> 0 | J39: CA | K39: CA | L39: CA | M39: CA | N39: CA | Q39: CA | R39: CA | S39: CA | T39: CA | U39: CA | X39: CA | Y39: CA | Z39: CA | AA39: CA | AB39: CA | AL39: 0 | AM39: 0 | AN39: 0 | AP39: 3.208333333 | AQ39: =IFERROR(VLOOKUP(A39,Bilan!A36:BM86,54,FALSE),"") -> 62.4375 | AT39: =IFERROR(SUM((VLOOKUP(juillet!A39,Données!$H$6:$J$53,3,FALSE)/12)*6),"") -> 
A40: =Données!$H37 -> 0 | AL40: 0 | AM40: 0 | AN40: 0 | AP40: 3.208333333 | AQ40: =IFERROR(VLOOKUP(A40,Bilan!A37:BM87,54,FALSE),"") -> 62.4375 | AT40: =IFERROR(SUM((VLOOKUP(juillet!A40,Données!$H$6:$J$53,3,FALSE)/12)*6),"") -> 
A41: =Données!$H38 -> 0 | AL41: 0 | AM41: 0 | AN41: 0 | AP41: 3.208333333 | AQ41: =IFERROR(VLOOKUP(A41,Bilan!A38:BM88,54,FALSE),"") ->  | AT41: =IFERROR(SUM((VLOOKUP(juillet!A41,Données!$H$6:$J$53,3,FALSE)/12)*6),"") -> 
A42: =Données!$H39 -> 0 | AL42: 0 | AM42: 0 | AN42: 0 | AP42: 3.208333333 | AQ42: =IFERROR(VLOOKUP(A42,Bilan!A39:BM89,54,FALSE),"") ->  | AT42: =IFERROR(SUM((VLOOKUP(juillet!A42,Données!$H$6:$J$53,3,FALSE)/12)*6),"") -> 
A43: =Données!$H40 -> 0 | AL43: 0 | AM43: 0 | AN43: 0 | AP43: 3.208333333 | AQ43: =IFERROR(VLOOKUP(A43,Bilan!A40:BM90,54,FALSE),"") ->  | AT43: =IFERROR(SUM((VLOOKUP(juillet!A43,Données!$H$6:$J$53,3,FALSE)/12)*6),"") -> 
A44: =Données!$H41 -> 0 | AL44: 0 | AM44: 0 | AN44: 0 | AP44: 3.208333333 | AQ44: =IFERROR(VLOOKUP(A44,Bilan!A41:BM91,54,FALSE),"") ->  | AT44: =IFERROR(SUM((VLOOKUP(juillet!A44,Données!$H$6:$J$53,3,FALSE)/12)*6),"") -> 
A45: =Données!$H42 -> Psychologue
A46: =Données!$H43 -> 13 | AL46: =VLOOKUP(A46,INDIRECT("B"&$A$1&"!A6:BM56"),49,FALSE) -> 0 | AM46: =VLOOKUP(A46,INDIRECT("B"&$A$1&"!A6:BM56"),50,FALSE) -> 0 | AN46: =VLOOKUP(A46,INDIRECT("B"&$A$1&"!A6:BM56"),51,FALSE) -> 0 | AP46: =IFERROR(VLOOKUP(A46,INDIRECT("B"&$A$1&"!A6:BM56"),53,FALSE),"") -> 0 | AQ46: =IFERROR(VLOOKUP(A46,Bilan!A43:BM93,54,FALSE),"") -> 0.625 | AT46: =IFERROR(SUM((VLOOKUP(juillet!A46,Données!$H$6:$J$53,3,FALSE)/12)*6),"") -> 31.5
A47: =Données!$H44 -> 0 | AL47: =VLOOKUP(A47,INDIRECT("B"&$A$1&"!A6:BM56"),49,FALSE) -> 0 | AM47: =VLOOKUP(A47,INDIRECT("B"&$A$1&"!A6:BM56"),50,FALSE) -> 0 | AN47: =VLOOKUP(A47,INDIRECT("B"&$A$1&"!A6:BM56"),51,FALSE) -> 0 | AP47: =IFERROR(VLOOKUP(A47,INDIRECT("B"&$A$1&"!A6:BM56"),53,FALSE),"") -> 3.208333333 | AQ47: =IFERROR(VLOOKUP(A47,Bilan!A44:BM94,54,FALSE),"") ->  | AT47: =IFERROR(SUM((VLOOKUP(juillet!A47,Données!$H$6:$J$53,3,FALSE)/12)*6),"") -> 
A48: =Données!$H45 -> 0 | AL48: =VLOOKUP(A48,INDIRECT("B"&$A$1&"!A6:BM56"),49,FALSE) -> 0 | AM48: =VLOOKUP(A48,INDIRECT("B"&$A$1&"!A6:BM56"),50,FALSE) -> 0 | AN48: =VLOOKUP(A48,INDIRECT("B"&$A$1&"!A6:BM56"),51,FALSE) -> 0 | AP48: =IFERROR(VLOOKUP(A48,INDIRECT("B"&$A$1&"!A6:BM56"),53,FALSE),"") -> 3.208333333 | AQ48: =IFERROR(VLOOKUP(A48,Bilan!A45:BM95,54,FALSE),"") ->  | AT48: =IFERROR(SUM((VLOOKUP(juillet!A48,Données!$H$6:$J$53,3,FALSE)/12)*6),"") -> 
A49: =Données!$H46 -> Coordinatrice
A50: =Données!$H47 -> 14 | AL50: =VLOOKUP(A50,INDIRECT("B"&$A$1&"!A6:BM56"),49,FALSE) -> 0 | AM50: =VLOOKUP(A50,INDIRECT("B"&$A$1&"!A6:BM56"),50,FALSE) -> 0 | AN50: =VLOOKUP(A50,INDIRECT("B"&$A$1&"!A6:BM56"),51,FALSE) -> 0 | AP50: =IFERROR(VLOOKUP(A50,INDIRECT("B"&$A$1&"!A6:BM56"),53,FALSE),"") -> 0 | AQ50: =IFERROR(VLOOKUP(A50,Bilan!A47:BM97,54,FALSE),"") -> 4.375 | AT50: =IFERROR(SUM((VLOOKUP(juillet!A50,Données!$H$6:$J$53,3,FALSE)/12)*6),"") -> 31.5
A51: =Données!$H48 -> 0 | AL51: =VLOOKUP(A51,INDIRECT("B"&$A$1&"!A6:BM56"),49,FALSE) -> 0 | AM51: =VLOOKUP(A51,INDIRECT("B"&$A$1&"!A6:BM56"),50,FALSE) -> 0 | AN51: =VLOOKUP(A51,INDIRECT("B"&$A$1&"!A6:BM56"),51,FALSE) -> 0 | AP51: =IFERROR(VLOOKUP(A51,INDIRECT("B"&$A$1&"!A6:BM56"),53,FALSE),"") -> 3.208333333 | AQ51: =IFERROR(VLOOKUP(A51,Bilan!A48:BM98,54,FALSE),"") ->  | AT51: =IFERROR(SUM((VLOOKUP(juillet!A51,Données!$H$6:$J$53,3,FALSE)/12)*6),"") -> 
A52: =Données!$H49 -> 0 | AL52: =VLOOKUP(A52,INDIRECT("B"&$A$1&"!A6:BM56"),49,FALSE) -> 0 | AM52: =VLOOKUP(A52,INDIRECT("B"&$A$1&"!A6:BM56"),50,FALSE) -> 0 | AN52: =VLOOKUP(A52,INDIRECT("B"&$A$1&"!A6:BM56"),51,FALSE) -> 0 | AP52: =IFERROR(VLOOKUP(A52,INDIRECT("B"&$A$1&"!A6:BM56"),53,FALSE),"") -> 3.208333333 | AQ52: =IFERROR(VLOOKUP(A52,Bilan!A49:BM99,54,FALSE),"") ->  | AT52: =IFERROR(SUM((VLOOKUP(juillet!A52,Données!$H$6:$J$53,3,FALSE)/12)*6),"") -> 
A53: =Données!$H50 -> 0 | AL53: =VLOOKUP(A53,INDIRECT("B"&$A$1&"!A6:BM56"),49,FALSE) -> 0 | AM53: =VLOOKUP(A53,INDIRECT("B"&$A$1&"!A6:BM56"),50,FALSE) -> 0 | AN53: =VLOOKUP(A53,INDIRECT("B"&$A$1&"!A6:BM56"),51,FALSE) -> 0 | AP53: =IFERROR(VLOOKUP(A53,INDIRECT("B"&$A$1&"!A6:BM56"),53,FALSE),"") -> 3.208333333 | AQ53: =IFERROR(VLOOKUP(A53,Bilan!A50:BM100,54,FALSE),"") ->  | AT53: =IFERROR(SUM((VLOOKUP(juillet!A53,Données!$H$6:$J$53,3,FALSE)/12)*6),"") -> 
A54: =Données!$H51 -> 0 | AL54: =VLOOKUP(A54,INDIRECT("B"&$A$1&"!A6:BM56"),49,FALSE) -> 0 | AM54: =VLOOKUP(A54,INDIRECT("B"&$A$1&"!A6:BM56"),50,FALSE) -> 0 | AN54: =VLOOKUP(A54,INDIRECT("B"&$A$1&"!A6:BM56"),51,FALSE) -> 0 | AP54: =IFERROR(VLOOKUP(A54,INDIRECT("B"&$A$1&"!A6:BM56"),53,FALSE),"") -> 3.208333333 | AQ54: =IFERROR(VLOOKUP(A54,Bilan!A51:BM101,54,FALSE),"") ->  | AT54: =IFERROR(SUM((VLOOKUP(juillet!A54,Données!$H$6:$J$53,3,FALSE)/12)*6),"") -> 
A55: =Données!$H52 -> Chef de service
A56: =Données!$H53 -> 15 | AL56: =VLOOKUP(A56,INDIRECT("B"&$A$1&"!A6:BM56"),49,FALSE) -> 0 | AM56: =VLOOKUP(A56,INDIRECT("B"&$A$1&"!A6:BM56"),50,FALSE) -> 0 | AN56: =VLOOKUP(A56,INDIRECT("B"&$A$1&"!A6:BM56"),51,FALSE) -> 0 | AP56: =IFERROR(VLOOKUP(A56,INDIRECT("B"&$A$1&"!A6:BM56"),53,FALSE),"") -> 0 | AQ56: =IFERROR(VLOOKUP(A56,Bilan!A53:BM103,54,FALSE),"") -> 24.79166667 | AT56: =IFERROR(SUM((VLOOKUP(juillet!A56,Données!$H$6:$J$53,3,FALSE)/12)*6),"") -> 31.5
B58: =Données!$A3 -> M | C58: = | D58: =IF(ISBLANK(Données!$C3),TEXT(Données!$B3,"hh:mm"),TEXT(Données!$B3,"hh:mm")&" : "&TEXT(Données!$C3,"hh:mm")) -> 07:00 : 14:30 | H58: =Données!$A7 -> DM | I58: = | J58: =IF(ISBLANK(Données!$C7),TEXT(Données!$B7,"hh:mm"),TEXT(Données!$B7,"hh:mm")&" : "&TEXT(Données!$C7,"hh:mm")) -> 08:00 : 15:30 | N58: =Données!$A10 -> S+ | O58: = | P58: =IF(ISBLANK(Données!$C10),TEXT(Données!$B10,"hh:mm"),TEXT(Données!$B10,"hh:mm")&" : "&TEXT(Données!$C10,"hh:mm")) -> 14:00 : 23:00 | T58: =Données!$A14 -> N | U58: = | V58: =IF(ISBLANK(Données!$C14),TEXT(Données!$B14,"hh:mm"),TEXT(Données!$B14,"hh:mm")&" : "&TEXT(Données!$C14,"hh:mm")) -> 20:00 : 07:00 | Z58: =Données!$A18 -> sta | AA58: = | AB58: =IF(ISBLANK(Données!$C18),TEXT(Données!$B18,"hh:mm"),TEXT(Données!$B18,"hh:mm")&" : "&TEXT(Données!$C18,"hh:mm")) -> sta : ge
B59: =Données!$A4 -> MR | C59: = | D59: =IF(ISBLANK(Données!$C4),TEXT(Données!$B4,"hh:mm"),TEXT(Données!$B4,"hh:mm")&" : "&TEXT(Données!$C4,"hh:mm")) -> 07:00 : 17:00 | H59: =Données!$A8 -> PFJ | I59: = | J59: =IF(ISBLANK(Données!$C8),TEXT(Données!$B8,"hh:mm"),TEXT(Données!$B8,"hh:mm")&" : "&TEXT(Données!$C8,"hh:mm")) -> 09:00 : 17:00 | N59: =Données!$A11 -> R | O59: = | P59: =IF(ISBLANK(Données!$C11),TEXT(Données!$B11,"hh:mm"),TEXT(Données!$B11,"hh:mm")&" : "&TEXT(Données!$C11,"hh:mm")) -> 14:00 : 17:00 | T59: =Données!$A15 -> NVS | U59: = | V59: =IF(ISBLANK(Données!$C15),TEXT(Données!$B15,"hh:mm"),TEXT(Données!$B15,"hh:mm")&" : "&TEXT(Données!$C15,"hh:mm")) -> 20:00 : 08:00 | Z59: =Données!$A19 -> AT | AA59: = | AB59: =IF(ISBLANK(Données!$C19),TEXT(Données!$B19,"hh:mm"),TEXT(Données!$B19,"hh:mm")&" : "&TEXT(Données!$C19,"hh:mm")) -> AT : AT
B60: =Données!$A5 -> D | C60: = | D60: =IF(ISBLANK(Données!$C5),TEXT(Données!$B5,"hh:mm"),TEXT(Données!$B5,"hh:mm")&" : "&TEXT(Données!$C5,"hh:mm")) -> 10:00 : 17:30 | H60: =Données!$A9 -> S | I60: = | J60: =IF(ISBLANK(Données!$C9),TEXT(Données!$B9,"hh:mm"),TEXT(Données!$B9,"hh:mm")&" : "&TEXT(Données!$C9,"hh:mm")) -> 14:00 : 22:00 | N60: =Données!$A12 -> W | O60: = | P60: =IF(ISBLANK(Données!$C12),TEXT(Données!$B12,"hh:mm"),TEXT(Données!$B12,"hh:mm")&" : "&TEXT(Données!$C12,"hh:mm")) -> 08:00 : 20:00 | T60: =Données!$A16 -> CA | U60: = | V60: =IF(ISBLANK(Données!$C16),TEXT(Données!$B16,"hh:mm"),TEXT(Données!$B16,"hh:mm")&" : "&TEXT(Données!$C16,"hh:mm")) -> CA : CA | Z60: =Données!$A20 -> AM | AA60: = | AB60: =IF(ISBLANK(Données!$C20),TEXT(Données!$B20,"hh:mm"),TEXT(Données!$B20,"hh:mm")&" : "&TEXT(Données!$C20,"hh:mm")) -> AM : AM
B61: =Données!$A6 -> DR | C61: = | D61: =IF(ISBLANK(Données!$C6),TEXT(Données!$B6,"hh:mm"),TEXT(Données!$B6,"hh:mm")&" : "&TEXT(Données!$C6,"hh:mm")) -> 10:00 : 17:30 | H61: =Données!$A10 -> S+ | I61: = | J61: =IF(ISBLANK(Données!$C10),TEXT(Données!$B10,"hh:mm"),TEXT(Données!$B10,"hh:mm")&" : "&TEXT(Données!$C10,"hh:mm")) -> 14:00 : 23:00 | N61: =Données!$A13 -> W+ | O61: = | P61: =IF(ISBLANK(Données!$C13),TEXT(Données!$B13,"hh:mm"),TEXT(Données!$B13,"hh:mm")&" : "&TEXT(Données!$C13,"hh:mm")) -> 11:00 : 23:00 | T61: =Données!$A17 -> F | U61: = | V61: =IF(ISBLANK(Données!$C17),TEXT(Données!$B17,"hh:mm"),TEXT(Données!$B17,"hh:mm")&" : "&TEXT(Données!$C17,"hh:mm")) -> F : 00:00 | Z61: =Données!$A21 -> CM | AA61: = | AB61: =IF(ISBLANK(Données!$C21),TEXT(Données!$B21,"hh:mm"),TEXT(Données!$B21,"hh:mm")&" : "&TEXT(Données!$C21,"hh:mm")) -> CM : CM

Sheet Aout
A1: aout
B2: =DATE(An,Aout,B7) -> 2018-08-01 | C2: 2018-08-02 | D2: 2018-08-03 | E2: 2018-08-04 | F2: 2018-08-05 | G2: 2018-08-06 | H2: 2018-08-07 | I2: 2018-08-08 | J2: 2018-08-09 | K2: 2018-08-10 | L2: 2018-08-11 | M2: 2018-08-12 | N2: 2018-08-13 | O2: 2018-08-14 | P2: 2018-08-15 | Q2: 2018-08-16 | R2: 2018-08-17 | S2: 2018-08-18 | T2: 2018-08-19 | U2: 2018-08-20 | V2: 2018-08-21 | W2: 2018-08-22 | X2: 2018-08-23 | Y2: 2018-08-24 | Z2: 2018-08-25 | AA2: 2018-08-26 | AB2: 2018-08-27 | AC2: 2018-08-28 | AD2: 2018-08-29 | AE2: 2018-08-30 | AF2: 2018-08-31 | AI2: Pour remplir | AJ2: penser | AO2: =IF(ISNUMBER(AO7),DATE(An,Aout,AO7),"") ->  | AP2: =IF(ISNUMBER(AP7),DATE(An,Aout,AP7),"") -> 
A3: =IF(Données!$L$5="","Service",Données!$L$5) -> RENFORT 2 | K3: Mois d'Aout | O3: =An -> 2018 | AI3: à mettre dans le format:
AI4: "heures":"Minutes" | AT4: Masse horraire previsionnel
AI5: Heures sup | AJ5: Heures sup | AL5: Indications | AM5: Indications | AN5: Indications | AP5: Total
A6: Jours | B6: =PROPER(LEFT(TEXT(DATE(An,Aout,B7),"jjj"),1)) -> M | C6: J | D6: V | E6: S | F6: D | G6: L | H6: M | I6: M | J6: J | K6: V | L6: S | M6: D | N6: L | O6: M | P6: M | Q6: J | R6: V | S6: S | T6: D | U6: L | V6: M | W6: M | X6: J | Y6: V | Z6: S | AA6: D | AB6: L | AC6: M | AD6: M | AE6: J | AF6: V | AI6: avant 21h | AJ6: après 21h | AL6: Heures | AM6: Heures nuit | AN6: Heures | AP6: Heures | AQ6: Heures
B7: =A7+1 -> 1 | C7: 2 | D7: 3 | E7: 4 | F7: 5 | G7: 6 | H7: 7 | I7: 8 | J7: 9 | K7: 10 | L7: 11 | M7: 12 | N7: 13 | O7: 14 | P7: 15 | Q7: 16 | R7: 17 | S7: 18 | T7: 19 | U7: 20 | V7: 21 | W7: 22 | X7: 23 | Y7: 24 | Z7: 25 | AA7: 26 | AB7: 27 | AC7: 28 | AD7: 29 | AE7: 30 | AF7: =AE7+1 -> 31 | AI7: A remplir | AJ7: A remplir | AL7: Dimanche | AM7: Dimanche | AN7: après 21h | AP7: au mois | AQ7: a l'année | AT7: i
A8: Equipe de jour
A9: =Données!$H6 -> 1 | AL9: =VLOOKUP(A9,INDIRECT("B"&$A$1&"!A6:BM56"),49,FALSE) -> 0 | AM9: =VLOOKUP(A9,INDIRECT("B"&$A$1&"!A6:BM56"),50,FALSE) -> 0 | AN9: =VLOOKUP(A9,INDIRECT("B"&$A$1&"!A6:BM56"),51,FALSE) -> 0 | AP9: =IFERROR(VLOOKUP(A9,INDIRECT("B"&$A$1&"!A6:BM56"),53,FALSE),"") -> 0 | AQ9: =IFERROR(VLOOKUP(A9,Bilan!A6:BM56,54,FALSE),"") -> 18.35416667 | AT9: =IFERROR(SUM((VLOOKUP(Aout!A9,Données!$H$6:$J$53,3,FALSE)/12)*8),"") -> 39.66666667
A10: =Données!$H7 -> 2 | AL10: 0 | AM10: 0 | AN10: 0 | AP10: 0 | AQ10: =IFERROR(VLOOKUP(A10,Bilan!A7:BM57,54,FALSE),"") -> 22.8625 | AT10: =IFERROR(SUM((VLOOKUP(Aout!A10,Données!$H$6:$J$53,3,FALSE)/12)*8),"") -> 39.66666667
A11: =Données!$H8 -> 3 | B11: CA | C11: CA | D11: CA | G11: CA | H11: CA | I11: CA | J11: CA | K11: CA | N11: CA | O11: CA | AL11: 0 | AM11: 0 | AN11: 0 | AP11: 0 | AQ11: =IFERROR(VLOOKUP(A11,Bilan!A8:BM58,54,FALSE),"") -> 17 | AT11: =IFERROR(SUM((VLOOKUP(Aout!A11,Données!$H$6:$J$53,3,FALSE)/12)*8),"") -> 39.66666667
A12: =Données!$H9 -> 4 | B12: CM | C12: CM | D12: CM | G12: CM | H12: CM | I12: CM | J12: CM | K12: CM | N12: CM | O12: CM | Q12: CM | AL12: 0 | AM12: 0 | AN12: 0 | AP12: 3.483333333 | AQ12: =IFERROR(VLOOKUP(A12,Bilan!A9:BM59,54,FALSE),"") -> 39.58333333 | AT12: =IFERROR(SUM((VLOOKUP(Aout!A12,Données!$H$6:$J$53,3,FALSE)/12)*8),"") -> 39.66666667
A13: =Données!$H10 -> 5 | B13: CA | C13: CA | D13: CA | G13: CA | H13: CA | I13: CA | J13: CA | K13: CA | N13: CA | O13: CA | AL13: 0 | AM13: 0 | AN13: 0 | AP13: 0 | AQ13: =IFERROR(VLOOKUP(A13,Bilan!A10:BM60,54,FALSE),"") -> 17.4375 | AT13: =IFERROR(SUM((VLOOKUP(Aout!A13,Données!$H$6:$J$53,3,FALSE)/12)*8),"") -> 39.66666667
A14: =Données!$H11 -> 6 | AL14: 0 | AM14: 0 | AN14: 0 | AP14: 0 | AQ14: =IFERROR(VLOOKUP(A14,Bilan!A11:BM61,54,FALSE),"") -> 20.39583333 | AT14: =IFERROR(SUM((VLOOKUP(Aout!A14,Données!$H$6:$J$53,3,FALSE)/12)*8),"") -> 39.66666667
A15: =Données!$H12 -> 7 | AL15: 0 | AM15: 0 | AN15: 0 | AP15: 0 | AQ15: =IFERROR(VLOOKUP(A15,Bilan!A12:BM62,54,FALSE),"") -> 6.4375 | AT15: =IFERROR(SUM((VLOOKUP(Aout!A15,Données!$H$6:$J$53,3,FALSE)/12)*8),"") -> 39.66666667
A16: =Données!$H13 -> 8 | AL16: 0 | AM16: 0 | AN16: 0 | AP16: 0 | AQ16: =IFERROR(VLOOKUP(A16,Bilan!A13:BM63,54,FALSE),"") -> 6.3125 | AT16: =IFERROR(SUM((VLOOKUP(Aout!A16,Données!$H$6:$J$53,3,FALSE)/12)*8),"") -> 39.66666667
A17: =Données!$H14 -> 0 | AL17: 0 | AM17: 0 | AN17: 0 | AP17: 12.375 | AQ17: =IFERROR(VLOOKUP(A17,Bilan!A14:BM64,54,FALSE),"") -> 62.4375 | AT17: =IFERROR(SUM((VLOOKUP(Aout!A17,Données!$H$6:$J$53,3,FALSE)/12)*8),"") -> 
A18: =Données!$H15 -> 0 | AL18: 0 | AM18: 0 | AN18: 0 | AP18: 12.375 | AQ18: =IFERROR(VLOOKUP(A18,Bilan!A15:BM65,54,FALSE),"") -> 62.4375 | AT18: =IFERROR(SUM((VLOOKUP(Aout!A18,Données!$H$6:$J$53,3,FALSE)/12)*8),"") -> 
A19: =Données!$H16 -> 0 | AL19: 0 | AM19: 0 | AN19: 0 | AP19: 12.375 | AQ19: =IFERROR(VLOOKUP(A19,Bilan!A16:BM66,54,FALSE),"") -> 62.4375 | AT19: =IFERROR(SUM((VLOOKUP(Aout!A19,Données!$H$6:$J$53,3,FALSE)/12)*8),"") -> 
A20: =Données!$H17 -> 0 | AL20: =VLOOKUP(A20,INDIRECT("B"&$A$1&"!A6:BM56"),49,FALSE) -> 0 | AM20: =VLOOKUP(A20,INDIRECT("B"&$A$1&"!A6:BM56"),50,FALSE) -> 0 | AN20: =VLOOKUP(A20,INDIRECT("B"&$A$1&"!A6:BM56"),51,FALSE) -> 0 | AP20: =IFERROR(VLOOKUP(A20,INDIRECT("B"&$A$1&"!A6:BM56"),53,FALSE),"") -> 12.375 | AQ20: =IFERROR(VLOOKUP(A20,Bilan!A17:BM67,54,FALSE),"") -> 62.4375 | AT20: =IFERROR(SUM((VLOOKUP(Aout!A20,Données!$H$6:$J$53,3,FALSE)/12)*8),"") -> 
A21: =Données!$H18 -> 0 | AL21: =VLOOKUP(A21,INDIRECT("B"&$A$1&"!A6:BM56"),49,FALSE) -> 0 | AM21: =VLOOKUP(A21,INDIRECT("B"&$A$1&"!A6:BM56"),50,FALSE) -> 0 | AN21: =VLOOKUP(A21,INDIRECT("B"&$A$1&"!A6:BM56"),51,FALSE) -> 0 | AP21: =IFERROR(VLOOKUP(A21,INDIRECT("B"&$A$1&"!A6:BM56"),53,FALSE),"") -> 12.375 | AQ21: =IFERROR(VLOOKUP(A21,Bilan!A18:BM68,54,FALSE),"") -> 62.4375 | AT21: =IFERROR(SUM((VLOOKUP(Aout!A21,Données!$H$6:$J$53,3,FALSE)/12)*8),"") -> 
A22: =Données!$H19 -> 0 | AL22: =VLOOKUP(A22,INDIRECT("B"&$A$1&"!A6:BM56"),49,FALSE) -> 0 | AM22: =VLOOKUP(A22,INDIRECT("B"&$A$1&"!A6:BM56"),50,FALSE) -> 0 | AN22: =VLOOKUP(A22,INDIRECT("B"&$A$1&"!A6:BM56"),51,FALSE) -> 0 | AP22: =IFERROR(VLOOKUP(A22,INDIRECT("B"&$A$1&"!A6:BM56"),53,FALSE),"") -> 12.375 | AQ22: =IFERROR(VLOOKUP(A22,Bilan!A19:BM69,54,FALSE),"") -> 62.4375 | AT22: =IFERROR(SUM((VLOOKUP(Aout!A22,Données!$H$6:$J$53,3,FALSE)/12)*8),"") -> 
A23: =Données!$H20 -> 0 | AL23: =VLOOKUP(A23,INDIRECT("B"&$A$1&"!A6:BM56"),49,FALSE) -> 0 | AM23: =VLOOKUP(A23,INDIRECT("B"&$A$1&"!A6:BM56"),50,FALSE) -> 0 | AN23: =VLOOKUP(A23,INDIRECT("B"&$A$1&"!A6:BM56"),51,FALSE) -> 0 | AP23: =IFERROR(VLOOKUP(A23,INDIRECT("B"&$A$1&"!A6:BM56"),53,FALSE),"") -> 12.375 | AQ23: =IFERROR(VLOOKUP(A23,Bilan!A20:BM70,54,FALSE),"") ->  | AT23: =IFERROR(SUM((VLOOKUP(Aout!A23,Données!$H$6:$J$53,3,FALSE)/12)*8),"") -> 
A24: =Données!$H21 -> 0 | AL24: =VLOOKUP(A24,INDIRECT("B"&$A$1&"!A6:BM56"),49,FALSE) -> 0 | AM24: =VLOOKUP(A24,INDIRECT("B"&$A$1&"!A6:BM56"),50,FALSE) -> 0 | AN24: =VLOOKUP(A24,INDIRECT("B"&$A$1&"!A6:BM56"),51,FALSE) -> 0 | AP24: =IFERROR(VLOOKUP(A24,INDIRECT("B"&$A$1&"!A6:BM56"),53,FALSE),"") -> 12.375 | AQ24: =IFERROR(VLOOKUP(A24,Bilan!A21:BM71,54,FALSE),"") -> 0 | AT24: =IFERROR(SUM((VLOOKUP(Aout!A24,Données!$H$6:$J$53,3,FALSE)/12)*8),"") -> 
A25: =Données!$H22 -> Equipe de nuit
A26: =Données!$H23 -> 9 | AL26: =VLOOKUP(A26,INDIRECT("B"&$A$1&"!A6:BM56"),49,FALSE) -> 0 | AM26: =VLOOKUP(A26,INDIRECT("B"&$A$1&"!A6:BM56"),50,FALSE) -> 0 | AN26: =VLOOKUP(A26,INDIRECT("B"&$A$1&"!A6:BM56"),51,FALSE) -> 0 | AP26: =IFERROR(VLOOKUP(A26,INDIRECT("B"&$A$1&"!A6:BM56"),53,FALSE),"") -> 0 | AQ26: =IFERROR(VLOOKUP(A26,Bilan!A23:BM73,54,FALSE),"") -> 15.98333333 | AT26: =IFERROR(SUM((VLOOKUP(Aout!A26,Données!$H$6:$J$53,3,FALSE)/12)*8),"") -> 38.63888889
A27: =Données!$H24 -> 10 | AL27: =VLOOKUP(A27,INDIRECT("B"&$A$1&"!A6:BM56"),49,FALSE) -> 0 | AM27: =VLOOKUP(A27,INDIRECT("B"&$A$1&"!A6:BM56"),50,FALSE) -> 0 | AN27: =VLOOKUP(A27,INDIRECT("B"&$A$1&"!A6:BM56"),51,FALSE) -> 0 | AP27: =IFERROR(VLOOKUP(A27,INDIRECT("B"&$A$1&"!A6:BM56"),53,FALSE),"") -> 0 | AQ27: =IFERROR(VLOOKUP(A27,Bilan!A24:BM74,54,FALSE),"") -> 12.04166667 | AT27: =IFERROR(SUM((VLOOKUP(Aout!A27,Données!$H$6:$J$53,3,FALSE)/12)*8),"") -> 38.63888889
A28: =Données!$H25 -> 11 | B28: N | C28: CA | D28: CA | G28: CA | H28: CA | I28: CA | J28: CA | K28: CA | N28: CA | O28: CA | Q28: CA | R28: CA | U28: CA | V28: CA | W28: CA | X28: CA | Y28: CA | AB28: N | AC28: N | AD28: N | AL28: =VLOOKUP(A28,INDIRECT("B"&$A$1&"!A6:BM56"),49,FALSE) -> 0 | AM28: =VLOOKUP(A28,INDIRECT("B"&$A$1&"!A6:BM56"),50,FALSE) -> 0 | AN28: =VLOOKUP(A28,INDIRECT("B"&$A$1&"!A6:BM56"),51,FALSE) -> 1.666666667 | AP28: =IFERROR(VLOOKUP(A28,INDIRECT("B"&$A$1&"!A6:BM56"),53,FALSE),"") -> 1.833333333 | AQ28: =IFERROR(VLOOKUP(A28,Bilan!A25:BM75,54,FALSE),"") -> 16.20833333 | AT28: =IFERROR(SUM((VLOOKUP(Aout!A28,Données!$H$6:$J$53,3,FALSE)/12)*8),"") -> 38.63888889
A29: =Données!$H26 -> 0 | C29: N | D29: N | G29: N | H29: N | K29: N | L29: N | O29: N | P29: N | S29: N | T29: N | W29: N | X29: N | AA29: N | AF29: N | AL29: =VLOOKUP(A29,INDIRECT("B"&$A$1&"!A6:BM56"),49,FALSE) -> 0 | AM29: =VLOOKUP(A29,INDIRECT("B"&$A$1&"!A6:BM56"),50,FALSE) -> 0 | AN29: =VLOOKUP(A29,INDIRECT("B"&$A$1&"!A6:BM56"),51,FALSE) -> 0 | AP29: =IFERROR(VLOOKUP(A29,INDIRECT("B"&$A$1&"!A6:BM56"),53,FALSE),"") -> 12.375 | AQ29: =IFERROR(VLOOKUP(A29,Bilan!A26:BM76,54,FALSE),"") -> 62.4375 | AT29: =IFERROR(SUM((VLOOKUP(Aout!A29,Données!$H$6:$J$53,3,FALSE)/12)*8),"") -> 
A30: =Données!$H27 -> 0 | E30: N | F30: N | I30: N | J30: N | M30: N | N30: N | Q30: N | R30: N | U30: N | V30: N | Y30: N | Z30: N | AE30: N | AL30: 0 | AM30: 0 | AN30: 0 | AP30: 12.375 | AQ30: =IFERROR(VLOOKUP(A30,Bilan!A27:BM77,54,FALSE),"") -> 62.4375 | AT30: =IFERROR(SUM((VLOOKUP(Aout!A30,Données!$H$6:$J$53,3,FALSE)/12)*8),"") -> 
A31: =Données!$H28 -> 0 | AL31: 0 | AM31: 0 | AN31: 0 | AP31: 12.375 | AQ31: =IFERROR(VLOOKUP(A31,Bilan!A28:BM78,54,FALSE),"") -> 62.4375 | AT31: =IFERROR(SUM((VLOOKUP(Aout!A31,Données!$H$6:$J$53,3,FALSE)/12)*8),"") -> 
A32: =Données!$H29 -> 0 | AL32: 0 | AM32: 0 | AN32: 0 | AP32: 12.375 | AQ32: =IFERROR(VLOOKUP(A32,Bilan!A29:BM79,54,FALSE),"") -> 62.4375 | AT32: =IFERROR(SUM((VLOOKUP(Aout!A32,Données!$H$6:$J$53,3,FALSE)/12)*8),"") -> 
A33: =Données!$H30 -> 0 | AL33: 0 | AM33: 0 | AN33: 0 | AP33: 12.375 | AQ33: =IFERROR(VLOOKUP(A33,Bilan!A30:BM80,54,FALSE),"") ->  | AT33: =IFERROR(SUM((VLOOKUP(Aout!A33,Données!$H$6:$J$53,3,FALSE)/12)*8),"") -> 
A34: =Données!$H31 -> 0 | AL34: 0 | AM34: 0 | AN34: 0 | AP34: 12.375 | AQ34: =IFERROR(VLOOKUP(A34,Bilan!A31:BM81,54,FALSE),"") ->  | AT34: =IFERROR(SUM((VLOOKUP(Aout!A34,Données!$H$6:$J$53,3,FALSE)/12)*8),"") -> 
A35: =Données!$H32 -> Maitresse de maison
A36: =Données!$H33 -> 12 | AL36: =VLOOKUP(A36,INDIRECT("B"&$A$1&"!A6:BM56"),49,FALSE) -> 0 | AM36: =VLOOKUP(A36,INDIRECT("B"&$A$1&"!A6:BM56"),50,FALSE) -> 0 | AN36: =VLOOKUP(A36,INDIRECT("B"&$A$1&"!A6:BM56"),51,FALSE) -> 0 | AP36: =IFERROR(VLOOKUP(A36,INDIRECT("B"&$A$1&"!A6:BM56"),53,FALSE),"") -> 0 | AQ36: =IFERROR(VLOOKUP(A36,Bilan!A33:BM83,54,FALSE),"") -> 0.4166666667 | AT36: =IFERROR(SUM((VLOOKUP(Aout!A36,Données!$H$6:$J$53,3,FALSE)/12)*8),"") -> 42
A37: =Données!$H34 -> 0 | AL37: =VLOOKUP(A37,INDIRECT("B"&$A$1&"!A6:BM56"),49,FALSE) -> 0 | AM37: =VLOOKUP(A37,INDIRECT("B"&$A$1&"!A6:BM56"),50,FALSE) -> 0 | AN37: =VLOOKUP(A37,INDIRECT("B"&$A$1&"!A6:BM56"),51,FALSE) -> 0 | AP37: =IFERROR(VLOOKUP(A37,INDIRECT("B"&$A$1&"!A6:BM56"),53,FALSE),"") -> 12.375 | AQ37: =IFERROR(VLOOKUP(A37,Bilan!A34:BM84,54,FALSE),"") ->  | AT37: =IFERROR(SUM((VLOOKUP(Aout!A37,Données!$H$6:$J$53,3,FALSE)/12)*8),"") -> 
A38: =Données!$H35 -> 0 | AL38: 0 | AM38: 0 | AN38: 0 | AP38: 12.375 | AQ38: =IFERROR(VLOOKUP(A38,Bilan!A35:BM85,54,FALSE),"") -> 62.4375 | AT38: =IFERROR(SUM((VLOOKUP(Aout!A38,Données!$H$6:$J$53,3,FALSE)/12)*8),"") -> 
A39: =Données!$H36 -> 0 | AL39: 0 | AM39: 0 | AN39: 0 | AP39: 12.375 | AQ39: =IFERROR(VLOOKUP(A39,Bilan!A36:BM86,54,FALSE),"") -> 62.4375 | AT39: =IFERROR(SUM((VLOOKUP(Aout!A39,Données!$H$6:$J$53,3,FALSE)/12)*8),"") -> 
A40: =Données!$H37 -> 0 | AL40: 0 | AM40: 0 | AN40: 0 | AP40: 12.375 | AQ40: =IFERROR(VLOOKUP(A40,Bilan!A37:BM87,54,FALSE),"") -> 62.4375 | AT40: =IFERROR(SUM((VLOOKUP(Aout!A40,Données!$H$6:$J$53,3,FALSE)/12)*8),"") -> 
A41: =Données!$H38 -> 0 | AL41: 0 | AM41: 0 | AN41: 0 | AP41: 12.375 | AQ41: =IFERROR(VLOOKUP(A41,Bilan!A38:BM88,54,FALSE),"") ->  | AT41: =IFERROR(SUM((VLOOKUP(Aout!A41,Données!$H$6:$J$53,3,FALSE)/12)*8),"") -> 
A42: =Données!$H39 -> 0 | AL42: 0 | AM42: 0 | AN42: 0 | AP42: 12.375 | AQ42: =IFERROR(VLOOKUP(A42,Bilan!A39:BM89,54,FALSE),"") ->  | AT42: =IFERROR(SUM((VLOOKUP(Aout!A42,Données!$H$6:$J$53,3,FALSE)/12)*8),"") -> 
A43: =Données!$H40 -> 0 | AL43: 0 | AM43: 0 | AN43: 0 | AP43: 12.375 | AQ43: =IFERROR(VLOOKUP(A43,Bilan!A40:BM90,54,FALSE),"") ->  | AT43: =IFERROR(SUM((VLOOKUP(Aout!A43,Données!$H$6:$J$53,3,FALSE)/12)*8),"") -> 
A44: =Données!$H41 -> 0 | AL44: 0 | AM44: 0 | AN44: 0 | AP44: 12.375 | AQ44: =IFERROR(VLOOKUP(A44,Bilan!A41:BM91,54,FALSE),"") ->  | AT44: =IFERROR(SUM((VLOOKUP(Aout!A44,Données!$H$6:$J$53,3,FALSE)/12)*8),"") -> 
A45: =Données!$H42 -> Psychologue
A46: =Données!$H43 -> 13 | AL46: =VLOOKUP(A46,INDIRECT("B"&$A$1&"!A6:BM56"),49,FALSE) -> 0 | AM46: =VLOOKUP(A46,INDIRECT("B"&$A$1&"!A6:BM56"),50,FALSE) -> 0 | AN46: =VLOOKUP(A46,INDIRECT("B"&$A$1&"!A6:BM56"),51,FALSE) -> 0 | AP46: =IFERROR(VLOOKUP(A46,INDIRECT("B"&$A$1&"!A6:BM56"),53,FALSE),"") -> 0 | AQ46: =IFERROR(VLOOKUP(A46,Bilan!A43:BM93,54,FALSE),"") -> 0.625 | AT46: =IFERROR(SUM((VLOOKUP(Aout!A46,Données!$H$6:$J$53,3,FALSE)/12)*8),"") -> 42
A47: =Données!$H44 -> 0 | AL47: =VLOOKUP(A47,INDIRECT("B"&$A$1&"!A6:BM56"),49,FALSE) -> 0 | AM47: =VLOOKUP(A47,INDIRECT("B"&$A$1&"!A6:BM56"),50,FALSE) -> 0 | AN47: =VLOOKUP(A47,INDIRECT("B"&$A$1&"!A6:BM56"),51,FALSE) -> 0 | AP47: =IFERROR(VLOOKUP(A47,INDIRECT("B"&$A$1&"!A6:BM56"),53,FALSE),"") -> 12.375 | AQ47: =IFERROR(VLOOKUP(A47,Bilan!A44:BM94,54,FALSE),"") ->  | AT47: =IFERROR(SUM((VLOOKUP(Aout!A47,Données!$H$6:$J$53,3,FALSE)/12)*8),"") -> 
A48: =Données!$H45 -> 0 | AL48: =VLOOKUP(A48,INDIRECT("B"&$A$1&"!A6:BM56"),49,FALSE) -> 0 | AM48: =VLOOKUP(A48,INDIRECT("B"&$A$1&"!A6:BM56"),50,FALSE) -> 0 | AN48: =VLOOKUP(A48,INDIRECT("B"&$A$1&"!A6:BM56"),51,FALSE) -> 0 | AP48: =IFERROR(VLOOKUP(A48,INDIRECT("B"&$A$1&"!A6:BM56"),53,FALSE),"") -> 12.375 | AQ48: =IFERROR(VLOOKUP(A48,Bilan!A45:BM95,54,FALSE),"") ->  | AT48: =IFERROR(SUM((VLOOKUP(Aout!A48,Données!$H$6:$J$53,3,FALSE)/12)*8),"") -> 
A49: =Données!$H46 -> Coordinatrice
A50: =Données!$H47 -> 14 | AL50: =VLOOKUP(A50,INDIRECT("B"&$A$1&"!A6:BM56"),49,FALSE) -> 0 | AM50: =VLOOKUP(A50,INDIRECT("B"&$A$1&"!A6:BM56"),50,FALSE) -> 0 | AN50: =VLOOKUP(A50,INDIRECT("B"&$A$1&"!A6:BM56"),51,FALSE) -> 0 | AP50: =IFERROR(VLOOKUP(A50,INDIRECT("B"&$A$1&"!A6:BM56"),53,FALSE),"") -> 0 | AQ50: =IFERROR(VLOOKUP(A50,Bilan!A47:BM97,54,FALSE),"") -> 4.375 | AT50: =IFERROR(SUM((VLOOKUP(Aout!A50,Données!$H$6:$J$53,3,FALSE)/12)*8),"") -> 42
A51: =Données!$H48 -> 0 | AL51: =VLOOKUP(A51,INDIRECT("B"&$A$1&"!A6:BM56"),49,FALSE) -> 0 | AM51: =VLOOKUP(A51,INDIRECT("B"&$A$1&"!A6:BM56"),50,FALSE) -> 0 | AN51: =VLOOKUP(A51,INDIRECT("B"&$A$1&"!A6:BM56"),51,FALSE) -> 0 | AP51: =IFERROR(VLOOKUP(A51,INDIRECT("B"&$A$1&"!A6:BM56"),53,FALSE),"") -> 12.375 | AQ51: =IFERROR(VLOOKUP(A51,Bilan!A48:BM98,54,FALSE),"") ->  | AT51: =IFERROR(SUM((VLOOKUP(Aout!A51,Données!$H$6:$J$53,3,FALSE)/12)*8),"") -> 
A52: =Données!$H49 -> 0 | AL52: =VLOOKUP(A52,INDIRECT("B"&$A$1&"!A6:BM56"),49,FALSE) -> 0 | AM52: =VLOOKUP(A52,INDIRECT("B"&$A$1&"!A6:BM56"),50,FALSE) -> 0 | AN52: =VLOOKUP(A52,INDIRECT("B"&$A$1&"!A6:BM56"),51,FALSE) -> 0 | AP52: =IFERROR(VLOOKUP(A52,INDIRECT("B"&$A$1&"!A6:BM56"),53,FALSE),"") -> 12.375 | AQ52: =IFERROR(VLOOKUP(A52,Bilan!A49:BM99,54,FALSE),"") ->  | AT52: =IFERROR(SUM((VLOOKUP(Aout!A52,Données!$H$6:$J$53,3,FALSE)/12)*8),"") -> 
A53: =Données!$H50 -> 0 | G53: CA | H53: CA | I53: CA | J53: CA | K53: CA | N53: CA | O53: CA | Q53: CA | R53: CA | U53: CA | V53: CA | W53: CA | X53: CA | Y53: CA | AB53: CA | AC53: CA | AD53: CA | AE53: CA | AF53: CA | AL53: =VLOOKUP(A53,INDIRECT("B"&$A$1&"!A6:BM56"),49,FALSE) -> 0 | AM53: =VLOOKUP(A53,INDIRECT("B"&$A$1&"!A6:BM56"),50,FALSE) -> 0 | AN53: =VLOOKUP(A53,INDIRECT("B"&$A$1&"!A6:BM56"),51,FALSE) -> 0 | AP53: =IFERROR(VLOOKUP(A53,INDIRECT("B"&$A$1&"!A6:BM56"),53,FALSE),"") -> 12.375 | AQ53: =IFERROR(VLOOKUP(A53,Bilan!A50:BM100,54,FALSE),"") ->  | AT53: =IFERROR(SUM((VLOOKUP(Aout!A53,Données!$H$6:$J$53,3,FALSE)/12)*8),"") -> 
A54: =Données!$H51 -> 0 | AL54: =VLOOKUP(A54,INDIRECT("B"&$A$1&"!A6:BM56"),49,FALSE) -> 0 | AM54: =VLOOKUP(A54,INDIRECT("B"&$A$1&"!A6:BM56"),50,FALSE) -> 0 | AN54: =VLOOKUP(A54,INDIRECT("B"&$A$1&"!A6:BM56"),51,FALSE) -> 0 | AP54: =IFERROR(VLOOKUP(A54,INDIRECT("B"&$A$1&"!A6:BM56"),53,FALSE),"") -> 12.375 | AQ54: =IFERROR(VLOOKUP(A54,Bilan!A51:BM101,54,FALSE),"") ->  | AT54: =IFERROR(SUM((VLOOKUP(Aout!A54,Données!$H$6:$J$53,3,FALSE)/12)*8),"") -> 
A55: =Données!$H52 -> Chef de service
A56: =Données!$H53 -> 15 | AL56: =VLOOKUP(A56,INDIRECT("B"&$A$1&"!A6:BM56"),49,FALSE) -> 0 | AM56: =VLOOKUP(A56,INDIRECT("B"&$A$1&"!A6:BM56"),50,FALSE) -> 0 | AN56: =VLOOKUP(A56,INDIRECT("B"&$A$1&"!A6:BM56"),51,FALSE) -> 0 | AP56: =IFERROR(VLOOKUP(A56,INDIRECT("B"&$A$1&"!A6:BM56"),53,FALSE),"") -> 0 | AQ56: =IFERROR(VLOOKUP(A56,Bilan!A53:BM103,54,FALSE),"") -> 24.79166667 | AT56: =IFERROR(SUM((VLOOKUP(Aout!A56,Données!$H$6:$J$53,3,FALSE)/12)*8),"") -> 42
B58: =Données!$A3 -> M | C58: = | D58: =IF(ISBLANK(Données!$C3),TEXT(Données!$B3,"hh:mm"),TEXT(Données!$B3,"hh:mm")&" : "&TEXT(Données!$C3,"hh:mm")) -> 07:00 : 14:30 | H58: =Données!$A7 -> DM | I58: = | J58: =IF(ISBLANK(Données!$C7),TEXT(Données!$B7,"hh:mm"),TEXT(Données!$B7,"hh:mm")&" : "&TEXT(Données!$C7,"hh:mm")) -> 08:00 : 15:30 | N58: =Données!$A10 -> S+ | O58: = | P58: =IF(ISBLANK(Données!$C10),TEXT(Données!$B10,"hh:mm"),TEXT(Données!$B10,"hh:mm")&" : "&TEXT(Données!$C10,"hh:mm")) -> 14:00 : 23:00 | T58: =Données!$A14 -> N | U58: = | V58: =IF(ISBLANK(Données!$C14),TEXT(Données!$B14,"hh:mm"),TEXT(Données!$B14,"hh:mm")&" : "&TEXT(Données!$C14,"hh:mm")) -> 20:00 : 07:00 | Z58: =Données!$A18 -> sta | AA58: = | AB58: =IF(ISBLANK(Données!$C18),TEXT(Données!$B18,"hh:mm"),TEXT(Données!$B18,"hh:mm")&" : "&TEXT(Données!$C18,"hh:mm")) -> sta : ge
B59: =Données!$A4 -> MR | C59: = | D59: =IF(ISBLANK(Données!$C4),TEXT(Données!$B4,"hh:mm"),TEXT(Données!$B4,"hh:mm")&" : "&TEXT(Données!$C4,"hh:mm")) -> 07:00 : 17:00 | H59: =Données!$A8 -> PFJ | I59: = | J59: =IF(ISBLANK(Données!$C8),TEXT(Données!$B8,"hh:mm"),TEXT(Données!$B8,"hh:mm")&" : "&TEXT(Données!$C8,"hh:mm")) -> 09:00 : 17:00 | N59: =Données!$A11 -> R | O59: = | P59: =IF(ISBLANK(Données!$C11),TEXT(Données!$B11,"hh:mm"),TEXT(Données!$B11,"hh:mm")&" : "&TEXT(Données!$C11,"hh:mm")) -> 14:00 : 17:00 | T59: =Données!$A15 -> NVS | U59: = | V59: =IF(ISBLANK(Données!$C15),TEXT(Données!$B15,"hh:mm"),TEXT(Données!$B15,"hh:mm")&" : "&TEXT(Données!$C15,"hh:mm")) -> 20:00 : 08:00 | Z59: =Données!$A19 -> AT | AA59: = | AB59: =IF(ISBLANK(Données!$C19),TEXT(Données!$B19,"hh:mm"),TEXT(Données!$B19,"hh:mm")&" : "&TEXT(Données!$C19,"hh:mm")) -> AT : AT
B60: =Données!$A5 -> D | C60: = | D60: =IF(ISBLANK(Données!$C5),TEXT(Données!$B5,"hh:mm"),TEXT(Données!$B5,"hh:mm")&" : "&TEXT(Données!$C5,"hh:mm")) -> 10:00 : 17:30 | H60: =Données!$A9 -> S | I60: = | J60: =IF(ISBLANK(Données!$C9),TEXT(Données!$B9,"hh:mm"),TEXT(Données!$B9,"hh:mm")&" : "&TEXT(Données!$C9,"hh:mm")) -> 14:00 : 22:00 | N60: =Données!$A12 -> W | O60: = | P60: =IF(ISBLANK(Données!$C12),TEXT(Données!$B12,"hh:mm"),TEXT(Données!$B12,"hh:mm")&" : "&TEXT(Données!$C12,"hh:mm")) -> 08:00 : 20:00 | T60: =Données!$A16 -> CA | U60: = | V60: =IF(ISBLANK(Données!$C16),TEXT(Données!$B16,"hh:mm"),TEXT(Données!$B16,"hh:mm")&" : "&TEXT(Données!$C16,"hh:mm")) -> CA : CA | Z60: =Données!$A20 -> AM | AA60: = | AB60: =IF(ISBLANK(Données!$C20),TEXT(Données!$B20,"hh:mm"),TEXT(Données!$B20,"hh:mm")&" : "&TEXT(Données!$C20,"hh:mm")) -> AM : AM
B61: =Données!$A6 -> DR | C61: = | D61: =IF(ISBLANK(Données!$C6),TEXT(Données!$B6,"hh:mm"),TEXT(Données!$B6,"hh:mm")&" : "&TEXT(Données!$C6,"hh:mm")) -> 10:00 : 17:30 | H61: =Données!$A10 -> S+ | I61: = | J61: =IF(ISBLANK(Données!$C10),TEXT(Données!$B10,"hh:mm"),TEXT(Données!$B10,"hh:mm")&" : "&TEXT(Données!$C10,"hh:mm")) -> 14:00 : 23:00 | N61: =Données!$A13 -> W+ | O61: = | P61: =IF(ISBLANK(Données!$C13),TEXT(Données!$B13,"hh:mm"),TEXT(Données!$B13,"hh:mm")&" : "&TEXT(Données!$C13,"hh:mm")) -> 11:00 : 23:00 | T61: =Données!$A17 -> F | U61: = | V61: =IF(ISBLANK(Données!$C17),TEXT(Données!$B17,"hh:mm"),TEXT(Données!$B17,"hh:mm")&" : "&TEXT(Données!$C17,"hh:mm")) -> F : 00:00 | Z61: =Données!$A21 -> CM | AA61: = | AB61: =IF(ISBLANK(Données!$C21),TEXT(Données!$B21,"hh:mm"),TEXT(Données!$B21,"hh:mm")&" : "&TEXT(Données!$C21,"hh:mm")) -> CM : CM

Sheet Septembre
A1: septembre
B2: =DATE(An,Septembre,B7) -> 2018-09-01 | C2: 2018-09-02 | D2: 2018-09-03 | E2: 2018-09-04 | F2: 2018-09-05 | G2: 2018-09-06 | H2: 2018-09-07 | I2: 2018-09-08 | J2: 2018-09-09 | K2: 2018-09-10 | L2: 2018-09-11 | M2: 2018-09-12 | N2: 2018-09-13 | O2: 2018-09-14 | P2: 2018-09-15 | Q2: 2018-09-16 | R2: 2018-09-17 | S2: 2018-09-18 | T2: 2018-09-19 | U2: 2018-09-20 | V2: 2018-09-21 | W2: 2018-09-22 | X2: 2018-09-23 | Y2: 2018-09-24 | Z2: 2018-09-25 | AA2: 2018-09-26 | AB2: 2018-09-27 | AC2: 2018-09-28 | AD2: 2018-09-29 | AE2: 2018-09-30 | AI2: Pour remplir | AJ2: penser | AO2: =IF(ISNUMBER(AO7),DATE(An,Septembre,AO7),"") ->  | AP2: =IF(ISNUMBER(AP7),DATE(An,Septembre,AP7),"") -> 
A3: =IF(Données!$L$5="","Service",Données!$L$5) -> RENFORT 2 | K3: Mois de Septembre | P3: =An -> 2018 | AI3: à mettre dans le format:
AI4: "heures":"Minutes" | AT4: Masse horraire previsionnel
AI5: Heures sup | AJ5: Heures sup | AL5: Indications | AM5: Indications | AN5: Indications | AP5: Total
A6: Jours | B6: =PROPER(LEFT(TEXT(DATE(An,Septembre,B7),"jjj"),1)) -> S | C6: D | D6: L | E6: M | F6: M | G6: J | H6: V | I6: S | J6: D | K6: L | L6: M | M6: M | N6: J | O6: V | P6: S | Q6: D | R6: L | S6: M | T6: M | U6: J | V6: V | W6: S | X6: D | Y6: L | Z6: M | AA6: M | AB6: J | AC6: V | AD6: S | AE6: D | AI6: avant 21h | AJ6: après 21h | AL6: Heures | AM6: Heures nuit | AN6: Heures | AP6: Heures | AQ6: Heures
B7: =A7+1 -> 1 | C7: 2 | D7: 3 | E7: 4 | F7: 5 | G7: 6 | H7: 7 | I7: 8 | J7: 9 | K7: 10 | L7: 11 | M7: 12 | N7: 13 | O7: 14 | P7: 15 | Q7: 16 | R7: 17 | S7: 18 | T7: 19 | U7: 20 | V7: 21 | W7: 22 | X7: 23 | Y7: 24 | Z7: 25 | AA7: 26 | AB7: 27 | AC7: 28 | AD7: 29 | AE7: 30 | AI7: A remplir | AJ7: A remplir | AL7: Dimanche | AM7: Dimanche | AN7: après 21h | AP7: au mois | AQ7: a l'année | AT7: i
A8: Equipe de jour
A9: =Données!$H6 -> 1 | AL9: =VLOOKUP(A9,INDIRECT("B"&$A$1&"!A6:BM56"),49,FALSE) -> 0 | AM9: =VLOOKUP(A9,INDIRECT("B"&$A$1&"!A6:BM56"),50,FALSE) -> 0 | AN9: =VLOOKUP(A9,INDIRECT("B"&$A$1&"!A6:BM56"),51,FALSE) -> 0 | AP9: =IFERROR(VLOOKUP(A9,INDIRECT("B"&$A$1&"!A6:BM56"),53,FALSE),"") -> 0 | AQ9: =IFERROR(VLOOKUP(A9,Bilan!A6:BM56,54,FALSE),"") -> 18.35416667 | AT9: =IFERROR(SUM((VLOOKUP(Septembre!A9,Données!$H$6:$J$53,3,FALSE)/12)*9),"") -> 44.625
A10: =Données!$H7 -> 2 | AL10: 0 | AM10: 0 | AN10: 0 | AP10: 0 | AQ10: =IFERROR(VLOOKUP(A10,Bilan!A7:BM57,54,FALSE),"") -> 22.8625 | AT10: =IFERROR(SUM((VLOOKUP(Septembre!A10,Données!$H$6:$J$53,3,FALSE)/12)*9),"") -> 44.625
A11: =Données!$H8 -> 3 | AL11: 0 | AM11: 0 | AN11: 0 | AP11: 0 | AQ11: =IFERROR(VLOOKUP(A11,Bilan!A8:BM58,54,FALSE),"") -> 17 | AT11: =IFERROR(SUM((VLOOKUP(Septembre!A11,Données!$H$6:$J$53,3,FALSE)/12)*9),"") -> 44.625
A12: =Données!$H9 -> 4 | AL12: 0 | AM12: 0 | AN12: 0 | AP12: 0 | AQ12: =IFERROR(VLOOKUP(A12,Bilan!A9:BM59,54,FALSE),"") -> 39.58333333 | AT12: =IFERROR(SUM((VLOOKUP(Septembre!A12,Données!$H$6:$J$53,3,FALSE)/12)*9),"") -> 44.625
A13: =Données!$H10 -> 5 | AL13: 0 | AM13: 0 | AN13: 0 | AP13: 0 | AQ13: =IFERROR(VLOOKUP(A13,Bilan!A10:BM60,54,FALSE),"") -> 17.4375 | AT13: =IFERROR(SUM((VLOOKUP(Septembre!A13,Données!$H$6:$J$53,3,FALSE)/12)*9),"") -> 44.625
A14: =Données!$H11 -> 6 | AL14: 0 | AM14: 0 | AN14: 0 | AP14: 0 | AQ14: =IFERROR(VLOOKUP(A14,Bilan!A11:BM61,54,FALSE),"") -> 20.39583333 | AT14: =IFERROR(SUM((VLOOKUP(Septembre!A14,Données!$H$6:$J$53,3,FALSE)/12)*9),"") -> 44.625
A15: =Données!$H12 -> 7 | AL15: 0 | AM15: 0 | AN15: 0 | AP15: 0 | AQ15: =IFERROR(VLOOKUP(A15,Bilan!A12:BM62,54,FALSE),"") -> 6.4375 | AT15: =IFERROR(SUM((VLOOKUP(Septembre!A15,Données!$H$6:$J$53,3,FALSE)/12)*9),"") -> 44.625
A16: =Données!$H13 -> 8 | AL16: 0 | AM16: 0 | AN16: 0 | AP16: 0 | AQ16: =IFERROR(VLOOKUP(A16,Bilan!A13:BM63,54,FALSE),"") -> 6.3125 | AT16: =IFERROR(SUM((VLOOKUP(Septembre!A16,Données!$H$6:$J$53,3,FALSE)/12)*9),"") -> 44.625
A17: =Données!$H14 -> 0 | AL17: 0 | AM17: 0 | AN17: 0 | AP17: 0 | AQ17: =IFERROR(VLOOKUP(A17,Bilan!A14:BM64,54,FALSE),"") -> 62.4375 | AT17: =IFERROR(SUM((VLOOKUP(Septembre!A17,Données!$H$6:$J$53,3,FALSE)/12)*9),"") -> 
A18: =Données!$H15 -> 0 | AL18: 0 | AM18: 0 | AN18: 0 | AP18: 0 | AQ18: =IFERROR(VLOOKUP(A18,Bilan!A15:BM65,54,FALSE),"") -> 62.4375 | AT18: =IFERROR(SUM((VLOOKUP(Septembre!A18,Données!$H$6:$J$53,3,FALSE)/12)*9),"") -> 
A19: =Données!$H16 -> 0 | AL19: 0 | AM19: 0 | AN19: 0 | AP19: 0 | AQ19: =IFERROR(VLOOKUP(A19,Bilan!A16:BM66,54,FALSE),"") -> 62.4375 | AT19: =IFERROR(SUM((VLOOKUP(Septembre!A19,Données!$H$6:$J$53,3,FALSE)/12)*9),"") -> 
A20: =Données!$H17 -> 0 | AL20: =VLOOKUP(A20,INDIRECT("B"&$A$1&"!A6:BM56"),49,FALSE) -> 0 | AM20: =VLOOKUP(A20,INDIRECT("B"&$A$1&"!A6:BM56"),50,FALSE) -> 0 | AN20: =VLOOKUP(A20,INDIRECT("B"&$A$1&"!A6:BM56"),51,FALSE) -> 0 | AP20: =IFERROR(VLOOKUP(A20,INDIRECT("B"&$A$1&"!A6:BM56"),53,FALSE),"") -> 0 | AQ20: =IFERROR(VLOOKUP(A20,Bilan!A17:BM67,54,FALSE),"") -> 62.4375 | AT20: =IFERROR(SUM((VLOOKUP(Septembre!A20,Données!$H$6:$J$53,3,FALSE)/12)*9),"") -> 
A21: =Données!$H18 -> 0 | AL21: =VLOOKUP(A21,INDIRECT("B"&$A$1&"!A6:BM56"),49,FALSE) -> 0 | AM21: =VLOOKUP(A21,INDIRECT("B"&$A$1&"!A6:BM56"),50,FALSE) -> 0 | AN21: =VLOOKUP(A21,INDIRECT("B"&$A$1&"!A6:BM56"),51,FALSE) -> 0 | AP21: =IFERROR(VLOOKUP(A21,INDIRECT("B"&$A$1&"!A6:BM56"),53,FALSE),"") -> 0 | AQ21: =IFERROR(VLOOKUP(A21,Bilan!A18:BM68,54,FALSE),"") -> 62.4375 | AT21: =IFERROR(SUM((VLOOKUP(Septembre!A21,Données!$H$6:$J$53,3,FALSE)/12)*9),"") -> 
A22: =Données!$H19 -> 0 | AL22: =VLOOKUP(A22,INDIRECT("B"&$A$1&"!A6:BM56"),49,FALSE) -> 0 | AM22: =VLOOKUP(A22,INDIRECT("B"&$A$1&"!A6:BM56"),50,FALSE) -> 0 | AN22: =VLOOKUP(A22,INDIRECT("B"&$A$1&"!A6:BM56"),51,FALSE) -> 0 | AP22: =IFERROR(VLOOKUP(A22,INDIRECT("B"&$A$1&"!A6:BM56"),53,FALSE),"") -> 0 | AQ22: =IFERROR(VLOOKUP(A22,Bilan!A19:BM69,54,FALSE),"") -> 62.4375 | AT22: =IFERROR(SUM((VLOOKUP(Septembre!A22,Données!$H$6:$J$53,3,FALSE)/12)*9),"") -> 
A23: =Données!$H20 -> 0 | AL23: =VLOOKUP(A23,INDIRECT("B"&$A$1&"!A6:BM56"),49,FALSE) -> 0 | AM23: =VLOOKUP(A23,INDIRECT("B"&$A$1&"!A6:BM56"),50,FALSE) -> 0 | AN23: =VLOOKUP(A23,INDIRECT("B"&$A$1&"!A6:BM56"),51,FALSE) -> 0 | AP23: =IFERROR(VLOOKUP(A23,INDIRECT("B"&$A$1&"!A6:BM56"),53,FALSE),"") -> 0 | AQ23: =IFERROR(VLOOKUP(A23,Bilan!A20:BM70,54,FALSE),"") ->  | AT23: =IFERROR(SUM((VLOOKUP(Septembre!A23,Données!$H$6:$J$53,3,FALSE)/12)*9),"") -> 
A24: =Données!$H21 -> 0 | AL24: =VLOOKUP(A24,INDIRECT("B"&$A$1&"!A6:BM56"),49,FALSE) -> 0 | AM24: =VLOOKUP(A24,INDIRECT("B"&$A$1&"!A6:BM56"),50,FALSE) -> 0 | AN24: =VLOOKUP(A24,INDIRECT("B"&$A$1&"!A6:BM56"),51,FALSE) -> 0 | AP24: =IFERROR(VLOOKUP(A24,INDIRECT("B"&$A$1&"!A6:BM56"),53,FALSE),"") -> 0 | AQ24: =IFERROR(VLOOKUP(A24,Bilan!A21:BM71,54,FALSE),"") -> 0 | AT24: =IFERROR(SUM((VLOOKUP(Septembre!A24,Données!$H$6:$J$53,3,FALSE)/12)*9),"") -> 
A25: =Données!$H22 -> Equipe de nuit
A26: =Données!$H23 -> 9 | AL26: =VLOOKUP(A26,INDIRECT("B"&$A$1&"!A6:BM56"),49,FALSE) -> 0 | AM26: =VLOOKUP(A26,INDIRECT("B"&$A$1&"!A6:BM56"),50,FALSE) -> 0 | AN26: =VLOOKUP(A26,INDIRECT("B"&$A$1&"!A6:BM56"),51,FALSE) -> 0 | AP26: =IFERROR(VLOOKUP(A26,INDIRECT("B"&$A$1&"!A6:BM56"),53,FALSE),"") -> 0 | AQ26: =IFERROR(VLOOKUP(A26,Bilan!A23:BM73,54,FALSE),"") -> 15.98333333 | AT26: =IFERROR(SUM((VLOOKUP(Septembre!A26,Données!$H$6:$J$53,3,FALSE)/12)*9),"") -> 43.46875
A27: =Données!$H24 -> 10 | AL27: =VLOOKUP(A27,INDIRECT("B"&$A$1&"!A6:BM56"),49,FALSE) -> 0 | AM27: =VLOOKUP(A27,INDIRECT("B"&$A$1&"!A6:BM56"),50,FALSE) -> 0 | AN27: =VLOOKUP(A27,INDIRECT("B"&$A$1&"!A6:BM56"),51,FALSE) -> 0 | AP27: =IFERROR(VLOOKUP(A27,INDIRECT("B"&$A$1&"!A6:BM56"),53,FALSE),"") -> 0 | AQ27: =IFERROR(VLOOKUP(A27,Bilan!A24:BM74,54,FALSE),"") -> 12.04166667 | AT27: =IFERROR(SUM((VLOOKUP(Septembre!A27,Données!$H$6:$J$53,3,FALSE)/12)*9),"") -> 43.46875
A28: =Données!$H25 -> 11 | B28: N | C28: N | D28: X | E28: X | AC28: CA | AD28: X | AE28: X | AL28: =VLOOKUP(A28,INDIRECT("B"&$A$1&"!A6:BM56"),49,FALSE) -> 0 | AM28: =VLOOKUP(A28,INDIRECT("B"&$A$1&"!A6:BM56"),50,FALSE) -> 0.4166666667 | AN28: =VLOOKUP(A28,INDIRECT("B"&$A$1&"!A6:BM56"),51,FALSE) -> 0.4166666667 | AP28: =IFERROR(VLOOKUP(A28,INDIRECT("B"&$A$1&"!A6:BM56"),53,FALSE),"") -> 0.9166666667 | AQ28: =IFERROR(VLOOKUP(A28,Bilan!A25:BM75,54,FALSE),"") -> 16.20833333 | AT28: =IFERROR(SUM((VLOOKUP(Septembre!A28,Données!$H$6:$J$53,3,FALSE)/12)*9),"") -> 43.46875
A29: =Données!$H26 -> 0 | AL29: =VLOOKUP(A29,INDIRECT("B"&$A$1&"!A6:BM56"),49,FALSE) -> 0 | AM29: =VLOOKUP(A29,INDIRECT("B"&$A$1&"!A6:BM56"),50,FALSE) -> 0 | AN29: =VLOOKUP(A29,INDIRECT("B"&$A$1&"!A6:BM56"),51,FALSE) -> 0 | AP29: =IFERROR(VLOOKUP(A29,INDIRECT("B"&$A$1&"!A6:BM56"),53,FALSE),"") -> 0 | AQ29: =IFERROR(VLOOKUP(A29,Bilan!A26:BM76,54,FALSE),"") -> 62.4375 | AT29: =IFERROR(SUM((VLOOKUP(Septembre!A29,Données!$H$6:$J$53,3,FALSE)/12)*9),"") -> 
A30: =Données!$H27 -> 0 | AL30: 0 | AM30: 0 | AN30: 0 | AP30: 0 | AQ30: =IFERROR(VLOOKUP(A30,Bilan!A27:BM77,54,FALSE),"") -> 62.4375 | AT30: =IFERROR(SUM((VLOOKUP(Septembre!A30,Données!$H$6:$J$53,3,FALSE)/12)*9),"") -> 
A31: =Données!$H28 -> 0 | AL31: 0 | AM31: 0 | AN31: 0 | AP31: 0 | AQ31: =IFERROR(VLOOKUP(A31,Bilan!A28:BM78,54,FALSE),"") -> 62.4375 | AT31: =IFERROR(SUM((VLOOKUP(Septembre!A31,Données!$H$6:$J$53,3,FALSE)/12)*9),"") -> 
A32: =Données!$H29 -> 0 | AL32: 0 | AM32: 0 | AN32: 0 | AP32: 0 | AQ32: =IFERROR(VLOOKUP(A32,Bilan!A29:BM79,54,FALSE),"") -> 62.4375 | AT32: =IFERROR(SUM((VLOOKUP(Septembre!A32,Données!$H$6:$J$53,3,FALSE)/12)*9),"") -> 
A33: =Données!$H30 -> 0 | AL33: 0 | AM33: 0 | AN33: 0 | AP33: 0 | AQ33: =IFERROR(VLOOKUP(A33,Bilan!A30:BM80,54,FALSE),"") ->  | AT33: =IFERROR(SUM((VLOOKUP(Septembre!A33,Données!$H$6:$J$53,3,FALSE)/12)*9),"") -> 
A34: =Données!$H31 -> 0 | AL34: 0 | AM34: 0 | AN34: 0 | AP34: 0 | AQ34: =IFERROR(VLOOKUP(A34,Bilan!A31:BM81,54,FALSE),"") ->  | AT34: =IFERROR(SUM((VLOOKUP(Septembre!A34,Données!$H$6:$J$53,3,FALSE)/12)*9),"") -> 
A35: =Données!$H32 -> Maitresse de maison
A36: =Données!$H33 -> 12 | AL36: =VLOOKUP(A36,INDIRECT("B"&$A$1&"!A6:BM56"),49,FALSE) -> 0 | AM36: =VLOOKUP(A36,INDIRECT("B"&$A$1&"!A6:BM56"),50,FALSE) -> 0 | AN36: =VLOOKUP(A36,INDIRECT("B"&$A$1&"!A6:BM56"),51,FALSE) -> 0 | AP36: =IFERROR(VLOOKUP(A36,INDIRECT("B"&$A$1&"!A6:BM56"),53,FALSE),"") -> 0 | AQ36: =IFERROR(VLOOKUP(A36,Bilan!A33:BM83,54,FALSE),"") -> 0.4166666667 | AT36: =IFERROR(SUM((VLOOKUP(Septembre!A36,Données!$H$6:$J$53,3,FALSE)/12)*9),"") -> 47.25
A37: =Données!$H34 -> 0 | AL37: =VLOOKUP(A37,INDIRECT("B"&$A$1&"!A6:BM56"),49,FALSE) -> 0 | AM37: =VLOOKUP(A37,INDIRECT("B"&$A$1&"!A6:BM56"),50,FALSE) -> 0 | AN37: =VLOOKUP(A37,INDIRECT("B"&$A$1&"!A6:BM56"),51,FALSE) -> 0 | AP37: =IFERROR(VLOOKUP(A37,INDIRECT("B"&$A$1&"!A6:BM56"),53,FALSE),"") -> 0 | AQ37: =IFERROR(VLOOKUP(A37,Bilan!A34:BM84,54,FALSE),"") ->  | AT37: =IFERROR(SUM((VLOOKUP(Septembre!A37,Données!$H$6:$J$53,3,FALSE)/12)*9),"") -> 
A38: =Données!$H35 -> 0 | AL38: 0 | AM38: 0 | AN38: 0 | AP38: 0 | AQ38: =IFERROR(VLOOKUP(A38,Bilan!A35:BM85,54,FALSE),"") -> 62.4375 | AT38: =IFERROR(SUM((VLOOKUP(Septembre!A38,Données!$H$6:$J$53,3,FALSE)/12)*9),"") -> 
A39: =Données!$H36 -> 0 | AL39: 0 | AM39: 0 | AN39: 0 | AP39: 0 | AQ39: =IFERROR(VLOOKUP(A39,Bilan!A36:BM86,54,FALSE),"") -> 62.4375 | AT39: =IFERROR(SUM((VLOOKUP(Septembre!A39,Données!$H$6:$J$53,3,FALSE)/12)*9),"") -> 
A40: =Données!$H37 -> 0 | AL40: 0 | AM40: 0 | AN40: 0 | AP40: 0 | AQ40: =IFERROR(VLOOKUP(A40,Bilan!A37:BM87,54,FALSE),"") -> 62.4375 | AT40: =IFERROR(SUM((VLOOKUP(Septembre!A40,Données!$H$6:$J$53,3,FALSE)/12)*9),"") -> 
A41: =Données!$H38 -> 0 | AL41: 0 | AM41: 0 | AN41: 0 | AP41: 0 | AQ41: =IFERROR(VLOOKUP(A41,Bilan!A38:BM88,54,FALSE),"") ->  | AT41: =IFERROR(SUM((VLOOKUP(Septembre!A41,Données!$H$6:$J$53,3,FALSE)/12)*9),"") -> 
A42: =Données!$H39 -> 0 | AL42: 0 | AM42: 0 | AN42: 0 | AP42: 0 | AQ42: =IFERROR(VLOOKUP(A42,Bilan!A39:BM89,54,FALSE),"") ->  | AT42: =IFERROR(SUM((VLOOKUP(Septembre!A42,Données!$H$6:$J$53,3,FALSE)/12)*9),"") -> 
A43: =Données!$H40 -> 0 | AL43: 0 | AM43: 0 | AN43: 0 | AP43: 0 | AQ43: =IFERROR(VLOOKUP(A43,Bilan!A40:BM90,54,FALSE),"") ->  | AT43: =IFERROR(SUM((VLOOKUP(Septembre!A43,Données!$H$6:$J$53,3,FALSE)/12)*9),"") -> 
A44: =Données!$H41 -> 0 | AL44: 0 | AM44: 0 | AN44: 0 | AP44: 0 | AQ44: =IFERROR(VLOOKUP(A44,Bilan!A41:BM91,54,FALSE),"") ->  | AT44: =IFERROR(SUM((VLOOKUP(Septembre!A44,Données!$H$6:$J$53,3,FALSE)/12)*9),"") -> 
A45: =Données!$H42 -> Psychologue
A46: =Données!$H43 -> 13 | AL46: =VLOOKUP(A46,INDIRECT("B"&$A$1&"!A6:BM56"),49,FALSE) -> 0 | AM46: =VLOOKUP(A46,INDIRECT("B"&$A$1&"!A6:BM56"),50,FALSE) -> 0 | AN46: =VLOOKUP(A46,INDIRECT("B"&$A$1&"!A6:BM56"),51,FALSE) -> 0 | AP46: =IFERROR(VLOOKUP(A46,INDIRECT("B"&$A$1&"!A6:BM56"),53,FALSE),"") -> 0 | AQ46: =IFERROR(VLOOKUP(A46,Bilan!A43:BM93,54,FALSE),"") -> 0.625 | AT46: =IFERROR(SUM((VLOOKUP(Septembre!A46,Données!$H$6:$J$53,3,FALSE)/12)*9),"") -> 47.25
A47: =Données!$H44 -> 0 | AL47: =VLOOKUP(A47,INDIRECT("B"&$A$1&"!A6:BM56"),49,FALSE) -> 0 | AM47: =VLOOKUP(A47,INDIRECT("B"&$A$1&"!A6:BM56"),50,FALSE) -> 0 | AN47: =VLOOKUP(A47,INDIRECT("B"&$A$1&"!A6:BM56"),51,FALSE) -> 0 | AP47: =IFERROR(VLOOKUP(A47,INDIRECT("B"&$A$1&"!A6:BM56"),53,FALSE),"") -> 0 | AQ47: =IFERROR(VLOOKUP(A47,Bilan!A44:BM94,54,FALSE),"") ->  | AT47: =IFERROR(SUM((VLOOKUP(Septembre!A47,Données!$H$6:$J$53,3,FALSE)/12)*9),"") -> 
A48: =Données!$H45 -> 0 | AL48: =VLOOKUP(A48,INDIRECT("B"&$A$1&"!A6:BM56"),49,FALSE) -> 0 | AM48: =VLOOKUP(A48,INDIRECT("B"&$A$1&"!A6:BM56"),50,FALSE) -> 0 | AN48: =VLOOKUP(A48,INDIRECT("B"&$A$1&"!A6:BM56"),51,FALSE) -> 0 | AP48: =IFERROR(VLOOKUP(A48,INDIRECT("B"&$A$1&"!A6:BM56"),53,FALSE),"") -> 0 | AQ48: =IFERROR(VLOOKUP(A48,Bilan!A45:BM95,54,FALSE),"") ->  | AT48: =IFERROR(SUM((VLOOKUP(Septembre!A48,Données!$H$6:$J$53,3,FALSE)/12)*9),"") -> 
A49: =Données!$H46 -> Coordinatrice
A50: =Données!$H47 -> 14 | AL50: =VLOOKUP(A50,INDIRECT("B"&$A$1&"!A6:BM56"),49,FALSE) -> 0 | AM50: =VLOOKUP(A50,INDIRECT("B"&$A$1&"!A6:BM56"),50,FALSE) -> 0 | AN50: =VLOOKUP(A50,INDIRECT("B"&$A$1&"!A6:BM56"),51,FALSE) -> 0 | AP50: =IFERROR(VLOOKUP(A50,INDIRECT("B"&$A$1&"!A6:BM56"),53,FALSE),"") -> 0 | AQ50: =IFERROR(VLOOKUP(A50,Bilan!A47:BM97,54,FALSE),"") -> 4.375 | AT50: =IFERROR(SUM((VLOOKUP(Septembre!A50,Données!$H$6:$J$53,3,FALSE)/12)*9),"") -> 47.25
A51: =Données!$H48 -> 0 | AL51: =VLOOKUP(A51,INDIRECT("B"&$A$1&"!A6:BM56"),49,FALSE) -> 0 | AM51: =VLOOKUP(A51,INDIRECT("B"&$A$1&"!A6:BM56"),50,FALSE) -> 0 | AN51: =VLOOKUP(A51,INDIRECT("B"&$A$1&"!A6:BM56"),51,FALSE) -> 0 | AP51: =IFERROR(VLOOKUP(A51,INDIRECT("B"&$A$1&"!A6:BM56"),53,FALSE),"") -> 0 | AQ51: =IFERROR(VLOOKUP(A51,Bilan!A48:BM98,54,FALSE),"") ->  | AT51: =IFERROR(SUM((VLOOKUP(Septembre!A51,Données!$H$6:$J$53,3,FALSE)/12)*9),"") -> 
A52: =Données!$H49 -> 0 | AL52: =VLOOKUP(A52,INDIRECT("B"&$A$1&"!A6:BM56"),49,FALSE) -> 0 | AM52: =VLOOKUP(A52,INDIRECT("B"&$A$1&"!A6:BM56"),50,FALSE) -> 0 | AN52: =VLOOKUP(A52,INDIRECT("B"&$A$1&"!A6:BM56"),51,FALSE) -> 0 | AP52: =IFERROR(VLOOKUP(A52,INDIRECT("B"&$A$1&"!A6:BM56"),53,FALSE),"") -> 0 | AQ52: =IFERROR(VLOOKUP(A52,Bilan!A49:BM99,54,FALSE),"") ->  | AT52: =IFERROR(SUM((VLOOKUP(Septembre!A52,Données!$H$6:$J$53,3,FALSE)/12)*9),"") -> 
A53: =Données!$H50 -> 0 | AL53: =VLOOKUP(A53,INDIRECT("B"&$A$1&"!A6:BM56"),49,FALSE) -> 0 | AM53: =VLOOKUP(A53,INDIRECT("B"&$A$1&"!A6:BM56"),50,FALSE) -> 0 | AN53: =VLOOKUP(A53,INDIRECT("B"&$A$1&"!A6:BM56"),51,FALSE) -> 0 | AP53: =IFERROR(VLOOKUP(A53,INDIRECT("B"&$A$1&"!A6:BM56"),53,FALSE),"") -> 0 | AQ53: =IFERROR(VLOOKUP(A53,Bilan!A50:BM100,54,FALSE),"") ->  | AT53: =IFERROR(SUM((VLOOKUP(Septembre!A53,Données!$H$6:$J$53,3,FALSE)/12)*9),"") -> 
A54: =Données!$H51 -> 0 | AL54: =VLOOKUP(A54,INDIRECT("B"&$A$1&"!A6:BM56"),49,FALSE) -> 0 | AM54: =VLOOKUP(A54,INDIRECT("B"&$A$1&"!A6:BM56"),50,FALSE) -> 0 | AN54: =VLOOKUP(A54,INDIRECT("B"&$A$1&"!A6:BM56"),51,FALSE) -> 0 | AP54: =IFERROR(VLOOKUP(A54,INDIRECT("B"&$A$1&"!A6:BM56"),53,FALSE),"") -> 0 | AQ54: =IFERROR(VLOOKUP(A54,Bilan!A51:BM101,54,FALSE),"") ->  | AT54: =IFERROR(SUM((VLOOKUP(Septembre!A54,Données!$H$6:$J$53,3,FALSE)/12)*9),"") -> 
A55: =Données!$H52 -> Chef de service
A56: =Données!$H53 -> 15 | AL56: =VLOOKUP(A56,INDIRECT("B"&$A$1&"!A6:BM56"),49,FALSE) -> 0 | AM56: =VLOOKUP(A56,INDIRECT("B"&$A$1&"!A6:BM56"),50,FALSE) -> 0 | AN56: =VLOOKUP(A56,INDIRECT("B"&$A$1&"!A6:BM56"),51,FALSE) -> 0 | AP56: =IFERROR(VLOOKUP(A56,INDIRECT("B"&$A$1&"!A6:BM56"),53,FALSE),"") -> 0 | AQ56: =IFERROR(VLOOKUP(A56,Bilan!A53:BM103,54,FALSE),"") -> 24.79166667 | AT56: =IFERROR(SUM((VLOOKUP(Septembre!A56,Données!$H$6:$J$53,3,FALSE)/12)*9),"") -> 47.25
B58: =Données!$A3 -> M | C58: = | D58: =IF(ISBLANK(Données!$C3),TEXT(Données!$B3,"hh:mm"),TEXT(Données!$B3,"hh:mm")&" : "&TEXT(Données!$C3,"hh:mm")) -> 07:00 : 14:30 | H58: =Données!$A7 -> DM | I58: = | J58: =IF(ISBLANK(Données!$C7),TEXT(Données!$B7,"hh:mm"),TEXT(Données!$B7,"hh:mm")&" : "&TEXT(Données!$C7,"hh:mm")) -> 08:00 : 15:30 | N58: =Données!$A10 -> S+ | O58: = | P58: =IF(ISBLANK(Données!$C10),TEXT(Données!$B10,"hh:mm"),TEXT(Données!$B10,"hh:mm")&" : "&TEXT(Données!$C10,"hh:mm")) -> 14:00 : 23:00 | T58: =Données!$A14 -> N | U58: = | V58: =IF(ISBLANK(Données!$C14),TEXT(Données!$B14,"hh:mm"),TEXT(Données!$B14,"hh:mm")&" : "&TEXT(Données!$C14,"hh:mm")) -> 20:00 : 07:00 | Z58: =Données!$A18 -> sta | AA58: = | AB58: =IF(ISBLANK(Données!$C18),TEXT(Données!$B18,"hh:mm"),TEXT(Données!$B18,"hh:mm")&" : "&TEXT(Données!$C18,"hh:mm")) -> sta : ge
B59: =Données!$A4 -> MR | C59: = | D59: =IF(ISBLANK(Données!$C4),TEXT(Données!$B4,"hh:mm"),TEXT(Données!$B4,"hh:mm")&" : "&TEXT(Données!$C4,"hh:mm")) -> 07:00 : 17:00 | H59: =Données!$A8 -> PFJ | I59: = | J59: =IF(ISBLANK(Données!$C8),TEXT(Données!$B8,"hh:mm"),TEXT(Données!$B8,"hh:mm")&" : "&TEXT(Données!$C8,"hh:mm")) -> 09:00 : 17:00 | N59: =Données!$A11 -> R | O59: = | P59: =IF(ISBLANK(Données!$C11),TEXT(Données!$B11,"hh:mm"),TEXT(Données!$B11,"hh:mm")&" : "&TEXT(Données!$C11,"hh:mm")) -> 14:00 : 17:00 | T59: =Données!$A15 -> NVS | U59: = | V59: =IF(ISBLANK(Données!$C15),TEXT(Données!$B15,"hh:mm"),TEXT(Données!$B15,"hh:mm")&" : "&TEXT(Données!$C15,"hh:mm")) -> 20:00 : 08:00 | Z59: =Données!$A19 -> AT | AA59: = | AB59: =IF(ISBLANK(Données!$C19),TEXT(Données!$B19,"hh:mm"),TEXT(Données!$B19,"hh:mm")&" : "&TEXT(Données!$C19,"hh:mm")) -> AT : AT
B60: =Données!$A5 -> D | C60: = | D60: =IF(ISBLANK(Données!$C5),TEXT(Données!$B5,"hh:mm"),TEXT(Données!$B5,"hh:mm")&" : "&TEXT(Données!$C5,"hh:mm")) -> 10:00 : 17:30 | H60: =Données!$A9 -> S | I60: = | J60: =IF(ISBLANK(Données!$C9),TEXT(Données!$B9,"hh:mm"),TEXT(Données!$B9,"hh:mm")&" : "&TEXT(Données!$C9,"hh:mm")) -> 14:00 : 22:00 | N60: =Données!$A12 -> W | O60: = | P60: =IF(ISBLANK(Données!$C12),TEXT(Données!$B12,"hh:mm"),TEXT(Données!$B12,"hh:mm")&" : "&TEXT(Données!$C12,"hh:mm")) -> 08:00 : 20:00 | T60: =Données!$A16 -> CA | U60: = | V60: =IF(ISBLANK(Données!$C16),TEXT(Données!$B16,"hh:mm"),TEXT(Données!$B16,"hh:mm")&" : "&TEXT(Données!$C16,"hh:mm")) -> CA : CA | Z60: =Données!$A20 -> AM | AA60: = | AB60: =IF(ISBLANK(Données!$C20),TEXT(Données!$B20,"hh:mm"),TEXT(Données!$B20,"hh:mm")&" : "&TEXT(Données!$C20,"hh:mm")) -> AM : AM
B61: =Données!$A6 -> DR | C61: = | D61: =IF(ISBLANK(Données!$C6),TEXT(Données!$B6,"hh:mm"),TEXT(Données!$B6,"hh:mm")&" : "&TEXT(Données!$C6,"hh:mm")) -> 10:00 : 17:30 | H61: =Données!$A10 -> S+ | I61: = | J61: =IF(ISBLANK(Données!$C10),TEXT(Données!$B10,"hh:mm"),TEXT(Données!$B10,"hh:mm")&" : "&TEXT(Données!$C10,"hh:mm")) -> 14:00 : 23:00 | N61: =Données!$A13 -> W+ | O61: = | P61: =IF(ISBLANK(Données!$C13),TEXT(Données!$B13,"hh:mm"),TEXT(Données!$B13,"hh:mm")&" : "&TEXT(Données!$C13,"hh:mm")) -> 11:00 : 23:00 | T61: =Données!$A17 -> F | U61: = | V61: =IF(ISBLANK(Données!$C17),TEXT(Données!$B17,"hh:mm"),TEXT(Données!$B17,"hh:mm")&" : "&TEXT(Données!$C17,"hh:mm")) -> F : 00:00 | Z61: =Données!$A21 -> CM | AA61: = | AB61: =IF(ISBLANK(Données!$C21),TEXT(Données!$B21,"hh:mm"),TEXT(Données!$B21,"hh:mm")&" : "&TEXT(Données!$C21,"hh:mm")) -> CM : CM

Sheet Octobre
A1: octobre
B2: =DATE(An,Octobre,B7) -> 2018-10-01 | C2: 2018-10-02 | D2: 2018-10-03 | E2: 2018-10-04 | F2: 2018-10-05 | G2: 2018-10-06 | H2: 2018-10-07 | I2: 2018-10-08 | J2: 2018-10-09 | K2: 2018-10-10 | L2: 2018-10-11 | M2: 2018-10-12 | N2: 2018-10-13 | O2: 2018-10-14 | P2: 2018-10-15 | Q2: 2018-10-16 | R2: 2018-10-17 | S2: 2018-10-18 | T2: 2018-10-19 | U2: 2018-10-20 | V2: 2018-10-21 | W2: 2018-10-22 | X2: 2018-10-23 | Y2: 2018-10-24 | Z2: 2018-10-25 | AA2: 2018-10-26 | AB2: 2018-10-27 | AC2: 2018-10-28 | AD2: 2018-10-29 | AE2: 2018-10-30 | AF2: 2018-10-31 | AI2: Pour remplir | AJ2: penser | AO2: =IF(ISNUMBER(AO7),DATE(An,Octobre,AO7),"") ->  | AP2: =IF(ISNUMBER(AP7),DATE(An,Octobre,AP7),"") -> 
A3: =IF(Données!$L$5="","Service",Données!$L$5) -> RENFORT 2 | K3: Mois d'Octobre | P3: =An -> 2018 | AI3: à mettre dans le format:
AI4: "heures":"Minutes" | AT4: Masse horraire previsionnel
AI5: Heures sup | AJ5: Heures sup | AL5: Indications | AM5: Indications | AN5: Indications | AP5: Total
A6: Jours | B6: =PROPER(LEFT(TEXT(DATE(An,Octobre,B7),"jjj"),1)) -> L | C6: M | D6: M | E6: J | F6: V | G6: S | H6: D | I6: L | J6: M | K6: M | L6: J | M6: V | N6: S | O6: D | P6: L | Q6: M | R6: M | S6: J | T6: V | U6: S | V6: D | W6: L | X6: M | Y6: M | Z6: J | AA6: V | AB6: S | AC6: D | AD6: L | AE6: M | AF6: M | AI6: avant 21h | AJ6: après 21h | AL6: Heures | AM6: Heures nuit | AN6: Heures | AP6: Heures | AQ6: Heures
B7: =A7+1 -> 1 | C7: 2 | D7: 3 | E7: 4 | F7: 5 | G7: 6 | H7: 7 | I7: 8 | J7: 9 | K7: 10 | L7: 11 | M7: 12 | N7: 13 | O7: 14 | P7: 15 | Q7: 16 | R7: 17 | S7: 18 | T7: 19 | U7: 20 | V7: 21 | W7: 22 | X7: 23 | Y7: 24 | Z7: 25 | AA7: 26 | AB7: 27 | AC7: 28 | AD7: 29 | AE7: 30 | AF7: =AE7+1 -> 31 | AI7: A remplir | AJ7: A remplir | AL7: Dimanche | AM7: Dimanche | AN7: après 21h | AP7: au mois | AQ7: a l'année | AT7: i
A8: Equipe de jour
A9: =Données!$H6 -> 1 | AL9: =VLOOKUP(A9,INDIRECT("B"&$A$1&"!A6:BM56"),49,FALSE) -> 0 | AM9: =VLOOKUP(A9,INDIRECT("B"&$A$1&"!A6:BM56"),50,FALSE) -> 0 | AN9: =VLOOKUP(A9,INDIRECT("B"&$A$1&"!A6:BM56"),51,FALSE) -> 0 | AP9: =IFERROR(VLOOKUP(A9,INDIRECT("B"&$A$1&"!A6:BM56"),53,FALSE),"") -> 0 | AQ9: =IFERROR(VLOOKUP(A9,Bilan!A6:BM56,54,FALSE),"") -> 18.35416667 | AT9: =IFERROR(SUM((VLOOKUP(Octobre!A9,Données!$H$6:$J$53,3,FALSE)/12)*10),"") -> 49.58333333
A10: =Données!$H7 -> 2 | AL10: 0 | AM10: 0 | AN10: 0 | AP10: 0 | AQ10: =IFERROR(VLOOKUP(A10,Bilan!A7:BM57,54,FALSE),"") -> 22.8625 | AT10: =IFERROR(SUM((VLOOKUP(Octobre!A10,Données!$H$6:$J$53,3,FALSE)/12)*10),"") -> 49.58333333
A11: =Données!$H8 -> 3 | AL11: 0 | AM11: 0 | AN11: 0 | AP11: 0 | AQ11: =IFERROR(VLOOKUP(A11,Bilan!A8:BM58,54,FALSE),"") -> 17 | AT11: =IFERROR(SUM((VLOOKUP(Octobre!A11,Données!$H$6:$J$53,3,FALSE)/12)*10),"") -> 49.58333333
A12: =Données!$H9 -> 4 | AL12: 0 | AM12: 0 | AN12: 0 | AP12: 0 | AQ12: =IFERROR(VLOOKUP(A12,Bilan!A9:BM59,54,FALSE),"") -> 39.58333333 | AT12: =IFERROR(SUM((VLOOKUP(Octobre!A12,Données!$H$6:$J$53,3,FALSE)/12)*10),"") -> 49.58333333
A13: =Données!$H10 -> 5 | AL13: 0 | AM13: 0 | AN13: 0 | AP13: 0 | AQ13: =IFERROR(VLOOKUP(A13,Bilan!A10:BM60,54,FALSE),"") -> 17.4375 | AT13: =IFERROR(SUM((VLOOKUP(Octobre!A13,Données!$H$6:$J$53,3,FALSE)/12)*10),"") -> 49.58333333
A14: =Données!$H11 -> 6 | AL14: 0 | AM14: 0 | AN14: 0 | AP14: 0 | AQ14: =IFERROR(VLOOKUP(A14,Bilan!A11:BM61,54,FALSE),"") -> 20.39583333 | AT14: =IFERROR(SUM((VLOOKUP(Octobre!A14,Données!$H$6:$J$53,3,FALSE)/12)*10),"") -> 49.58333333
A15: =Données!$H12 -> 7 | AL15: 0 | AM15: 0 | AN15: 0 | AP15: 0 | AQ15: =IFERROR(VLOOKUP(A15,Bilan!A12:BM62,54,FALSE),"") -> 6.4375 | AT15: =IFERROR(SUM((VLOOKUP(Octobre!A15,Données!$H$6:$J$53,3,FALSE)/12)*10),"") -> 49.58333333
A16: =Données!$H13 -> 8 | AL16: 0 | AM16: 0 | AN16: 0 | AP16: 0 | AQ16: =IFERROR(VLOOKUP(A16,Bilan!A13:BM63,54,FALSE),"") -> 6.3125 | AT16: =IFERROR(SUM((VLOOKUP(Octobre!A16,Données!$H$6:$J$53,3,FALSE)/12)*10),"") -> 49.58333333
A17: =Données!$H14 -> 0 | AL17: 0 | AM17: 0 | AN17: 0 | AP17: 0 | AQ17: =IFERROR(VLOOKUP(A17,Bilan!A14:BM64,54,FALSE),"") -> 62.4375 | AT17: =IFERROR(SUM((VLOOKUP(Octobre!A17,Données!$H$6:$J$53,3,FALSE)/12)*10),"") -> 
A18: =Données!$H15 -> 0 | AL18: 0 | AM18: 0 | AN18: 0 | AP18: 0 | AQ18: =IFERROR(VLOOKUP(A18,Bilan!A15:BM65,54,FALSE),"") -> 62.4375 | AT18: =IFERROR(SUM((VLOOKUP(Octobre!A18,Données!$H$6:$J$53,3,FALSE)/12)*10),"") -> 
A19: =Données!$H16 -> 0 | AL19: 0 | AM19: 0 | AN19: 0 | AP19: 0 | AQ19: =IFERROR(VLOOKUP(A19,Bilan!A16:BM66,54,FALSE),"") -> 62.4375 | AT19: =IFERROR(SUM((VLOOKUP(Octobre!A19,Données!$H$6:$J$53,3,FALSE)/12)*10),"") -> 
A20: =Données!$H17 -> 0 | AL20: =VLOOKUP(A20,INDIRECT("B"&$A$1&"!A6:BM56"),49,FALSE) -> 0 | AM20: =VLOOKUP(A20,INDIRECT("B"&$A$1&"!A6:BM56"),50,FALSE) -> 0 | AN20: =VLOOKUP(A20,INDIRECT("B"&$A$1&"!A6:BM56"),51,FALSE) -> 0 | AP20: =IFERROR(VLOOKUP(A20,INDIRECT("B"&$A$1&"!A6:BM56"),53,FALSE),"") -> 0 | AQ20: =IFERROR(VLOOKUP(A20,Bilan!A17:BM67,54,FALSE),"") -> 62.4375 | AT20: =IFERROR(SUM((VLOOKUP(Octobre!A20,Données!$H$6:$J$53,3,FALSE)/12)*10),"") -> 
A21: =Données!$H18 -> 0 | AL21: =VLOOKUP(A21,INDIRECT("B"&$A$1&"!A6:BM56"),49,FALSE) -> 0 | AM21: =VLOOKUP(A21,INDIRECT("B"&$A$1&"!A6:BM56"),50,FALSE) -> 0 | AN21: =VLOOKUP(A21,INDIRECT("B"&$A$1&"!A6:BM56"),51,FALSE) -> 0 | AP21: =IFERROR(VLOOKUP(A21,INDIRECT("B"&$A$1&"!A6:BM56"),53,FALSE),"") -> 0 | AQ21: =IFERROR(VLOOKUP(A21,Bilan!A18:BM68,54,FALSE),"") -> 62.4375 | AT21: =IFERROR(SUM((VLOOKUP(Octobre!A21,Données!$H$6:$J$53,3,FALSE)/12)*10),"") -> 
A22: =Données!$H19 -> 0 | AL22: =VLOOKUP(A22,INDIRECT("B"&$A$1&"!A6:BM56"),49,FALSE) -> 0 | AM22: =VLOOKUP(A22,INDIRECT("B"&$A$1&"!A6:BM56"),50,FALSE) -> 0 | AN22: =VLOOKUP(A22,INDIRECT("B"&$A$1&"!A6:BM56"),51,FALSE) -> 0 | AP22: =IFERROR(VLOOKUP(A22,INDIRECT("B"&$A$1&"!A6:BM56"),53,FALSE),"") -> 0 | AQ22: =IFERROR(VLOOKUP(A22,Bilan!A19:BM69,54,FALSE),"") -> 62.4375 | AT22: =IFERROR(SUM((VLOOKUP(Octobre!A22,Données!$H$6:$J$53,3,FALSE)/12)*10),"") -> 
A23: =Données!$H20 -> 0 | AL23: =VLOOKUP(A23,INDIRECT("B"&$A$1&"!A6:BM56"),49,FALSE) -> 0 | AM23: =VLOOKUP(A23,INDIRECT("B"&$A$1&"!A6:BM56"),50,FALSE) -> 0 | AN23: =VLOOKUP(A23,INDIRECT("B"&$A$1&"!A6:BM56"),51,FALSE) -> 0 | AP23: =IFERROR(VLOOKUP(A23,INDIRECT("B"&$A$1&"!A6:BM56"),53,FALSE),"") -> 0 | AQ23: =IFERROR(VLOOKUP(A23,Bilan!A20:BM70,54,FALSE),"") ->  | AT23: =IFERROR(SUM((VLOOKUP(Octobre!A23,Données!$H$6:$J$53,3,FALSE)/12)*10),"") -> 
A24: =Données!$H21 -> 0 | AL24: =VLOOKUP(A24,INDIRECT("B"&$A$1&"!A6:BM56"),49,FALSE) -> 0 | AM24: =VLOOKUP(A24,INDIRECT("B"&$A$1&"!A6:BM56"),50,FALSE) -> 0 | AN24: =VLOOKUP(A24,INDIRECT("B"&$A$1&"!A6:BM56"),51,FALSE) -> 0 | AP24: =IFERROR(VLOOKUP(A24,INDIRECT("B"&$A$1&"!A6:BM56"),53,FALSE),"") -> 0 | AQ24: =IFERROR(VLOOKUP(A24,Bilan!A21:BM71,54,FALSE),"") -> 0 | AT24: =IFERROR(SUM((VLOOKUP(Octobre!A24,Données!$H$6:$J$53,3,FALSE)/12)*10),"") -> 
A25: =Données!$H22 -> Equipe de nuit
A26: =Données!$H23 -> 9 | AL26: =VLOOKUP(A26,INDIRECT("B"&$A$1&"!A6:BM56"),49,FALSE) -> 0 | AM26: =VLOOKUP(A26,INDIRECT("B"&$A$1&"!A6:BM56"),50,FALSE) -> 0 | AN26: =VLOOKUP(A26,INDIRECT("B"&$A$1&"!A6:BM56"),51,FALSE) -> 0 | AP26: =IFERROR(VLOOKUP(A26,INDIRECT("B"&$A$1&"!A6:BM56"),53,FALSE),"") -> 0 | AQ26: =IFERROR(VLOOKUP(A26,Bilan!A23:BM73,54,FALSE),"") -> 15.98333333 | AT26: =IFERROR(SUM((VLOOKUP(Octobre!A26,Données!$H$6:$J$53,3,FALSE)/12)*10),"") -> 48.29861111
A27: =Données!$H24 -> 10 | AL27: =VLOOKUP(A27,INDIRECT("B"&$A$1&"!A6:BM56"),49,FALSE) -> 0 | AM27: =VLOOKUP(A27,INDIRECT("B"&$A$1&"!A6:BM56"),50,FALSE) -> 0 | AN27: =VLOOKUP(A27,INDIRECT("B"&$A$1&"!A6:BM56"),51,FALSE) -> 0 | AP27: =IFERROR(VLOOKUP(A27,INDIRECT("B"&$A$1&"!A6:BM56"),53,FALSE),"") -> 0 | AQ27: =IFERROR(VLOOKUP(A27,Bilan!A24:BM74,54,FALSE),"") -> 12.04166667 | AT27: =IFERROR(SUM((VLOOKUP(Octobre!A27,Données!$H$6:$J$53,3,FALSE)/12)*10),"") -> 48.29861111
A28: =Données!$H25 -> 11 | B28: CA | C28: CA | D28: CA | E28: CA | F28: CA | Y28: CA | Z28: CA | AA28: CA | AD28: CA | AE28: CA | AF28: CA | AL28: =VLOOKUP(A28,INDIRECT("B"&$A$1&"!A6:BM56"),49,FALSE) -> 0 | AM28: =VLOOKUP(A28,INDIRECT("B"&$A$1&"!A6:BM56"),50,FALSE) -> 0 | AN28: =VLOOKUP(A28,INDIRECT("B"&$A$1&"!A6:BM56"),51,FALSE) -> 0 | AP28: =IFERROR(VLOOKUP(A28,INDIRECT("B"&$A$1&"!A6:BM56"),53,FALSE),"") -> 0 | AQ28: =IFERROR(VLOOKUP(A28,Bilan!A25:BM75,54,FALSE),"") -> 16.20833333 | AT28: =IFERROR(SUM((VLOOKUP(Octobre!A28,Données!$H$6:$J$53,3,FALSE)/12)*10),"") -> 48.29861111
A29: =Données!$H26 -> 0 | AL29: =VLOOKUP(A29,INDIRECT("B"&$A$1&"!A6:BM56"),49,FALSE) -> 0 | AM29: =VLOOKUP(A29,INDIRECT("B"&$A$1&"!A6:BM56"),50,FALSE) -> 0 | AN29: =VLOOKUP(A29,INDIRECT("B"&$A$1&"!A6:BM56"),51,FALSE) -> 0 | AP29: =IFERROR(VLOOKUP(A29,INDIRECT("B"&$A$1&"!A6:BM56"),53,FALSE),"") -> 0 | AQ29: =IFERROR(VLOOKUP(A29,Bilan!A26:BM76,54,FALSE),"") -> 62.4375 | AT29: =IFERROR(SUM((VLOOKUP(Octobre!A29,Données!$H$6:$J$53,3,FALSE)/12)*10),"") -> 
A30: =Données!$H27 -> 0 | AL30: 0 | AM30: 0 | AN30: 0 | AP30: 0 | AQ30: =IFERROR(VLOOKUP(A30,Bilan!A27:BM77,54,FALSE),"") -> 62.4375 | AT30: =IFERROR(SUM((VLOOKUP(Octobre!A30,Données!$H$6:$J$53,3,FALSE)/12)*10),"") -> 
A31: =Données!$H28 -> 0 | AL31: 0 | AM31: 0 | AN31: 0 | AP31: 0 | AQ31: =IFERROR(VLOOKUP(A31,Bilan!A28:BM78,54,FALSE),"") -> 62.4375 | AT31: =IFERROR(SUM((VLOOKUP(Octobre!A31,Données!$H$6:$J$53,3,FALSE)/12)*10),"") -> 
A32: =Données!$H29 -> 0 | AL32: 0 | AM32: 0 | AN32: 0 | AP32: 0 | AQ32: =IFERROR(VLOOKUP(A32,Bilan!A29:BM79,54,FALSE),"") -> 62.4375 | AT32: =IFERROR(SUM((VLOOKUP(Octobre!A32,Données!$H$6:$J$53,3,FALSE)/12)*10),"") -> 
A33: =Données!$H30 -> 0 | AL33: 0 | AM33: 0 | AN33: 0 | AP33: 0 | AQ33: =IFERROR(VLOOKUP(A33,Bilan!A30:BM80,54,FALSE),"") ->  | AT33: =IFERROR(SUM((VLOOKUP(Octobre!A33,Données!$H$6:$J$53,3,FALSE)/12)*10),"") -> 
A34: =Données!$H31 -> 0 | AL34: 0 | AM34: 0 | AN34: 0 | AP34: 0 | AQ34: =IFERROR(VLOOKUP(A34,Bilan!A31:BM81,54,FALSE),"") ->  | AT34: =IFERROR(SUM((VLOOKUP(Octobre!A34,Données!$H$6:$J$53,3,FALSE)/12)*10),"") -> 
A35: =Données!$H32 -> Maitresse de maison
A36: =Données!$H33 -> 12 | AL36: =VLOOKUP(A36,INDIRECT("B"&$A$1&"!A6:BM56"),49,FALSE) -> 0 | AM36: =VLOOKUP(A36,INDIRECT("B"&$A$1&"!A6:BM56"),50,FALSE) -> 0 | AN36: =VLOOKUP(A36,INDIRECT("B"&$A$1&"!A6:BM56"),51,FALSE) -> 0 | AP36: =IFERROR(VLOOKUP(A36,INDIRECT("B"&$A$1&"!A6:BM56"),53,FALSE),"") -> 0 | AQ36: =IFERROR(VLOOKUP(A36,Bilan!A33:BM83,54,FALSE),"") -> 0.4166666667 | AT36: =IFERROR(SUM((VLOOKUP(Octobre!A36,Données!$H$6:$J$53,3,FALSE)/12)*10),"") -> 52.5
A37: =Données!$H34 -> 0 | AL37: =VLOOKUP(A37,INDIRECT("B"&$A$1&"!A6:BM56"),49,FALSE) -> 0 | AM37: =VLOOKUP(A37,INDIRECT("B"&$A$1&"!A6:BM56"),50,FALSE) -> 0 | AN37: =VLOOKUP(A37,INDIRECT("B"&$A$1&"!A6:BM56"),51,FALSE) -> 0 | AP37: =IFERROR(VLOOKUP(A37,INDIRECT("B"&$A$1&"!A6:BM56"),53,FALSE),"") -> 0 | AQ37: =IFERROR(VLOOKUP(A37,Bilan!A34:BM84,54,FALSE),"") ->  | AT37: =IFERROR(SUM((VLOOKUP(Octobre!A37,Données!$H$6:$J$53,3,FALSE)/12)*10),"") -> 
A38: =Données!$H35 -> 0 | AL38: 0 | AM38: 0 | AN38: 0 | AP38: 0 | AQ38: =IFERROR(VLOOKUP(A38,Bilan!A35:BM85,54,FALSE),"") -> 62.4375 | AT38: =IFERROR(SUM((VLOOKUP(Octobre!A38,Données!$H$6:$J$53,3,FALSE)/12)*10),"") -> 
A39: =Données!$H36 -> 0 | AL39: 0 | AM39: 0 | AN39: 0 | AP39: 0 | AQ39: =IFERROR(VLOOKUP(A39,Bilan!A36:BM86,54,FALSE),"") -> 62.4375 | AT39: =IFERROR(SUM((VLOOKUP(Octobre!A39,Données!$H$6:$J$53,3,FALSE)/12)*10),"") -> 
A40: =Données!$H37 -> 0 | AL40: 0 | AM40: 0 | AN40: 0 | AP40: 0 | AQ40: =IFERROR(VLOOKUP(A40,Bilan!A37:BM87,54,FALSE),"") -> 62.4375 | AT40: =IFERROR(SUM((VLOOKUP(Octobre!A40,Données!$H$6:$J$53,3,FALSE)/12)*10),"") -> 
A41: =Données!$H38 -> 0 | AL41: 0 | AM41: 0 | AN41: 0 | AP41: 0 | AQ41: =IFERROR(VLOOKUP(A41,Bilan!A38:BM88,54,FALSE),"") ->  | AT41: =IFERROR(SUM((VLOOKUP(Octobre!A41,Données!$H$6:$J$53,3,FALSE)/12)*10),"") -> 
A42: =Données!$H39 -> 0 | AL42: 0 | AM42: 0 | AN42: 0 | AP42: 0 | AQ42: =IFERROR(VLOOKUP(A42,Bilan!A39:BM89,54,FALSE),"") ->  | AT42: =IFERROR(SUM((VLOOKUP(Octobre!A42,Données!$H$6:$J$53,3,FALSE)/12)*10),"") -> 
A43: =Données!$H40 -> 0 | AL43: 0 | AM43: 0 | AN43: 0 | AP43: 0 | AQ43: =IFERROR(VLOOKUP(A43,Bilan!A40:BM90,54,FALSE),"") ->  | AT43: =IFERROR(SUM((VLOOKUP(Octobre!A43,Données!$H$6:$J$53,3,FALSE)/12)*10),"") -> 
A44: =Données!$H41 -> 0 | AL44: 0 | AM44: 0 | AN44: 0 | AP44: 0 | AQ44: =IFERROR(VLOOKUP(A44,Bilan!A41:BM91,54,FALSE),"") ->  | AT44: =IFERROR(SUM((VLOOKUP(Octobre!A44,Données!$H$6:$J$53,3,FALSE)/12)*10),"") -> 
A45: =Données!$H42 -> Psychologue
A46: =Données!$H43 -> 13 | AL46: =VLOOKUP(A46,INDIRECT("B"&$A$1&"!A6:BM56"),49,FALSE) -> 0 | AM46: =VLOOKUP(A46,INDIRECT("B"&$A$1&"!A6:BM56"),50,FALSE) -> 0 | AN46: =VLOOKUP(A46,INDIRECT("B"&$A$1&"!A6:BM56"),51,FALSE) -> 0 | AP46: =IFERROR(VLOOKUP(A46,INDIRECT("B"&$A$1&"!A6:BM56"),53,FALSE),"") -> 0 | AQ46: =IFERROR(VLOOKUP(A46,Bilan!A43:BM93,54,FALSE),"") -> 0.625 | AT46: =IFERROR(SUM((VLOOKUP(Octobre!A46,Données!$H$6:$J$53,3,FALSE)/12)*10),"") -> 52.5
A47: =Données!$H44 -> 0 | AL47: =VLOOKUP(A47,INDIRECT("B"&$A$1&"!A6:BM56"),49,FALSE) -> 0 | AM47: =VLOOKUP(A47,INDIRECT("B"&$A$1&"!A6:BM56"),50,FALSE) -> 0 | AN47: =VLOOKUP(A47,INDIRECT("B"&$A$1&"!A6:BM56"),51,FALSE) -> 0 | AP47: =IFERROR(VLOOKUP(A47,INDIRECT("B"&$A$1&"!A6:BM56"),53,FALSE),"") -> 0 | AQ47: =IFERROR(VLOOKUP(A47,Bilan!A44:BM94,54,FALSE),"") ->  | AT47: =IFERROR(SUM((VLOOKUP(Octobre!A47,Données!$H$6:$J$53,3,FALSE)/12)*10),"") -> 
A48: =Données!$H45 -> 0 | AL48: =VLOOKUP(A48,INDIRECT("B"&$A$1&"!A6:BM56"),49,FALSE) -> 0 | AM48: =VLOOKUP(A48,INDIRECT("B"&$A$1&"!A6:BM56"),50,FALSE) -> 0 | AN48: =VLOOKUP(A48,INDIRECT("B"&$A$1&"!A6:BM56"),51,FALSE) -> 0 | AP48: =IFERROR(VLOOKUP(A48,INDIRECT("B"&$A$1&"!A6:BM56"),53,FALSE),"") -> 0 | AQ48: =IFERROR(VLOOKUP(A48,Bilan!A45:BM95,54,FALSE),"") ->  | AT48: =IFERROR(SUM((VLOOKUP(Octobre!A48,Données!$H$6:$J$53,3,FALSE)/12)*10),"") -> 
A49: =Données!$H46 -> Coordinatrice
A50: =Données!$H47 -> 14 | AL50: =VLOOKUP(A50,INDIRECT("B"&$A$1&"!A6:BM56"),49,FALSE) -> 0 | AM50: =VLOOKUP(A50,INDIRECT("B"&$A$1&"!A6:BM56"),50,FALSE) -> 0 | AN50: =VLOOKUP(A50,INDIRECT("B"&$A$1&"!A6:BM56"),51,FALSE) -> 0 | AP50: =IFERROR(VLOOKUP(A50,INDIRECT("B"&$A$1&"!A6:BM56"),53,FALSE),"") -> 0 | AQ50: =IFERROR(VLOOKUP(A50,Bilan!A47:BM97,54,FALSE),"") -> 4.375 | AT50: =IFERROR(SUM((VLOOKUP(Octobre!A50,Données!$H$6:$J$53,3,FALSE)/12)*10),"") -> 52.5
A51: =Données!$H48 -> 0 | AL51: =VLOOKUP(A51,INDIRECT("B"&$A$1&"!A6:BM56"),49,FALSE) -> 0 | AM51: =VLOOKUP(A51,INDIRECT("B"&$A$1&"!A6:BM56"),50,FALSE) -> 0 | AN51: =VLOOKUP(A51,INDIRECT("B"&$A$1&"!A6:BM56"),51,FALSE) -> 0 | AP51: =IFERROR(VLOOKUP(A51,INDIRECT("B"&$A$1&"!A6:BM56"),53,FALSE),"") -> 0 | AQ51: =IFERROR(VLOOKUP(A51,Bilan!A48:BM98,54,FALSE),"") ->  | AT51: =IFERROR(SUM((VLOOKUP(Octobre!A51,Données!$H$6:$J$53,3,FALSE)/12)*10),"") -> 
A52: =Données!$H49 -> 0 | AL52: =VLOOKUP(A52,INDIRECT("B"&$A$1&"!A6:BM56"),49,FALSE) -> 0 | AM52: =VLOOKUP(A52,INDIRECT("B"&$A$1&"!A6:BM56"),50,FALSE) -> 0 | AN52: =VLOOKUP(A52,INDIRECT("B"&$A$1&"!A6:BM56"),51,FALSE) -> 0 | AP52: =IFERROR(VLOOKUP(A52,INDIRECT("B"&$A$1&"!A6:BM56"),53,FALSE),"") -> 0 | AQ52: =IFERROR(VLOOKUP(A52,Bilan!A49:BM99,54,FALSE),"") ->  | AT52: =IFERROR(SUM((VLOOKUP(Octobre!A52,Données!$H$6:$J$53,3,FALSE)/12)*10),"") -> 
A53: =Données!$H50 -> 0 | AL53: =VLOOKUP(A53,INDIRECT("B"&$A$1&"!A6:BM56"),49,FALSE) -> 0 | AM53: =VLOOKUP(A53,INDIRECT("B"&$A$1&"!A6:BM56"),50,FALSE) -> 0 | AN53: =VLOOKUP(A53,INDIRECT("B"&$A$1&"!A6:BM56"),51,FALSE) -> 0 | AP53: =IFERROR(VLOOKUP(A53,INDIRECT("B"&$A$1&"!A6:BM56"),53,FALSE),"") -> 0 | AQ53: =IFERROR(VLOOKUP(A53,Bilan!A50:BM100,54,FALSE),"") ->  | AT53: =IFERROR(SUM((VLOOKUP(Octobre!A53,Données!$H$6:$J$53,3,FALSE)/12)*10),"") -> 
A54: =Données!$H51 -> 0 | AL54: =VLOOKUP(A54,INDIRECT("B"&$A$1&"!A6:BM56"),49,FALSE) -> 0 | AM54: =VLOOKUP(A54,INDIRECT("B"&$A$1&"!A6:BM56"),50,FALSE) -> 0 | AN54: =VLOOKUP(A54,INDIRECT("B"&$A$1&"!A6:BM56"),51,FALSE) -> 0 | AP54: =IFERROR(VLOOKUP(A54,INDIRECT("B"&$A$1&"!A6:BM56"),53,FALSE),"") -> 0 | AQ54: =IFERROR(VLOOKUP(A54,Bilan!A51:BM101,54,FALSE),"") ->  | AT54: =IFERROR(SUM((VLOOKUP(Octobre!A54,Données!$H$6:$J$53,3,FALSE)/12)*10),"") -> 
A55: =Données!$H52 -> Chef de service
A56: =Données!$H53 -> 15 | AL56: =VLOOKUP(A56,INDIRECT("B"&$A$1&"!A6:BM56"),49,FALSE) -> 0 | AM56: =VLOOKUP(A56,INDIRECT("B"&$A$1&"!A6:BM56"),50,FALSE) -> 0 | AN56: =VLOOKUP(A56,INDIRECT("B"&$A$1&"!A6:BM56"),51,FALSE) -> 0 | AP56: =IFERROR(VLOOKUP(A56,INDIRECT("B"&$A$1&"!A6:BM56"),53,FALSE),"") -> 0 | AQ56: =IFERROR(VLOOKUP(A56,Bilan!A53:BM103,54,FALSE),"") -> 24.79166667 | AT56: =IFERROR(SUM((VLOOKUP(Octobre!A56,Données!$H$6:$J$53,3,FALSE)/12)*10),"") -> 52.5
B58: =Données!$A3 -> M | C58: = | D58: =IF(ISBLANK(Données!$C3),TEXT(Données!$B3,"hh:mm"),TEXT(Données!$B3,"hh:mm")&" : "&TEXT(Données!$C3,"hh:mm")) -> 07:00 : 14:30 | H58: =Données!$A7 -> DM | I58: = | J58: =IF(ISBLANK(Données!$C7),TEXT(Données!$B7,"hh:mm"),TEXT(Données!$B7,"hh:mm")&" : "&TEXT(Données!$C7,"hh:mm")) -> 08:00 : 15:30 | N58: =Données!$A10 -> S+ | O58: = | P58: =IF(ISBLANK(Données!$C10),TEXT(Données!$B10,"hh:mm"),TEXT(Données!$B10,"hh:mm")&" : "&TEXT(Données!$C10,"hh:mm")) -> 14:00 : 23:00 | T58: =Données!$A14 -> N | U58: = | V58: =IF(ISBLANK(Données!$C14),TEXT(Données!$B14,"hh:mm"),TEXT(Données!$B14,"hh:mm")&" : "&TEXT(Données!$C14,"hh:mm")) -> 20:00 : 07:00 | Z58: =Données!$A18 -> sta | AA58: = | AB58: =IF(ISBLANK(Données!$C18),TEXT(Données!$B18,"hh:mm"),TEXT(Données!$B18,"hh:mm")&" : "&TEXT(Données!$C18,"hh:mm")) -> sta : ge
B59: =Données!$A4 -> MR | C59: = | D59: =IF(ISBLANK(Données!$C4),TEXT(Données!$B4,"hh:mm"),TEXT(Données!$B4,"hh:mm")&" : "&TEXT(Données!$C4,"hh:mm")) -> 07:00 : 17:00 | H59: =Données!$A8 -> PFJ | I59: = | J59: =IF(ISBLANK(Données!$C8),TEXT(Données!$B8,"hh:mm"),TEXT(Données!$B8,"hh:mm")&" : "&TEXT(Données!$C8,"hh:mm")) -> 09:00 : 17:00 | N59: =Données!$A11 -> R | O59: = | P59: =IF(ISBLANK(Données!$C11),TEXT(Données!$B11,"hh:mm"),TEXT(Données!$B11,"hh:mm")&" : "&TEXT(Données!$C11,"hh:mm")) -> 14:00 : 17:00 | T59: =Données!$A15 -> NVS | U59: = | V59: =IF(ISBLANK(Données!$C15),TEXT(Données!$B15,"hh:mm"),TEXT(Données!$B15,"hh:mm")&" : "&TEXT(Données!$C15,"hh:mm")) -> 20:00 : 08:00 | Z59: =Données!$A19 -> AT | AA59: = | AB59: =IF(ISBLANK(Données!$C19),TEXT(Données!$B19,"hh:mm"),TEXT(Données!$B19,"hh:mm")&" : "&TEXT(Données!$C19,"hh:mm")) -> AT : AT
B60: =Données!$A5 -> D | C60: = | D60: =IF(ISBLANK(Données!$C5),TEXT(Données!$B5,"hh:mm"),TEXT(Données!$B5,"hh:mm")&" : "&TEXT(Données!$C5,"hh:mm")) -> 10:00 : 17:30 | H60: =Données!$A9 -> S | I60: = | J60: =IF(ISBLANK(Données!$C9),TEXT(Données!$B9,"hh:mm"),TEXT(Données!$B9,"hh:mm")&" : "&TEXT(Données!$C9,"hh:mm")) -> 14:00 : 22:00 | N60: =Données!$A12 -> W | O60: = | P60: =IF(ISBLANK(Données!$C12),TEXT(Données!$B12,"hh:mm"),TEXT(Données!$B12,"hh:mm")&" : "&TEXT(Données!$C12,"hh:mm")) -> 08:00 : 20:00 | T60: =Données!$A16 -> CA | U60: = | V60: =IF(ISBLANK(Données!$C16),TEXT(Données!$B16,"hh:mm"),TEXT(Données!$B16,"hh:mm")&" : "&TEXT(Données!$C16,"hh:mm")) -> CA : CA | Z60: =Données!$A20 -> AM | AA60: = | AB60: =IF(ISBLANK(Données!$C20),TEXT(Données!$B20,"hh:mm"),TEXT(Données!$B20,"hh:mm")&" : "&TEXT(Données!$C20,"hh:mm")) -> AM : AM
B61: =Données!$A6 -> DR | C61: = | D61: =IF(ISBLANK(Données!$C6),TEXT(Données!$B6,"hh:mm"),TEXT(Données!$B6,"hh:mm")&" : "&TEXT(Données!$C6,"hh:mm")) -> 10:00 : 17:30 | H61: =Données!$A10 -> S+ | I61: = | J61: =IF(ISBLANK(Données!$C10),TEXT(Données!$B10,"hh:mm"),TEXT(Données!$B10,"hh:mm")&" : "&TEXT(Données!$C10,"hh:mm")) -> 14:00 : 23:00 | N61: =Données!$A13 -> W+ | O61: = | P61: =IF(ISBLANK(Données!$C13),TEXT(Données!$B13,"hh:mm"),TEXT(Données!$B13,"hh:mm")&" : "&TEXT(Données!$C13,"hh:mm")) -> 11:00 : 23:00 | T61: =Données!$A17 -> F | U61: = | V61: =IF(ISBLANK(Données!$C17),TEXT(Données!$B17,"hh:mm"),TEXT(Données!$B17,"hh:mm")&" : "&TEXT(Données!$C17,"hh:mm")) -> F : 00:00 | Z61: =Données!$A21 -> CM | AA61: = | AB61: =IF(ISBLANK(Données!$C21),TEXT(Données!$B21,"hh:mm"),TEXT(Données!$B21,"hh:mm")&" : "&TEXT(Données!$C21,"hh:mm")) -> CM : CM

Sheet Novembre
A1: novembre
B2: =DATE(An,Novembre,B7) -> 2018-11-01 | C2: 2018-11-02 | D2: 2018-11-03 | E2: 2018-11-04 | F2: 2018-11-05 | G2: 2018-11-06 | H2: 2018-11-07 | I2: 2018-11-08 | J2: 2018-11-09 | K2: 2018-11-10 | L2: 2018-11-11 | M2: 2018-11-12 | N2: 2018-11-13 | O2: 2018-11-14 | P2: 2018-11-15 | Q2: 2018-11-16 | R2: 2018-11-17 | S2: 2018-11-18 | T2: 2018-11-19 | U2: 2018-11-20 | V2: 2018-11-21 | W2: 2018-11-22 | X2: 2018-11-23 | Y2: 2018-11-24 | Z2: 2018-11-25 | AA2: 2018-11-26 | AB2: 2018-11-27 | AC2: 2018-11-28 | AD2: 2018-11-29 | AE2: 2018-11-30 | AI2: Pour remplir | AJ2: penser | AO2: =IF(ISNUMBER(AO7),DATE(An,Novembre,AO7),"") ->  | AP2: =IF(ISNUMBER(AP7),DATE(An,Novembre,AP7),"") -> 
A3: =IF(Données!$L$5="","Service",Données!$L$5) -> RENFORT 2 | K3: Mois de Novembre | P3: =An -> 2018 | AI3: à mettre dans le format:
AI4: "heures":"Minutes" | AT4: Masse horraire previsionnel
AI5: Heures sup | AJ5: Heures sup | AL5: Indications | AM5: Indications | AN5: Indications | AP5: Total
A6: Jours | B6: =PROPER(LEFT(TEXT(DATE(An,Novembre,B7),"jjj"),1)) -> J | C6: V | D6: S | E6: D | F6: L | G6: M | H6: M | I6: J | J6: V | K6: S | L6: D | M6: L | N6: M | O6: M | P6: J | Q6: V | R6: S | S6: D | T6: L | U6: M | V6: M | W6: J | X6: V | Y6: S | Z6: D | AA6: L | AB6: M | AC6: M | AD6: J | AE6: V | AI6: avant 21h | AJ6: après 21h | AL6: Heures | AM6: Heures nuit | AN6: Heures | AP6: Heures | AQ6: Heures
B7: =A7+1 -> 1 | C7: 2 | D7: 3 | E7: 4 | F7: 5 | G7: 6 | H7: 7 | I7: 8 | J7: 9 | K7: 10 | L7: 11 | M7: 12 | N7: 13 | O7: 14 | P7: 15 | Q7: 16 | R7: 17 | S7: 18 | T7: 19 | U7: 20 | V7: 21 | W7: 22 | X7: 23 | Y7: 24 | Z7: 25 | AA7: 26 | AB7: 27 | AC7: 28 | AD7: 29 | AE7: 30 | AI7: A remplir | AJ7: A remplir | AL7: Dimanche | AM7: Dimanche | AN7: après 21h | AP7: au mois | AQ7: a l'année | AT7: i
A8: Equipe de jour
A9: =Données!$H6 -> 1 | AL9: =VLOOKUP(A9,INDIRECT("B"&$A$1&"!A6:BM56"),49,FALSE) -> 0 | AM9: =VLOOKUP(A9,INDIRECT("B"&$A$1&"!A6:BM56"),50,FALSE) -> 0 | AN9: =VLOOKUP(A9,INDIRECT("B"&$A$1&"!A6:BM56"),51,FALSE) -> 0 | AP9: =IFERROR(VLOOKUP(A9,INDIRECT("B"&$A$1&"!A6:BM56"),53,FALSE),"") -> 0 | AQ9: =IFERROR(VLOOKUP(A9,Bilan!A6:BM56,54,FALSE),"") -> 18.35416667 | AT9: =IFERROR(SUM((VLOOKUP(Novembre!A9,Données!$H$6:$J$53,3,FALSE)/12)*11),"") -> 54.54166667
A10: =Données!$H7 -> 2 | AL10: 0 | AM10: 0 | AN10: 0 | AP10: 0 | AQ10: =IFERROR(VLOOKUP(A10,Bilan!A7:BM57,54,FALSE),"") -> 22.8625 | AT10: =IFERROR(SUM((VLOOKUP(Novembre!A10,Données!$H$6:$J$53,3,FALSE)/12)*11),"") -> 54.54166667
A11: =Données!$H8 -> 3 | AL11: 0 | AM11: 0 | AN11: 0 | AP11: 0 | AQ11: =IFERROR(VLOOKUP(A11,Bilan!A8:BM58,54,FALSE),"") -> 17 | AT11: =IFERROR(SUM((VLOOKUP(Novembre!A11,Données!$H$6:$J$53,3,FALSE)/12)*11),"") -> 54.54166667
A12: =Données!$H9 -> 4 | AL12: 0 | AM12: 0 | AN12: 0 | AP12: 0 | AQ12: =IFERROR(VLOOKUP(A12,Bilan!A9:BM59,54,FALSE),"") -> 39.58333333 | AT12: =IFERROR(SUM((VLOOKUP(Novembre!A12,Données!$H$6:$J$53,3,FALSE)/12)*11),"") -> 54.54166667
A13: =Données!$H10 -> 5 | AL13: 0 | AM13: 0 | AN13: 0 | AP13: 0 | AQ13: =IFERROR(VLOOKUP(A13,Bilan!A10:BM60,54,FALSE),"") -> 17.4375 | AT13: =IFERROR(SUM((VLOOKUP(Novembre!A13,Données!$H$6:$J$53,3,FALSE)/12)*11),"") -> 54.54166667
A14: =Données!$H11 -> 6 | AL14: 0 | AM14: 0 | AN14: 0 | AP14: 0 | AQ14: =IFERROR(VLOOKUP(A14,Bilan!A11:BM61,54,FALSE),"") -> 20.39583333 | AT14: =IFERROR(SUM((VLOOKUP(Novembre!A14,Données!$H$6:$J$53,3,FALSE)/12)*11),"") -> 54.54166667
A15: =Données!$H12 -> 7 | AL15: 0 | AM15: 0 | AN15: 0 | AP15: 0 | AQ15: =IFERROR(VLOOKUP(A15,Bilan!A12:BM62,54,FALSE),"") -> 6.4375 | AT15: =IFERROR(SUM((VLOOKUP(Novembre!A15,Données!$H$6:$J$53,3,FALSE)/12)*11),"") -> 54.54166667
A16: =Données!$H13 -> 8 | AL16: 0 | AM16: 0 | AN16: 0 | AP16: 0 | AQ16: =IFERROR(VLOOKUP(A16,Bilan!A13:BM63,54,FALSE),"") -> 6.3125 | AT16: =IFERROR(SUM((VLOOKUP(Novembre!A16,Données!$H$6:$J$53,3,FALSE)/12)*11),"") -> 54.54166667
A17: =Données!$H14 -> 0 | AL17: 0 | AM17: 0 | AN17: 0 | AP17: 0 | AQ17: =IFERROR(VLOOKUP(A17,Bilan!A14:BM64,54,FALSE),"") -> 62.4375 | AT17: =IFERROR(SUM((VLOOKUP(Novembre!A17,Données!$H$6:$J$53,3,FALSE)/12)*11),"") -> 
A18: =Données!$H15 -> 0 | AL18: 0 | AM18: 0 | AN18: 0 | AP18: 0 | AQ18: =IFERROR(VLOOKUP(A18,Bilan!A15:BM65,54,FALSE),"") -> 62.4375 | AT18: =IFERROR(SUM((VLOOKUP(Novembre!A18,Données!$H$6:$J$53,3,FALSE)/12)*11),"") -> 
A19: =Données!$H16 -> 0 | AL19: 0 | AM19: 0 | AN19: 0 | AP19: 0 | AQ19: =IFERROR(VLOOKUP(A19,Bilan!A16:BM66,54,FALSE),"") -> 62.4375 | AT19: =IFERROR(SUM((VLOOKUP(Novembre!A19,Données!$H$6:$J$53,3,FALSE)/12)*11),"") -> 
A20: =Données!$H17 -> 0 | AL20: =VLOOKUP(A20,INDIRECT("B"&$A$1&"!A6:BM56"),49,FALSE) -> 0 | AM20: =VLOOKUP(A20,INDIRECT("B"&$A$1&"!A6:BM56"),50,FALSE) -> 0 | AN20: =VLOOKUP(A20,INDIRECT("B"&$A$1&"!A6:BM56"),51,FALSE) -> 0 | AP20: =IFERROR(VLOOKUP(A20,INDIRECT("B"&$A$1&"!A6:BM56"),53,FALSE),"") -> 0 | AQ20: =IFERROR(VLOOKUP(A20,Bilan!A17:BM67,54,FALSE),"") -> 62.4375 | AT20: =IFERROR(SUM((VLOOKUP(Novembre!A20,Données!$H$6:$J$53,3,FALSE)/12)*11),"") -> 
A21: =Données!$H18 -> 0 | AL21: =VLOOKUP(A21,INDIRECT("B"&$A$1&"!A6:BM56"),49,FALSE) -> 0 | AM21: =VLOOKUP(A21,INDIRECT("B"&$A$1&"!A6:BM56"),50,FALSE) -> 0 | AN21: =VLOOKUP(A21,INDIRECT("B"&$A$1&"!A6:BM56"),51,FALSE) -> 0 | AP21: =IFERROR(VLOOKUP(A21,INDIRECT("B"&$A$1&"!A6:BM56"),53,FALSE),"") -> 0 | AQ21: =IFERROR(VLOOKUP(A21,Bilan!A18:BM68,54,FALSE),"") -> 62.4375 | AT21: =IFERROR(SUM((VLOOKUP(Novembre!A21,Données!$H$6:$J$53,3,FALSE)/12)*11),"") -> 
A22: =Données!$H19 -> 0 | AL22: =VLOOKUP(A22,INDIRECT("B"&$A$1&"!A6:BM56"),49,FALSE) -> 0 | AM22: =VLOOKUP(A22,INDIRECT("B"&$A$1&"!A6:BM56"),50,FALSE) -> 0 | AN22: =VLOOKUP(A22,INDIRECT("B"&$A$1&"!A6:BM56"),51,FALSE) -> 0 | AP22: =IFERROR(VLOOKUP(A22,INDIRECT("B"&$A$1&"!A6:BM56"),53,FALSE),"") -> 0 | AQ22: =IFERROR(VLOOKUP(A22,Bilan!A19:BM69,54,FALSE),"") -> 62.4375 | AT22: =IFERROR(SUM((VLOOKUP(Novembre!A22,Données!$H$6:$J$53,3,FALSE)/12)*11),"") -> 
A23: =Données!$H20 -> 0 | AL23: =VLOOKUP(A23,INDIRECT("B"&$A$1&"!A6:BM56"),49,FALSE) -> 0 | AM23: =VLOOKUP(A23,INDIRECT("B"&$A$1&"!A6:BM56"),50,FALSE) -> 0 | AN23: =VLOOKUP(A23,INDIRECT("B"&$A$1&"!A6:BM56"),51,FALSE) -> 0 | AP23: =IFERROR(VLOOKUP(A23,INDIRECT("B"&$A$1&"!A6:BM56"),53,FALSE),"") -> 0 | AQ23: =IFERROR(VLOOKUP(A23,Bilan!A20:BM70,54,FALSE),"") ->  | AT23: =IFERROR(SUM((VLOOKUP(Novembre!A23,Données!$H$6:$J$53,3,FALSE)/12)*11),"") -> 
A24: =Données!$H21 -> 0 | AL24: =VLOOKUP(A24,INDIRECT("B"&$A$1&"!A6:BM56"),49,FALSE) -> 0 | AM24: =VLOOKUP(A24,INDIRECT("B"&$A$1&"!A6:BM56"),50,FALSE) -> 0 | AN24: =VLOOKUP(A24,INDIRECT("B"&$A$1&"!A6:BM56"),51,FALSE) -> 0 | AP24: =IFERROR(VLOOKUP(A24,INDIRECT("B"&$A$1&"!A6:BM56"),53,FALSE),"") -> 0 | AQ24: =IFERROR(VLOOKUP(A24,Bilan!A21:BM71,54,FALSE),"") -> 0 | AT24: =IFERROR(SUM((VLOOKUP(Novembre!A24,Données!$H$6:$J$53,3,FALSE)/12)*11),"") -> 
A25: =Données!$H22 -> Equipe de nuit
A26: =Données!$H23 -> 9 | AL26: =VLOOKUP(A26,INDIRECT("B"&$A$1&"!A6:BM56"),49,FALSE) -> 0 | AM26: =VLOOKUP(A26,INDIRECT("B"&$A$1&"!A6:BM56"),50,FALSE) -> 0 | AN26: =VLOOKUP(A26,INDIRECT("B"&$A$1&"!A6:BM56"),51,FALSE) -> 0 | AP26: =IFERROR(VLOOKUP(A26,INDIRECT("B"&$A$1&"!A6:BM56"),53,FALSE),"") -> 0 | AQ26: =IFERROR(VLOOKUP(A26,Bilan!A23:BM73,54,FALSE),"") -> 15.98333333 | AT26: =IFERROR(SUM((VLOOKUP(Novembre!A26,Données!$H$6:$J$53,3,FALSE)/12)*11),"") -> 53.12847222
A27: =Données!$H24 -> 10 | AL27: =VLOOKUP(A27,INDIRECT("B"&$A$1&"!A6:BM56"),49,FALSE) -> 0 | AM27: =VLOOKUP(A27,INDIRECT("B"&$A$1&"!A6:BM56"),50,FALSE) -> 0 | AN27: =VLOOKUP(A27,INDIRECT("B"&$A$1&"!A6:BM56"),51,FALSE) -> 0 | AP27: =IFERROR(VLOOKUP(A27,INDIRECT("B"&$A$1&"!A6:BM56"),53,FALSE),"") -> 0 | AQ27: =IFERROR(VLOOKUP(A27,Bilan!A24:BM74,54,FALSE),"") -> 12.04166667 | AT27: =IFERROR(SUM((VLOOKUP(Novembre!A27,Données!$H$6:$J$53,3,FALSE)/12)*11),"") -> 53.12847222
A28: =Données!$H25 -> 11 | C28: CA | F28: CA | G28: CA | H28: CA | I28: CA | J28: CA | AL28: =VLOOKUP(A28,INDIRECT("B"&$A$1&"!A6:BM56"),49,FALSE) -> 0 | AM28: =VLOOKUP(A28,INDIRECT("B"&$A$1&"!A6:BM56"),50,FALSE) -> 0 | AN28: =VLOOKUP(A28,INDIRECT("B"&$A$1&"!A6:BM56"),51,FALSE) -> 0 | AP28: =IFERROR(VLOOKUP(A28,INDIRECT("B"&$A$1&"!A6:BM56"),53,FALSE),"") -> 0 | AQ28: =IFERROR(VLOOKUP(A28,Bilan!A25:BM75,54,FALSE),"") -> 16.20833333 | AT28: =IFERROR(SUM((VLOOKUP(Novembre!A28,Données!$H$6:$J$53,3,FALSE)/12)*11),"") -> 53.12847222
A29: =Données!$H26 -> 0 | AL29: =VLOOKUP(A29,INDIRECT("B"&$A$1&"!A6:BM56"),49,FALSE) -> 0 | AM29: =VLOOKUP(A29,INDIRECT("B"&$A$1&"!A6:BM56"),50,FALSE) -> 0 | AN29: =VLOOKUP(A29,INDIRECT("B"&$A$1&"!A6:BM56"),51,FALSE) -> 0 | AP29: =IFERROR(VLOOKUP(A29,INDIRECT("B"&$A$1&"!A6:BM56"),53,FALSE),"") -> 0 | AQ29: =IFERROR(VLOOKUP(A29,Bilan!A26:BM76,54,FALSE),"") -> 62.4375 | AT29: =IFERROR(SUM((VLOOKUP(Novembre!A29,Données!$H$6:$J$53,3,FALSE)/12)*11),"") -> 
A30: =Données!$H27 -> 0 | AL30: 0 | AM30: 0 | AN30: 0 | AP30: 0 | AQ30: =IFERROR(VLOOKUP(A30,Bilan!A27:BM77,54,FALSE),"") -> 62.4375 | AT30: =IFERROR(SUM((VLOOKUP(Novembre!A30,Données!$H$6:$J$53,3,FALSE)/12)*11),"") -> 
A31: =Données!$H28 -> 0 | AL31: 0 | AM31: 0 | AN31: 0 | AP31: 0 | AQ31: =IFERROR(VLOOKUP(A31,Bilan!A28:BM78,54,FALSE),"") -> 62.4375 | AT31: =IFERROR(SUM((VLOOKUP(Novembre!A31,Données!$H$6:$J$53,3,FALSE)/12)*11),"") -> 
A32: =Données!$H29 -> 0 | AL32: 0 | AM32: 0 | AN32: 0 | AP32: 0 | AQ32: =IFERROR(VLOOKUP(A32,Bilan!A29:BM79,54,FALSE),"") -> 62.4375 | AT32: =IFERROR(SUM((VLOOKUP(Novembre!A32,Données!$H$6:$J$53,3,FALSE)/12)*11),"") -> 
A33: =Données!$H30 -> 0 | AL33: 0 | AM33: 0 | AN33: 0 | AP33: 0 | AQ33: =IFERROR(VLOOKUP(A33,Bilan!A30:BM80,54,FALSE),"") ->  | AT33: =IFERROR(SUM((VLOOKUP(Novembre!A33,Données!$H$6:$J$53,3,FALSE)/12)*11),"") -> 
A34: =Données!$H31 -> 0 | AL34: 0 | AM34: 0 | AN34: 0 | AP34: 0 | AQ34: =IFERROR(VLOOKUP(A34,Bilan!A31:BM81,54,FALSE),"") ->  | AT34: =IFERROR(SUM((VLOOKUP(Novembre!A34,Données!$H$6:$J$53,3,FALSE)/12)*11),"") -> 
A35: =Données!$H32 -> Maitresse de maison
A36: =Données!$H33 -> 12 | AL36: =VLOOKUP(A36,INDIRECT("B"&$A$1&"!A6:BM56"),49,FALSE) -> 0 | AM36: =VLOOKUP(A36,INDIRECT("B"&$A$1&"!A6:BM56"),50,FALSE) -> 0 | AN36: =VLOOKUP(A36,INDIRECT("B"&$A$1&"!A6:BM56"),51,FALSE) -> 0 | AP36: =IFERROR(VLOOKUP(A36,INDIRECT("B"&$A$1&"!A6:BM56"),53,FALSE),"") -> 0 | AQ36: =IFERROR(VLOOKUP(A36,Bilan!A33:BM83,54,FALSE),"") -> 0.4166666667 | AT36: =IFERROR(SUM((VLOOKUP(Novembre!A36,Données!$H$6:$J$53,3,FALSE)/12)*11),"") -> 57.75
A37: =Données!$H34 -> 0 | AL37: =VLOOKUP(A37,INDIRECT("B"&$A$1&"!A6:BM56"),49,FALSE) -> 0 | AM37: =VLOOKUP(A37,INDIRECT("B"&$A$1&"!A6:BM56"),50,FALSE) -> 0 | AN37: =VLOOKUP(A37,INDIRECT("B"&$A$1&"!A6:BM56"),51,FALSE) -> 0 | AP37: =IFERROR(VLOOKUP(A37,INDIRECT("B"&$A$1&"!A6:BM56"),53,FALSE),"") -> 0 | AQ37: =IFERROR(VLOOKUP(A37,Bilan!A34:BM84,54,FALSE),"") ->  | AT37: =IFERROR(SUM((VLOOKUP(Novembre!A37,Données!$H$6:$J$53,3,FALSE)/12)*11),"") -> 
A38: =Données!$H35 -> 0 | AL38: 0 | AM38: 0 | AN38: 0 | AP38: 0 | AQ38: =IFERROR(VLOOKUP(A38,Bilan!A35:BM85,54,FALSE),"") -> 62.4375 | AT38: =IFERROR(SUM((VLOOKUP(Novembre!A38,Données!$H$6:$J$53,3,FALSE)/12)*11),"") -> 
A39: =Données!$H36 -> 0 | AL39: 0 | AM39: 0 | AN39: 0 | AP39: 0 | AQ39: =IFERROR(VLOOKUP(A39,Bilan!A36:BM86,54,FALSE),"") -> 62.4375 | AT39: =IFERROR(SUM((VLOOKUP(Novembre!A39,Données!$H$6:$J$53,3,FALSE)/12)*11),"") -> 
A40: =Données!$H37 -> 0 | AL40: 0 | AM40: 0 | AN40: 0 | AP40: 0 | AQ40: =IFERROR(VLOOKUP(A40,Bilan!A37:BM87,54,FALSE),"") -> 62.4375 | AT40: =IFERROR(SUM((VLOOKUP(Novembre!A40,Données!$H$6:$J$53,3,FALSE)/12)*11),"") -> 
A41: =Données!$H38 -> 0 | AL41: 0 | AM41: 0 | AN41: 0 | AP41: 0 | AQ41: =IFERROR(VLOOKUP(A41,Bilan!A38:BM88,54,FALSE),"") ->  | AT41: =IFERROR(SUM((VLOOKUP(Novembre!A41,Données!$H$6:$J$53,3,FALSE)/12)*11),"") -> 
A42: =Données!$H39 -> 0 | AL42: 0 | AM42: 0 | AN42: 0 | AP42: 0 | AQ42: =IFERROR(VLOOKUP(A42,Bilan!A39:BM89,54,FALSE),"") ->  | AT42: =IFERROR(SUM((VLOOKUP(Novembre!A42,Données!$H$6:$J$53,3,FALSE)/12)*11),"") -> 
A43: =Données!$H40 -> 0 | AL43: 0 | AM43: 0 | AN43: 0 | AP43: 0 | AQ43: =IFERROR(VLOOKUP(A43,Bilan!A40:BM90,54,FALSE),"") ->  | AT43: =IFERROR(SUM((VLOOKUP(Novembre!A43,Données!$H$6:$J$53,3,FALSE)/12)*11),"") -> 
A44: =Données!$H41 -> 0 | AL44: 0 | AM44: 0 | AN44: 0 | AP44: 0 | AQ44: =IFERROR(VLOOKUP(A44,Bilan!A41:BM91,54,FALSE),"") ->  | AT44: =IFERROR(SUM((VLOOKUP(Novembre!A44,Données!$H$6:$J$53,3,FALSE)/12)*11),"") -> 
A45: =Données!$H42 -> Psychologue
A46: =Données!$H43 -> 13 | AL46: =VLOOKUP(A46,INDIRECT("B"&$A$1&"!A6:BM56"),49,FALSE) -> 0 | AM46: =VLOOKUP(A46,INDIRECT("B"&$A$1&"!A6:BM56"),50,FALSE) -> 0 | AN46: =VLOOKUP(A46,INDIRECT("B"&$A$1&"!A6:BM56"),51,FALSE) -> 0 | AP46: =IFERROR(VLOOKUP(A46,INDIRECT("B"&$A$1&"!A6:BM56"),53,FALSE),"") -> 0 | AQ46: =IFERROR(VLOOKUP(A46,Bilan!A43:BM93,54,FALSE),"") -> 0.625 | AT46: =IFERROR(SUM((VLOOKUP(Novembre!A46,Données!$H$6:$J$53,3,FALSE)/12)*11),"") -> 57.75
A47: =Données!$H44 -> 0 | AL47: =VLOOKUP(A47,INDIRECT("B"&$A$1&"!A6:BM56"),49,FALSE) -> 0 | AM47: =VLOOKUP(A47,INDIRECT("B"&$A$1&"!A6:BM56"),50,FALSE) -> 0 | AN47: =VLOOKUP(A47,INDIRECT("B"&$A$1&"!A6:BM56"),51,FALSE) -> 0 | AP47: =IFERROR(VLOOKUP(A47,INDIRECT("B"&$A$1&"!A6:BM56"),53,FALSE),"") -> 0 | AQ47: =IFERROR(VLOOKUP(A47,Bilan!A44:BM94,54,FALSE),"") ->  | AT47: =IFERROR(SUM((VLOOKUP(Novembre!A47,Données!$H$6:$J$53,3,FALSE)/12)*11),"") -> 
A48: =Données!$H45 -> 0 | AL48: =VLOOKUP(A48,INDIRECT("B"&$A$1&"!A6:BM56"),49,FALSE) -> 0 | AM48: =VLOOKUP(A48,INDIRECT("B"&$A$1&"!A6:BM56"),50,FALSE) -> 0 | AN48: =VLOOKUP(A48,INDIRECT("B"&$A$1&"!A6:BM56"),51,FALSE) -> 0 | AP48: =IFERROR(VLOOKUP(A48,INDIRECT("B"&$A$1&"!A6:BM56"),53,FALSE),"") -> 0 | AQ48: =IFERROR(VLOOKUP(A48,Bilan!A45:BM95,54,FALSE),"") ->  | AT48: =IFERROR(SUM((VLOOKUP(Novembre!A48,Données!$H$6:$J$53,3,FALSE)/12)*11),"") -> 
A49: =Données!$H46 -> Coordinatrice
A50: =Données!$H47 -> 14 | AL50: =VLOOKUP(A50,INDIRECT("B"&$A$1&"!A6:BM56"),49,FALSE) -> 0 | AM50: =VLOOKUP(A50,INDIRECT("B"&$A$1&"!A6:BM56"),50,FALSE) -> 0 | AN50: =VLOOKUP(A50,INDIRECT("B"&$A$1&"!A6:BM56"),51,FALSE) -> 0 | AP50: =IFERROR(VLOOKUP(A50,INDIRECT("B"&$A$1&"!A6:BM56"),53,FALSE),"") -> 0 | AQ50: =IFERROR(VLOOKUP(A50,Bilan!A47:BM97,54,FALSE),"") -> 4.375 | AT50: =IFERROR(SUM((VLOOKUP(Novembre!A50,Données!$H$6:$J$53,3,FALSE)/12)*11),"") -> 57.75
A51: =Données!$H48 -> 0 | AL51: =VLOOKUP(A51,INDIRECT("B"&$A$1&"!A6:BM56"),49,FALSE) -> 0 | AM51: =VLOOKUP(A51,INDIRECT("B"&$A$1&"!A6:BM56"),50,FALSE) -> 0 | AN51: =VLOOKUP(A51,INDIRECT("B"&$A$1&"!A6:BM56"),51,FALSE) -> 0 | AP51: =IFERROR(VLOOKUP(A51,INDIRECT("B"&$A$1&"!A6:BM56"),53,FALSE),"") -> 0 | AQ51: =IFERROR(VLOOKUP(A51,Bilan!A48:BM98,54,FALSE),"") ->  | AT51: =IFERROR(SUM((VLOOKUP(Novembre!A51,Données!$H$6:$J$53,3,FALSE)/12)*11),"") -> 
A52: =Données!$H49 -> 0 | AL52: =VLOOKUP(A52,INDIRECT("B"&$A$1&"!A6:BM56"),49,FALSE) -> 0 | AM52: =VLOOKUP(A52,INDIRECT("B"&$A$1&"!A6:BM56"),50,FALSE) -> 0 | AN52: =VLOOKUP(A52,INDIRECT("B"&$A$1&"!A6:BM56"),51,FALSE) -> 0 | AP52: =IFERROR(VLOOKUP(A52,INDIRECT("B"&$A$1&"!A6:BM56"),53,FALSE),"") -> 0 | AQ52: =IFERROR(VLOOKUP(A52,Bilan!A49:BM99,54,FALSE),"") ->  | AT52: =IFERROR(SUM((VLOOKUP(Novembre!A52,Données!$H$6:$J$53,3,FALSE)/12)*11),"") -> 
A53: =Données!$H50 -> 0 | AL53: =VLOOKUP(A53,INDIRECT("B"&$A$1&"!A6:BM56"),49,FALSE) -> 0 | AM53: =VLOOKUP(A53,INDIRECT("B"&$A$1&"!A6:BM56"),50,FALSE) -> 0 | AN53: =VLOOKUP(A53,INDIRECT("B"&$A$1&"!A6:BM56"),51,FALSE) -> 0 | AP53: =IFERROR(VLOOKUP(A53,INDIRECT("B"&$A$1&"!A6:BM56"),53,FALSE),"") -> 0 | AQ53: =IFERROR(VLOOKUP(A53,Bilan!A50:BM100,54,FALSE),"") ->  | AT53: =IFERROR(SUM((VLOOKUP(Novembre!A53,Données!$H$6:$J$53,3,FALSE)/12)*11),"") -> 
A54: =Données!$H51 -> 0 | AL54: =VLOOKUP(A54,INDIRECT("B"&$A$1&"!A6:BM56"),49,FALSE) -> 0 | AM54: =VLOOKUP(A54,INDIRECT("B"&$A$1&"!A6:BM56"),50,FALSE) -> 0 | AN54: =VLOOKUP(A54,INDIRECT("B"&$A$1&"!A6:BM56"),51,FALSE) -> 0 | AP54: =IFERROR(VLOOKUP(A54,INDIRECT("B"&$A$1&"!A6:BM56"),53,FALSE),"") -> 0 | AQ54: =IFERROR(VLOOKUP(A54,Bilan!A51:BM101,54,FALSE),"") ->  | AT54: =IFERROR(SUM((VLOOKUP(Novembre!A54,Données!$H$6:$J$53,3,FALSE)/12)*11),"") -> 
A55: =Données!$H52 -> Chef de service
A56: =Données!$H53 -> 15 | AL56: =VLOOKUP(A56,INDIRECT("B"&$A$1&"!A6:BM56"),49,FALSE) -> 0 | AM56: =VLOOKUP(A56,INDIRECT("B"&$A$1&"!A6:BM56"),50,FALSE) -> 0 | AN56: =VLOOKUP(A56,INDIRECT("B"&$A$1&"!A6:BM56"),51,FALSE) -> 0 | AP56: =IFERROR(VLOOKUP(A56,INDIRECT("B"&$A$1&"!A6:BM56"),53,FALSE),"") -> 0 | AQ56: =IFERROR(VLOOKUP(A56,Bilan!A53:BM103,54,FALSE),"") -> 24.79166667 | AT56: =IFERROR(SUM((VLOOKUP(Novembre!A56,Données!$H$6:$J$53,3,FALSE)/12)*11),"") -> 57.75
B58: =Données!$A3 -> M | C58: = | D58: =IF(ISBLANK(Données!$C3),TEXT(Données!$B3,"hh:mm"),TEXT(Données!$B3,"hh:mm")&" : "&TEXT(Données!$C3,"hh:mm")) -> 07:00 : 14:30 | H58: =Données!$A7 -> DM | I58: = | J58: =IF(ISBLANK(Données!$C7),TEXT(Données!$B7,"hh:mm"),TEXT(Données!$B7,"hh:mm")&" : "&TEXT(Données!$C7,"hh:mm")) -> 08:00 : 15:30 | N58: =Données!$A10 -> S+ | O58: = | P58: =IF(ISBLANK(Données!$C10),TEXT(Données!$B10,"hh:mm"),TEXT(Données!$B10,"hh:mm")&" : "&TEXT(Données!$C10,"hh:mm")) -> 14:00 : 23:00 | T58: =Données!$A14 -> N | U58: = | V58: =IF(ISBLANK(Données!$C14),TEXT(Données!$B14,"hh:mm"),TEXT(Données!$B14,"hh:mm")&" : "&TEXT(Données!$C14,"hh:mm")) -> 20:00 : 07:00 | Z58: =Données!$A18 -> sta | AA58: = | AB58: =IF(ISBLANK(Données!$C18),TEXT(Données!$B18,"hh:mm"),TEXT(Données!$B18,"hh:mm")&" : "&TEXT(Données!$C18,"hh:mm")) -> sta : ge
B59: =Données!$A4 -> MR | C59: = | D59: =IF(ISBLANK(Données!$C4),TEXT(Données!$B4,"hh:mm"),TEXT(Données!$B4,"hh:mm")&" : "&TEXT(Données!$C4,"hh:mm")) -> 07:00 : 17:00 | H59: =Données!$A8 -> PFJ | I59: = | J59: =IF(ISBLANK(Données!$C8),TEXT(Données!$B8,"hh:mm"),TEXT(Données!$B8,"hh:mm")&" : "&TEXT(Données!$C8,"hh:mm")) -> 09:00 : 17:00 | N59: =Données!$A11 -> R | O59: = | P59: =IF(ISBLANK(Données!$C11),TEXT(Données!$B11,"hh:mm"),TEXT(Données!$B11,"hh:mm")&" : "&TEXT(Données!$C11,"hh:mm")) -> 14:00 : 17:00 | T59: =Données!$A15 -> NVS | U59: = | V59: =IF(ISBLANK(Données!$C15),TEXT(Données!$B15,"hh:mm"),TEXT(Données!$B15,"hh:mm")&" : "&TEXT(Données!$C15,"hh:mm")) -> 20:00 : 08:00 | Z59: =Données!$A19 -> AT | AA59: = | AB59: =IF(ISBLANK(Données!$C19),TEXT(Données!$B19,"hh:mm"),TEXT(Données!$B19,"hh:mm")&" : "&TEXT(Données!$C19,"hh:mm")) -> AT : AT
B60: =Données!$A5 -> D | C60: = | D60: =IF(ISBLANK(Données!$C5),TEXT(Données!$B5,"hh:mm"),TEXT(Données!$B5,"hh:mm")&" : "&TEXT(Données!$C5,"hh:mm")) -> 10:00 : 17:30 | H60: =Données!$A9 -> S | I60: = | J60: =IF(ISBLANK(Données!$C9),TEXT(Données!$B9,"hh:mm"),TEXT(Données!$B9,"hh:mm")&" : "&TEXT(Données!$C9,"hh:mm")) -> 14:00 : 22:00 | N60: =Données!$A12 -> W | O60: = | P60: =IF(ISBLANK(Données!$C12),TEXT(Données!$B12,"hh:mm"),TEXT(Données!$B12,"hh:mm")&" : "&TEXT(Données!$C12,"hh:mm")) -> 08:00 : 20:00 | T60: =Données!$A16 -> CA | U60: = | V60: =IF(ISBLANK(Données!$C16),TEXT(Données!$B16,"hh:mm"),TEXT(Données!$B16,"hh:mm")&" : "&TEXT(Données!$C16,"hh:mm")) -> CA : CA | Z60: =Données!$A20 -> AM | AA60: = | AB60: =IF(ISBLANK(Données!$C20),TEXT(Données!$B20,"hh:mm"),TEXT(Données!$B20,"hh:mm")&" : "&TEXT(Données!$C20,"hh:mm")) -> AM : AM
B61: =Données!$A6 -> DR | C61: = | D61: =IF(ISBLANK(Données!$C6),TEXT(Données!$B6,"hh:mm"),TEXT(Données!$B6,"hh:mm")&" : "&TEXT(Données!$C6,"hh:mm")) -> 10:00 : 17:30 | H61: =Données!$A10 -> S+ | I61: = | J61: =IF(ISBLANK(Données!$C10),TEXT(Données!$B10,"hh:mm"),TEXT(Données!$B10,"hh:mm")&" : "&TEXT(Données!$C10,"hh:mm")) -> 14:00 : 23:00 | N61: =Données!$A13 -> W+ | O61: = | P61: =IF(ISBLANK(Données!$C13),TEXT(Données!$B13,"hh:mm"),TEXT(Données!$B13,"hh:mm")&" : "&TEXT(Données!$C13,"hh:mm")) -> 11:00 : 23:00 | T61: =Données!$A17 -> F | U61: = | V61: =IF(ISBLANK(Données!$C17),TEXT(Données!$B17,"hh:mm"),TEXT(Données!$B17,"hh:mm")&" : "&TEXT(Données!$C17,"hh:mm")) -> F : 00:00 | Z61: =Données!$A21 -> CM | AA61: = | AB61: =IF(ISBLANK(Données!$C21),TEXT(Données!$B21,"hh:mm"),TEXT(Données!$B21,"hh:mm")&" : "&TEXT(Données!$C21,"hh:mm")) -> CM : CM

Sheet Decembre
A1: Decembre
B2: =DATE(An,Decembre,B7) -> 2018-12-01 | C2: 2018-12-02 | D2: 2018-12-03 | E2: 2018-12-04 | F2: 2018-12-05 | G2: 2018-12-06 | H2: 2018-12-07 | I2: 2018-12-08 | J2: 2018-12-09 | K2: 2018-12-10 | L2: 2018-12-11 | M2: 2018-12-12 | N2: 2018-12-13 | O2: 2018-12-14 | P2: 2018-12-15 | Q2: 2018-12-16 | R2: 2018-12-17 | S2: 2018-12-18 | T2: 2018-12-19 | U2: 2018-12-20 | V2: 2018-12-21 | W2: 2018-12-22 | X2: 2018-12-23 | Y2: 2018-12-24 | Z2: 2018-12-25 | AA2: 2018-12-26 | AB2: 2018-12-27 | AC2: 2018-12-28 | AD2: 2018-12-29 | AE2: 2018-12-30 | AF2: 2018-12-31 | AI2: Pour remplir | AJ2: penser | AO2: =IF(ISNUMBER(AO7),DATE(An,Decembre,AO7),"") ->  | AP2: =IF(ISNUMBER(AP7),DATE(An,Decembre,AP7),"") -> 
A3: =IF(Données!$L$5="","Service",Données!$L$5) -> RENFORT 2 | K3: Mois de Decembre | P3: =An -> 2018 | AI3: à mettre dans le format:
AI4: "heures":"Minutes" | AT4: Masse horraire previsionnel
AI5: Heures sup | AJ5: Heures sup | AL5: Indications | AM5: Indications | AN5: Indications | AP5: Total
A6: Jours | B6: =PROPER(LEFT(TEXT(DATE(An,Decembre,B7),"jjj"),1)) -> S | C6: D | D6: L | E6: M | F6: M | G6: J | H6: V | I6: S | J6: D | K6: L | L6: M | M6: M | N6: J | O6: V | P6: S | Q6: D | R6: L | S6: M | T6: M | U6: J | V6: V | W6: S | X6: D | Y6: L | Z6: M | AA6: M | AB6: J | AC6: V | AD6: S | AE6: D | AF6: L | AI6: avant 21h | AJ6: après 21h | AL6: Heures | AM6: Heures nuit | AN6: Heures | AP6: Heures | AQ6: Heures
B7: =A7+1 -> 1 | C7: 2 | D7: 3 | E7: 4 | F7: 5 | G7: 6 | H7: 7 | I7: 8 | J7: 9 | K7: 10 | L7: 11 | M7: 12 | N7: 13 | O7: 14 | P7: 15 | Q7: 16 | R7: 17 | S7: 18 | T7: 19 | U7: 20 | V7: 21 | W7: 22 | X7: 23 | Y7: 24 | Z7: 25 | AA7: 26 | AB7: 27 | AC7: 28 | AD7: 29 | AE7: 30 | AF7: 31 | AI7: A remplir | AJ7: A remplir | AL7: Dimanche | AM7: Dimanche | AN7: après 21h | AP7: au mois | AQ7: a l'année | AT7: i
A8: Equipe de jour
A9: =Données!$H6 -> 1 | AL9: =VLOOKUP(A9,INDIRECT("B"&$A$1&"!A6:BM56"),49,FALSE) -> 0 | AM9: =VLOOKUP(A9,INDIRECT("B"&$A$1&"!A6:BM56"),50,FALSE) -> 0 | AN9: =VLOOKUP(A9,INDIRECT("B"&$A$1&"!A6:BM56"),51,FALSE) -> 0 | AP9: =IFERROR(VLOOKUP(A9,INDIRECT("B"&$A$1&"!A6:BM56"),53,FALSE),"") -> 0 | AQ9: =IFERROR(VLOOKUP(A9,Bilan!A6:BM56,54,FALSE),"") -> 18.35416667 | AT9: =IFERROR(SUM((VLOOKUP(Decembre!A9,Données!$H$6:$J$53,3,FALSE)/12)*11),"") -> 54.54166667
A10: =Données!$H7 -> 2 | AL10: 0 | AM10: 0 | AN10: 0 | AP10: 0 | AQ10: =IFERROR(VLOOKUP(A10,Bilan!A7:BM57,54,FALSE),"") -> 22.8625 | AT10: =IFERROR(SUM((VLOOKUP(Decembre!A10,Données!$H$6:$J$53,3,FALSE)/12)*11),"") -> 54.54166667
A11: =Données!$H8 -> 3 | AL11: 0 | AM11: 0 | AN11: 0 | AP11: 0 | AQ11: =IFERROR(VLOOKUP(A11,Bilan!A8:BM58,54,FALSE),"") -> 17 | AT11: =IFERROR(SUM((VLOOKUP(Decembre!A11,Données!$H$6:$J$53,3,FALSE)/12)*11),"") -> 54.54166667
A12: =Données!$H9 -> 4 | AL12: 0 | AM12: 0 | AN12: 0 | AP12: 0 | AQ12: =IFERROR(VLOOKUP(A12,Bilan!A9:BM59,54,FALSE),"") -> 39.58333333 | AT12: =IFERROR(SUM((VLOOKUP(Decembre!A12,Données!$H$6:$J$53,3,FALSE)/12)*11),"") -> 54.54166667
A13: =Données!$H10 -> 5 | AL13: 0 | AM13: 0 | AN13: 0 | AP13: 0 | AQ13: =IFERROR(VLOOKUP(A13,Bilan!A10:BM60,54,FALSE),"") -> 17.4375 | AT13: =IFERROR(SUM((VLOOKUP(Decembre!A13,Données!$H$6:$J$53,3,FALSE)/12)*11),"") -> 54.54166667
A14: =Données!$H11 -> 6 | AL14: 0 | AM14: 0 | AN14: 0 | AP14: 0 | AQ14: =IFERROR(VLOOKUP(A14,Bilan!A11:BM61,54,FALSE),"") -> 20.39583333 | AT14: =IFERROR(SUM((VLOOKUP(Decembre!A14,Données!$H$6:$J$53,3,FALSE)/12)*11),"") -> 54.54166667
A15: =Données!$H12 -> 7 | AL15: 0 | AM15: 0 | AN15: 0 | AP15: 0 | AQ15: =IFERROR(VLOOKUP(A15,Bilan!A12:BM62,54,FALSE),"") -> 6.4375 | AT15: =IFERROR(SUM((VLOOKUP(Decembre!A15,Données!$H$6:$J$53,3,FALSE)/12)*11),"") -> 54.54166667
A16: =Données!$H13 -> 8 | AL16: 0 | AM16: 0 | AN16: 0 | AP16: 0 | AQ16: =IFERROR(VLOOKUP(A16,Bilan!A13:BM63,54,FALSE),"") -> 6.3125 | AT16: =IFERROR(SUM((VLOOKUP(Decembre!A16,Données!$H$6:$J$53,3,FALSE)/12)*11),"") -> 54.54166667
A17: =Données!$H14 -> 0 | AL17: 0 | AM17: 0 | AN17: 0 | AP17: 0 | AQ17: =IFERROR(VLOOKUP(A17,Bilan!A14:BM64,54,FALSE),"") -> 62.4375 | AT17: =IFERROR(SUM((VLOOKUP(Decembre!A17,Données!$H$6:$J$53,3,FALSE)/12)*11),"") -> 
A18: =Données!$H15 -> 0 | AL18: 0 | AM18: 0 | AN18: 0 | AP18: 0 | AQ18: =IFERROR(VLOOKUP(A18,Bilan!A15:BM65,54,FALSE),"") -> 62.4375 | AT18: =IFERROR(SUM((VLOOKUP(Decembre!A18,Données!$H$6:$J$53,3,FALSE)/12)*11),"") -> 
A19: =Données!$H16 -> 0 | AL19: 0 | AM19: 0 | AN19: 0 | AP19: 0 | AQ19: =IFERROR(VLOOKUP(A19,Bilan!A16:BM66,54,FALSE),"") -> 62.4375 | AT19: =IFERROR(SUM((VLOOKUP(Decembre!A19,Données!$H$6:$J$53,3,FALSE)/12)*11),"") -> 
A20: =Données!$H17 -> 0 | AL20: =VLOOKUP(A20,INDIRECT("B"&$A$1&"!A6:BM56"),49,FALSE) -> 0 | AM20: =VLOOKUP(A20,INDIRECT("B"&$A$1&"!A6:BM56"),50,FALSE) -> 0 | AN20: =VLOOKUP(A20,INDIRECT("B"&$A$1&"!A6:BM56"),51,FALSE) -> 0 | AP20: =IFERROR(VLOOKUP(A20,INDIRECT("B"&$A$1&"!A6:BM56"),53,FALSE),"") -> 0 | AQ20: =IFERROR(VLOOKUP(A20,Bilan!A17:BM67,54,FALSE),"") -> 62.4375 | AT20: =IFERROR(SUM((VLOOKUP(Decembre!A20,Données!$H$6:$J$53,3,FALSE)/12)*11),"") -> 
A21: =Données!$H18 -> 0 | AL21: =VLOOKUP(A21,INDIRECT("B"&$A$1&"!A6:BM56"),49,FALSE) -> 0 | AM21: =VLOOKUP(A21,INDIRECT("B"&$A$1&"!A6:BM56"),50,FALSE) -> 0 | AN21: =VLOOKUP(A21,INDIRECT("B"&$A$1&"!A6:BM56"),51,FALSE) -> 0 | AP21: =IFERROR(VLOOKUP(A21,INDIRECT("B"&$A$1&"!A6:BM56"),53,FALSE),"") -> 0 | AQ21: =IFERROR(VLOOKUP(A21,Bilan!A18:BM68,54,FALSE),"") -> 62.4375 | AT21: =IFERROR(SUM((VLOOKUP(Decembre!A21,Données!$H$6:$J$53,3,FALSE)/12)*11),"") -> 
A22: =Données!$H19 -> 0 | AL22: =VLOOKUP(A22,INDIRECT("B"&$A$1&"!A6:BM56"),49,FALSE) -> 0 | AM22: =VLOOKUP(A22,INDIRECT("B"&$A$1&"!A6:BM56"),50,FALSE) -> 0 | AN22: =VLOOKUP(A22,INDIRECT("B"&$A$1&"!A6:BM56"),51,FALSE) -> 0 | AP22: =IFERROR(VLOOKUP(A22,INDIRECT("B"&$A$1&"!A6:BM56"),53,FALSE),"") -> 0 | AQ22: =IFERROR(VLOOKUP(A22,Bilan!A19:BM69,54,FALSE),"") -> 62.4375 | AT22: =IFERROR(SUM((VLOOKUP(Decembre!A22,Données!$H$6:$J$53,3,FALSE)/12)*11),"") -> 
A23: =Données!$H20 -> 0 | AL23: =VLOOKUP(A23,INDIRECT("B"&$A$1&"!A6:BM56"),49,FALSE) -> 0 | AM23: =VLOOKUP(A23,INDIRECT("B"&$A$1&"!A6:BM56"),50,FALSE) -> 0 | AN23: =VLOOKUP(A23,INDIRECT("B"&$A$1&"!A6:BM56"),51,FALSE) -> 0 | AP23: =IFERROR(VLOOKUP(A23,INDIRECT("B"&$A$1&"!A6:BM56"),53,FALSE),"") -> 0 | AQ23: =IFERROR(VLOOKUP(A23,Bilan!A20:BM70,54,FALSE),"") ->  | AT23: =IFERROR(SUM((VLOOKUP(Decembre!A23,Données!$H$6:$J$53,3,FALSE)/12)*11),"") -> 
A24: =Données!$H21 -> 0 | AL24: =VLOOKUP(A24,INDIRECT("B"&$A$1&"!A6:BM56"),49,FALSE) -> 0 | AM24: =VLOOKUP(A24,INDIRECT("B"&$A$1&"!A6:BM56"),50,FALSE) -> 0 | AN24: =VLOOKUP(A24,INDIRECT("B"&$A$1&"!A6:BM56"),51,FALSE) -> 0 | AP24: =IFERROR(VLOOKUP(A24,INDIRECT("B"&$A$1&"!A6:BM56"),53,FALSE),"") -> 0 | AQ24: =IFERROR(VLOOKUP(A24,Bilan!A21:BM71,54,FALSE),"") -> 0 | AT24: =IFERROR(SUM((VLOOKUP(Decembre!A24,Données!$H$6:$J$53,3,FALSE)/12)*11),"") -> 
A25: =Données!$H22 -> Equipe de nuit
A26: =Données!$H23 -> 9 | AL26: =VLOOKUP(A26,INDIRECT("B"&$A$1&"!A6:BM56"),49,FALSE) -> 0 | AM26: =VLOOKUP(A26,INDIRECT("B"&$A$1&"!A6:BM56"),50,FALSE) -> 0 | AN26: =VLOOKUP(A26,INDIRECT("B"&$A$1&"!A6:BM56"),51,FALSE) -> 0 | AP26: =IFERROR(VLOOKUP(A26,INDIRECT("B"&$A$1&"!A6:BM56"),53,FALSE),"") -> 0 | AQ26: =IFERROR(VLOOKUP(A26,Bilan!A23:BM73,54,FALSE),"") -> 15.98333333 | AT26: =IFERROR(SUM((VLOOKUP(Decembre!A26,Données!$H$6:$J$53,3,FALSE)/12)*11),"") -> 53.12847222
A27: =Données!$H24 -> 10 | AL27: =VLOOKUP(A27,INDIRECT("B"&$A$1&"!A6:BM56"),49,FALSE) -> 0 | AM27: =VLOOKUP(A27,INDIRECT("B"&$A$1&"!A6:BM56"),50,FALSE) -> 0 | AN27: =VLOOKUP(A27,INDIRECT("B"&$A$1&"!A6:BM56"),51,FALSE) -> 0 | AP27: =IFERROR(VLOOKUP(A27,INDIRECT("B"&$A$1&"!A6:BM56"),53,FALSE),"") -> 0 | AQ27: =IFERROR(VLOOKUP(A27,Bilan!A24:BM74,54,FALSE),"") -> 12.04166667 | AT27: =IFERROR(SUM((VLOOKUP(Decembre!A27,Données!$H$6:$J$53,3,FALSE)/12)*11),"") -> 53.12847222
A28: =Données!$H25 -> 11 | Y28: CA | AA28: CA | AB28: CA | AC28: CA | AF28: CA | AL28: =VLOOKUP(A28,INDIRECT("B"&$A$1&"!A6:BM56"),49,FALSE) -> 0 | AM28: =VLOOKUP(A28,INDIRECT("B"&$A$1&"!A6:BM56"),50,FALSE) -> 0 | AN28: =VLOOKUP(A28,INDIRECT("B"&$A$1&"!A6:BM56"),51,FALSE) -> 0 | AP28: =IFERROR(VLOOKUP(A28,INDIRECT("B"&$A$1&"!A6:BM56"),53,FALSE),"") -> 0 | AQ28: =IFERROR(VLOOKUP(A28,Bilan!A25:BM75,54,FALSE),"") -> 16.20833333 | AT28: =IFERROR(SUM((VLOOKUP(Decembre!A28,Données!$H$6:$J$53,3,FALSE)/12)*11),"") -> 53.12847222
A29: =Données!$H26 -> 0 | AL29: =VLOOKUP(A29,INDIRECT("B"&$A$1&"!A6:BM56"),49,FALSE) -> 0 | AM29: =VLOOKUP(A29,INDIRECT("B"&$A$1&"!A6:BM56"),50,FALSE) -> 0 | AN29: =VLOOKUP(A29,INDIRECT("B"&$A$1&"!A6:BM56"),51,FALSE) -> 0 | AP29: =IFERROR(VLOOKUP(A29,INDIRECT("B"&$A$1&"!A6:BM56"),53,FALSE),"") -> 0 | AQ29: =IFERROR(VLOOKUP(A29,Bilan!A26:BM76,54,FALSE),"") -> 62.4375 | AT29: =IFERROR(SUM((VLOOKUP(Decembre!A29,Données!$H$6:$J$53,3,FALSE)/12)*11),"") -> 
A30: =Données!$H27 -> 0 | AL30: 0 | AM30: 0 | AN30: 0 | AP30: 0 | AQ30: =IFERROR(VLOOKUP(A30,Bilan!A27:BM77,54,FALSE),"") -> 62.4375 | AT30: =IFERROR(SUM((VLOOKUP(Decembre!A30,Données!$H$6:$J$53,3,FALSE)/12)*11),"") -> 
A31: =Données!$H28 -> 0 | AL31: 0 | AM31: 0 | AN31: 0 | AP31: 0 | AQ31: =IFERROR(VLOOKUP(A31,Bilan!A28:BM78,54,FALSE),"") -> 62.4375 | AT31: =IFERROR(SUM((VLOOKUP(Decembre!A31,Données!$H$6:$J$53,3,FALSE)/12)*11),"") -> 
A32: =Données!$H29 -> 0 | AL32: 0 | AM32: 0 | AN32: 0 | AP32: 0 | AQ32: =IFERROR(VLOOKUP(A32,Bilan!A29:BM79,54,FALSE),"") -> 62.4375 | AT32: =IFERROR(SUM((VLOOKUP(Decembre!A32,Données!$H$6:$J$53,3,FALSE)/12)*11),"") -> 
A33: =Données!$H30 -> 0 | AL33: 0 | AM33: 0 | AN33: 0 | AP33: 0 | AQ33: =IFERROR(VLOOKUP(A33,Bilan!A30:BM80,54,FALSE),"") ->  | AT33: =IFERROR(SUM((VLOOKUP(Decembre!A33,Données!$H$6:$J$53,3,FALSE)/12)*11),"") -> 
A34: =Données!$H31 -> 0 | AL34: 0 | AM34: 0 | AN34: 0 | AP34: 0 | AQ34: =IFERROR(VLOOKUP(A34,Bilan!A31:BM81,54,FALSE),"") ->  | AT34: =IFERROR(SUM((VLOOKUP(Decembre!A34,Données!$H$6:$J$53,3,FALSE)/12)*11),"") -> 
A35: =Données!$H32 -> Maitresse de maison
A36: =Données!$H33 -> 12 | AL36: =VLOOKUP(A36,INDIRECT("B"&$A$1&"!A6:BM56"),49,FALSE) -> 0 | AM36: =VLOOKUP(A36,INDIRECT("B"&$A$1&"!A6:BM56"),50,FALSE) -> 0 | AN36: =VLOOKUP(A36,INDIRECT("B"&$A$1&"!A6:BM56"),51,FALSE) -> 0 | AP36: =IFERROR(VLOOKUP(A36,INDIRECT("B"&$A$1&"!A6:BM56"),53,FALSE),"") -> 0 | AQ36: =IFERROR(VLOOKUP(A36,Bilan!A33:BM83,54,FALSE),"") -> 0.4166666667 | AT36: =IFERROR(SUM((VLOOKUP(Decembre!A36,Données!$H$6:$J$53,3,FALSE)/12)*11),"") -> 57.75
A37: =Données!$H34 -> 0 | AL37: =VLOOKUP(A37,INDIRECT("B"&$A$1&"!A6:BM56"),49,FALSE) -> 0 | AM37: =VLOOKUP(A37,INDIRECT("B"&$A$1&"!A6:BM56"),50,FALSE) -> 0 | AN37: =VLOOKUP(A37,INDIRECT("B"&$A$1&"!A6:BM56"),51,FALSE) -> 0 | AP37: =IFERROR(VLOOKUP(A37,INDIRECT("B"&$A$1&"!A6:BM56"),53,FALSE),"") -> 0 | AQ37: =IFERROR(VLOOKUP(A37,Bilan!A34:BM84,54,FALSE),"") ->  | AT37: =IFERROR(SUM((VLOOKUP(Decembre!A37,Données!$H$6:$J$53,3,FALSE)/12)*11),"") -> 
A38: =Données!$H35 -> 0 | AL38: 0 | AM38: 0 | AN38: 0 | AP38: 0 | AQ38: =IFERROR(VLOOKUP(A38,Bilan!A35:BM85,54,FALSE),"") -> 62.4375 | AT38: =IFERROR(SUM((VLOOKUP(Decembre!A38,Données!$H$6:$J$53,3,FALSE)/12)*11),"") -> 
A39: =Données!$H36 -> 0 | AL39: 0 | AM39: 0 | AN39: 0 | AP39: 0 | AQ39: =IFERROR(VLOOKUP(A39,Bilan!A36:BM86,54,FALSE),"") -> 62.4375 | AT39: =IFERROR(SUM((VLOOKUP(Decembre!A39,Données!$H$6:$J$53,3,FALSE)/12)*11),"") -> 
A40: =Données!$H37 -> 0 | AL40: 0 | AM40: 0 | AN40: 0 | AP40: 0 | AQ40: =IFERROR(VLOOKUP(A40,Bilan!A37:BM87,54,FALSE),"") -> 62.4375 | AT40: =IFERROR(SUM((VLOOKUP(Decembre!A40,Données!$H$6:$J$53,3,FALSE)/12)*11),"") -> 
A41: =Données!$H38 -> 0 | AL41: 0 | AM41: 0 | AN41: 0 | AP41: 0 | AQ41: =IFERROR(VLOOKUP(A41,Bilan!A38:BM88,54,FALSE),"") ->  | AT41: =IFERROR(SUM((VLOOKUP(Decembre!A41,Données!$H$6:$J$53,3,FALSE)/12)*11),"") -> 
A42: =Données!$H39 -> 0 | AL42: 0 | AM42: 0 | AN42: 0 | AP42: 0 | AQ42: =IFERROR(VLOOKUP(A42,Bilan!A39:BM89,54,FALSE),"") ->  | AT42: =IFERROR(SUM((VLOOKUP(Decembre!A42,Données!$H$6:$J$53,3,FALSE)/12)*11),"") -> 
A43: =Données!$H40 -> 0 | AL43: 0 | AM43: 0 | AN43: 0 | AP43: 0 | AQ43: =IFERROR(VLOOKUP(A43,Bilan!A40:BM90,54,FALSE),"") ->  | AT43: =IFERROR(SUM((VLOOKUP(Decembre!A43,Données!$H$6:$J$53,3,FALSE)/12)*11),"") -> 
A44: =Données!$H41 -> 0 | AL44: 0 | AM44: 0 | AN44: 0 | AP44: 0 | AQ44: =IFERROR(VLOOKUP(A44,Bilan!A41:BM91,54,FALSE),"") ->  | AT44: =IFERROR(SUM((VLOOKUP(Decembre!A44,Données!$H$6:$J$53,3,FALSE)/12)*11),"") -> 
A45: =Données!$H42 -> Psychologue
A46: =Données!$H43 -> 13 | AL46: =VLOOKUP(A46,INDIRECT("B"&$A$1&"!A6:BM56"),49,FALSE) -> 0 | AM46: =VLOOKUP(A46,INDIRECT("B"&$A$1&"!A6:BM56"),50,FALSE) -> 0 | AN46: =VLOOKUP(A46,INDIRECT("B"&$A$1&"!A6:BM56"),51,FALSE) -> 0 | AP46: =IFERROR(VLOOKUP(A46,INDIRECT("B"&$A$1&"!A6:BM56"),53,FALSE),"") -> 0 | AQ46: =IFERROR(VLOOKUP(A46,Bilan!A43:BM93,54,FALSE),"") -> 0.625 | AT46: =IFERROR(SUM((VLOOKUP(Decembre!A46,Données!$H$6:$J$53,3,FALSE)/12)*11),"") -> 57.75
A47: =Données!$H44 -> 0 | AL47: =VLOOKUP(A47,INDIRECT("B"&$A$1&"!A6:BM56"),49,FALSE) -> 0 | AM47: =VLOOKUP(A47,INDIRECT("B"&$A$1&"!A6:BM56"),50,FALSE) -> 0 | AN47: =VLOOKUP(A47,INDIRECT("B"&$A$1&"!A6:BM56"),51,FALSE) -> 0 | AP47: =IFERROR(VLOOKUP(A47,INDIRECT("B"&$A$1&"!A6:BM56"),53,FALSE),"") -> 0 | AQ47: =IFERROR(VLOOKUP(A47,Bilan!A44:BM94,54,FALSE),"") ->  | AT47: =IFERROR(SUM((VLOOKUP(Decembre!A47,Données!$H$6:$J$53,3,FALSE)/12)*11),"") -> 
A48: =Données!$H45 -> 0 | AL48: =VLOOKUP(A48,INDIRECT("B"&$A$1&"!A6:BM56"),49,FALSE) -> 0 | AM48: =VLOOKUP(A48,INDIRECT("B"&$A$1&"!A6:BM56"),50,FALSE) -> 0 | AN48: =VLOOKUP(A48,INDIRECT("B"&$A$1&"!A6:BM56"),51,FALSE) -> 0 | AP48: =IFERROR(VLOOKUP(A48,INDIRECT("B"&$A$1&"!A6:BM56"),53,FALSE),"") -> 0 | AQ48: =IFERROR(VLOOKUP(A48,Bilan!A45:BM95,54,FALSE),"") ->  | AT48: =IFERROR(SUM((VLOOKUP(Decembre!A48,Données!$H$6:$J$53,3,FALSE)/12)*11),"") -> 
A49: =Données!$H46 -> Coordinatrice
A50: =Données!$H47 -> 14 | AL50: =VLOOKUP(A50,INDIRECT("B"&$A$1&"!A6:BM56"),49,FALSE) -> 0 | AM50: =VLOOKUP(A50,INDIRECT("B"&$A$1&"!A6:BM56"),50,FALSE) -> 0 | AN50: =VLOOKUP(A50,INDIRECT("B"&$A$1&"!A6:BM56"),51,FALSE) -> 0 | AP50: =IFERROR(VLOOKUP(A50,INDIRECT("B"&$A$1&"!A6:BM56"),53,FALSE),"") -> 0 | AQ50: =IFERROR(VLOOKUP(A50,Bilan!A47:BM97,54,FALSE),"") -> 4.375 | AT50: =IFERROR(SUM((VLOOKUP(Decembre!A50,Données!$H$6:$J$53,3,FALSE)/12)*11),"") -> 57.75
A51: =Données!$H48 -> 0 | AL51: =VLOOKUP(A51,INDIRECT("B"&$A$1&"!A6:BM56"),49,FALSE) -> 0 | AM51: =VLOOKUP(A51,INDIRECT("B"&$A$1&"!A6:BM56"),50,FALSE) -> 0 | AN51: =VLOOKUP(A51,INDIRECT("B"&$A$1&"!A6:BM56"),51,FALSE) -> 0 | AP51: =IFERROR(VLOOKUP(A51,INDIRECT("B"&$A$1&"!A6:BM56"),53,FALSE),"") -> 0 | AQ51: =IFERROR(VLOOKUP(A51,Bilan!A48:BM98,54,FALSE),"") ->  | AT51: =IFERROR(SUM((VLOOKUP(Decembre!A51,Données!$H$6:$J$53,3,FALSE)/12)*11),"") -> 
A52: =Données!$H49 -> 0 | AL52: =VLOOKUP(A52,INDIRECT("B"&$A$1&"!A6:BM56"),49,FALSE) -> 0 | AM52: =VLOOKUP(A52,INDIRECT("B"&$A$1&"!A6:BM56"),50,FALSE) -> 0 | AN52: =VLOOKUP(A52,INDIRECT("B"&$A$1&"!A6:BM56"),51,FALSE) -> 0 | AP52: =IFERROR(VLOOKUP(A52,INDIRECT("B"&$A$1&"!A6:BM56"),53,FALSE),"") -> 0 | AQ52: =IFERROR(VLOOKUP(A52,Bilan!A49:BM99,54,FALSE),"") ->  | AT52: =IFERROR(SUM((VLOOKUP(Decembre!A52,Données!$H$6:$J$53,3,FALSE)/12)*11),"") -> 
A53: =Données!$H50 -> 0 | AL53: =VLOOKUP(A53,INDIRECT("B"&$A$1&"!A6:BM56"),49,FALSE) -> 0 | AM53: =VLOOKUP(A53,INDIRECT("B"&$A$1&"!A6:BM56"),50,FALSE) -> 0 | AN53: =VLOOKUP(A53,INDIRECT("B"&$A$1&"!A6:BM56"),51,FALSE) -> 0 | AP53: =IFERROR(VLOOKUP(A53,INDIRECT("B"&$A$1&"!A6:BM56"),53,FALSE),"") -> 0 | AQ53: =IFERROR(VLOOKUP(A53,Bilan!A50:BM100,54,FALSE),"") ->  | AT53: =IFERROR(SUM((VLOOKUP(Decembre!A53,Données!$H$6:$J$53,3,FALSE)/12)*11),"") -> 
A54: =Données!$H51 -> 0 | AL54: =VLOOKUP(A54,INDIRECT("B"&$A$1&"!A6:BM56"),49,FALSE) -> 0 | AM54: =VLOOKUP(A54,INDIRECT("B"&$A$1&"!A6:BM56"),50,FALSE) -> 0 | AN54: =VLOOKUP(A54,INDIRECT("B"&$A$1&"!A6:BM56"),51,FALSE) -> 0 | AP54: =IFERROR(VLOOKUP(A54,INDIRECT("B"&$A$1&"!A6:BM56"),53,FALSE),"") -> 0 | AQ54: =IFERROR(VLOOKUP(A54,Bilan!A51:BM101,54,FALSE),"") ->  | AT54: =IFERROR(SUM((VLOOKUP(Decembre!A54,Données!$H$6:$J$53,3,FALSE)/12)*11),"") -> 
A55: =Données!$H52 -> Chef de service
A56: =Données!$H53 -> 15 | AL56: =VLOOKUP(A56,INDIRECT("B"&$A$1&"!A6:BM56"),49,FALSE) -> 0 | AM56: =VLOOKUP(A56,INDIRECT("B"&$A$1&"!A6:BM56"),50,FALSE) -> 0 | AN56: =VLOOKUP(A56,INDIRECT("B"&$A$1&"!A6:BM56"),51,FALSE) -> 0 | AP56: =IFERROR(VLOOKUP(A56,INDIRECT("B"&$A$1&"!A6:BM56"),53,FALSE),"") -> 0 | AQ56: =IFERROR(VLOOKUP(A56,Bilan!A53:BM103,54,FALSE),"") -> 24.79166667 | AT56: =IFERROR(SUM((VLOOKUP(Decembre!A56,Données!$H$6:$J$53,3,FALSE)/12)*11),"") -> 57.75
B58: =Données!$A3 -> M | C58: = | D58: =IF(ISBLANK(Données!$C3),TEXT(Données!$B3,"hh:mm"),TEXT(Données!$B3,"hh:mm")&" : "&TEXT(Données!$C3,"hh:mm")) -> 07:00 : 14:30 | H58: =Données!$A7 -> DM | I58: = | J58: =IF(ISBLANK(Données!$C7),TEXT(Données!$B7,"hh:mm"),TEXT(Données!$B7,"hh:mm")&" : "&TEXT(Données!$C7,"hh:mm")) -> 08:00 : 15:30 | N58: =Données!$A10 -> S+ | O58: = | P58: =IF(ISBLANK(Données!$C10),TEXT(Données!$B10,"hh:mm"),TEXT(Données!$B10,"hh:mm")&" : "&TEXT(Données!$C10,"hh:mm")) -> 14:00 : 23:00 | T58: =Données!$A14 -> N | U58: = | V58: =IF(ISBLANK(Données!$C14),TEXT(Données!$B14,"hh:mm"),TEXT(Données!$B14,"hh:mm")&" : "&TEXT(Données!$C14,"hh:mm")) -> 20:00 : 07:00 | Z58: =Données!$A18 -> sta | AA58: = | AB58: =IF(ISBLANK(Données!$C18),TEXT(Données!$B18,"hh:mm"),TEXT(Données!$B18,"hh:mm")&" : "&TEXT(Données!$C18,"hh:mm")) -> sta : ge
B59: =Données!$A4 -> MR | C59: = | D59: =IF(ISBLANK(Données!$C4),TEXT(Données!$B4,"hh:mm"),TEXT(Données!$B4,"hh:mm")&" : "&TEXT(Données!$C4,"hh:mm")) -> 07:00 : 17:00 | H59: =Données!$A8 -> PFJ | I59: = | J59: =IF(ISBLANK(Données!$C8),TEXT(Données!$B8,"hh:mm"),TEXT(Données!$B8,"hh:mm")&" : "&TEXT(Données!$C8,"hh:mm")) -> 09:00 : 17:00 | N59: =Données!$A11 -> R | O59: = | P59: =IF(ISBLANK(Données!$C11),TEXT(Données!$B11,"hh:mm"),TEXT(Données!$B11,"hh:mm")&" : "&TEXT(Données!$C11,"hh:mm")) -> 14:00 : 17:00 | T59: =Données!$A15 -> NVS | U59: = | V59: =IF(ISBLANK(Données!$C15),TEXT(Données!$B15,"hh:mm"),TEXT(Données!$B15,"hh:mm")&" : "&TEXT(Données!$C15,"hh:mm")) -> 20:00 : 08:00 | Z59: =Données!$A19 -> AT | AA59: = | AB59: =IF(ISBLANK(Données!$C19),TEXT(Données!$B19,"hh:mm"),TEXT(Données!$B19,"hh:mm")&" : "&TEXT(Données!$C19,"hh:mm")) -> AT : AT
B60: =Données!$A5 -> D | C60: = | D60: =IF(ISBLANK(Données!$C5),TEXT(Données!$B5,"hh:mm"),TEXT(Données!$B5,"hh:mm")&" : "&TEXT(Données!$C5,"hh:mm")) -> 10:00 : 17:30 | H60: =Données!$A9 -> S | I60: = | J60: =IF(ISBLANK(Données!$C9),TEXT(Données!$B9,"hh:mm"),TEXT(Données!$B9,"hh:mm")&" : "&TEXT(Données!$C9,"hh:mm")) -> 14:00 : 22:00 | N60: =Données!$A12 -> W | O60: = | P60: =IF(ISBLANK(Données!$C12),TEXT(Données!$B12,"hh:mm"),TEXT(Données!$B12,"hh:mm")&" : "&TEXT(Données!$C12,"hh:mm")) -> 08:00 : 20:00 | T60: =Données!$A16 -> CA | U60: = | V60: =IF(ISBLANK(Données!$C16),TEXT(Données!$B16,"hh:mm"),TEXT(Données!$B16,"hh:mm")&" : "&TEXT(Données!$C16,"hh:mm")) -> CA : CA | Z60: =Données!$A20 -> AM | AA60: = | AB60: =IF(ISBLANK(Données!$C20),TEXT(Données!$B20,"hh:mm"),TEXT(Données!$B20,"hh:mm")&" : "&TEXT(Données!$C20,"hh:mm")) -> AM : AM
B61: =Données!$A6 -> DR | C61: = | D61: =IF(ISBLANK(Données!$C6),TEXT(Données!$B6,"hh:mm"),TEXT(Données!$B6,"hh:mm")&" : "&TEXT(Données!$C6,"hh:mm")) -> 10:00 : 17:30 | H61: =Données!$A10 -> S+ | I61: = | J61: =IF(ISBLANK(Données!$C10),TEXT(Données!$B10,"hh:mm"),TEXT(Données!$B10,"hh:mm")&" : "&TEXT(Données!$C10,"hh:mm")) -> 14:00 : 23:00 | N61: =Données!$A13 -> W+ | O61: = | P61: =IF(ISBLANK(Données!$C13),TEXT(Données!$B13,"hh:mm"),TEXT(Données!$B13,"hh:mm")&" : "&TEXT(Données!$C13,"hh:mm")) -> 11:00 : 23:00 | T61: =Données!$A17 -> F | U61: = | V61: =IF(ISBLANK(Données!$C17),TEXT(Données!$B17,"hh:mm"),TEXT(Données!$B17,"hh:mm")&" : "&TEXT(Données!$C17,"hh:mm")) -> F : 00:00 | Z61: =Données!$A21 -> CM | AA61: = | AB61: =IF(ISBLANK(Données!$C21),TEXT(Données!$B21,"hh:mm"),TEXT(Données!$B21,"hh:mm")&" : "&TEXT(Données!$C21,"hh:mm")) -> CM : CM

Sheet HJanvier
D1: Mois de | E1: Janvier | I1: =An -> 2018
B2: =DATE(An,Janvier,B7) -> 2018-01-01 | C2: 2018-01-02 | D2: 2018-01-03 | E2: 2018-01-04 | F2: 2018-01-05 | G2: 2018-01-06 | H2: 2018-01-07 | I2: 2018-01-08 | J2: 2018-01-09 | K2: 2018-01-10 | L2: 2018-01-11 | M2: 2018-01-12 | N2: 2018-01-13 | O2: 2018-01-14 | P2: 2018-01-15 | Q2: 2018-01-16 | R2: 2018-01-17 | S2: 2018-01-18 | T2: 2018-01-19 | U2: 2018-01-20 | V2: 2018-01-21 | W2: 2018-01-22 | X2: 2018-01-23 | Y2: 2018-01-24 | Z2: 2018-01-25 | AA2: 2018-01-26 | AB2: 2018-01-27 | AC2: 2018-01-28 | AD2: 2018-01-29 | AE2: 2018-01-30 | AF2: 2018-01-31
A3: =IF(Données!$L$5="","Service",Données!$L$5) -> RENFORT 2
A6: Jours | B6: =PROPER(TEXT(DATE(An,Janvier,B$7),"jjjjjj")) -> Lundi | C6: =PROPER(TEXT(DATE(An,Janvier,C$7),"jjjjjj")) -> Mardi | D6: =PROPER(TEXT(DATE(An,Janvier,D$7),"jjjjjj")) -> Mercredi | E6: Jeudi | F6: Vendredi | G6: Samedi | H6: Dimanche | I6: Lundi | J6: Mardi | K6: Mercredi | L6: Jeudi | M6: Vendredi | N6: Samedi | O6: Dimanche | P6: Lundi | Q6: Mardi | R6: Mercredi | S6: Jeudi | T6: Vendredi | U6: Samedi | V6: Dimanche | W6: Lundi | X6: Mardi | Y6: Mercredi | Z6: Jeudi | AA6: Vendredi | AB6: Samedi | AC6: Dimanche | AD6: Lundi | AE6: Mardi | AF6: Mercredi
B7: 1 | C7: =B7+1 -> 2 | D7: =C7+1 -> 3 | E7: 4 | F7: 5 | G7: 6 | H7: 7 | I7: 8 | J7: 9 | K7: 10 | L7: 11 | M7: 12 | N7: 13 | O7: 14 | P7: 15 | Q7: 16 | R7: 17 | S7: 18 | T7: 19 | U7: 20 | V7: 21 | W7: 22 | X7: 23 | Y7: 24 | Z7: 25 | AA7: 26 | AB7: =AA7+1 -> 27 | AC7: =AB7+1 -> 28 | AD7: =AC7+1 -> 29 | AE7: =AD7+1 -> 30 | AF7: =AE7+1 -> 31
A8: Equipe de jour
A9: =Données!$H6 -> 1 | B9: =hjanvier ->  | C9: =hjanvier ->  | D9: =hjanvier ->  | E9: =hjanvier ->  | F9: =hjanvier ->  | G9: =hjanvier ->  | H9: =hjanvier ->  | I9: =hjanvier ->  | J9: =hjanvier ->  | K9: =hjanvier ->  | L9: =hjanvier ->  | M9: =hjanvier ->  | N9: =hjanvier ->  | O9: =hjanvier ->  | P9: =hjanvier ->  | Q9: =hjanvier ->  | R9: =hjanvier ->  | S9: =hjanvier ->  | T9: =hjanvier ->  | U9: =hjanvier ->  | V9: =hjanvier ->  | W9: =hjanvier ->  | X9: =hjanvier ->  | Y9: =hjanvier ->  | Z9: =hjanvier ->  | AA9: =hjanvier ->  | AB9: =hjanvier ->  | AC9: =hjanvier ->  | AD9: =hjanvier ->  | AE9: =hjanvier ->  | AF9: =hjanvier -> 
A10: =Données!$H7 -> 2 | B10: =hjanvier ->  | C10: =hjanvier ->  | D10: =hjanvier ->  | E10: =hjanvier ->  | F10: =hjanvier ->  | G10: =hjanvier ->  | H10: =hjanvier ->  | I10: =hjanvier ->  | J10: =hjanvier ->  | K10: =hjanvier ->  | L10: =hjanvier ->  | M10: =hjanvier ->  | N10: =hjanvier ->  | O10: =hjanvier ->  | P10: =hjanvier ->  | Q10: =hjanvier ->  | R10: =hjanvier ->  | S10: =hjanvier ->  | T10: =hjanvier ->  | U10: =hjanvier ->  | V10: =hjanvier ->  | W10: =hjanvier ->  | X10: =hjanvier ->  | Y10: =hjanvier ->  | Z10: =hjanvier ->  | AA10: =hjanvier ->  | AB10: =hjanvier ->  | AC10: =hjanvier ->  | AD10: =hjanvier ->  | AE10: =hjanvier -> CA : CA | AF10: =hjanvier -> CA : CA
A11: =Données!$H8 -> 3 | B11: =hjanvier ->  | C11: =hjanvier ->  | D11: =hjanvier ->  | E11: =hjanvier ->  | F11: =hjanvier ->  | G11: =hjanvier ->  | H11: =hjanvier ->  | I11: =hjanvier ->  | J11: =hjanvier ->  | K11: =hjanvier ->  | L11: =hjanvier ->  | M11: =hjanvier ->  | N11: =hjanvier ->  | O11: =hjanvier ->  | P11: =hjanvier ->  | Q11: =hjanvier ->  | R11: =hjanvier ->  | S11: =hjanvier ->  | T11: =hjanvier ->  | U11: =hjanvier ->  | V11: =hjanvier ->  | W11: =hjanvier ->  | X11: =hjanvier ->  | Y11: =hjanvier ->  | Z11: =hjanvier ->  | AA11: =hjanvier ->  | AB11: =hjanvier ->  | AC11: =hjanvier ->  | AD11: =hjanvier ->  | AE11: =hjanvier ->  | AF11: =hjanvier -> 
A12: =Données!$H9 -> 4 | B12: =hjanvier ->  | C12: =hjanvier ->  | D12: =hjanvier ->  | E12: =hjanvier ->  | F12: =hjanvier ->  | G12: =hjanvier ->  | H12: =hjanvier ->  | I12: =hjanvier ->  | J12: =hjanvier ->  | K12: =hjanvier ->  | L12: =hjanvier ->  | M12: =hjanvier ->  | N12: =hjanvier ->  | O12: =hjanvier ->  | P12: =hjanvier ->  | Q12: =hjanvier ->  | R12: =hjanvier ->  | S12: =hjanvier ->  | T12: =hjanvier ->  | U12: =hjanvier ->  | V12: =hjanvier ->  | W12: =hjanvier ->  | X12: =hjanvier ->  | Y12: =hjanvier ->  | Z12: =hjanvier ->  | AA12: =hjanvier ->  | AB12: =hjanvier ->  | AC12: =hjanvier ->  | AD12: =hjanvier ->  | AE12: =hjanvier ->  | AF12: =hjanvier -> 
A13: =Données!$H10 -> 5 | B13: =hjanvier ->  | C13: =hjanvier ->  | D13: =hjanvier ->  | E13: =hjanvier ->  | F13: =hjanvier ->  | G13: =hjanvier ->  | H13: =hjanvier ->  | I13: =hjanvier ->  | J13: =hjanvier ->  | K13: =hjanvier ->  | L13: =hjanvier ->  | M13: =hjanvier ->  | N13: =hjanvier ->  | O13: =hjanvier ->  | P13: =hjanvier -> CA : CA | Q13: =hjanvier -> CA : CA | R13: =hjanvier -> CA : CA | S13: =hjanvier -> CA : CA | T13: =hjanvier -> CA : CA | U13: =hjanvier ->  | V13: =hjanvier ->  | W13: =hjanvier ->  | X13: =hjanvier ->  | Y13: =hjanvier ->  | Z13: =hjanvier ->  | AA13: =hjanvier ->  | AB13: =hjanvier ->  | AC13: =hjanvier ->  | AD13: =hjanvier ->  | AE13: =hjanvier ->  | AF13: =hjanvier -> 
A14: =Données!$H11 -> 6 | B14: =hjanvier ->  | C14: =hjanvier ->  | D14: =hjanvier ->  | E14: =hjanvier ->  | F14: =hjanvier ->  | G14: =hjanvier ->  | H14: =hjanvier ->  | I14: =hjanvier ->  | J14: =hjanvier ->  | K14: =hjanvier ->  | L14: =hjanvier ->  | M14: =hjanvier ->  | N14: =hjanvier ->  | O14: =hjanvier ->  | P14: =hjanvier ->  | Q14: =hjanvier ->  | R14: =hjanvier ->  | S14: =hjanvier ->  | T14: =hjanvier ->  | U14: =hjanvier ->  | V14: =hjanvier ->  | W14: =hjanvier ->  | X14: =hjanvier ->  | Y14: =hjanvier ->  | Z14: =hjanvier ->  | AA14: =hjanvier ->  | AB14: =hjanvier ->  | AC14: =hjanvier ->  | AD14: =hjanvier ->  | AE14: =hjanvier ->  | AF14: =hjanvier -> 
A15: =Données!$H12 -> 7 | B15: =hjanvier ->  | C15: =hjanvier ->  | D15: =hjanvier ->  | E15: =hjanvier ->  | F15: =hjanvier ->  | G15: =hjanvier ->  | H15: =hjanvier ->  | I15: =hjanvier ->  | J15: =hjanvier ->  | K15: =hjanvier ->  | L15: =hjanvier ->  | M15: =hjanvier ->  | N15: =hjanvier ->  | O15: =hjanvier ->  | P15: =hjanvier ->  | Q15: =hjanvier ->  | R15: =hjanvier ->  | S15: =hjanvier ->  | T15: =hjanvier ->  | U15: =hjanvier ->  | V15: =hjanvier ->  | W15: =hjanvier ->  | X15: =hjanvier ->  | Y15: =hjanvier ->  | Z15: =hjanvier ->  | AA15: =hjanvier ->  | AB15: =hjanvier ->  | AC15: =hjanvier ->  | AD15: =hjanvier ->  | AE15: =hjanvier ->  | AF15: =hjanvier -> 
A16: =Données!$H13 -> 8 | B16: =hjanvier ->  | C16: =hjanvier ->  | D16: =hjanvier ->  | E16: =hjanvier ->  | F16: =hjanvier ->  | G16: =hjanvier ->  | H16: =hjanvier ->  | I16: =hjanvier ->  | J16: =hjanvier ->  | K16: =hjanvier ->  | L16: =hjanvier ->  | M16: =hjanvier ->  | N16: =hjanvier ->  | O16: =hjanvier ->  | P16: =hjanvier ->  | Q16: =hjanvier ->  | R16: =hjanvier ->  | S16: =hjanvier ->  | T16: =hjanvier ->  | U16: =hjanvier ->  | V16: =hjanvier ->  | W16: =hjanvier ->  | X16: =hjanvier ->  | Y16: =hjanvier ->  | Z16: =hjanvier ->  | AA16: =hjanvier ->  | AB16: =hjanvier ->  | AC16: =hjanvier ->  | AD16: =hjanvier ->  | AE16: =hjanvier ->  | AF16: =hjanvier -> 
A17: =Données!$H14 -> 0 | B17: =hjanvier ->  | C17: =hjanvier ->  | D17: =hjanvier ->  | E17: =hjanvier ->  | F17: =hjanvier ->  | G17: =hjanvier ->  | H17: =hjanvier ->  | I17: =hjanvier ->  | J17: =hjanvier ->  | K17: =hjanvier ->  | L17: =hjanvier ->  | M17: =hjanvier ->  | N17: =hjanvier ->  | O17: =hjanvier ->  | P17: =hjanvier ->  | Q17: =hjanvier ->  | R17: =hjanvier ->  | S17: =hjanvier ->  | T17: =hjanvier ->  | U17: =hjanvier ->  | V17: =hjanvier ->  | W17: =hjanvier ->  | X17: =hjanvier ->  | Y17: =hjanvier ->  | Z17: =hjanvier ->  | AA17: =hjanvier ->  | AB17: =hjanvier ->  | AC17: =hjanvier ->  | AD17: =hjanvier ->  | AE17: =hjanvier ->  | AF17: =hjanvier -> 
A18: =Données!$H15 -> 0 | B18: =hjanvier ->  | C18: =hjanvier ->  | D18: =hjanvier ->  | E18: =hjanvier ->  | F18: =hjanvier ->  | G18: =hjanvier ->  | H18: =hjanvier ->  | I18: =hjanvier ->  | J18: =hjanvier ->  | K18: =hjanvier ->  | L18: =hjanvier ->  | M18: =hjanvier ->  | N18: =hjanvier ->  | O18: =hjanvier ->  | P18: =hjanvier ->  | Q18: =hjanvier ->  | R18: =hjanvier ->  | S18: =hjanvier ->  | T18: =hjanvier ->  | U18: =hjanvier ->  | V18: =hjanvier ->  | W18: =hjanvier ->  | X18: =hjanvier ->  | Y18: =hjanvier ->  | Z18: =hjanvier ->  | AA18: =hjanvier ->  | AB18: =hjanvier ->  | AC18: =hjanvier ->  | AD18: =hjanvier ->  | AE18: =hjanvier ->  | AF18: =hjanvier -> 
A19: =Données!$H16 -> 0 | B19: =hjanvier ->  | C19: =hjanvier ->  | D19: =hjanvier ->  | E19: =hjanvier ->  | F19: =hjanvier ->  | G19: =hjanvier ->  | H19: =hjanvier ->  | I19: =hjanvier ->  | J19: =hjanvier ->  | K19: =hjanvier ->  | L19: =hjanvier ->  | M19: =hjanvier ->  | N19: =hjanvier ->  | O19: =hjanvier ->  | P19: =hjanvier ->  | Q19: =hjanvier ->  | R19: =hjanvier ->  | S19: =hjanvier ->  | T19: =hjanvier ->  | U19: =hjanvier ->  | V19: =hjanvier ->  | W19: =hjanvier ->  | X19: =hjanvier ->  | Y19: =hjanvier ->  | Z19: =hjanvier ->  | AA19: =hjanvier ->  | AB19: =hjanvier ->  | AC19: =hjanvier ->  | AD19: =hjanvier ->  | AE19: =hjanvier ->  | AF19: =hjanvier -> 
A20: =Données!$H17 -> 0
A21: =Données!$H18 -> 0
A22: =Données!$H19 -> 0
A23: =Données!$H20 -> 0
A24: =Données!$H21 -> 0
A25: =Données!$H22 -> Equipe de nuit
A26: =Données!$H23 -> 9 | B26: =hjanvier ->  | C26: =hjanvier ->  | D26: =hjanvier ->  | E26: =hjanvier -> CA : CA | F26: =hjanvier -> CA : CA | G26: =hjanvier ->  | H26: =hjanvier ->  | I26: =hjanvier -> CA : CA | J26: =hjanvier -> CA : CA | K26: =hjanvier -> CA : CA | L26: =hjanvier -> CA : CA | M26: =hjanvier -> CA : CA | N26: =hjanvier ->  | O26: =hjanvier ->  | P26: =hjanvier ->  | Q26: =hjanvier ->  | R26: =hjanvier ->  | S26: =hjanvier ->  | T26: =hjanvier ->  | U26: =hjanvier ->  | V26: =hjanvier ->  | W26: =hjanvier ->  | X26: =hjanvier ->  | Y26: =hjanvier ->  | Z26: =hjanvier ->  | AA26: =hjanvier ->  | AB26: =hjanvier ->  | AC26: =hjanvier ->  | AD26: =hjanvier ->  | AE26: =hjanvier ->  | AF26: =hjanvier -> 
A27: =Données!$H24 -> 10 | B27: =hjanvier ->  | C27: =hjanvier ->  | D27: =hjanvier ->  | E27: =hjanvier ->  | F27: =hjanvier ->  | G27: =hjanvier ->  | H27: =hjanvier ->  | I27: =hjanvier ->  | J27: =hjanvier ->  | K27: =hjanvier ->  | L27: =hjanvier ->  | M27: =hjanvier ->  | N27: =hjanvier ->  | O27: =hjanvier ->  | P27: =hjanvier ->  | Q27: =hjanvier ->  | R27: =hjanvier ->  | S27: =hjanvier ->  | T27: =hjanvier ->  | U27: =hjanvier ->  | V27: =hjanvier ->  | W27: =hjanvier ->  | X27: =hjanvier ->  | Y27: =hjanvier ->  | Z27: =hjanvier ->  | AA27: =hjanvier ->  | AB27: =hjanvier ->  | AC27: =hjanvier ->  | AD27: =hjanvier ->  | AE27: =hjanvier ->  | AF27: =hjanvier -> 
A28: =Données!$H25 -> 11 | B28: =hjanvier ->  | C28: =hjanvier ->  | D28: =hjanvier ->  | E28: =hjanvier ->  | F28: =hjanvier ->  | G28: =hjanvier ->  | H28: =hjanvier ->  | I28: =hjanvier ->  | J28: =hjanvier ->  | K28: =hjanvier ->  | L28: =hjanvier ->  | M28: =hjanvier ->  | N28: =hjanvier ->  | O28: =hjanvier ->  | P28: =hjanvier ->  | Q28: =hjanvier ->  | R28: =hjanvier ->  | S28: =hjanvier ->  | T28: =hjanvier ->  | U28: =hjanvier ->  | V28: =hjanvier ->  | W28: =hjanvier ->  | X28: =hjanvier ->  | Y28: =hjanvier ->  | Z28: =hjanvier ->  | AA28: =hjanvier ->  | AB28: =hjanvier ->  | AC28: =hjanvier ->  | AD28: =hjanvier ->  | AE28: =hjanvier ->  | AF28: =hjanvier -> 
A29: =Données!$H26 -> 0 | B29: =hjanvier ->  | C29: =hjanvier ->  | D29: =hjanvier ->  | E29: =hjanvier ->  | F29: =hjanvier ->  | G29: =hjanvier ->  | H29: =hjanvier ->  | I29: =hjanvier ->  | J29: =hjanvier ->  | K29: =hjanvier ->  | L29: =hjanvier ->  | M29: =hjanvier ->  | N29: =hjanvier ->  | O29: =hjanvier ->  | P29: =hjanvier ->  | Q29: =hjanvier ->  | R29: =hjanvier ->  | S29: =hjanvier ->  | T29: =hjanvier ->  | U29: =hjanvier ->  | V29: =hjanvier ->  | W29: =hjanvier ->  | X29: =hjanvier ->  | Y29: =hjanvier ->  | Z29: =hjanvier ->  | AA29: =hjanvier ->  | AB29: =hjanvier ->  | AC29: =hjanvier ->  | AD29: =hjanvier ->  | AE29: =hjanvier ->  | AF29: =hjanvier -> 
A30: =Données!$H27 -> 0
A31: =Données!$H28 -> 0
A32: =Données!$H29 -> 0
A33: =Données!$H30 -> 0
A34: =Données!$H31 -> 0
A35: =Données!$H32 -> Maitresse de maison
A36: =Données!$H33 -> 12 | B36: =hjanvier ->  | C36: =hjanvier ->  | D36: =hjanvier ->  | E36: =hjanvier ->  | F36: =hjanvier ->  | G36: =hjanvier ->  | H36: =hjanvier ->  | I36: =hjanvier ->  | J36: =hjanvier ->  | K36: =hjanvier ->  | L36: =hjanvier ->  | M36: =hjanvier ->  | N36: =hjanvier ->  | O36: =hjanvier ->  | P36: =hjanvier ->  | Q36: =hjanvier ->  | R36: =hjanvier ->  | S36: =hjanvier ->  | T36: =hjanvier ->  | U36: =hjanvier ->  | V36: =hjanvier ->  | W36: =hjanvier ->  | X36: =hjanvier ->  | Y36: =hjanvier ->  | Z36: =hjanvier ->  | AA36: =hjanvier ->  | AB36: =hjanvier ->  | AC36: =hjanvier ->  | AD36: =hjanvier ->  | AE36: =hjanvier ->  | AF36: =hjanvier -> 
A37: =Données!$H34 -> 0 | B37: =hjanvier ->  | C37: =hjanvier ->  | D37: =hjanvier ->  | E37: =hjanvier ->  | F37: =hjanvier ->  | G37: =hjanvier ->  | H37: =hjanvier ->  | I37: =hjanvier ->  | J37: =hjanvier ->  | K37: =hjanvier ->  | L37: =hjanvier ->  | M37: =hjanvier ->  | N37: =hjanvier ->  | O37: =hjanvier ->  | P37: =hjanvier ->  | Q37: =hjanvier ->  | R37: =hjanvier ->  | S37: =hjanvier ->  | T37: =hjanvier ->  | U37: =hjanvier ->  | V37: =hjanvier ->  | W37: =hjanvier ->  | X37: =hjanvier ->  | Y37: =hjanvier ->  | Z37: =hjanvier ->  | AA37: =hjanvier ->  | AB37: =hjanvier ->  | AC37: =hjanvier ->  | AD37: =hjanvier ->  | AE37: =hjanvier ->  | AF37: =hjanvier -> 
A38: =Données!$H35 -> 0
A39: =Données!$H36 -> 0
A40: =Données!$H37 -> 0
A41: =Données!$H38 -> 0
A42: =Données!$H39 -> 0
A43: =Données!$H40 -> 0
A44: =Données!$H41 -> 0
A45: =Données!$H42 -> Psychologue
A46: =Données!$H43 -> 13 | B46: =hjanvier ->  | C46: =hjanvier ->  | D46: =hjanvier ->  | E46: =hjanvier ->  | F46: =hjanvier ->  | G46: =hjanvier ->  | H46: =hjanvier ->  | I46: =hjanvier ->  | J46: =hjanvier ->  | K46: =hjanvier ->  | L46: =hjanvier ->  | M46: =hjanvier ->  | N46: =hjanvier ->  | O46: =hjanvier ->  | P46: =hjanvier ->  | Q46: =hjanvier ->  | R46: =hjanvier ->  | S46: =hjanvier ->  | T46: =hjanvier ->  | U46: =hjanvier ->  | V46: =hjanvier ->  | W46: =hjanvier ->  | X46: =hjanvier ->  | Y46: =hjanvier ->  | Z46: =hjanvier ->  | AA46: =hjanvier ->  | AB46: =hjanvier ->  | AC46: =hjanvier ->  | AD46: =hjanvier ->  | AE46: =hjanvier ->  | AF46: =hjanvier -> 
A47: =Données!$H44 -> 0
A48: =Données!$H45 -> 0
A49: =Données!$H46 -> Coordinatrice
A50: =Données!$H47 -> 14 | B50: =hjanvier ->  | C50: =hjanvier ->  | D50: =hjanvier ->  | E50: =hjanvier ->  | F50: =hjanvier ->  | G50: =hjanvier ->  | H50: =hjanvier ->  | I50: =hjanvier ->  | J50: =hjanvier ->  | K50: =hjanvier ->  | L50: =hjanvier ->  | M50: =hjanvier ->  | N50: =hjanvier ->  | O50: =hjanvier ->  | P50: =hjanvier ->  | Q50: =hjanvier ->  | R50: =hjanvier ->  | S50: =hjanvier ->  | T50: =hjanvier ->  | U50: =hjanvier ->  | V50: =hjanvier ->  | W50: =hjanvier ->  | X50: =hjanvier ->  | Y50: =hjanvier ->  | Z50: =hjanvier ->  | AA50: =hjanvier ->  | AB50: =hjanvier ->  | AC50: =hjanvier ->  | AD50: =hjanvier ->  | AE50: =hjanvier ->  | AF50: =hjanvier -> 
A51: =Données!$H48 -> 0
A52: =Données!$H49 -> 0
A53: =Données!$H50 -> 0
A54: =Données!$H51 -> 0
A55: =Données!$H52 -> Chef de service
A56: =Données!$H53 -> 15 | B56: =hjanvier ->  | C56: =hjanvier ->  | D56: =hjanvier ->  | E56: =hjanvier ->  | F56: =hjanvier ->  | G56: =hjanvier ->  | H56: =hjanvier ->  | I56: =hjanvier -> 09:00 : 18:00 | J56: =hjanvier -> 09:00 : 18:00 | K56: =hjanvier -> 09:00 : 18:00 | L56: =hjanvier -> 09:00 : 18:00 | M56: =hjanvier -> 09:00 : 18:00 | N56: =hjanvier ->  | O56: =hjanvier ->  | P56: =hjanvier -> 09:00 : 18:00 | Q56: =hjanvier -> 09:00 : 18:00 | R56: =hjanvier -> 09:00 : 18:00 | S56: =hjanvier -> 09:00 : 18:00 | T56: =hjanvier -> CA : CA | U56: =hjanvier ->  | V56: =hjanvier ->  | W56: =hjanvier -> 09:00 : 18:00 | X56: =hjanvier -> CA : CA | Y56: =hjanvier -> 09:00 : 18:00 | Z56: =hjanvier -> 09:00 : 18:00 | AA56: =hjanvier -> 09:00 : 18:00 | AB56: =hjanvier ->  | AC56: =hjanvier ->  | AD56: =hjanvier -> 09:00 : 18:00 | AE56: =hjanvier -> 09:00 : 18:00 | AF56: =hjanvier -> 09:00 : 18:00
C58: =Données!$A3 -> M | D58: = | E58: =IF(ISBLANK(Données!$C3),TEXT(Données!$B3,"hh:mm"),TEXT(Données!$B3,"hh:mm")&" : "&TEXT(Données!$C3,"hh:mm")) -> 07:00 : 14:30 | I58: =Données!$A7 -> DM | J58: = | K58: =IF(ISBLANK(Données!$C7),TEXT(Données!$B7,"hh:mm"),TEXT(Données!$B7,"hh:mm")&" : "&TEXT(Données!$C7,"hh:mm")) -> 08:00 : 15:30 | O58: =Données!$A10 -> S+ | P58: = | Q58: =IF(ISBLANK(Données!$C10),TEXT(Données!$B10,"hh:mm"),TEXT(Données!$B10,"hh:mm")&" : "&TEXT(Données!$C10,"hh:mm")) -> 14:00 : 23:00 | U58: =Données!$A14 -> N | V58: = | W58: =IF(ISBLANK(Données!$C14),TEXT(Données!$B14,"hh:mm"),TEXT(Données!$B14,"hh:mm")&" : "&TEXT(Données!$C14,"hh:mm")) -> 20:00 : 07:00 | AA58: =Données!$A18 -> sta | AB58: = | AC58: =IF(ISBLANK(Données!$C18),TEXT(Données!$B18,"hh:mm"),TEXT(Données!$B18,"hh:mm")&" : "&TEXT(Données!$C18,"hh:mm")) -> sta : ge
C59: =Données!$A4 -> MR | D59: = | E59: =IF(ISBLANK(Données!$C4),TEXT(Données!$B4,"hh:mm"),TEXT(Données!$B4,"hh:mm")&" : "&TEXT(Données!$C4,"hh:mm")) -> 07:00 : 17:00 | I59: =Données!$A8 -> PFJ | J59: = | K59: =IF(ISBLANK(Données!$C8),TEXT(Données!$B8,"hh:mm"),TEXT(Données!$B8,"hh:mm")&" : "&TEXT(Données!$C8,"hh:mm")) -> 09:00 : 17:00 | O59: =Données!$A11 -> R | P59: = | Q59: =IF(ISBLANK(Données!$C11),TEXT(Données!$B11,"hh:mm"),TEXT(Données!$B11,"hh:mm")&" : "&TEXT(Données!$C11,"hh:mm")) -> 14:00 : 17:00 | U59: =Données!$A15 -> NVS | V59: = | W59: =IF(ISBLANK(Données!$C15),TEXT(Données!$B15,"hh:mm"),TEXT(Données!$B15,"hh:mm")&" : "&TEXT(Données!$C15,"hh:mm")) -> 20:00 : 08:00 | AA59: =Données!$A19 -> AT | AB59: = | AC59: =IF(ISBLANK(Données!$C19),TEXT(Données!$B19,"hh:mm"),TEXT(Données!$B19,"hh:mm")&" : "&TEXT(Données!$C19,"hh:mm")) -> AT : AT
C60: =Données!$A5 -> D | D60: = | E60: =IF(ISBLANK(Données!$C5),TEXT(Données!$B5,"hh:mm"),TEXT(Données!$B5,"hh:mm")&" : "&TEXT(Données!$C5,"hh:mm")) -> 10:00 : 17:30 | I60: =Données!$A9 -> S | J60: = | K60: =IF(ISBLANK(Données!$C9),TEXT(Données!$B9,"hh:mm"),TEXT(Données!$B9,"hh:mm")&" : "&TEXT(Données!$C9,"hh:mm")) -> 14:00 : 22:00 | O60: =Données!$A12 -> W | P60: = | Q60: =IF(ISBLANK(Données!$C12),TEXT(Données!$B12,"hh:mm"),TEXT(Données!$B12,"hh:mm")&" : "&TEXT(Données!$C12,"hh:mm")) -> 08:00 : 20:00 | U60: =Données!$A16 -> CA | V60: = | W60: =IF(ISBLANK(Données!$C16),TEXT(Données!$B16,"hh:mm"),TEXT(Données!$B16,"hh:mm")&" : "&TEXT(Données!$C16,"hh:mm")) -> CA : CA | AA60: =Données!$A20 -> AM | AB60: = | AC60: =IF(ISBLANK(Données!$C20),TEXT(Données!$B20,"hh:mm"),TEXT(Données!$B20,"hh:mm")&" : "&TEXT(Données!$C20,"hh:mm")) -> AM : AM
C61: =Données!$A6 -> DR | D61: = | E61: =IF(ISBLANK(Données!$C6),TEXT(Données!$B6,"hh:mm"),TEXT(Données!$B6,"hh:mm")&" : "&TEXT(Données!$C6,"hh:mm")) -> 10:00 : 17:30 | I61: =Données!$A10 -> S+ | J61: = | K61: =IF(ISBLANK(Données!$C10),TEXT(Données!$B10,"hh:mm"),TEXT(Données!$B10,"hh:mm")&" : "&TEXT(Données!$C10,"hh:mm")) -> 14:00 : 23:00 | O61: =Données!$A13 -> W+ | P61: = | Q61: =IF(ISBLANK(Données!$C13),TEXT(Données!$B13,"hh:mm"),TEXT(Données!$B13,"hh:mm")&" : "&TEXT(Données!$C13,"hh:mm")) -> 11:00 : 23:00 | U61: =Données!$A17 -> F | V61: = | W61: =IF(ISBLANK(Données!$C17),TEXT(Données!$B17,"hh:mm"),TEXT(Données!$B17,"hh:mm")&" : "&TEXT(Données!$C17,"hh:mm")) -> F : 00:00 | AA61: =Données!$A21 -> CM | AB61: = | AC61: =IF(ISBLANK(Données!$C21),TEXT(Données!$B21,"hh:mm"),TEXT(Données!$B21,"hh:mm")&" : "&TEXT(Données!$C21,"hh:mm")) -> CM : CM

Sheet HFevrier
D1: Mois de | E1: Fevrier | I1: =An -> 2018
B2: =DATE(An,Fevrier,B7) -> 2018-02-01 | C2: 2018-02-02 | D2: 2018-02-03 | E2: 2018-02-04 | F2: 2018-02-05 | G2: 2018-02-06 | H2: 2018-02-07 | I2: 2018-02-08 | J2: 2018-02-09 | K2: 2018-02-10 | L2: 2018-02-11 | M2: 2018-02-12 | N2: 2018-02-13 | O2: 2018-02-14 | P2: 2018-02-15 | Q2: 2018-02-16 | R2: 2018-02-17 | S2: 2018-02-18 | T2: 2018-02-19 | U2: 2018-02-20 | V2: 2018-02-21 | W2: 2018-02-22 | X2: 2018-02-23 | Y2: 2018-02-24 | Z2: 2018-02-25 | AA2: 2018-02-26 | AB2: 2018-02-27 | AC2: 2018-02-28 | AD2: =IFERROR(DATE(An,Fevrier,AD7),"") -> 
A3: =IF(Données!$L$5="","Service",Données!$L$5) -> RENFORT 2
A6: Jours | B6: =PROPER(TEXT(DATE(An,Fevrier,B$7),"jjjjjj")) -> Jeudi | C6: Vendredi | D6: Samedi | E6: Dimanche | F6: Lundi | G6: Mardi | H6: Mercredi | I6: Jeudi | J6: Vendredi | K6: Samedi | L6: Dimanche | M6: Lundi | N6: Mardi | O6: Mercredi | P6: Jeudi | Q6: Vendredi | R6: Samedi | S6: Dimanche | T6: Lundi | U6: Mardi | V6: Mercredi | W6: Jeudi | X6: Vendredi | Y6: Samedi | Z6: Dimanche | AA6: Lundi | AB6: Mardi | AC6: Mercredi | AD6: =IFERROR(PROPER(TEXT(DATE(An,Fevrier,AD$7),"jjjjjj")),"-") -> -
B7: 1 | C7: =B7+1 -> 2 | D7: =C7+1 -> 3 | E7: 4 | F7: 5 | G7: 6 | H7: 7 | I7: 8 | J7: 9 | K7: 10 | L7: 11 | M7: 12 | N7: 13 | O7: 14 | P7: 15 | Q7: 16 | R7: 17 | S7: 18 | T7: 19 | U7: 20 | V7: 21 | W7: 22 | X7: 23 | Y7: 24 | Z7: 25 | AA7: 26 | AB7: =AA7+1 -> 27 | AC7: =AB7+1 -> 28 | AD7: =IFERROR(IF(MOD(YEAR(An),4)=0,"29","-"),"-") -> -
A8: Equipe de jour
A9: =Données!$H6 -> 1 | B9: =hfevrier ->  | L9: =hfevrier ->  | V9: =hfevrier ->  | AA9: CA : CA | AB9: CA : CA | AC9: CA : CA | AD9: =IFERROR(hfevrier,"") -> 
A10: =Données!$H7 -> 2 | M10: CA : CA | N10: CA : CA | O10: CA : CA | P10: CA : CA | Q10: CA : CA
A11: =Données!$H8 -> 3 | P11: CA : CA | Q11: CA : CA | T11: CA : CA
A12: =Données!$H9 -> 4 | Q12: CM : CM | T12: CM : CM | U12: CM : CM | V12: CM : CM | W12: CM : CM | X12: CM : CM | AA12: CM : CM | AB12: CM : CM | AC12: CM : CM
A13: =Données!$H10 -> 5 | AA13: CA : CA | AB13: CA : CA | AC13: CA : CA
A14: =Données!$H11 -> 6 | W14: CA : CA | X14: CA : CA
A15: =Données!$H12 -> 7
A16: =Données!$H13 -> 8
A17: =Données!$H14 -> 0
A18: =Données!$H15 -> 0
A19: =Données!$H16 -> 0 | B19: =hfevrier -> 
A20: =Données!$H17 -> 0
A21: =Données!$H18 -> 0
A22: =Données!$H19 -> 0
A23: =Données!$H20 -> 0
A24: =Données!$H21 -> 0
A25: =Données!$H22 -> Equipe de nuit
A26: =Données!$H23 -> 9 | B26: =hfevrier ->  | L26: =hfevrier ->  | V26: =hfevrier ->  | AD26: =IFERROR(hfevrier,"") -> 
A27: =Données!$H24 -> 10 | AD27: =IFERROR(hfevrier,"") -> 
A28: =Données!$H25 -> 11 | AD28: =IFERROR(hfevrier,"") -> 
A29: =Données!$H26 -> 0 | AD29: =IFERROR(hfevrier,"") -> 
A30: =Données!$H27 -> 0
A31: =Données!$H28 -> 0
A32: =Données!$H29 -> 0
A33: =Données!$H30 -> 0
A34: =Données!$H31 -> 0
A35: =Données!$H32 -> Maitresse de maison
A36: =Données!$H33 -> 12 | B36: =hfevrier ->  | L36: =hfevrier ->  | V36: =hfevrier ->  | AD36: =IFERROR(hfevrier,"") -> 
A37: =Données!$H34 -> 0 | AD37: =IFERROR(hfevrier,"") -> 
A38: =Données!$H35 -> 0
A39: =Données!$H36 -> 0
A40: =Données!$H37 -> 0
A41: =Données!$H38 -> 0
A42: =Données!$H39 -> 0
A43: =Données!$H40 -> 0
A44: =Données!$H41 -> 0
A45: =Données!$H42 -> Psychologue
A46: =Données!$H43 -> 13 | B46: =hfevrier ->  | AD46: =IFERROR(hfevrier,"") -> 
A47: =Données!$H44 -> 0
A48: =Données!$H45 -> 0
A49: =Données!$H46 -> Coordinatrice
A50: =Données!$H47 -> 14 | B50: =hfevrier ->  | F50: F : 00:00 | G50: F : 00:00 | H50: F : 00:00 | I50: F : 00:00 | J50: F : 00:00 | AD50: =IFERROR(hfevrier,"") -> 
A51: =Données!$H48 -> 0
A52: =Données!$H49 -> 0
A53: =Données!$H50 -> 0
A54: =Données!$H51 -> 0
A55: =Données!$H52 -> Chef de service
A56: =Données!$H53 -> 15 | B56: =hfevrier -> 09:00 : 18:00 | C56: 09:00 : 18:00 | F56: 09:00 : 18:00 | G56: 09:00 : 18:00 | H56: CA : CA | I56: 09:00 : 18:00 | J56: 09:00 : 18:00 | M56: 09:00 : 18:00 | N56: 09:00 : 18:00 | O56: 09:00 : 18:00 | P56: 09:00 : 18:00 | Q56: 09:00 : 18:00 | T56: 09:00 : 18:00 | U56: 09:00 : 18:00 | V56: 09:00 : 18:00 | W56: 09:00 : 18:00 | X56: CA : CA | AA56: CA : CA | AB56: CA : CA | AC56: CA : CA | AD56: =IFERROR(hfevrier,"") -> 
C58: =Données!$A3 -> M | D58: = | E58: =IF(ISBLANK(Données!$C3),TEXT(Données!$B3,"hh:mm"),TEXT(Données!$B3,"hh:mm")&" : "&TEXT(Données!$C3,"hh:mm")) -> 07:00 : 14:30 | I58: =Données!$A7 -> DM | J58: = | K58: =IF(ISBLANK(Données!$C7),TEXT(Données!$B7,"hh:mm"),TEXT(Données!$B7,"hh:mm")&" : "&TEXT(Données!$C7,"hh:mm")) -> 08:00 : 15:30 | O58: =Données!$A10 -> S+ | P58: = | Q58: =IF(ISBLANK(Données!$C10),TEXT(Données!$B10,"hh:mm"),TEXT(Données!$B10,"hh:mm")&" : "&TEXT(Données!$C10,"hh:mm")) -> 14:00 : 23:00 | U58: =Données!$A14 -> N | V58: = | W58: =IF(ISBLANK(Données!$C14),TEXT(Données!$B14,"hh:mm"),TEXT(Données!$B14,"hh:mm")&" : "&TEXT(Données!$C14,"hh:mm")) -> 20:00 : 07:00 | AA58: =Données!$A18 -> sta | AB58: = | AC58: =IF(ISBLANK(Données!$C18),TEXT(Données!$B18,"hh:mm"),TEXT(Données!$B18,"hh:mm")&" : "&TEXT(Données!$C18,"hh:mm")) -> sta : ge
C59: =Données!$A4 -> MR | D59: = | E59: =IF(ISBLANK(Données!$C4),TEXT(Données!$B4,"hh:mm"),TEXT(Données!$B4,"hh:mm")&" : "&TEXT(Données!$C4,"hh:mm")) -> 07:00 : 17:00 | I59: =Données!$A8 -> PFJ | J59: = | K59: =IF(ISBLANK(Données!$C8),TEXT(Données!$B8,"hh:mm"),TEXT(Données!$B8,"hh:mm")&" : "&TEXT(Données!$C8,"hh:mm")) -> 09:00 : 17:00 | O59: =Données!$A11 -> R | P59: = | Q59: =IF(ISBLANK(Données!$C11),TEXT(Données!$B11,"hh:mm"),TEXT(Données!$B11,"hh:mm")&" : "&TEXT(Données!$C11,"hh:mm")) -> 14:00 : 17:00 | U59: =Données!$A15 -> NVS | V59: = | W59: =IF(ISBLANK(Données!$C15),TEXT(Données!$B15,"hh:mm"),TEXT(Données!$B15,"hh:mm")&" : "&TEXT(Données!$C15,"hh:mm")) -> 20:00 : 08:00 | AA59: =Données!$A19 -> AT | AB59: = | AC59: =IF(ISBLANK(Données!$C19),TEXT(Données!$B19,"hh:mm"),TEXT(Données!$B19,"hh:mm")&" : "&TEXT(Données!$C19,"hh:mm")) -> AT : AT
C60: =Données!$A5 -> D | D60: = | E60: =IF(ISBLANK(Données!$C5),TEXT(Données!$B5,"hh:mm"),TEXT(Données!$B5,"hh:mm")&" : "&TEXT(Données!$C5,"hh:mm")) -> 10:00 : 17:30 | I60: =Données!$A9 -> S | J60: = | K60: =IF(ISBLANK(Données!$C9),TEXT(Données!$B9,"hh:mm"),TEXT(Données!$B9,"hh:mm")&" : "&TEXT(Données!$C9,"hh:mm")) -> 14:00 : 22:00 | O60: =Données!$A12 -> W | P60: = | Q60: =IF(ISBLANK(Données!$C12),TEXT(Données!$B12,"hh:mm"),TEXT(Données!$B12,"hh:mm")&" : "&TEXT(Données!$C12,"hh:mm")) -> 08:00 : 20:00 | U60: =Données!$A16 -> CA | V60: = | W60: =IF(ISBLANK(Données!$C16),TEXT(Données!$B16,"hh:mm"),TEXT(Données!$B16,"hh:mm")&" : "&TEXT(Données!$C16,"hh:mm")) -> CA : CA | AA60: =Données!$A20 -> AM | AB60: = | AC60: =IF(ISBLANK(Données!$C20),TEXT(Données!$B20,"hh:mm"),TEXT(Données!$B20,"hh:mm")&" : "&TEXT(Données!$C20,"hh:mm")) -> AM : AM
C61: =Données!$A6 -> DR | D61: = | E61: =IF(ISBLANK(Données!$C6),TEXT(Données!$B6,"hh:mm"),TEXT(Données!$B6,"hh:mm")&" : "&TEXT(Données!$C6,"hh:mm")) -> 10:00 : 17:30 | I61: =Données!$A10 -> S+ | J61: = | K61: =IF(ISBLANK(Données!$C10),TEXT(Données!$B10,"hh:mm"),TEXT(Données!$B10,"hh:mm")&" : "&TEXT(Données!$C10,"hh:mm")) -> 14:00 : 23:00 | O61: =Données!$A13 -> W+ | P61: = | Q61: =IF(ISBLANK(Données!$C13),TEXT(Données!$B13,"hh:mm"),TEXT(Données!$B13,"hh:mm")&" : "&TEXT(Données!$C13,"hh:mm")) -> 11:00 : 23:00 | U61: =Données!$A17 -> F | V61: = | W61: =IF(ISBLANK(Données!$C17),TEXT(Données!$B17,"hh:mm"),TEXT(Données!$B17,"hh:mm")&" : "&TEXT(Données!$C17,"hh:mm")) -> F : 00:00 | AA61: =Données!$A21 -> CM | AB61: = | AC61: =IF(ISBLANK(Données!$C21),TEXT(Données!$B21,"hh:mm"),TEXT(Données!$B21,"hh:mm")&" : "&TEXT(Données!$C21,"hh:mm")) -> CM : CM

Sheet HMars
D1: Mois de | E1: Mars | I1: =An -> 2018
B2: =DATE(An,Mars,B7) -> 2018-03-01 | C2: 2018-03-02 | D2: 2018-03-03 | E2: 2018-03-04 | F2: 2018-03-05 | G2: 2018-03-06 | H2: 2018-03-07 | I2: 2018-03-08 | J2: 2018-03-09 | K2: 2018-03-10 | L2: 2018-03-11 | M2: 2018-03-12 | N2: 2018-03-13 | O2: 2018-03-14 | P2: 2018-03-15 | Q2: 2018-03-16 | R2: 2018-03-17 | S2: 2018-03-18 | T2: 2018-03-19 | U2: 2018-03-20 | V2: 2018-03-21 | W2: 2018-03-22 | X2: 2018-03-23 | Y2: 2018-03-24 | Z2: 2018-03-25 | AA2: 2018-03-26 | AB2: 2018-03-27 | AC2: 2018-03-28 | AD2: 2018-03-29 | AE2: 2018-03-30 | AF2: 2018-03-31
A3: =IF(Données!$L$5="","Service",Données!$L$5) -> RENFORT 2
A6: Jours | B6: =PROPER(TEXT(DATE(An,Mars,B$7),"jjjjjj")) -> Jeudi | C6: Vendredi | D6: Samedi | E6: Dimanche | F6: Lundi | G6: Mardi | H6: Mercredi | I6: Jeudi | J6: Vendredi | K6: Samedi | L6: Dimanche | M6: Lundi | N6: Mardi | O6: Mercredi | P6: Jeudi | Q6: Vendredi | R6: Samedi | S6: Dimanche | T6: Lundi | U6: Mardi | V6: Mercredi | W6: Jeudi | X6: Vendredi | Y6: Samedi | Z6: Dimanche | AA6: Lundi | AB6: Mardi | AC6: Mercredi | AD6: Jeudi | AE6: Vendredi | AF6: Samedi
B7: 1 | C7: =B$7+1 -> 2 | D7: =C$7+1 -> 3 | E7: 4 | F7: 5 | G7: 6 | H7: 7 | I7: 8 | J7: 9 | K7: 10 | L7: 11 | M7: 12 | N7: 13 | O7: 14 | P7: 15 | Q7: 16 | R7: 17 | S7: 18 | T7: 19 | U7: 20 | V7: 21 | W7: 22 | X7: 23 | Y7: 24 | Z7: 25 | AA7: 26 | AB7: =AA$7+1 -> 27 | AC7: =AB$7+1 -> 28 | AD7: =AC$7+1 -> 29 | AE7: =AD$7+1 -> 30 | AF7: =AE$7+1 -> 31
A8: Equipe de jour
A9: =Données!$H6 -> 1 | B9: =hmars -> CA : CA | C9: =hmars -> CA : CA | D9: =hmars ->  | E9: =hmars ->  | F9: =hmars ->  | G9: =hmars ->  | H9: =hmars ->  | I9: =hmars ->  | J9: =hmars ->  | K9: =hmars ->  | L9: =hmars ->  | M9: =hmars ->  | N9: =hmars ->  | O9: =hmars ->  | P9: =hmars ->  | Q9: =hmars ->  | R9: =hmars ->  | S9: =hmars ->  | T9: =hmars ->  | U9: =hmars ->  | V9: =hmars ->  | W9: =hmars ->  | X9: =hmars ->  | Y9: =hmars ->  | Z9: =hmars ->  | AA9: =hmars ->  | AB9: =hmars ->  | AC9: =hmars ->  | AD9: =hmars ->  | AE9: =hmars ->  | AF9: =hmars -> 
A10: =Données!$H7 -> 2 | B10: =hmars -> AM : AM | C10: =hmars -> AM : AM | D10: =hmars ->  | E10: =hmars ->  | F10: =hmars -> AM : AM | G10: =hmars -> AM : AM | H10: =hmars -> AM : AM | I10: =hmars -> AM : AM | J10: =hmars -> AM : AM | K10: =hmars ->  | L10: =hmars ->  | M10: =hmars -> AM : AM | N10: =hmars -> AM : AM | O10: =hmars -> AM : AM | P10: =hmars -> AM : AM | Q10: =hmars -> AM : AM | R10: =hmars ->  | S10: =hmars ->  | T10: =hmars ->  | U10: =hmars ->  | V10: =hmars ->  | W10: =hmars ->  | X10: =hmars ->  | Y10: =hmars ->  | Z10: =hmars ->  | AA10: =hmars ->  | AB10: =hmars ->  | AC10: =hmars ->  | AD10: =hmars ->  | AE10: =hmars ->  | AF10: =hmars -> 
A11: =Données!$H8 -> 3 | B11: =hmars ->  | C11: =hmars ->  | D11: =hmars ->  | E11: =hmars ->  | F11: =hmars ->  | G11: =hmars ->  | H11: =hmars ->  | I11: =hmars ->  | J11: =hmars ->  | K11: =hmars ->  | L11: =hmars ->  | M11: =hmars ->  | N11: =hmars ->  | O11: =hmars ->  | P11: =hmars ->  | Q11: =hmars ->  | R11: =hmars ->  | S11: =hmars ->  | T11: =hmars -> CA : CA | U11: =hmars -> CA : CA | V11: =hmars -> CA : CA | W11: =hmars -> CA : CA | X11: =hmars -> CA : CA | Y11: =hmars ->  | Z11: =hmars ->  | AA11: =hmars ->  | AB11: =hmars ->  | AC11: =hmars ->  | AD11: =hmars ->  | AE11: =hmars ->  | AF11: =hmars -> 
A12: =Données!$H9 -> 4 | B12: =hmars -> CM : CM | C12: =hmars -> CM : CM | D12: =hmars ->  | E12: =hmars ->  | F12: =hmars -> CM : CM | G12: =hmars -> CM : CM | H12: =hmars -> CM : CM | I12: =hmars -> CM : CM | J12: =hmars -> CM : CM | K12: =hmars ->  | L12: =hmars ->  | M12: =hmars -> CM : CM | N12: =hmars -> CM : CM | O12: =hmars -> CM : CM | P12: =hmars -> CM : CM | Q12: =hmars -> CM : CM | R12: =hmars ->  | S12: =hmars ->  | T12: =hmars -> CM : CM | U12: =hmars -> CM : CM | V12: =hmars -> CM : CM | W12: =hmars -> CM : CM | X12: =hmars -> CM : CM | Y12: =hmars ->  | Z12: =hmars ->  | AA12: =hmars -> CM : CM | AB12: =hmars -> CM : CM | AC12: =hmars -> CM : CM | AD12: =hmars -> CM : CM | AE12: =hmars -> CM : CM | AF12: =hmars -> 
A13: =Données!$H10 -> 5 | B13: =hmars -> CA : CA | C13: =hmars -> CA : CA | D13: =hmars ->  | E13: =hmars ->  | F13: =hmars ->  | G13: =hmars ->  | H13: =hmars ->  | I13: =hmars ->  | J13: =hmars ->  | K13: =hmars ->  | L13: =hmars ->  | M13: =hmars ->  | N13: =hmars ->  | O13: =hmars ->  | P13: =hmars ->  | Q13: =hmars ->  | R13: =hmars ->  | S13: =hmars ->  | T13: =hmars ->  | U13: =hmars ->  | V13: =hmars ->  | W13: =hmars ->  | X13: =hmars ->  | Y13: =hmars ->  | Z13: =hmars ->  | AA13: =hmars ->  | AB13: =hmars ->  | AC13: =hmars ->  | AD13: =hmars ->  | AE13: =hmars ->  | AF13: =hmars -> 
A14: =Données!$H11 -> 6 | B14: =hmars ->  | C14: =hmars ->  | D14: =hmars ->  | E14: =hmars ->  | F14: =hmars ->  | G14: =hmars ->  | H14: =hmars ->  | I14: =hmars ->  | J14: =hmars ->  | K14: =hmars ->  | L14: =hmars ->  | M14: =hmars ->  | N14: =hmars ->  | O14: =hmars ->  | P14: =hmars ->  | Q14: =hmars -> CA : CA | R14: =hmars ->  | S14: =hmars ->  | T14: =hmars ->  | U14: =hmars ->  | V14: =hmars ->  | W14: =hmars -> CA : CA | X14: =hmars -> CA : CA | Y14: =hmars ->  | Z14: =hmars ->  | AA14: =hmars ->  | AB14: =hmars ->  | AC14: =hmars ->  | AD14: =hmars -> CA : CA | AE14: =hmars ->  | AF14: =hmars -> 
A15: =Données!$H12 -> 7 | B15: =hmars ->  | C15: =hmars ->  | D15: =hmars ->  | E15: =hmars ->  | F15: =hmars ->  | G15: =hmars ->  | H15: =hmars ->  | I15: =hmars ->  | J15: =hmars ->  | K15: =hmars ->  | L15: =hmars ->  | M15: =hmars ->  | N15: =hmars ->  | O15: =hmars ->  | P15: =hmars ->  | Q15: =hmars ->  | R15: =hmars ->  | S15: =hmars ->  | T15: =hmars ->  | U15: =hmars ->  | V15: =hmars ->  | W15: =hmars ->  | X15: =hmars ->  | Y15: =hmars ->  | Z15: =hmars ->  | AA15: =hmars ->  | AB15: =hmars ->  | AC15: =hmars ->  | AD15: =hmars ->  | AE15: =hmars ->  | AF15: =hmars -> 
A16: =Données!$H13 -> 8 | B16: =hmars ->  | C16: =hmars ->  | D16: =hmars ->  | E16: =hmars ->  | F16: =hmars ->  | G16: =hmars ->  | H16: =hmars ->  | I16: =hmars ->  | J16: =hmars ->  | K16: =hmars ->  | L16: =hmars ->  | M16: =hmars ->  | N16: =hmars ->  | O16: =hmars ->  | P16: =hmars ->  | Q16: =hmars ->  | R16: =hmars ->  | S16: =hmars ->  | T16: =hmars ->  | U16: =hmars ->  | V16: =hmars ->  | W16: =hmars ->  | X16: =hmars ->  | Y16: =hmars ->  | Z16: =hmars ->  | AA16: =hmars ->  | AB16: =hmars ->  | AC16: =hmars ->  | AD16: =hmars ->  | AE16: =hmars ->  | AF16: =hmars -> 
A17: =Données!$H14 -> 0 | B17: =hmars ->  | C17: =hmars ->  | D17: =hmars ->  | E17: =hmars ->  | F17: =hmars ->  | G17: =hmars ->  | H17: =hmars ->  | I17: =hmars ->  | J17: =hmars ->  | K17: =hmars ->  | L17: =hmars ->  | M17: =hmars ->  | N17: =hmars ->  | O17: =hmars ->  | P17: =hmars ->  | Q17: =hmars ->  | R17: =hmars ->  | S17: =hmars ->  | T17: =hmars ->  | U17: =hmars ->  | V17: =hmars ->  | W17: =hmars ->  | X17: =hmars ->  | Y17: =hmars ->  | Z17: =hmars ->  | AA17: =hmars ->  | AB17: =hmars ->  | AC17: =hmars ->  | AD17: =hmars ->  | AE17: =hmars ->  | AF17: =hmars -> 
A18: =Données!$H15 -> 0 | B18: =hmars ->  | C18: =hmars ->  | D18: =hmars ->  | E18: =hmars ->  | F18: =hmars ->  | G18: =hmars ->  | H18: =hmars ->  | I18: =hmars ->  | J18: =hmars ->  | K18: =hmars ->  | L18: =hmars ->  | M18: =hmars ->  | N18: =hmars ->  | O18: =hmars ->  | P18: =hmars ->  | Q18: =hmars ->  | R18: =hmars ->  | S18: =hmars ->  | T18: =hmars ->  | U18: =hmars ->  | V18: =hmars ->  | W18: =hmars ->  | X18: =hmars ->  | Y18: =hmars ->  | Z18: =hmars ->  | AA18: =hmars ->  | AB18: =hmars ->  | AC18: =hmars ->  | AD18: =hmars ->  | AE18: =hmars ->  | AF18: =hmars -> 
A19: =Données!$H16 -> 0 | B19: =hmars ->  | C19: =hmars ->  | D19: =hmars ->  | E19: =hmars ->  | F19: =hmars ->  | G19: =hmars ->  | H19: =hmars ->  | I19: =hmars ->  | J19: =hmars ->  | K19: =hmars ->  | L19: =hmars ->  | M19: =hmars ->  | N19: =hmars ->  | O19: =hmars ->  | P19: =hmars ->  | Q19: =hmars ->  | R19: =hmars ->  | S19: =hmars ->  | T19: =hmars ->  | U19: =hmars ->  | V19: =hmars ->  | W19: =hmars ->  | X19: =hmars ->  | Y19: =hmars ->  | Z19: =hmars ->  | AA19: =hmars ->  | AB19: =hmars ->  | AC19: =hmars ->  | AD19: =hmars ->  | AE19: =hmars ->  | AF19: =hmars -> 
A20: =Données!$H17 -> 0
A21: =Données!$H18 -> 0
A22: =Données!$H19 -> 0
A23: =Données!$H20 -> 0
A24: =Données!$H21 -> 0
A25: =Données!$H22 -> Equipe de nuit
A26: =Données!$H23 -> 9 | B26: =hmars ->  | C26: =hmars ->  | D26: =hmars ->  | E26: =hmars ->  | F26: =hmars -> CA : CA | G26: =hmars -> CA : CA | H26: =hmars -> CA : CA | I26: =hmars -> CA : CA | J26: =hmars -> CA : CA | K26: =hmars ->  | L26: =hmars ->  | M26: =hmars ->  | N26: =hmars ->  | O26: =hmars ->  | P26: =hmars ->  | Q26: =hmars ->  | R26: =hmars ->  | S26: =hmars ->  | T26: =hmars ->  | U26: =hmars ->  | V26: =hmars ->  | W26: =hmars ->  | X26: =hmars ->  | Y26: =hmars ->  | Z26: =hmars ->  | AA26: =hmars ->  | AB26: =hmars ->  | AC26: =hmars ->  | AD26: =hmars ->  | AE26: =hmars ->  | AF26: =hmars -> 
A27: =Données!$H24 -> 10 | B27: =hmars ->  | C27: =hmars ->  | D27: =hmars ->  | E27: =hmars ->  | F27: =hmars ->  | G27: =hmars ->  | H27: =hmars ->  | I27: =hmars ->  | J27: =hmars ->  | K27: =hmars ->  | L27: =hmars ->  | M27: =hmars ->  | N27: =hmars ->  | O27: =hmars ->  | P27: =hmars ->  | Q27: =hmars ->  | R27: =hmars ->  | S27: =hmars ->  | T27: =hmars ->  | U27: =hmars ->  | V27: =hmars ->  | W27: =hmars ->  | X27: =hmars -> CA : CA | Y27: =hmars ->  | Z27: =hmars ->  | AA27: =hmars -> CA : CA | AB27: =hmars -> CA : CA | AC27: =hmars -> CA : CA | AD27: =hmars -> CA : CA | AE27: =hmars -> CA : CA | AF27: =hmars -> 
